Workbook

Sheet Info
C5: Versión del modelo: | D5: Versión incorporada al libro "Modelos de Análisis y Valoración de Proyectos"
C6: Fecha de actualización: | D6: 2013-04-26
C8: Modeleva ha sido desarrollado por Alfonso Rodríguez Sandiás, Universidad de Santiago de Compostela.
C9: La marca Modeleva es propiedad del autor.
C10: www.usc.es/modeleva
D13: Atención: Modeleva tiene propósitos fundamentalmente formativos. Puede utilizarse como apoyo a decisiones empresariales. En todo caso la responsabilidad acerca de las decisiones tomadas es del usuario.

Sheet CONTROL
B2: INPUTS DEL MODELO | C2: Proyecto | D2: Año inicio -- > | E2: 2014 | F2: Mes inicio -- > | G2: Ene | H2: =EOMONTH(DATEVALUE(CONTROL!G2&CONTROL!E2),0) -> 2014-01-31
B3: FINANCIACIÓN INICIAL | H3: INFLACIÓN
B4: Coste Recursos Propios | C4: 0.12 | D4: Cuantía | G4: IPC
B5: Capital | D5: =FIN!H5 -> 0 | G5: IPC Ingresos
B6: Subvención | D6: =FIN!H6 -> 0 | G6: IPC Costes
B7: Deuda 1 | D7: =FIN!H7 -> 0 | H7: FISCALES
B8: Deuda 2 | C8: =IF(1-C5-C6-C7<-0.001,"Exceso de fondos",1-C5-C6-C7) -> 1 | D8: =FIN!H8 -> 1 | G8: Tasa Impositiva
C9: Deuda 1 | D9: Deuda 2 | G9: Tasa Reducida
B10: Tipo de Deuda | G10: Tramo Reducido
B11: Duración | G11: Pago Impuestos | H11: May
B12: Coste | G12: IVA Compras
B13: Pagos anuales | G13: IVA Otros Explotación
B14: Carencia | G14: IVA Costes Fijos
B15: Comisión | H15: FONDO DE MANIOBRA
B16: OTRA INFORMACIÓN FINANCIERA | G16: Demora Pago Proveedores
B17: Financiación Extra Inicial | D17: Años subvención | E17: 5 | G17: Demora Pago Acreedores
B18: Interés Activo | D18: Interés Pasivo | G18: Demora en Cobros
B19: Deuda Mínima | D19: Deuda Máxima | G19: Stock Materias Primas
B20: Dividendos | D20: Pago Dividendos | E20: Jun | G20: Stock Producto Terminado
B21: Crecimiento Residual | D21: Equilibrio | G21: Tesorería Operativa
B22: LÍNEAS DE NEGOCIO | C22: Línea A | D22: Línea B | E22: Línea C | F22: Línea D | G22: Línea E | H22: Línea F
B23: Inicio Línea | C23: 2014
B24: Precio Venta Inicial | C24: 1
B25: Ventas Iniciales | C25: 1
B26: IVA
B27: ="Crecimiento, " &E2&"- " &E2+1 -> Crecimiento, 2014- 2015
B28: ="Crecimiento, " &E2+1&"- " &E2+2 -> Crecimiento, 2015- 2016
B29: ="Crecimiento, " &E2+2&"- " &E2+3 -> Crecimiento, 2016- 2017
B30: ="Crecimiento, " &E2+3&"- " &E2+4 -> Crecimiento, 2017- 2018
B31: ="Crecimiento, " &E2+4&"- " &E2+5 -> Crecimiento, 2018- 2019
B32: ="Crecimiento, " &E2+5&"- " &E2+6 -> Crecimiento, 2019- 2020
C33: OUTPUTS DEL MODELO
B34: CCMP Promedio = | C34: =IF(MIN(BALANCE!C20:J20)>=0,FIN!D19,"Error, Recursos Propios Negativos") -> 0.08553356993 | G34: Chequeos
B35: RESULTADOS DEL PROYECTO | E35: RESULTADOS DEL CAPITAL | G35: Mensualización | H35: =IF(AND(INCO!N10="",INCO!O10=""),"O.K","Incorrecta") -> O.K
B36: VAN = | C36: =RENTAB!C19 -> 9.689545703 | E36: TIR Capital = | F36: =RENTAB!C40 -> 2.980232239e-09 | G36: Fecha Inversiones | H36: =IF(INV!A5:A27="Fuera de Plazo","Error","O.K") -> O.K
B37: Indice de Rentabilidad Neto = | C37: =RENTAB!C20 -> 9.424636987 | E37: TIR Capital Modificada = | F37: =RENTAB!C41 -> 180.6311024 | G37: Financiación inicial | H37: =IF(ISNUMBER(C8),"O.K","Sin cuadrar") -> O.K
B38: TIR = | C38: =RENTAB!G19 -> 1.034248912 | G38: Balance | H38: =IF(MAX(BALANCE!C34:DC34)<0.01, "O.K","Descuadrado") -> O.K
B39: TIR Modificada = | C39: =RENTAB!G20 -> 0.4880184048 | G39: Tesorería | H39: =IF(MAX(TES!X32:DC32)<1,"O.K","Descuadrada") -> O.K
G40: Recursos propios | H40: =IF(MIN(BALANCE!C20:J20)>=0,"O.K", "Negativos") -> O.K
G41: Flujo Capital | H41: =IF(MAX(RENTAB!C39:J39)<1,"O.K","Descuadre") -> O.K

Sheet INV
B2: =CONTROL!C2 -> Proyecto | C2: Inicio: | D2: =CONTROL!H2 -> 2014-01-31 | J2: Cuadro de Amortización Anual | Q2: =YEAR(Q3) -> 2014 | R2: =YEAR(R3) -> 2014 | S2: =YEAR(S3) -> 2014 | T2: 2014 | U2: 2014 | V2: 2014 | W2: 2014 | X2: 2014 | Y2: 2014 | Z2: 2014 | AA2: 2014 | AB2: 2014 | AC2: 2015 | AD2: 2015 | AE2: 2015 | AF2: 2015 | AG2: 2015 | AH2: 2015 | AI2: 2015 | AJ2: 2015 | AK2: 2015 | AL2: 2015 | AM2: 2015 | AN2: 2015 | AO2: 2016 | AP2: 2016 | AQ2: 2016 | AR2: 2016 | AS2: 2016 | AT2: 2016 | AU2: 2016 | AV2: 2016 | AW2: 2016 | AX2: 2016 | AY2: 2016 | AZ2: 2016 | BA2: 2017 | BB2: 2017 | BC2: 2017 | BD2: 2017 | BE2: 2017 | BF2: 2017 | BG2: 2017 | BH2: 2017 | BI2: 2017 | BJ2: 2017 | BK2: 2017 | BL2: 2017 | BM2: 2018 | BN2: 2018 | BO2: 2018 | BP2: 2018 | BQ2: 2018 | BR2: 2018 | BS2: 2018 | BT2: 2018 | BU2: 2018 | BV2: 2018 | BW2: 2018 | BX2: 2018 | BY2: 2019 | BZ2: 2019 | CA2: 2019 | CB2: 2019 | CC2: 2019 | CD2: 2019 | CE2: =YEAR(CE3) -> 2019 | CF2: 2019 | CG2: 2019 | CH2: 2019 | CI2: 2019 | CJ2: 2019 | CK2: 2020 | CL2: 2020 | CM2: 2020 | CN2: 2020 | CO2: 2020 | CP2: 2020 | CQ2: 2020 | CR2: 2020 | CS2: 2020 | CT2: 2020 | CU2: 2020 | CV2: 2020
C3: Estimación | D3: Fecha | E3: Coef. | F3: IVA | G3: Inversión | H3: IVA | I3: =YEAR(D2) -> 2014 | J3: =I3+1 -> 2015 | K3: 2016 | L3: 2017 | M3: 2018 | N3: 2019 | O3: 2020 | Q3: =D2 -> 2014-01-31 | R3: =EOMONTH(Q3,1) -> 2014-02-28 | S3: =EOMONTH(R3,1) -> 2014-03-31 | T3: 2014-04-30 | U3: 2014-05-31 | V3: 2014-06-30 | W3: 2014-07-31 | X3: 2014-08-31 | Y3: 2014-09-30 | Z3: 2014-10-31 | AA3: 2014-11-30 | AB3: 2014-12-31 | AC3: 2015-01-31 | AD3: 2015-02-28 | AE3: 2015-03-31 | AF3: 2015-04-30 | AG3: 2015-05-31 | AH3: 2015-06-30 | AI3: 2015-07-31 | AJ3: 2015-08-31 | AK3: 2015-09-30 | AL3: 2015-10-31 | AM3: 2015-11-30 | AN3: 2015-12-31 | AO3: 2016-01-31 | AP3: 2016-02-29 | AQ3: 2016-03-31 | AR3: 2016-04-30 | AS3: 2016-05-31 | AT3: 2016-06-30 | AU3: 2016-07-31 | AV3: 2016-08-31 | AW3: 2016-09-30 | AX3: 2016-10-31 | AY3: 2016-11-30 | AZ3: 2016-12-31 | BA3: 2017-01-31 | BB3: 2017-02-28 | BC3: 2017-03-31 | BD3: 2017-04-30 | BE3: 2017-05-31 | BF3: 2017-06-30 | BG3: 2017-07-31 | BH3: 2017-08-31 | BI3: 2017-09-30 | BJ3: 2017-10-31 | BK3: 2017-11-30 | BL3: 2017-12-31 | BM3: 2018-01-31 | BN3: 2018-02-28 | BO3: 2018-03-31 | BP3: 2018-04-30 | BQ3: 2018-05-31 | BR3: 2018-06-30 | BS3: 2018-07-31 | BT3: 2018-08-31 | BU3: 2018-09-30 | BV3: 2018-10-31 | BW3: 2018-11-30 | BX3: 2018-12-31 | BY3: 2019-01-31 | BZ3: 2019-02-28 | CA3: 2019-03-31 | CB3: 2019-04-30 | CC3: 2019-05-31 | CD3: 2019-06-30 | CE3: =EOMONTH(CD3,1) -> 2019-07-31 | CF3: 2019-08-31 | CG3: 2019-09-30 | CH3: 2019-10-31 | CI3: 2019-11-30 | CJ3: 2019-12-31 | CK3: 2020-01-31 | CL3: 2020-02-29 | CM3: 2020-03-31 | CN3: 2020-04-30 | CO3: 2020-05-31 | CP3: 2020-06-30 | CQ3: 2020-07-31 | CR3: 2020-08-31 | CS3: 2020-09-30 | CT3: 2020-10-31 | CU3: 2020-11-30 | CV3: 2020-12-31
B4: INMOVILIZADO MATERIAL
A5: =IF(D5<EOMONTH($D$2,-12),"Fuera de plazo",IF(D5>BALANCE!$J$3,"Fuera de plazo","")) ->  | B5: Terrenos | C5: 1 | D5: 2013-04-30 | G5: =IF(YEAR(D5)<=YEAR($D$2),C5*RIESGO!$C$4,C5*RIESGO!$C$4*(1+CONTROL!$H$4)^(YEAR(D5)-YEAR($D$2))) -> 1 | H5: =G5*F5 -> 0
A6: =IF(D6<EOMONTH($D$2,-12),"Fuera de plazo",IF(D6>BALANCE!$J$3,"Fuera de plazo","")) ->  | B6: Edificios | D6: 2013-04-30 | E6: 0.03 | F6: 0.21 | G6: =IF(YEAR(D6)<=YEAR($D$2),C6*RIESGO!$C$4,C6*RIESGO!$C$4*(1+CONTROL!$H$4)^(YEAR(D6)-YEAR($D$2))) -> 0 | H6: 0 | I6: =SUMIF($Q$2:$CV$2,I$3,$Q6:$CV6) -> 0 | J6: 0 | K6: 0 | L6: 0 | M6: 0 | N6: 0 | O6: 0 | Q6: =IF(D6>=$Q$3,0,$E6/12*$G6) -> 0 | R6: =IF($D6>=R$3,0,IF(SUM($Q6:Q6)=$G6,0,IF($G6*$E6/12<($G6-SUM($Q6:Q6)),$G6*$E6/12,($G6-SUM($Q6:Q6))))) -> 0 | S6: =IF($D6>=S$3,0,IF(SUM($Q6:R6)=$G6,0,IF($G6*$E6/12<($G6-SUM($Q6:R6)),$G6*$E6/12,($G6-SUM($Q6:R6))))) -> 0 | T6: =IF($D6>=T$3,0,IF(SUM($Q6:S6)=$G6,0,IF($G6*$E6/12<($G6-SUM($Q6:S6)),$G6*$E6/12,($G6-SUM($Q6:S6))))) -> 0 | U6: =IF($D6>=U$3,0,IF(SUM($Q6:T6)=$G6,0,IF($G6*$E6/12<($G6-SUM($Q6:T6)),$G6*$E6/12,($G6-SUM($Q6:T6))))) -> 0 | V6: =IF($D6>=V$3,0,IF(SUM($Q6:U6)=$G6,0,IF($G6*$E6/12<($G6-SUM($Q6:U6)),$G6*$E6/12,($G6-SUM($Q6:U6))))) -> 0 | W6: =IF($D6>=W$3,0,IF(SUM($Q6:V6)=$G6,0,IF($G6*$E6/12<($G6-SUM($Q6:V6)),$G6*$E6/12,($G6-SUM($Q6:V6))))) -> 0 | X6: =IF($D6>=X$3,0,IF(SUM($Q6:W6)=$G6,0,IF($G6*$E6/12<($G6-SUM($Q6:W6)),$G6*$E6/12,($G6-SUM($Q6:W6))))) -> 0 | Y6: =IF($D6>=Y$3,0,IF(SUM($Q6:X6)=$G6,0,IF($G6*$E6/12<($G6-SUM($Q6:X6)),$G6*$E6/12,($G6-SUM($Q6:X6))))) -> 0 | Z6: =IF($D6>=Z$3,0,IF(SUM($Q6:Y6)=$G6,0,IF($G6*$E6/12<($G6-SUM($Q6:Y6)),$G6*$E6/12,($G6-SUM($Q6:Y6))))) -> 0 | AA6: =IF($D6>=AA$3,0,IF(SUM($Q6:Z6)=$G6,0,IF($G6*$E6/12<($G6-SUM($Q6:Z6)),$G6*$E6/12,($G6-SUM($Q6:Z6))))) -> 0 | AB6: =IF($D6>=AB$3,0,IF(SUM($Q6:AA6)=$G6,0,IF($G6*$E6/12<($G6-SUM($Q6:AA6)),$G6*$E6/12,($G6-SUM($Q6:AA6))))) -> 0 | AC6: =IF($D6>=AC$3,0,IF(SUM($Q6:AB6)=$G6,0,IF($G6*$E6/12<($G6-SUM($Q6:AB6)),$G6*$E6/12,($G6-SUM($Q6:AB6))))) -> 0 | AD6: =IF($D6>=AD$3,0,IF(SUM($Q6:AC6)=$G6,0,IF($G6*$E6/12<($G6-SUM($Q6:AC6)),$G6*$E6/12,($G6-SUM($Q6:AC6))))) -> 0 | AE6: =IF($D6>=AE$3,0,IF(SUM($Q6:AD6)=$G6,0,IF($G6*$E6/12<($G6-SUM($Q6:AD6)),$G6*$E6/12,($G6-SUM($Q6:AD6))))) -> 0 | AF6: =IF($D6>=AF$3,0,IF(SUM($Q6:AE6)=$G6,0,IF($G6*$E6/12<($G6-SUM($Q6:AE6)),$G6*$E6/12,($G6-SUM($Q6:AE6))))) -> 0 | AG6: =IF($D6>=AG$3,0,IF(SUM($Q6:AF6)=$G6,0,IF($G6*$E6/12<($G6-SUM($Q6:AF6)),$G6*$E6/12,($G6-SUM($Q6:AF6))))) -> 0 | AH6: =IF($D6>=AH$3,0,IF(SUM($Q6:AG6)=$G6,0,IF($G6*$E6/12<($G6-SUM($Q6:AG6)),$G6*$E6/12,($G6-SUM($Q6:AG6))))) -> 0 | AI6: =IF($D6>=AI$3,0,IF(SUM($Q6:AH6)=$G6,0,IF($G6*$E6/12<($G6-SUM($Q6:AH6)),$G6*$E6/12,($G6-SUM($Q6:AH6))))) -> 0 | AJ6: =IF($D6>=AJ$3,0,IF(SUM($Q6:AI6)=$G6,0,IF($G6*$E6/12<($G6-SUM($Q6:AI6)),$G6*$E6/12,($G6-SUM($Q6:AI6))))) -> 0 | AK6: =IF($D6>=AK$3,0,IF(SUM($Q6:AJ6)=$G6,0,IF($G6*$E6/12<($G6-SUM($Q6:AJ6)),$G6*$E6/12,($G6-SUM($Q6:AJ6))))) -> 0 | AL6: =IF($D6>=AL$3,0,IF(SUM($Q6:AK6)=$G6,0,IF($G6*$E6/12<($G6-SUM($Q6:AK6)),$G6*$E6/12,($G6-SUM($Q6:AK6))))) -> 0 | AM6: =IF($D6>=AM$3,0,IF(SUM($Q6:AL6)=$G6,0,IF($G6*$E6/12<($G6-SUM($Q6:AL6)),$G6*$E6/12,($G6-SUM($Q6:AL6))))) -> 0 | AN6: =IF($D6>=AN$3,0,IF(SUM($Q6:AM6)=$G6,0,IF($G6*$E6/12<($G6-SUM($Q6:AM6)),$G6*$E6/12,($G6-SUM($Q6:AM6))))) -> 0 | AO6: =IF($D6>=AO$3,0,IF(SUM($Q6:AN6)=$G6,0,IF($G6*$E6/12<($G6-SUM($Q6:AN6)),$G6*$E6/12,($G6-SUM($Q6:AN6))))) -> 0 | AP6: =IF($D6>=AP$3,0,IF(SUM($Q6:AO6)=$G6,0,IF($G6*$E6/12<($G6-SUM($Q6:AO6)),$G6*$E6/12,($G6-SUM($Q6:AO6))))) -> 0 | AQ6: =IF($D6>=AQ$3,0,IF(SUM($Q6:AP6)=$G6,0,IF($G6*$E6/12<($G6-SUM($Q6:AP6)),$G6*$E6/12,($G6-SUM($Q6:AP6))))) -> 0 | AR6: =IF($D6>=AR$3,0,IF(SUM($Q6:AQ6)=$G6,0,IF($G6*$E6/12<($G6-SUM($Q6:AQ6)),$G6*$E6/12,($G6-SUM($Q6:AQ6))))) -> 0 | AS6: =IF($D6>=AS$3,0,IF(SUM($Q6:AR6)=$G6,0,IF($G6*$E6/12<($G6-SUM($Q6:AR6)),$G6*$E6/12,($G6-SUM($Q6:AR6))))) -> 0 | AT6: =IF($D6>=AT$3,0,IF(SUM($Q6:AS6)=$G6,0,IF($G6*$E6/12<($G6-SUM($Q6:AS6)),$G6*$E6/12,($G6-SUM($Q6:AS6))))) -> 0 | AU6: =IF($D6>=AU$3,0,IF(SUM($Q6:AT6)=$G6,0,IF($G6*$E6/12<($G6-SUM($Q6:AT6)),$G6*$E6/12,($G6-SUM($Q6:AT6))))) -> 0 | AV6: =IF($D6>=AV$3,0,IF(SUM($Q6:AU6)=$G6,0,IF($G6*$E6/12<($G6-SUM($Q6:AU6)),$G6*$E6/12,($G6-SUM($Q6:AU6))))) -> 0 | AW6: =IF($D6>=AW$3,0,IF(SUM($Q6:AV6)=$G6,0,IF($G6*$E6/12<($G6-SUM($Q6:AV6)),$G6*$E6/12,($G6-SUM($Q6:AV6))))) -> 0 | AX6: =IF($D6>=AX$3,0,IF(SUM($Q6:AW6)=$G6,0,IF($G6*$E6/12<($G6-SUM($Q6:AW6)),$G6*$E6/12,($G6-SUM($Q6:AW6))))) -> 0 | AY6: =IF($D6>=AY$3,0,IF(SUM($Q6:AX6)=$G6,0,IF($G6*$E6/12<($G6-SUM($Q6:AX6)),$G6*$E6/12,($G6-SUM($Q6:AX6))))) -> 0 | AZ6: =IF($D6>=AZ$3,0,IF(SUM($Q6:AY6)=$G6,0,IF($G6*$E6/12<($G6-SUM($Q6:AY6)),$G6*$E6/12,($G6-SUM($Q6:AY6))))) -> 0 | BA6: =IF($D6>=BA$3,0,IF(SUM($Q6:AZ6)=$G6,0,IF($G6*$E6/12<($G6-SUM($Q6:AZ6)),$G6*$E6/12,($G6-SUM($Q6:AZ6))))) -> 0 | BB6: =IF($D6>=BB$3,0,IF(SUM($Q6:BA6)=$G6,0,IF($G6*$E6/12<($G6-SUM($Q6:BA6)),$G6*$E6/12,($G6-SUM($Q6:BA6))))) -> 0 | BC6: =IF($D6>=BC$3,0,IF(SUM($Q6:BB6)=$G6,0,IF($G6*$E6/12<($G6-SUM($Q6:BB6)),$G6*$E6/12,($G6-SUM($Q6:BB6))))) -> 0 | BD6: =IF($D6>=BD$3,0,IF(SUM($Q6:BC6)=$G6,0,IF($G6*$E6/12<($G6-SUM($Q6:BC6)),$G6*$E6/12,($G6-SUM($Q6:BC6))))) -> 0 | BE6: =IF($D6>=BE$3,0,IF(SUM($Q6:BD6)=$G6,0,IF($G6*$E6/12<($G6-SUM($Q6:BD6)),$G6*$E6/12,($G6-SUM($Q6:BD6))))) -> 0 | BF6: =IF($D6>=BF$3,0,IF(SUM($Q6:BE6)=$G6,0,IF($G6*$E6/12<($G6-SUM($Q6:BE6)),$G6*$E6/12,($G6-SUM($Q6:BE6))))) -> 0 | BG6: =IF($D6>=BG$3,0,IF(SUM($Q6:BF6)=$G6,0,IF($G6*$E6/12<($G6-SUM($Q6:BF6)),$G6*$E6/12,($G6-SUM($Q6:BF6))))) -> 0 | BH6: =IF($D6>=BH$3,0,IF(SUM($Q6:BG6)=$G6,0,IF($G6*$E6/12<($G6-SUM($Q6:BG6)),$G6*$E6/12,($G6-SUM($Q6:BG6))))) -> 0 | BI6: =IF($D6>=BI$3,0,IF(SUM($Q6:BH6)=$G6,0,IF($G6*$E6/12<($G6-SUM($Q6:BH6)),$G6*$E6/12,($G6-SUM($Q6:BH6))))) -> 0 | BJ6: =IF($D6>=BJ$3,0,IF(SUM($Q6:BI6)=$G6,0,IF($G6*$E6/12<($G6-SUM($Q6:BI6)),$G6*$E6/12,($G6-SUM($Q6:BI6))))) -> 0 | BK6: =IF($D6>=BK$3,0,IF(SUM($Q6:BJ6)=$G6,0,IF($G6*$E6/12<($G6-SUM($Q6:BJ6)),$G6*$E6/12,($G6-SUM($Q6:BJ6))))) -> 0 | BL6: =IF($D6>=BL$3,0,IF(SUM($Q6:BK6)=$G6,0,IF($G6*$E6/12<($G6-SUM($Q6:BK6)),$G6*$E6/12,($G6-SUM($Q6:BK6))))) -> 0 | BM6: =IF($D6>=BM$3,0,IF(SUM($Q6:BL6)=$G6,0,IF($G6*$E6/12<($G6-SUM($Q6:BL6)),$G6*$E6/12,($G6-SUM($Q6:BL6))))) -> 0 | BN6: =IF($D6>=BN$3,0,IF(SUM($Q6:BM6)=$G6,0,IF($G6*$E6/12<($G6-SUM($Q6:BM6)),$G6*$E6/12,($G6-SUM($Q6:BM6))))) -> 0 | BO6: =IF($D6>=BO$3,0,IF(SUM($Q6:BN6)=$G6,0,IF($G6*$E6/12<($G6-SUM($Q6:BN6)),$G6*$E6/12,($G6-SUM($Q6:BN6))))) -> 0 | BP6: =IF($D6>=BP$3,0,IF(SUM($Q6:BO6)=$G6,0,IF($G6*$E6/12<($G6-SUM($Q6:BO6)),$G6*$E6/12,($G6-SUM($Q6:BO6))))) -> 0 | BQ6: =IF($D6>=BQ$3,0,IF(SUM($Q6:BP6)=$G6,0,IF($G6*$E6/12<($G6-SUM($Q6:BP6)),$G6*$E6/12,($G6-SUM($Q6:BP6))))) -> 0 | BR6: =IF($D6>=BR$3,0,IF(SUM($Q6:BQ6)=$G6,0,IF($G6*$E6/12<($G6-SUM($Q6:BQ6)),$G6*$E6/12,($G6-SUM($Q6:BQ6))))) -> 0 | BS6: =IF($D6>=BS$3,0,IF(SUM($Q6:BR6)=$G6,0,IF($G6*$E6/12<($G6-SUM($Q6:BR6)),$G6*$E6/12,($G6-SUM($Q6:BR6))))) -> 0 | BT6: =IF($D6>=BT$3,0,IF(SUM($Q6:BS6)=$G6,0,IF($G6*$E6/12<($G6-SUM($Q6:BS6)),$G6*$E6/12,($G6-SUM($Q6:BS6))))) -> 0 | BU6: =IF($D6>=BU$3,0,IF(SUM($Q6:BT6)=$G6,0,IF($G6*$E6/12<($G6-SUM($Q6:BT6)),$G6*$E6/12,($G6-SUM($Q6:BT6))))) -> 0 | BV6: =IF($D6>=BV$3,0,IF(SUM($Q6:BU6)=$G6,0,IF($G6*$E6/12<($G6-SUM($Q6:BU6)),$G6*$E6/12,($G6-SUM($Q6:BU6))))) -> 0 | BW6: =IF($D6>=BW$3,0,IF(SUM($Q6:BV6)=$G6,0,IF($G6*$E6/12<($G6-SUM($Q6:BV6)),$G6*$E6/12,($G6-SUM($Q6:BV6))))) -> 0 | BX6: =IF($D6>=BX$3,0,IF(SUM($Q6:BW6)=$G6,0,IF($G6*$E6/12<($G6-SUM($Q6:BW6)),$G6*$E6/12,($G6-SUM($Q6:BW6))))) -> 0 | BY6: =IF($D6>=BY$3,0,IF(SUM($Q6:BX6)=$G6,0,IF($G6*$E6/12<($G6-SUM($Q6:BX6)),$G6*$E6/12,($G6-SUM($Q6:BX6))))) -> 0 | BZ6: =IF($D6>=BZ$3,0,IF(SUM($Q6:BY6)=$G6,0,IF($G6*$E6/12<($G6-SUM($Q6:BY6)),$G6*$E6/12,($G6-SUM($Q6:BY6))))) -> 0 | CA6: =IF($D6>=CA$3,0,IF(SUM($Q6:BZ6)=$G6,0,IF($G6*$E6/12<($G6-SUM($Q6:BZ6)),$G6*$E6/12,($G6-SUM($Q6:BZ6))))) -> 0 | CB6: =IF($D6>=CB$3,0,IF(SUM($Q6:CA6)=$G6,0,IF($G6*$E6/12<($G6-SUM($Q6:CA6)),$G6*$E6/12,($G6-SUM($Q6:CA6))))) -> 0 | CC6: =IF($D6>=CC$3,0,IF(SUM($Q6:CB6)=$G6,0,IF($G6*$E6/12<($G6-SUM($Q6:CB6)),$G6*$E6/12,($G6-SUM($Q6:CB6))))) -> 0 | CD6: =IF($D6>=CD$3,0,IF(SUM($Q6:CC6)=$G6,0,IF($G6*$E6/12<($G6-SUM($Q6:CC6)),$G6*$E6/12,($G6-SUM($Q6:CC6))))) -> 0 | CE6: =IF($D6>=CE$3,0,IF(SUM($Q6:CD6)=$G6,0,IF($G6*$E6/12<($G6-SUM($Q6:CD6)),$G6*$E6/12,($G6-SUM($Q6:CD6))))) -> 0 | CF6: =IF($D6>=CF$3,0,IF(SUM($Q6:CE6)=$G6,0,IF($G6*$E6/12<($G6-SUM($Q6:CE6)),$G6*$E6/12,($G6-SUM($Q6:CE6))))) -> 0 | CG6: =IF($D6>=CG$3,0,IF(SUM($Q6:CF6)=$G6,0,IF($G6*$E6/12<($G6-SUM($Q6:CF6)),$G6*$E6/12,($G6-SUM($Q6:CF6))))) -> 0 | CH6: =IF($D6>=CH$3,0,IF(SUM($Q6:CG6)=$G6,0,IF($G6*$E6/12<($G6-SUM($Q6:CG6)),$G6*$E6/12,($G6-SUM($Q6:CG6))))) -> 0 | CI6: =IF($D6>=CI$3,0,IF(SUM($Q6:CH6)=$G6,0,IF($G6*$E6/12<($G6-SUM($Q6:CH6)),$G6*$E6/12,($G6-SUM($Q6:CH6))))) -> 0 | CJ6: =IF($D6>=CJ$3,0,IF(SUM($Q6:CI6)=$G6,0,IF($G6*$E6/12<($G6-SUM($Q6:CI6)),$G6*$E6/12,($G6-SUM($Q6:CI6))))) -> 0 | CK6: =IF($D6>=CK$3,0,IF(SUM($Q6:CJ6)=$G6,0,IF($G6*$E6/12<($G6-SUM($Q6:CJ6)),$G6*$E6/12,($G6-SUM($Q6:CJ6))))) -> 0 | CL6: =IF($D6>=CL$3,0,IF(SUM($Q6:CK6)=$G6,0,IF($G6*$E6/12<($G6-SUM($Q6:CK6)),$G6*$E6/12,($G6-SUM($Q6:CK6))))) -> 0 | CM6: =IF($D6>=CM$3,0,IF(SUM($Q6:CL6)=$G6,0,IF($G6*$E6/12<($G6-SUM($Q6:CL6)),$G6*$E6/12,($G6-SUM($Q6:CL6))))) -> 0 | CN6: =IF($D6>=CN$3,0,IF(SUM($Q6:CM6)=$G6,0,IF($G6*$E6/12<($G6-SUM($Q6:CM6)),$G6*$E6/12,($G6-SUM($Q6:CM6))))) -> 0 | CO6: =IF($D6>=CO$3,0,IF(SUM($Q6:CN6)=$G6,0,IF($G6*$E6/12<($G6-SUM($Q6:CN6)),$G6*$E6/12,($G6-SUM($Q6:CN6))))) -> 0 | CP6: =IF($D6>=CP$3,0,IF(SUM($Q6:CO6)=$G6,0,IF($G6*$E6/12<($G6-SUM($Q6:CO6)),$G6*$E6/12,($G6-SUM($Q6:CO6))))) -> 0 | CQ6: =IF($D6>=CQ$3,0,IF(SUM($Q6:CP6)=$G6,0,IF($G6*$E6/12<($G6-SUM($Q6:CP6)),$G6*$E6/12,($G6-SUM($Q6:CP6))))) -> 0 | CR6: =IF($D6>=CR$3,0,IF(SUM($Q6:CQ6)=$G6,0,IF($G6*$E6/12<($G6-SUM($Q6:CQ6)),$G6*$E6/12,($G6-SUM($Q6:CQ6))))) -> 0 | CS6: =IF($D6>=CS$3,0,IF(SUM($Q6:CR6)=$G6,0,IF($G6*$E6/12<($G6-SUM($Q6:CR6)),$G6*$E6/12,($G6-SUM($Q6:CR6))))) -> 0 | CT6: =IF($D6>=CT$3,0,IF(SUM($Q6:CS6)=$G6,0,IF($G6*$E6/12<($G6-SUM($Q6:CS6)),$G6*$E6/12,($G6-SUM($Q6:CS6))))) -> 0 | CU6: =IF($D6>=CU$3,0,IF(SUM($Q6:CT6)=$G6,0,IF($G6*$E6/12<($G6-SUM($Q6:CT6)),$G6*$E6/12,($G6-SUM($Q6:CT6))))) -> 0 | CV6: =IF($D6>=CV$3,0,IF(SUM($Q6:CU6)=$G6,0,IF($G6*$E6/12<($G6-SUM($Q6:CU6)),$G6*$E6/12,($G6-SUM($Q6:CU6))))) -> 0
A7: =IF(D7<EOMONTH($D$2,-12),"Fuera de plazo",IF(D7>BALANCE!$J$3,"Fuera de plazo","")) ->  | B7: Edificios | D7: 2013-06-30 | E7: 0.03 | F7: 0.21 | G7: =IF(YEAR(D7)<=YEAR($D$2),C7*RIESGO!$C$4,C7*RIESGO!$C$4*(1+CONTROL!$H$4)^(YEAR(D7)-YEAR($D$2))) -> 0 | H7: 0 | I7: 0 | J7: 0 | K7: 0 | L7: 0 | M7: 0 | N7: 0 | O7: 0 | Q7: =IF(D7>=$Q$3,0,$E7/12*$G7) -> 0 | R7: =IF($D7>=R$3,0,IF(SUM($Q7:Q7)=$G7,0,IF($G7*$E7/12<($G7-SUM($Q7:Q7)),$G7*$E7/12,($G7-SUM($Q7:Q7))))) -> 0 | S7: =IF($D7>=S$3,0,IF(SUM($Q7:R7)=$G7,0,IF($G7*$E7/12<($G7-SUM($Q7:R7)),$G7*$E7/12,($G7-SUM($Q7:R7))))) -> 0 | T7: =IF($D7>=T$3,0,IF(SUM($Q7:S7)=$G7,0,IF($G7*$E7/12<($G7-SUM($Q7:S7)),$G7*$E7/12,($G7-SUM($Q7:S7))))) -> 0 | U7: =IF($D7>=U$3,0,IF(SUM($Q7:T7)=$G7,0,IF($G7*$E7/12<($G7-SUM($Q7:T7)),$G7*$E7/12,($G7-SUM($Q7:T7))))) -> 0 | V7: =IF($D7>=V$3,0,IF(SUM($Q7:U7)=$G7,0,IF($G7*$E7/12<($G7-SUM($Q7:U7)),$G7*$E7/12,($G7-SUM($Q7:U7))))) -> 0 | W7: =IF($D7>=W$3,0,IF(SUM($Q7:V7)=$G7,0,IF($G7*$E7/12<($G7-SUM($Q7:V7)),$G7*$E7/12,($G7-SUM($Q7:V7))))) -> 0 | X7: =IF($D7>=X$3,0,IF(SUM($Q7:W7)=$G7,0,IF($G7*$E7/12<($G7-SUM($Q7:W7)),$G7*$E7/12,($G7-SUM($Q7:W7))))) -> 0 | Y7: =IF($D7>=Y$3,0,IF(SUM($Q7:X7)=$G7,0,IF($G7*$E7/12<($G7-SUM($Q7:X7)),$G7*$E7/12,($G7-SUM($Q7:X7))))) -> 0 | Z7: =IF($D7>=Z$3,0,IF(SUM($Q7:Y7)=$G7,0,IF($G7*$E7/12<($G7-SUM($Q7:Y7)),$G7*$E7/12,($G7-SUM($Q7:Y7))))) -> 0 | AA7: =IF($D7>=AA$3,0,IF(SUM($Q7:Z7)=$G7,0,IF($G7*$E7/12<($G7-SUM($Q7:Z7)),$G7*$E7/12,($G7-SUM($Q7:Z7))))) -> 0 | AB7: =IF($D7>=AB$3,0,IF(SUM($Q7:AA7)=$G7,0,IF($G7*$E7/12<($G7-SUM($Q7:AA7)),$G7*$E7/12,($G7-SUM($Q7:AA7))))) -> 0 | AC7: =IF($D7>=AC$3,0,IF(SUM($Q7:AB7)=$G7,0,IF($G7*$E7/12<($G7-SUM($Q7:AB7)),$G7*$E7/12,($G7-SUM($Q7:AB7))))) -> 0 | AD7: =IF($D7>=AD$3,0,IF(SUM($Q7:AC7)=$G7,0,IF($G7*$E7/12<($G7-SUM($Q7:AC7)),$G7*$E7/12,($G7-SUM($Q7:AC7))))) -> 0 | AE7: =IF($D7>=AE$3,0,IF(SUM($Q7:AD7)=$G7,0,IF($G7*$E7/12<($G7-SUM($Q7:AD7)),$G7*$E7/12,($G7-SUM($Q7:AD7))))) -> 0 | AF7: =IF($D7>=AF$3,0,IF(SUM($Q7:AE7)=$G7,0,IF($G7*$E7/12<($G7-SUM($Q7:AE7)),$G7*$E7/12,($G7-SUM($Q7:AE7))))) -> 0 | AG7: =IF($D7>=AG$3,0,IF(SUM($Q7:AF7)=$G7,0,IF($G7*$E7/12<($G7-SUM($Q7:AF7)),$G7*$E7/12,($G7-SUM($Q7:AF7))))) -> 0 | AH7: =IF($D7>=AH$3,0,IF(SUM($Q7:AG7)=$G7,0,IF($G7*$E7/12<($G7-SUM($Q7:AG7)),$G7*$E7/12,($G7-SUM($Q7:AG7))))) -> 0 | AI7: =IF($D7>=AI$3,0,IF(SUM($Q7:AH7)=$G7,0,IF($G7*$E7/12<($G7-SUM($Q7:AH7)),$G7*$E7/12,($G7-SUM($Q7:AH7))))) -> 0 | AJ7: =IF($D7>=AJ$3,0,IF(SUM($Q7:AI7)=$G7,0,IF($G7*$E7/12<($G7-SUM($Q7:AI7)),$G7*$E7/12,($G7-SUM($Q7:AI7))))) -> 0 | AK7: =IF($D7>=AK$3,0,IF(SUM($Q7:AJ7)=$G7,0,IF($G7*$E7/12<($G7-SUM($Q7:AJ7)),$G7*$E7/12,($G7-SUM($Q7:AJ7))))) -> 0 | AL7: =IF($D7>=AL$3,0,IF(SUM($Q7:AK7)=$G7,0,IF($G7*$E7/12<($G7-SUM($Q7:AK7)),$G7*$E7/12,($G7-SUM($Q7:AK7))))) -> 0 | AM7: =IF($D7>=AM$3,0,IF(SUM($Q7:AL7)=$G7,0,IF($G7*$E7/12<($G7-SUM($Q7:AL7)),$G7*$E7/12,($G7-SUM($Q7:AL7))))) -> 0 | AN7: =IF($D7>=AN$3,0,IF(SUM($Q7:AM7)=$G7,0,IF($G7*$E7/12<($G7-SUM($Q7:AM7)),$G7*$E7/12,($G7-SUM($Q7:AM7))))) -> 0 | AO7: =IF($D7>=AO$3,0,IF(SUM($Q7:AN7)=$G7,0,IF($G7*$E7/12<($G7-SUM($Q7:AN7)),$G7*$E7/12,($G7-SUM($Q7:AN7))))) -> 0 | AP7: =IF($D7>=AP$3,0,IF(SUM($Q7:AO7)=$G7,0,IF($G7*$E7/12<($G7-SUM($Q7:AO7)),$G7*$E7/12,($G7-SUM($Q7:AO7))))) -> 0 | AQ7: =IF($D7>=AQ$3,0,IF(SUM($Q7:AP7)=$G7,0,IF($G7*$E7/12<($G7-SUM($Q7:AP7)),$G7*$E7/12,($G7-SUM($Q7:AP7))))) -> 0 | AR7: =IF($D7>=AR$3,0,IF(SUM($Q7:AQ7)=$G7,0,IF($G7*$E7/12<($G7-SUM($Q7:AQ7)),$G7*$E7/12,($G7-SUM($Q7:AQ7))))) -> 0 | AS7: =IF($D7>=AS$3,0,IF(SUM($Q7:AR7)=$G7,0,IF($G7*$E7/12<($G7-SUM($Q7:AR7)),$G7*$E7/12,($G7-SUM($Q7:AR7))))) -> 0 | AT7: =IF($D7>=AT$3,0,IF(SUM($Q7:AS7)=$G7,0,IF($G7*$E7/12<($G7-SUM($Q7:AS7)),$G7*$E7/12,($G7-SUM($Q7:AS7))))) -> 0 | AU7: =IF($D7>=AU$3,0,IF(SUM($Q7:AT7)=$G7,0,IF($G7*$E7/12<($G7-SUM($Q7:AT7)),$G7*$E7/12,($G7-SUM($Q7:AT7))))) -> 0 | AV7: =IF($D7>=AV$3,0,IF(SUM($Q7:AU7)=$G7,0,IF($G7*$E7/12<($G7-SUM($Q7:AU7)),$G7*$E7/12,($G7-SUM($Q7:AU7))))) -> 0 | AW7: =IF($D7>=AW$3,0,IF(SUM($Q7:AV7)=$G7,0,IF($G7*$E7/12<($G7-SUM($Q7:AV7)),$G7*$E7/12,($G7-SUM($Q7:AV7))))) -> 0 | AX7: =IF($D7>=AX$3,0,IF(SUM($Q7:AW7)=$G7,0,IF($G7*$E7/12<($G7-SUM($Q7:AW7)),$G7*$E7/12,($G7-SUM($Q7:AW7))))) -> 0 | AY7: =IF($D7>=AY$3,0,IF(SUM($Q7:AX7)=$G7,0,IF($G7*$E7/12<($G7-SUM($Q7:AX7)),$G7*$E7/12,($G7-SUM($Q7:AX7))))) -> 0 | AZ7: =IF($D7>=AZ$3,0,IF(SUM($Q7:AY7)=$G7,0,IF($G7*$E7/12<($G7-SUM($Q7:AY7)),$G7*$E7/12,($G7-SUM($Q7:AY7))))) -> 0 | BA7: =IF($D7>=BA$3,0,IF(SUM($Q7:AZ7)=$G7,0,IF($G7*$E7/12<($G7-SUM($Q7:AZ7)),$G7*$E7/12,($G7-SUM($Q7:AZ7))))) -> 0 | BB7: =IF($D7>=BB$3,0,IF(SUM($Q7:BA7)=$G7,0,IF($G7*$E7/12<($G7-SUM($Q7:BA7)),$G7*$E7/12,($G7-SUM($Q7:BA7))))) -> 0 | BC7: =IF($D7>=BC$3,0,IF(SUM($Q7:BB7)=$G7,0,IF($G7*$E7/12<($G7-SUM($Q7:BB7)),$G7*$E7/12,($G7-SUM($Q7:BB7))))) -> 0 | BD7: =IF($D7>=BD$3,0,IF(SUM($Q7:BC7)=$G7,0,IF($G7*$E7/12<($G7-SUM($Q7:BC7)),$G7*$E7/12,($G7-SUM($Q7:BC7))))) -> 0 | BE7: =IF($D7>=BE$3,0,IF(SUM($Q7:BD7)=$G7,0,IF($G7*$E7/12<($G7-SUM($Q7:BD7)),$G7*$E7/12,($G7-SUM($Q7:BD7))))) -> 0 | BF7: =IF($D7>=BF$3,0,IF(SUM($Q7:BE7)=$G7,0,IF($G7*$E7/12<($G7-SUM($Q7:BE7)),$G7*$E7/12,($G7-SUM($Q7:BE7))))) -> 0 | BG7: =IF($D7>=BG$3,0,IF(SUM($Q7:BF7)=$G7,0,IF($G7*$E7/12<($G7-SUM($Q7:BF7)),$G7*$E7/12,($G7-SUM($Q7:BF7))))) -> 0 | BH7: =IF($D7>=BH$3,0,IF(SUM($Q7:BG7)=$G7,0,IF($G7*$E7/12<($G7-SUM($Q7:BG7)),$G7*$E7/12,($G7-SUM($Q7:BG7))))) -> 0 | BI7: =IF($D7>=BI$3,0,IF(SUM($Q7:BH7)=$G7,0,IF($G7*$E7/12<($G7-SUM($Q7:BH7)),$G7*$E7/12,($G7-SUM($Q7:BH7))))) -> 0 | BJ7: =IF($D7>=BJ$3,0,IF(SUM($Q7:BI7)=$G7,0,IF($G7*$E7/12<($G7-SUM($Q7:BI7)),$G7*$E7/12,($G7-SUM($Q7:BI7))))) -> 0 | BK7: =IF($D7>=BK$3,0,IF(SUM($Q7:BJ7)=$G7,0,IF($G7*$E7/12<($G7-SUM($Q7:BJ7)),$G7*$E7/12,($G7-SUM($Q7:BJ7))))) -> 0 | BL7: =IF($D7>=BL$3,0,IF(SUM($Q7:BK7)=$G7,0,IF($G7*$E7/12<($G7-SUM($Q7:BK7)),$G7*$E7/12,($G7-SUM($Q7:BK7))))) -> 0 | BM7: =IF($D7>=BM$3,0,IF(SUM($Q7:BL7)=$G7,0,IF($G7*$E7/12<($G7-SUM($Q7:BL7)),$G7*$E7/12,($G7-SUM($Q7:BL7))))) -> 0 | BN7: =IF($D7>=BN$3,0,IF(SUM($Q7:BM7)=$G7,0,IF($G7*$E7/12<($G7-SUM($Q7:BM7)),$G7*$E7/12,($G7-SUM($Q7:BM7))))) -> 0 | BO7: =IF($D7>=BO$3,0,IF(SUM($Q7:BN7)=$G7,0,IF($G7*$E7/12<($G7-SUM($Q7:BN7)),$G7*$E7/12,($G7-SUM($Q7:BN7))))) -> 0 | BP7: =IF($D7>=BP$3,0,IF(SUM($Q7:BO7)=$G7,0,IF($G7*$E7/12<($G7-SUM($Q7:BO7)),$G7*$E7/12,($G7-SUM($Q7:BO7))))) -> 0 | BQ7: =IF($D7>=BQ$3,0,IF(SUM($Q7:BP7)=$G7,0,IF($G7*$E7/12<($G7-SUM($Q7:BP7)),$G7*$E7/12,($G7-SUM($Q7:BP7))))) -> 0 | BR7: =IF($D7>=BR$3,0,IF(SUM($Q7:BQ7)=$G7,0,IF($G7*$E7/12<($G7-SUM($Q7:BQ7)),$G7*$E7/12,($G7-SUM($Q7:BQ7))))) -> 0 | BS7: =IF($D7>=BS$3,0,IF(SUM($Q7:BR7)=$G7,0,IF($G7*$E7/12<($G7-SUM($Q7:BR7)),$G7*$E7/12,($G7-SUM($Q7:BR7))))) -> 0 | BT7: =IF($D7>=BT$3,0,IF(SUM($Q7:BS7)=$G7,0,IF($G7*$E7/12<($G7-SUM($Q7:BS7)),$G7*$E7/12,($G7-SUM($Q7:BS7))))) -> 0 | BU7: =IF($D7>=BU$3,0,IF(SUM($Q7:BT7)=$G7,0,IF($G7*$E7/12<($G7-SUM($Q7:BT7)),$G7*$E7/12,($G7-SUM($Q7:BT7))))) -> 0 | BV7: =IF($D7>=BV$3,0,IF(SUM($Q7:BU7)=$G7,0,IF($G7*$E7/12<($G7-SUM($Q7:BU7)),$G7*$E7/12,($G7-SUM($Q7:BU7))))) -> 0 | BW7: =IF($D7>=BW$3,0,IF(SUM($Q7:BV7)=$G7,0,IF($G7*$E7/12<($G7-SUM($Q7:BV7)),$G7*$E7/12,($G7-SUM($Q7:BV7))))) -> 0 | BX7: =IF($D7>=BX$3,0,IF(SUM($Q7:BW7)=$G7,0,IF($G7*$E7/12<($G7-SUM($Q7:BW7)),$G7*$E7/12,($G7-SUM($Q7:BW7))))) -> 0 | BY7: =IF($D7>=BY$3,0,IF(SUM($Q7:BX7)=$G7,0,IF($G7*$E7/12<($G7-SUM($Q7:BX7)),$G7*$E7/12,($G7-SUM($Q7:BX7))))) -> 0 | BZ7: =IF($D7>=BZ$3,0,IF(SUM($Q7:BY7)=$G7,0,IF($G7*$E7/12<($G7-SUM($Q7:BY7)),$G7*$E7/12,($G7-SUM($Q7:BY7))))) -> 0 | CA7: =IF($D7>=CA$3,0,IF(SUM($Q7:BZ7)=$G7,0,IF($G7*$E7/12<($G7-SUM($Q7:BZ7)),$G7*$E7/12,($G7-SUM($Q7:BZ7))))) -> 0 | CB7: =IF($D7>=CB$3,0,IF(SUM($Q7:CA7)=$G7,0,IF($G7*$E7/12<($G7-SUM($Q7:CA7)),$G7*$E7/12,($G7-SUM($Q7:CA7))))) -> 0 | CC7: =IF($D7>=CC$3,0,IF(SUM($Q7:CB7)=$G7,0,IF($G7*$E7/12<($G7-SUM($Q7:CB7)),$G7*$E7/12,($G7-SUM($Q7:CB7))))) -> 0 | CD7: =IF($D7>=CD$3,0,IF(SUM($Q7:CC7)=$G7,0,IF($G7*$E7/12<($G7-SUM($Q7:CC7)),$G7*$E7/12,($G7-SUM($Q7:CC7))))) -> 0 | CE7: =IF($D7>=CE$3,0,IF(SUM($Q7:CD7)=$G7,0,IF($G7*$E7/12<($G7-SUM($Q7:CD7)),$G7*$E7/12,($G7-SUM($Q7:CD7))))) -> 0 | CF7: =IF($D7>=CF$3,0,IF(SUM($Q7:CE7)=$G7,0,IF($G7*$E7/12<($G7-SUM($Q7:CE7)),$G7*$E7/12,($G7-SUM($Q7:CE7))))) -> 0 | CG7: =IF($D7>=CG$3,0,IF(SUM($Q7:CF7)=$G7,0,IF($G7*$E7/12<($G7-SUM($Q7:CF7)),$G7*$E7/12,($G7-SUM($Q7:CF7))))) -> 0 | CH7: =IF($D7>=CH$3,0,IF(SUM($Q7:CG7)=$G7,0,IF($G7*$E7/12<($G7-SUM($Q7:CG7)),$G7*$E7/12,($G7-SUM($Q7:CG7))))) -> 0 | CI7: =IF($D7>=CI$3,0,IF(SUM($Q7:CH7)=$G7,0,IF($G7*$E7/12<($G7-SUM($Q7:CH7)),$G7*$E7/12,($G7-SUM($Q7:CH7))))) -> 0 | CJ7: =IF($D7>=CJ$3,0,IF(SUM($Q7:CI7)=$G7,0,IF($G7*$E7/12<($G7-SUM($Q7:CI7)),$G7*$E7/12,($G7-SUM($Q7:CI7))))) -> 0 | CK7: =IF($D7>=CK$3,0,IF(SUM($Q7:CJ7)=$G7,0,IF($G7*$E7/12<($G7-SUM($Q7:CJ7)),$G7*$E7/12,($G7-SUM($Q7:CJ7))))) -> 0 | CL7: =IF($D7>=CL$3,0,IF(SUM($Q7:CK7)=$G7,0,IF($G7*$E7/12<($G7-SUM($Q7:CK7)),$G7*$E7/12,($G7-SUM($Q7:CK7))))) -> 0 | CM7: =IF($D7>=CM$3,0,IF(SUM($Q7:CL7)=$G7,0,IF($G7*$E7/12<($G7-SUM($Q7:CL7)),$G7*$E7/12,($G7-SUM($Q7:CL7))))) -> 0 | CN7: =IF($D7>=CN$3,0,IF(SUM($Q7:CM7)=$G7,0,IF($G7*$E7/12<($G7-SUM($Q7:CM7)),$G7*$E7/12,($G7-SUM($Q7:CM7))))) -> 0 | CO7: =IF($D7>=CO$3,0,IF(SUM($Q7:CN7)=$G7,0,IF($G7*$E7/12<($G7-SUM($Q7:CN7)),$G7*$E7/12,($G7-SUM($Q7:CN7))))) -> 0 | CP7: =IF($D7>=CP$3,0,IF(SUM($Q7:CO7)=$G7,0,IF($G7*$E7/12<($G7-SUM($Q7:CO7)),$G7*$E7/12,($G7-SUM($Q7:CO7))))) -> 0 | CQ7: =IF($D7>=CQ$3,0,IF(SUM($Q7:CP7)=$G7,0,IF($G7*$E7/12<($G7-SUM($Q7:CP7)),$G7*$E7/12,($G7-SUM($Q7:CP7))))) -> 0 | CR7: =IF($D7>=CR$3,0,IF(SUM($Q7:CQ7)=$G7,0,IF($G7*$E7/12<($G7-SUM($Q7:CQ7)),$G7*$E7/12,($G7-SUM($Q7:CQ7))))) -> 0 | CS7: =IF($D7>=CS$3,0,IF(SUM($Q7:CR7)=$G7,0,IF($G7*$E7/12<($G7-SUM($Q7:CR7)),$G7*$E7/12,($G7-SUM($Q7:CR7))))) -> 0 | CT7: =IF($D7>=CT$3,0,IF(SUM($Q7:CS7)=$G7,0,IF($G7*$E7/12<($G7-SUM($Q7:CS7)),$G7*$E7/12,($G7-SUM($Q7:CS7))))) -> 0 | CU7: =IF($D7>=CU$3,0,IF(SUM($Q7:CT7)=$G7,0,IF($G7*$E7/12<($G7-SUM($Q7:CT7)),$G7*$E7/12,($G7-SUM($Q7:CT7))))) -> 0 | CV7: =IF($D7>=CV$3,0,IF(SUM($Q7:CU7)=$G7,0,IF($G7*$E7/12<($G7-SUM($Q7:CU7)),$G7*$E7/12,($G7-SUM($Q7:CU7))))) -> 0
A8: =IF(D8<EOMONTH($D$2,-12),"Fuera de plazo",IF(D8>BALANCE!$J$3,"Fuera de plazo","")) ->  | B8: Edificios | D8: 2013-12-31 | E8: 0.03 | F8: 0.21 | G8: =IF(YEAR(D8)<=YEAR($D$2),C8*RIESGO!$C$4,C8*RIESGO!$C$4*(1+CONTROL!$H$4)^(YEAR(D8)-YEAR($D$2))) -> 0 | H8: 0 | I8: 0 | J8: 0 | K8: 0 | L8: 0 | M8: 0 | N8: 0 | O8: 0 | Q8: 0 | R8: =IF($D8>=R$3,0,IF(SUM($Q8:Q8)=$G8,0,IF($G8*$E8/12<($G8-SUM($Q8:Q8)),$G8*$E8/12,($G8-SUM($Q8:Q8))))) -> 0 | S8: =IF($D8>=S$3,0,IF(SUM($Q8:R8)=$G8,0,IF($G8*$E8/12<($G8-SUM($Q8:R8)),$G8*$E8/12,($G8-SUM($Q8:R8))))) -> 0 | T8: =IF($D8>=T$3,0,IF(SUM($Q8:S8)=$G8,0,IF($G8*$E8/12<($G8-SUM($Q8:S8)),$G8*$E8/12,($G8-SUM($Q8:S8))))) -> 0 | U8: =IF($D8>=U$3,0,IF(SUM($Q8:T8)=$G8,0,IF($G8*$E8/12<($G8-SUM($Q8:T8)),$G8*$E8/12,($G8-SUM($Q8:T8))))) -> 0 | V8: =IF($D8>=V$3,0,IF(SUM($Q8:U8)=$G8,0,IF($G8*$E8/12<($G8-SUM($Q8:U8)),$G8*$E8/12,($G8-SUM($Q8:U8))))) -> 0 | W8: =IF($D8>=W$3,0,IF(SUM($Q8:V8)=$G8,0,IF($G8*$E8/12<($G8-SUM($Q8:V8)),$G8*$E8/12,($G8-SUM($Q8:V8))))) -> 0 | X8: =IF($D8>=X$3,0,IF(SUM($Q8:W8)=$G8,0,IF($G8*$E8/12<($G8-SUM($Q8:W8)),$G8*$E8/12,($G8-SUM($Q8:W8))))) -> 0 | Y8: =IF($D8>=Y$3,0,IF(SUM($Q8:X8)=$G8,0,IF($G8*$E8/12<($G8-SUM($Q8:X8)),$G8*$E8/12,($G8-SUM($Q8:X8))))) -> 0 | Z8: =IF($D8>=Z$3,0,IF(SUM($Q8:Y8)=$G8,0,IF($G8*$E8/12<($G8-SUM($Q8:Y8)),$G8*$E8/12,($G8-SUM($Q8:Y8))))) -> 0 | AA8: =IF($D8>=AA$3,0,IF(SUM($Q8:Z8)=$G8,0,IF($G8*$E8/12<($G8-SUM($Q8:Z8)),$G8*$E8/12,($G8-SUM($Q8:Z8))))) -> 0 | AB8: =IF($D8>=AB$3,0,IF(SUM($Q8:AA8)=$G8,0,IF($G8*$E8/12<($G8-SUM($Q8:AA8)),$G8*$E8/12,($G8-SUM($Q8:AA8))))) -> 0 | AC8: =IF($D8>=AC$3,0,IF(SUM($Q8:AB8)=$G8,0,IF($G8*$E8/12<($G8-SUM($Q8:AB8)),$G8*$E8/12,($G8-SUM($Q8:AB8))))) -> 0 | AD8: =IF($D8>=AD$3,0,IF(SUM($Q8:AC8)=$G8,0,IF($G8*$E8/12<($G8-SUM($Q8:AC8)),$G8*$E8/12,($G8-SUM($Q8:AC8))))) -> 0 | AE8: =IF($D8>=AE$3,0,IF(SUM($Q8:AD8)=$G8,0,IF($G8*$E8/12<($G8-SUM($Q8:AD8)),$G8*$E8/12,($G8-SUM($Q8:AD8))))) -> 0 | AF8: =IF($D8>=AF$3,0,IF(SUM($Q8:AE8)=$G8,0,IF($G8*$E8/12<($G8-SUM($Q8:AE8)),$G8*$E8/12,($G8-SUM($Q8:AE8))))) -> 0 | AG8: =IF($D8>=AG$3,0,IF(SUM($Q8:AF8)=$G8,0,IF($G8*$E8/12<($G8-SUM($Q8:AF8)),$G8*$E8/12,($G8-SUM($Q8:AF8))))) -> 0 | AH8: =IF($D8>=AH$3,0,IF(SUM($Q8:AG8)=$G8,0,IF($G8*$E8/12<($G8-SUM($Q8:AG8)),$G8*$E8/12,($G8-SUM($Q8:AG8))))) -> 0 | AI8: =IF($D8>=AI$3,0,IF(SUM($Q8:AH8)=$G8,0,IF($G8*$E8/12<($G8-SUM($Q8:AH8)),$G8*$E8/12,($G8-SUM($Q8:AH8))))) -> 0 | AJ8: =IF($D8>=AJ$3,0,IF(SUM($Q8:AI8)=$G8,0,IF($G8*$E8/12<($G8-SUM($Q8:AI8)),$G8*$E8/12,($G8-SUM($Q8:AI8))))) -> 0 | AK8: =IF($D8>=AK$3,0,IF(SUM($Q8:AJ8)=$G8,0,IF($G8*$E8/12<($G8-SUM($Q8:AJ8)),$G8*$E8/12,($G8-SUM($Q8:AJ8))))) -> 0 | AL8: =IF($D8>=AL$3,0,IF(SUM($Q8:AK8)=$G8,0,IF($G8*$E8/12<($G8-SUM($Q8:AK8)),$G8*$E8/12,($G8-SUM($Q8:AK8))))) -> 0 | AM8: =IF($D8>=AM$3,0,IF(SUM($Q8:AL8)=$G8,0,IF($G8*$E8/12<($G8-SUM($Q8:AL8)),$G8*$E8/12,($G8-SUM($Q8:AL8))))) -> 0 | AN8: =IF($D8>=AN$3,0,IF(SUM($Q8:AM8)=$G8,0,IF($G8*$E8/12<($G8-SUM($Q8:AM8)),$G8*$E8/12,($G8-SUM($Q8:AM8))))) -> 0 | AO8: =IF($D8>=AO$3,0,IF(SUM($Q8:AN8)=$G8,0,IF($G8*$E8/12<($G8-SUM($Q8:AN8)),$G8*$E8/12,($G8-SUM($Q8:AN8))))) -> 0 | AP8: =IF($D8>=AP$3,0,IF(SUM($Q8:AO8)=$G8,0,IF($G8*$E8/12<($G8-SUM($Q8:AO8)),$G8*$E8/12,($G8-SUM($Q8:AO8))))) -> 0 | AQ8: =IF($D8>=AQ$3,0,IF(SUM($Q8:AP8)=$G8,0,IF($G8*$E8/12<($G8-SUM($Q8:AP8)),$G8*$E8/12,($G8-SUM($Q8:AP8))))) -> 0 | AR8: =IF($D8>=AR$3,0,IF(SUM($Q8:AQ8)=$G8,0,IF($G8*$E8/12<($G8-SUM($Q8:AQ8)),$G8*$E8/12,($G8-SUM($Q8:AQ8))))) -> 0 | AS8: =IF($D8>=AS$3,0,IF(SUM($Q8:AR8)=$G8,0,IF($G8*$E8/12<($G8-SUM($Q8:AR8)),$G8*$E8/12,($G8-SUM($Q8:AR8))))) -> 0 | AT8: =IF($D8>=AT$3,0,IF(SUM($Q8:AS8)=$G8,0,IF($G8*$E8/12<($G8-SUM($Q8:AS8)),$G8*$E8/12,($G8-SUM($Q8:AS8))))) -> 0 | AU8: =IF($D8>=AU$3,0,IF(SUM($Q8:AT8)=$G8,0,IF($G8*$E8/12<($G8-SUM($Q8:AT8)),$G8*$E8/12,($G8-SUM($Q8:AT8))))) -> 0 | AV8: =IF($D8>=AV$3,0,IF(SUM($Q8:AU8)=$G8,0,IF($G8*$E8/12<($G8-SUM($Q8:AU8)),$G8*$E8/12,($G8-SUM($Q8:AU8))))) -> 0 | AW8: =IF($D8>=AW$3,0,IF(SUM($Q8:AV8)=$G8,0,IF($G8*$E8/12<($G8-SUM($Q8:AV8)),$G8*$E8/12,($G8-SUM($Q8:AV8))))) -> 0 | AX8: =IF($D8>=AX$3,0,IF(SUM($Q8:AW8)=$G8,0,IF($G8*$E8/12<($G8-SUM($Q8:AW8)),$G8*$E8/12,($G8-SUM($Q8:AW8))))) -> 0 | AY8: =IF($D8>=AY$3,0,IF(SUM($Q8:AX8)=$G8,0,IF($G8*$E8/12<($G8-SUM($Q8:AX8)),$G8*$E8/12,($G8-SUM($Q8:AX8))))) -> 0 | AZ8: =IF($D8>=AZ$3,0,IF(SUM($Q8:AY8)=$G8,0,IF($G8*$E8/12<($G8-SUM($Q8:AY8)),$G8*$E8/12,($G8-SUM($Q8:AY8))))) -> 0 | BA8: =IF($D8>=BA$3,0,IF(SUM($Q8:AZ8)=$G8,0,IF($G8*$E8/12<($G8-SUM($Q8:AZ8)),$G8*$E8/12,($G8-SUM($Q8:AZ8))))) -> 0 | BB8: =IF($D8>=BB$3,0,IF(SUM($Q8:BA8)=$G8,0,IF($G8*$E8/12<($G8-SUM($Q8:BA8)),$G8*$E8/12,($G8-SUM($Q8:BA8))))) -> 0 | BC8: =IF($D8>=BC$3,0,IF(SUM($Q8:BB8)=$G8,0,IF($G8*$E8/12<($G8-SUM($Q8:BB8)),$G8*$E8/12,($G8-SUM($Q8:BB8))))) -> 0 | BD8: =IF($D8>=BD$3,0,IF(SUM($Q8:BC8)=$G8,0,IF($G8*$E8/12<($G8-SUM($Q8:BC8)),$G8*$E8/12,($G8-SUM($Q8:BC8))))) -> 0 | BE8: =IF($D8>=BE$3,0,IF(SUM($Q8:BD8)=$G8,0,IF($G8*$E8/12<($G8-SUM($Q8:BD8)),$G8*$E8/12,($G8-SUM($Q8:BD8))))) -> 0 | BF8: =IF($D8>=BF$3,0,IF(SUM($Q8:BE8)=$G8,0,IF($G8*$E8/12<($G8-SUM($Q8:BE8)),$G8*$E8/12,($G8-SUM($Q8:BE8))))) -> 0 | BG8: =IF($D8>=BG$3,0,IF(SUM($Q8:BF8)=$G8,0,IF($G8*$E8/12<($G8-SUM($Q8:BF8)),$G8*$E8/12,($G8-SUM($Q8:BF8))))) -> 0 | BH8: =IF($D8>=BH$3,0,IF(SUM($Q8:BG8)=$G8,0,IF($G8*$E8/12<($G8-SUM($Q8:BG8)),$G8*$E8/12,($G8-SUM($Q8:BG8))))) -> 0 | BI8: =IF($D8>=BI$3,0,IF(SUM($Q8:BH8)=$G8,0,IF($G8*$E8/12<($G8-SUM($Q8:BH8)),$G8*$E8/12,($G8-SUM($Q8:BH8))))) -> 0 | BJ8: =IF($D8>=BJ$3,0,IF(SUM($Q8:BI8)=$G8,0,IF($G8*$E8/12<($G8-SUM($Q8:BI8)),$G8*$E8/12,($G8-SUM($Q8:BI8))))) -> 0 | BK8: =IF($D8>=BK$3,0,IF(SUM($Q8:BJ8)=$G8,0,IF($G8*$E8/12<($G8-SUM($Q8:BJ8)),$G8*$E8/12,($G8-SUM($Q8:BJ8))))) -> 0 | BL8: =IF($D8>=BL$3,0,IF(SUM($Q8:BK8)=$G8,0,IF($G8*$E8/12<($G8-SUM($Q8:BK8)),$G8*$E8/12,($G8-SUM($Q8:BK8))))) -> 0 | BM8: =IF($D8>=BM$3,0,IF(SUM($Q8:BL8)=$G8,0,IF($G8*$E8/12<($G8-SUM($Q8:BL8)),$G8*$E8/12,($G8-SUM($Q8:BL8))))) -> 0 | BN8: =IF($D8>=BN$3,0,IF(SUM($Q8:BM8)=$G8,0,IF($G8*$E8/12<($G8-SUM($Q8:BM8)),$G8*$E8/12,($G8-SUM($Q8:BM8))))) -> 0 | BO8: =IF($D8>=BO$3,0,IF(SUM($Q8:BN8)=$G8,0,IF($G8*$E8/12<($G8-SUM($Q8:BN8)),$G8*$E8/12,($G8-SUM($Q8:BN8))))) -> 0 | BP8: =IF($D8>=BP$3,0,IF(SUM($Q8:BO8)=$G8,0,IF($G8*$E8/12<($G8-SUM($Q8:BO8)),$G8*$E8/12,($G8-SUM($Q8:BO8))))) -> 0 | BQ8: =IF($D8>=BQ$3,0,IF(SUM($Q8:BP8)=$G8,0,IF($G8*$E8/12<($G8-SUM($Q8:BP8)),$G8*$E8/12,($G8-SUM($Q8:BP8))))) -> 0 | BR8: =IF($D8>=BR$3,0,IF(SUM($Q8:BQ8)=$G8,0,IF($G8*$E8/12<($G8-SUM($Q8:BQ8)),$G8*$E8/12,($G8-SUM($Q8:BQ8))))) -> 0 | BS8: =IF($D8>=BS$3,0,IF(SUM($Q8:BR8)=$G8,0,IF($G8*$E8/12<($G8-SUM($Q8:BR8)),$G8*$E8/12,($G8-SUM($Q8:BR8))))) -> 0 | BT8: =IF($D8>=BT$3,0,IF(SUM($Q8:BS8)=$G8,0,IF($G8*$E8/12<($G8-SUM($Q8:BS8)),$G8*$E8/12,($G8-SUM($Q8:BS8))))) -> 0 | BU8: =IF($D8>=BU$3,0,IF(SUM($Q8:BT8)=$G8,0,IF($G8*$E8/12<($G8-SUM($Q8:BT8)),$G8*$E8/12,($G8-SUM($Q8:BT8))))) -> 0 | BV8: =IF($D8>=BV$3,0,IF(SUM($Q8:BU8)=$G8,0,IF($G8*$E8/12<($G8-SUM($Q8:BU8)),$G8*$E8/12,($G8-SUM($Q8:BU8))))) -> 0 | BW8: =IF($D8>=BW$3,0,IF(SUM($Q8:BV8)=$G8,0,IF($G8*$E8/12<($G8-SUM($Q8:BV8)),$G8*$E8/12,($G8-SUM($Q8:BV8))))) -> 0 | BX8: =IF($D8>=BX$3,0,IF(SUM($Q8:BW8)=$G8,0,IF($G8*$E8/12<($G8-SUM($Q8:BW8)),$G8*$E8/12,($G8-SUM($Q8:BW8))))) -> 0 | BY8: =IF($D8>=BY$3,0,IF(SUM($Q8:BX8)=$G8,0,IF($G8*$E8/12<($G8-SUM($Q8:BX8)),$G8*$E8/12,($G8-SUM($Q8:BX8))))) -> 0 | BZ8: =IF($D8>=BZ$3,0,IF(SUM($Q8:BY8)=$G8,0,IF($G8*$E8/12<($G8-SUM($Q8:BY8)),$G8*$E8/12,($G8-SUM($Q8:BY8))))) -> 0 | CA8: =IF($D8>=CA$3,0,IF(SUM($Q8:BZ8)=$G8,0,IF($G8*$E8/12<($G8-SUM($Q8:BZ8)),$G8*$E8/12,($G8-SUM($Q8:BZ8))))) -> 0 | CB8: =IF($D8>=CB$3,0,IF(SUM($Q8:CA8)=$G8,0,IF($G8*$E8/12<($G8-SUM($Q8:CA8)),$G8*$E8/12,($G8-SUM($Q8:CA8))))) -> 0 | CC8: =IF($D8>=CC$3,0,IF(SUM($Q8:CB8)=$G8,0,IF($G8*$E8/12<($G8-SUM($Q8:CB8)),$G8*$E8/12,($G8-SUM($Q8:CB8))))) -> 0 | CD8: =IF($D8>=CD$3,0,IF(SUM($Q8:CC8)=$G8,0,IF($G8*$E8/12<($G8-SUM($Q8:CC8)),$G8*$E8/12,($G8-SUM($Q8:CC8))))) -> 0 | CE8: =IF($D8>=CE$3,0,IF(SUM($Q8:CD8)=$G8,0,IF($G8*$E8/12<($G8-SUM($Q8:CD8)),$G8*$E8/12,($G8-SUM($Q8:CD8))))) -> 0 | CF8: =IF($D8>=CF$3,0,IF(SUM($Q8:CE8)=$G8,0,IF($G8*$E8/12<($G8-SUM($Q8:CE8)),$G8*$E8/12,($G8-SUM($Q8:CE8))))) -> 0 | CG8: =IF($D8>=CG$3,0,IF(SUM($Q8:CF8)=$G8,0,IF($G8*$E8/12<($G8-SUM($Q8:CF8)),$G8*$E8/12,($G8-SUM($Q8:CF8))))) -> 0 | CH8: =IF($D8>=CH$3,0,IF(SUM($Q8:CG8)=$G8,0,IF($G8*$E8/12<($G8-SUM($Q8:CG8)),$G8*$E8/12,($G8-SUM($Q8:CG8))))) -> 0 | CI8: =IF($D8>=CI$3,0,IF(SUM($Q8:CH8)=$G8,0,IF($G8*$E8/12<($G8-SUM($Q8:CH8)),$G8*$E8/12,($G8-SUM($Q8:CH8))))) -> 0 | CJ8: =IF($D8>=CJ$3,0,IF(SUM($Q8:CI8)=$G8,0,IF($G8*$E8/12<($G8-SUM($Q8:CI8)),$G8*$E8/12,($G8-SUM($Q8:CI8))))) -> 0 | CK8: =IF($D8>=CK$3,0,IF(SUM($Q8:CJ8)=$G8,0,IF($G8*$E8/12<($G8-SUM($Q8:CJ8)),$G8*$E8/12,($G8-SUM($Q8:CJ8))))) -> 0 | CL8: =IF($D8>=CL$3,0,IF(SUM($Q8:CK8)=$G8,0,IF($G8*$E8/12<($G8-SUM($Q8:CK8)),$G8*$E8/12,($G8-SUM($Q8:CK8))))) -> 0 | CM8: =IF($D8>=CM$3,0,IF(SUM($Q8:CL8)=$G8,0,IF($G8*$E8/12<($G8-SUM($Q8:CL8)),$G8*$E8/12,($G8-SUM($Q8:CL8))))) -> 0 | CN8: =IF($D8>=CN$3,0,IF(SUM($Q8:CM8)=$G8,0,IF($G8*$E8/12<($G8-SUM($Q8:CM8)),$G8*$E8/12,($G8-SUM($Q8:CM8))))) -> 0 | CO8: =IF($D8>=CO$3,0,IF(SUM($Q8:CN8)=$G8,0,IF($G8*$E8/12<($G8-SUM($Q8:CN8)),$G8*$E8/12,($G8-SUM($Q8:CN8))))) -> 0 | CP8: =IF($D8>=CP$3,0,IF(SUM($Q8:CO8)=$G8,0,IF($G8*$E8/12<($G8-SUM($Q8:CO8)),$G8*$E8/12,($G8-SUM($Q8:CO8))))) -> 0 | CQ8: =IF($D8>=CQ$3,0,IF(SUM($Q8:CP8)=$G8,0,IF($G8*$E8/12<($G8-SUM($Q8:CP8)),$G8*$E8/12,($G8-SUM($Q8:CP8))))) -> 0 | CR8: =IF($D8>=CR$3,0,IF(SUM($Q8:CQ8)=$G8,0,IF($G8*$E8/12<($G8-SUM($Q8:CQ8)),$G8*$E8/12,($G8-SUM($Q8:CQ8))))) -> 0 | CS8: =IF($D8>=CS$3,0,IF(SUM($Q8:CR8)=$G8,0,IF($G8*$E8/12<($G8-SUM($Q8:CR8)),$G8*$E8/12,($G8-SUM($Q8:CR8))))) -> 0 | CT8: =IF($D8>=CT$3,0,IF(SUM($Q8:CS8)=$G8,0,IF($G8*$E8/12<($G8-SUM($Q8:CS8)),$G8*$E8/12,($G8-SUM($Q8:CS8))))) -> 0 | CU8: =IF($D8>=CU$3,0,IF(SUM($Q8:CT8)=$G8,0,IF($G8*$E8/12<($G8-SUM($Q8:CT8)),$G8*$E8/12,($G8-SUM($Q8:CT8))))) -> 0 | CV8: =IF($D8>=CV$3,0,IF(SUM($Q8:CU8)=$G8,0,IF($G8*$E8/12<($G8-SUM($Q8:CU8)),$G8*$E8/12,($G8-SUM($Q8:CU8))))) -> 0
A9: =IF(D9<EOMONTH($D$2,-12),"Fuera de plazo",IF(D9>BALANCE!$J$3,"Fuera de plazo","")) ->  | B9: Instalaciones | D9: 2013-11-30 | E9: 0.08 | F9: 0.21 | G9: =IF(YEAR(D9)<=YEAR($D$2),C9*RIESGO!$C$4,C9*RIESGO!$C$4*(1+CONTROL!$H$4)^(YEAR(D9)-YEAR($D$2))) -> 0 | H9: 0 | I9: 0 | J9: 0 | K9: 0 | L9: 0 | M9: 0 | N9: 0 | O9: 0 | Q9: 0 | R9: =IF($D9>=R$3,0,IF(SUM($Q9:Q9)=$G9,0,IF($G9*$E9/12<($G9-SUM($Q9:Q9)),$G9*$E9/12,($G9-SUM($Q9:Q9))))) -> 0 | S9: =IF($D9>=S$3,0,IF(SUM($Q9:R9)=$G9,0,IF($G9*$E9/12<($G9-SUM($Q9:R9)),$G9*$E9/12,($G9-SUM($Q9:R9))))) -> 0 | T9: =IF($D9>=T$3,0,IF(SUM($Q9:S9)=$G9,0,IF($G9*$E9/12<($G9-SUM($Q9:S9)),$G9*$E9/12,($G9-SUM($Q9:S9))))) -> 0 | U9: =IF($D9>=U$3,0,IF(SUM($Q9:T9)=$G9,0,IF($G9*$E9/12<($G9-SUM($Q9:T9)),$G9*$E9/12,($G9-SUM($Q9:T9))))) -> 0 | V9: =IF($D9>=V$3,0,IF(SUM($Q9:U9)=$G9,0,IF($G9*$E9/12<($G9-SUM($Q9:U9)),$G9*$E9/12,($G9-SUM($Q9:U9))))) -> 0 | W9: =IF($D9>=W$3,0,IF(SUM($Q9:V9)=$G9,0,IF($G9*$E9/12<($G9-SUM($Q9:V9)),$G9*$E9/12,($G9-SUM($Q9:V9))))) -> 0 | X9: =IF($D9>=X$3,0,IF(SUM($Q9:W9)=$G9,0,IF($G9*$E9/12<($G9-SUM($Q9:W9)),$G9*$E9/12,($G9-SUM($Q9:W9))))) -> 0 | Y9: =IF($D9>=Y$3,0,IF(SUM($Q9:X9)=$G9,0,IF($G9*$E9/12<($G9-SUM($Q9:X9)),$G9*$E9/12,($G9-SUM($Q9:X9))))) -> 0 | Z9: =IF($D9>=Z$3,0,IF(SUM($Q9:Y9)=$G9,0,IF($G9*$E9/12<($G9-SUM($Q9:Y9)),$G9*$E9/12,($G9-SUM($Q9:Y9))))) -> 0 | AA9: =IF($D9>=AA$3,0,IF(SUM($Q9:Z9)=$G9,0,IF($G9*$E9/12<($G9-SUM($Q9:Z9)),$G9*$E9/12,($G9-SUM($Q9:Z9))))) -> 0 | AB9: =IF($D9>=AB$3,0,IF(SUM($Q9:AA9)=$G9,0,IF($G9*$E9/12<($G9-SUM($Q9:AA9)),$G9*$E9/12,($G9-SUM($Q9:AA9))))) -> 0 | AC9: =IF($D9>=AC$3,0,IF(SUM($Q9:AB9)=$G9,0,IF($G9*$E9/12<($G9-SUM($Q9:AB9)),$G9*$E9/12,($G9-SUM($Q9:AB9))))) -> 0 | AD9: =IF($D9>=AD$3,0,IF(SUM($Q9:AC9)=$G9,0,IF($G9*$E9/12<($G9-SUM($Q9:AC9)),$G9*$E9/12,($G9-SUM($Q9:AC9))))) -> 0 | AE9: =IF($D9>=AE$3,0,IF(SUM($Q9:AD9)=$G9,0,IF($G9*$E9/12<($G9-SUM($Q9:AD9)),$G9*$E9/12,($G9-SUM($Q9:AD9))))) -> 0 | AF9: =IF($D9>=AF$3,0,IF(SUM($Q9:AE9)=$G9,0,IF($G9*$E9/12<($G9-SUM($Q9:AE9)),$G9*$E9/12,($G9-SUM($Q9:AE9))))) -> 0 | AG9: =IF($D9>=AG$3,0,IF(SUM($Q9:AF9)=$G9,0,IF($G9*$E9/12<($G9-SUM($Q9:AF9)),$G9*$E9/12,($G9-SUM($Q9:AF9))))) -> 0 | AH9: =IF($D9>=AH$3,0,IF(SUM($Q9:AG9)=$G9,0,IF($G9*$E9/12<($G9-SUM($Q9:AG9)),$G9*$E9/12,($G9-SUM($Q9:AG9))))) -> 0 | AI9: =IF($D9>=AI$3,0,IF(SUM($Q9:AH9)=$G9,0,IF($G9*$E9/12<($G9-SUM($Q9:AH9)),$G9*$E9/12,($G9-SUM($Q9:AH9))))) -> 0 | AJ9: =IF($D9>=AJ$3,0,IF(SUM($Q9:AI9)=$G9,0,IF($G9*$E9/12<($G9-SUM($Q9:AI9)),$G9*$E9/12,($G9-SUM($Q9:AI9))))) -> 0 | AK9: =IF($D9>=AK$3,0,IF(SUM($Q9:AJ9)=$G9,0,IF($G9*$E9/12<($G9-SUM($Q9:AJ9)),$G9*$E9/12,($G9-SUM($Q9:AJ9))))) -> 0 | AL9: =IF($D9>=AL$3,0,IF(SUM($Q9:AK9)=$G9,0,IF($G9*$E9/12<($G9-SUM($Q9:AK9)),$G9*$E9/12,($G9-SUM($Q9:AK9))))) -> 0 | AM9: =IF($D9>=AM$3,0,IF(SUM($Q9:AL9)=$G9,0,IF($G9*$E9/12<($G9-SUM($Q9:AL9)),$G9*$E9/12,($G9-SUM($Q9:AL9))))) -> 0 | AN9: =IF($D9>=AN$3,0,IF(SUM($Q9:AM9)=$G9,0,IF($G9*$E9/12<($G9-SUM($Q9:AM9)),$G9*$E9/12,($G9-SUM($Q9:AM9))))) -> 0 | AO9: =IF($D9>=AO$3,0,IF(SUM($Q9:AN9)=$G9,0,IF($G9*$E9/12<($G9-SUM($Q9:AN9)),$G9*$E9/12,($G9-SUM($Q9:AN9))))) -> 0 | AP9: =IF($D9>=AP$3,0,IF(SUM($Q9:AO9)=$G9,0,IF($G9*$E9/12<($G9-SUM($Q9:AO9)),$G9*$E9/12,($G9-SUM($Q9:AO9))))) -> 0 | AQ9: =IF($D9>=AQ$3,0,IF(SUM($Q9:AP9)=$G9,0,IF($G9*$E9/12<($G9-SUM($Q9:AP9)),$G9*$E9/12,($G9-SUM($Q9:AP9))))) -> 0 | AR9: =IF($D9>=AR$3,0,IF(SUM($Q9:AQ9)=$G9,0,IF($G9*$E9/12<($G9-SUM($Q9:AQ9)),$G9*$E9/12,($G9-SUM($Q9:AQ9))))) -> 0 | AS9: =IF($D9>=AS$3,0,IF(SUM($Q9:AR9)=$G9,0,IF($G9*$E9/12<($G9-SUM($Q9:AR9)),$G9*$E9/12,($G9-SUM($Q9:AR9))))) -> 0 | AT9: =IF($D9>=AT$3,0,IF(SUM($Q9:AS9)=$G9,0,IF($G9*$E9/12<($G9-SUM($Q9:AS9)),$G9*$E9/12,($G9-SUM($Q9:AS9))))) -> 0 | AU9: =IF($D9>=AU$3,0,IF(SUM($Q9:AT9)=$G9,0,IF($G9*$E9/12<($G9-SUM($Q9:AT9)),$G9*$E9/12,($G9-SUM($Q9:AT9))))) -> 0 | AV9: =IF($D9>=AV$3,0,IF(SUM($Q9:AU9)=$G9,0,IF($G9*$E9/12<($G9-SUM($Q9:AU9)),$G9*$E9/12,($G9-SUM($Q9:AU9))))) -> 0 | AW9: =IF($D9>=AW$3,0,IF(SUM($Q9:AV9)=$G9,0,IF($G9*$E9/12<($G9-SUM($Q9:AV9)),$G9*$E9/12,($G9-SUM($Q9:AV9))))) -> 0 | AX9: =IF($D9>=AX$3,0,IF(SUM($Q9:AW9)=$G9,0,IF($G9*$E9/12<($G9-SUM($Q9:AW9)),$G9*$E9/12,($G9-SUM($Q9:AW9))))) -> 0 | AY9: =IF($D9>=AY$3,0,IF(SUM($Q9:AX9)=$G9,0,IF($G9*$E9/12<($G9-SUM($Q9:AX9)),$G9*$E9/12,($G9-SUM($Q9:AX9))))) -> 0 | AZ9: =IF($D9>=AZ$3,0,IF(SUM($Q9:AY9)=$G9,0,IF($G9*$E9/12<($G9-SUM($Q9:AY9)),$G9*$E9/12,($G9-SUM($Q9:AY9))))) -> 0 | BA9: =IF($D9>=BA$3,0,IF(SUM($Q9:AZ9)=$G9,0,IF($G9*$E9/12<($G9-SUM($Q9:AZ9)),$G9*$E9/12,($G9-SUM($Q9:AZ9))))) -> 0 | BB9: =IF($D9>=BB$3,0,IF(SUM($Q9:BA9)=$G9,0,IF($G9*$E9/12<($G9-SUM($Q9:BA9)),$G9*$E9/12,($G9-SUM($Q9:BA9))))) -> 0 | BC9: =IF($D9>=BC$3,0,IF(SUM($Q9:BB9)=$G9,0,IF($G9*$E9/12<($G9-SUM($Q9:BB9)),$G9*$E9/12,($G9-SUM($Q9:BB9))))) -> 0 | BD9: =IF($D9>=BD$3,0,IF(SUM($Q9:BC9)=$G9,0,IF($G9*$E9/12<($G9-SUM($Q9:BC9)),$G9*$E9/12,($G9-SUM($Q9:BC9))))) -> 0 | BE9: =IF($D9>=BE$3,0,IF(SUM($Q9:BD9)=$G9,0,IF($G9*$E9/12<($G9-SUM($Q9:BD9)),$G9*$E9/12,($G9-SUM($Q9:BD9))))) -> 0 | BF9: =IF($D9>=BF$3,0,IF(SUM($Q9:BE9)=$G9,0,IF($G9*$E9/12<($G9-SUM($Q9:BE9)),$G9*$E9/12,($G9-SUM($Q9:BE9))))) -> 0 | BG9: =IF($D9>=BG$3,0,IF(SUM($Q9:BF9)=$G9,0,IF($G9*$E9/12<($G9-SUM($Q9:BF9)),$G9*$E9/12,($G9-SUM($Q9:BF9))))) -> 0 | BH9: =IF($D9>=BH$3,0,IF(SUM($Q9:BG9)=$G9,0,IF($G9*$E9/12<($G9-SUM($Q9:BG9)),$G9*$E9/12,($G9-SUM($Q9:BG9))))) -> 0 | BI9: =IF($D9>=BI$3,0,IF(SUM($Q9:BH9)=$G9,0,IF($G9*$E9/12<($G9-SUM($Q9:BH9)),$G9*$E9/12,($G9-SUM($Q9:BH9))))) -> 0 | BJ9: =IF($D9>=BJ$3,0,IF(SUM($Q9:BI9)=$G9,0,IF($G9*$E9/12<($G9-SUM($Q9:BI9)),$G9*$E9/12,($G9-SUM($Q9:BI9))))) -> 0 | BK9: =IF($D9>=BK$3,0,IF(SUM($Q9:BJ9)=$G9,0,IF($G9*$E9/12<($G9-SUM($Q9:BJ9)),$G9*$E9/12,($G9-SUM($Q9:BJ9))))) -> 0 | BL9: =IF($D9>=BL$3,0,IF(SUM($Q9:BK9)=$G9,0,IF($G9*$E9/12<($G9-SUM($Q9:BK9)),$G9*$E9/12,($G9-SUM($Q9:BK9))))) -> 0 | BM9: =IF($D9>=BM$3,0,IF(SUM($Q9:BL9)=$G9,0,IF($G9*$E9/12<($G9-SUM($Q9:BL9)),$G9*$E9/12,($G9-SUM($Q9:BL9))))) -> 0 | BN9: =IF($D9>=BN$3,0,IF(SUM($Q9:BM9)=$G9,0,IF($G9*$E9/12<($G9-SUM($Q9:BM9)),$G9*$E9/12,($G9-SUM($Q9:BM9))))) -> 0 | BO9: =IF($D9>=BO$3,0,IF(SUM($Q9:BN9)=$G9,0,IF($G9*$E9/12<($G9-SUM($Q9:BN9)),$G9*$E9/12,($G9-SUM($Q9:BN9))))) -> 0 | BP9: =IF($D9>=BP$3,0,IF(SUM($Q9:BO9)=$G9,0,IF($G9*$E9/12<($G9-SUM($Q9:BO9)),$G9*$E9/12,($G9-SUM($Q9:BO9))))) -> 0 | BQ9: =IF($D9>=BQ$3,0,IF(SUM($Q9:BP9)=$G9,0,IF($G9*$E9/12<($G9-SUM($Q9:BP9)),$G9*$E9/12,($G9-SUM($Q9:BP9))))) -> 0 | BR9: =IF($D9>=BR$3,0,IF(SUM($Q9:BQ9)=$G9,0,IF($G9*$E9/12<($G9-SUM($Q9:BQ9)),$G9*$E9/12,($G9-SUM($Q9:BQ9))))) -> 0 | BS9: =IF($D9>=BS$3,0,IF(SUM($Q9:BR9)=$G9,0,IF($G9*$E9/12<($G9-SUM($Q9:BR9)),$G9*$E9/12,($G9-SUM($Q9:BR9))))) -> 0 | BT9: =IF($D9>=BT$3,0,IF(SUM($Q9:BS9)=$G9,0,IF($G9*$E9/12<($G9-SUM($Q9:BS9)),$G9*$E9/12,($G9-SUM($Q9:BS9))))) -> 0 | BU9: =IF($D9>=BU$3,0,IF(SUM($Q9:BT9)=$G9,0,IF($G9*$E9/12<($G9-SUM($Q9:BT9)),$G9*$E9/12,($G9-SUM($Q9:BT9))))) -> 0 | BV9: =IF($D9>=BV$3,0,IF(SUM($Q9:BU9)=$G9,0,IF($G9*$E9/12<($G9-SUM($Q9:BU9)),$G9*$E9/12,($G9-SUM($Q9:BU9))))) -> 0 | BW9: =IF($D9>=BW$3,0,IF(SUM($Q9:BV9)=$G9,0,IF($G9*$E9/12<($G9-SUM($Q9:BV9)),$G9*$E9/12,($G9-SUM($Q9:BV9))))) -> 0 | BX9: =IF($D9>=BX$3,0,IF(SUM($Q9:BW9)=$G9,0,IF($G9*$E9/12<($G9-SUM($Q9:BW9)),$G9*$E9/12,($G9-SUM($Q9:BW9))))) -> 0 | BY9: =IF($D9>=BY$3,0,IF(SUM($Q9:BX9)=$G9,0,IF($G9*$E9/12<($G9-SUM($Q9:BX9)),$G9*$E9/12,($G9-SUM($Q9:BX9))))) -> 0 | BZ9: =IF($D9>=BZ$3,0,IF(SUM($Q9:BY9)=$G9,0,IF($G9*$E9/12<($G9-SUM($Q9:BY9)),$G9*$E9/12,($G9-SUM($Q9:BY9))))) -> 0 | CA9: =IF($D9>=CA$3,0,IF(SUM($Q9:BZ9)=$G9,0,IF($G9*$E9/12<($G9-SUM($Q9:BZ9)),$G9*$E9/12,($G9-SUM($Q9:BZ9))))) -> 0 | CB9: =IF($D9>=CB$3,0,IF(SUM($Q9:CA9)=$G9,0,IF($G9*$E9/12<($G9-SUM($Q9:CA9)),$G9*$E9/12,($G9-SUM($Q9:CA9))))) -> 0 | CC9: =IF($D9>=CC$3,0,IF(SUM($Q9:CB9)=$G9,0,IF($G9*$E9/12<($G9-SUM($Q9:CB9)),$G9*$E9/12,($G9-SUM($Q9:CB9))))) -> 0 | CD9: =IF($D9>=CD$3,0,IF(SUM($Q9:CC9)=$G9,0,IF($G9*$E9/12<($G9-SUM($Q9:CC9)),$G9*$E9/12,($G9-SUM($Q9:CC9))))) -> 0 | CE9: =IF($D9>=CE$3,0,IF(SUM($Q9:CD9)=$G9,0,IF($G9*$E9/12<($G9-SUM($Q9:CD9)),$G9*$E9/12,($G9-SUM($Q9:CD9))))) -> 0 | CF9: =IF($D9>=CF$3,0,IF(SUM($Q9:CE9)=$G9,0,IF($G9*$E9/12<($G9-SUM($Q9:CE9)),$G9*$E9/12,($G9-SUM($Q9:CE9))))) -> 0 | CG9: =IF($D9>=CG$3,0,IF(SUM($Q9:CF9)=$G9,0,IF($G9*$E9/12<($G9-SUM($Q9:CF9)),$G9*$E9/12,($G9-SUM($Q9:CF9))))) -> 0 | CH9: =IF($D9>=CH$3,0,IF(SUM($Q9:CG9)=$G9,0,IF($G9*$E9/12<($G9-SUM($Q9:CG9)),$G9*$E9/12,($G9-SUM($Q9:CG9))))) -> 0 | CI9: =IF($D9>=CI$3,0,IF(SUM($Q9:CH9)=$G9,0,IF($G9*$E9/12<($G9-SUM($Q9:CH9)),$G9*$E9/12,($G9-SUM($Q9:CH9))))) -> 0 | CJ9: =IF($D9>=CJ$3,0,IF(SUM($Q9:CI9)=$G9,0,IF($G9*$E9/12<($G9-SUM($Q9:CI9)),$G9*$E9/12,($G9-SUM($Q9:CI9))))) -> 0 | CK9: =IF($D9>=CK$3,0,IF(SUM($Q9:CJ9)=$G9,0,IF($G9*$E9/12<($G9-SUM($Q9:CJ9)),$G9*$E9/12,($G9-SUM($Q9:CJ9))))) -> 0 | CL9: =IF($D9>=CL$3,0,IF(SUM($Q9:CK9)=$G9,0,IF($G9*$E9/12<($G9-SUM($Q9:CK9)),$G9*$E9/12,($G9-SUM($Q9:CK9))))) -> 0 | CM9: =IF($D9>=CM$3,0,IF(SUM($Q9:CL9)=$G9,0,IF($G9*$E9/12<($G9-SUM($Q9:CL9)),$G9*$E9/12,($G9-SUM($Q9:CL9))))) -> 0 | CN9: =IF($D9>=CN$3,0,IF(SUM($Q9:CM9)=$G9,0,IF($G9*$E9/12<($G9-SUM($Q9:CM9)),$G9*$E9/12,($G9-SUM($Q9:CM9))))) -> 0 | CO9: =IF($D9>=CO$3,0,IF(SUM($Q9:CN9)=$G9,0,IF($G9*$E9/12<($G9-SUM($Q9:CN9)),$G9*$E9/12,($G9-SUM($Q9:CN9))))) -> 0 | CP9: =IF($D9>=CP$3,0,IF(SUM($Q9:CO9)=$G9,0,IF($G9*$E9/12<($G9-SUM($Q9:CO9)),$G9*$E9/12,($G9-SUM($Q9:CO9))))) -> 0 | CQ9: =IF($D9>=CQ$3,0,IF(SUM($Q9:CP9)=$G9,0,IF($G9*$E9/12<($G9-SUM($Q9:CP9)),$G9*$E9/12,($G9-SUM($Q9:CP9))))) -> 0 | CR9: =IF($D9>=CR$3,0,IF(SUM($Q9:CQ9)=$G9,0,IF($G9*$E9/12<($G9-SUM($Q9:CQ9)),$G9*$E9/12,($G9-SUM($Q9:CQ9))))) -> 0 | CS9: =IF($D9>=CS$3,0,IF(SUM($Q9:CR9)=$G9,0,IF($G9*$E9/12<($G9-SUM($Q9:CR9)),$G9*$E9/12,($G9-SUM($Q9:CR9))))) -> 0 | CT9: =IF($D9>=CT$3,0,IF(SUM($Q9:CS9)=$G9,0,IF($G9*$E9/12<($G9-SUM($Q9:CS9)),$G9*$E9/12,($G9-SUM($Q9:CS9))))) -> 0 | CU9: =IF($D9>=CU$3,0,IF(SUM($Q9:CT9)=$G9,0,IF($G9*$E9/12<($G9-SUM($Q9:CT9)),$G9*$E9/12,($G9-SUM($Q9:CT9))))) -> 0 | CV9: =IF($D9>=CV$3,0,IF(SUM($Q9:CU9)=$G9,0,IF($G9*$E9/12<($G9-SUM($Q9:CU9)),$G9*$E9/12,($G9-SUM($Q9:CU9))))) -> 0
A10: =IF(D10<EOMONTH($D$2,-12),"Fuera de plazo",IF(D10>BALANCE!$J$3,"Fuera de plazo","")) ->  | B10: Equipamiento | D10: 2013-12-31 | E10: 0.15 | F10: 0.21 | G10: =IF(YEAR(D10)<=YEAR($D$2),C10*RIESGO!$C$4,C10*RIESGO!$C$4*(1+CONTROL!$H$4)^(YEAR(D10)-YEAR($D$2))) -> 0 | H10: 0 | I10: 0 | J10: 0 | K10: 0 | L10: 0 | M10: 0 | N10: 0 | O10: 0 | Q10: 0 | R10: =IF($D10>=R$3,0,IF(SUM($Q10:Q10)=$G10,0,IF($G10*$E10/12<($G10-SUM($Q10:Q10)),$G10*$E10/12,($G10-SUM($Q10:Q10))))) -> 0 | S10: =IF($D10>=S$3,0,IF(SUM($Q10:R10)=$G10,0,IF($G10*$E10/12<($G10-SUM($Q10:R10)),$G10*$E10/12,($G10-SUM($Q10:R10))))) -> 0 | T10: =IF($D10>=T$3,0,IF(SUM($Q10:S10)=$G10,0,IF($G10*$E10/12<($G10-SUM($Q10:S10)),$G10*$E10/12,($G10-SUM($Q10:S10))))) -> 0 | U10: =IF($D10>=U$3,0,IF(SUM($Q10:T10)=$G10,0,IF($G10*$E10/12<($G10-SUM($Q10:T10)),$G10*$E10/12,($G10-SUM($Q10:T10))))) -> 0 | V10: =IF($D10>=V$3,0,IF(SUM($Q10:U10)=$G10,0,IF($G10*$E10/12<($G10-SUM($Q10:U10)),$G10*$E10/12,($G10-SUM($Q10:U10))))) -> 0 | W10: =IF($D10>=W$3,0,IF(SUM($Q10:V10)=$G10,0,IF($G10*$E10/12<($G10-SUM($Q10:V10)),$G10*$E10/12,($G10-SUM($Q10:V10))))) -> 0 | X10: =IF($D10>=X$3,0,IF(SUM($Q10:W10)=$G10,0,IF($G10*$E10/12<($G10-SUM($Q10:W10)),$G10*$E10/12,($G10-SUM($Q10:W10))))) -> 0 | Y10: =IF($D10>=Y$3,0,IF(SUM($Q10:X10)=$G10,0,IF($G10*$E10/12<($G10-SUM($Q10:X10)),$G10*$E10/12,($G10-SUM($Q10:X10))))) -> 0 | Z10: =IF($D10>=Z$3,0,IF(SUM($Q10:Y10)=$G10,0,IF($G10*$E10/12<($G10-SUM($Q10:Y10)),$G10*$E10/12,($G10-SUM($Q10:Y10))))) -> 0 | AA10: =IF($D10>=AA$3,0,IF(SUM($Q10:Z10)=$G10,0,IF($G10*$E10/12<($G10-SUM($Q10:Z10)),$G10*$E10/12,($G10-SUM($Q10:Z10))))) -> 0 | AB10: =IF($D10>=AB$3,0,IF(SUM($Q10:AA10)=$G10,0,IF($G10*$E10/12<($G10-SUM($Q10:AA10)),$G10*$E10/12,($G10-SUM($Q10:AA10))))) -> 0 | AC10: =IF($D10>=AC$3,0,IF(SUM($Q10:AB10)=$G10,0,IF($G10*$E10/12<($G10-SUM($Q10:AB10)),$G10*$E10/12,($G10-SUM($Q10:AB10))))) -> 0 | AD10: =IF($D10>=AD$3,0,IF(SUM($Q10:AC10)=$G10,0,IF($G10*$E10/12<($G10-SUM($Q10:AC10)),$G10*$E10/12,($G10-SUM($Q10:AC10))))) -> 0 | AE10: =IF($D10>=AE$3,0,IF(SUM($Q10:AD10)=$G10,0,IF($G10*$E10/12<($G10-SUM($Q10:AD10)),$G10*$E10/12,($G10-SUM($Q10:AD10))))) -> 0 | AF10: =IF($D10>=AF$3,0,IF(SUM($Q10:AE10)=$G10,0,IF($G10*$E10/12<($G10-SUM($Q10:AE10)),$G10*$E10/12,($G10-SUM($Q10:AE10))))) -> 0 | AG10: =IF($D10>=AG$3,0,IF(SUM($Q10:AF10)=$G10,0,IF($G10*$E10/12<($G10-SUM($Q10:AF10)),$G10*$E10/12,($G10-SUM($Q10:AF10))))) -> 0 | AH10: =IF($D10>=AH$3,0,IF(SUM($Q10:AG10)=$G10,0,IF($G10*$E10/12<($G10-SUM($Q10:AG10)),$G10*$E10/12,($G10-SUM($Q10:AG10))))) -> 0 | AI10: =IF($D10>=AI$3,0,IF(SUM($Q10:AH10)=$G10,0,IF($G10*$E10/12<($G10-SUM($Q10:AH10)),$G10*$E10/12,($G10-SUM($Q10:AH10))))) -> 0 | AJ10: =IF($D10>=AJ$3,0,IF(SUM($Q10:AI10)=$G10,0,IF($G10*$E10/12<($G10-SUM($Q10:AI10)),$G10*$E10/12,($G10-SUM($Q10:AI10))))) -> 0 | AK10: =IF($D10>=AK$3,0,IF(SUM($Q10:AJ10)=$G10,0,IF($G10*$E10/12<($G10-SUM($Q10:AJ10)),$G10*$E10/12,($G10-SUM($Q10:AJ10))))) -> 0 | AL10: =IF($D10>=AL$3,0,IF(SUM($Q10:AK10)=$G10,0,IF($G10*$E10/12<($G10-SUM($Q10:AK10)),$G10*$E10/12,($G10-SUM($Q10:AK10))))) -> 0 | AM10: =IF($D10>=AM$3,0,IF(SUM($Q10:AL10)=$G10,0,IF($G10*$E10/12<($G10-SUM($Q10:AL10)),$G10*$E10/12,($G10-SUM($Q10:AL10))))) -> 0 | AN10: =IF($D10>=AN$3,0,IF(SUM($Q10:AM10)=$G10,0,IF($G10*$E10/12<($G10-SUM($Q10:AM10)),$G10*$E10/12,($G10-SUM($Q10:AM10))))) -> 0 | AO10: =IF($D10>=AO$3,0,IF(SUM($Q10:AN10)=$G10,0,IF($G10*$E10/12<($G10-SUM($Q10:AN10)),$G10*$E10/12,($G10-SUM($Q10:AN10))))) -> 0 | AP10: =IF($D10>=AP$3,0,IF(SUM($Q10:AO10)=$G10,0,IF($G10*$E10/12<($G10-SUM($Q10:AO10)),$G10*$E10/12,($G10-SUM($Q10:AO10))))) -> 0 | AQ10: =IF($D10>=AQ$3,0,IF(SUM($Q10:AP10)=$G10,0,IF($G10*$E10/12<($G10-SUM($Q10:AP10)),$G10*$E10/12,($G10-SUM($Q10:AP10))))) -> 0 | AR10: =IF($D10>=AR$3,0,IF(SUM($Q10:AQ10)=$G10,0,IF($G10*$E10/12<($G10-SUM($Q10:AQ10)),$G10*$E10/12,($G10-SUM($Q10:AQ10))))) -> 0 | AS10: =IF($D10>=AS$3,0,IF(SUM($Q10:AR10)=$G10,0,IF($G10*$E10/12<($G10-SUM($Q10:AR10)),$G10*$E10/12,($G10-SUM($Q10:AR10))))) -> 0 | AT10: =IF($D10>=AT$3,0,IF(SUM($Q10:AS10)=$G10,0,IF($G10*$E10/12<($G10-SUM($Q10:AS10)),$G10*$E10/12,($G10-SUM($Q10:AS10))))) -> 0 | AU10: =IF($D10>=AU$3,0,IF(SUM($Q10:AT10)=$G10,0,IF($G10*$E10/12<($G10-SUM($Q10:AT10)),$G10*$E10/12,($G10-SUM($Q10:AT10))))) -> 0 | AV10: =IF($D10>=AV$3,0,IF(SUM($Q10:AU10)=$G10,0,IF($G10*$E10/12<($G10-SUM($Q10:AU10)),$G10*$E10/12,($G10-SUM($Q10:AU10))))) -> 0 | AW10: =IF($D10>=AW$3,0,IF(SUM($Q10:AV10)=$G10,0,IF($G10*$E10/12<($G10-SUM($Q10:AV10)),$G10*$E10/12,($G10-SUM($Q10:AV10))))) -> 0 | AX10: =IF($D10>=AX$3,0,IF(SUM($Q10:AW10)=$G10,0,IF($G10*$E10/12<($G10-SUM($Q10:AW10)),$G10*$E10/12,($G10-SUM($Q10:AW10))))) -> 0 | AY10: =IF($D10>=AY$3,0,IF(SUM($Q10:AX10)=$G10,0,IF($G10*$E10/12<($G10-SUM($Q10:AX10)),$G10*$E10/12,($G10-SUM($Q10:AX10))))) -> 0 | AZ10: =IF($D10>=AZ$3,0,IF(SUM($Q10:AY10)=$G10,0,IF($G10*$E10/12<($G10-SUM($Q10:AY10)),$G10*$E10/12,($G10-SUM($Q10:AY10))))) -> 0 | BA10: =IF($D10>=BA$3,0,IF(SUM($Q10:AZ10)=$G10,0,IF($G10*$E10/12<($G10-SUM($Q10:AZ10)),$G10*$E10/12,($G10-SUM($Q10:AZ10))))) -> 0 | BB10: =IF($D10>=BB$3,0,IF(SUM($Q10:BA10)=$G10,0,IF($G10*$E10/12<($G10-SUM($Q10:BA10)),$G10*$E10/12,($G10-SUM($Q10:BA10))))) -> 0 | BC10: =IF($D10>=BC$3,0,IF(SUM($Q10:BB10)=$G10,0,IF($G10*$E10/12<($G10-SUM($Q10:BB10)),$G10*$E10/12,($G10-SUM($Q10:BB10))))) -> 0 | BD10: =IF($D10>=BD$3,0,IF(SUM($Q10:BC10)=$G10,0,IF($G10*$E10/12<($G10-SUM($Q10:BC10)),$G10*$E10/12,($G10-SUM($Q10:BC10))))) -> 0 | BE10: =IF($D10>=BE$3,0,IF(SUM($Q10:BD10)=$G10,0,IF($G10*$E10/12<($G10-SUM($Q10:BD10)),$G10*$E10/12,($G10-SUM($Q10:BD10))))) -> 0 | BF10: =IF($D10>=BF$3,0,IF(SUM($Q10:BE10)=$G10,0,IF($G10*$E10/12<($G10-SUM($Q10:BE10)),$G10*$E10/12,($G10-SUM($Q10:BE10))))) -> 0 | BG10: =IF($D10>=BG$3,0,IF(SUM($Q10:BF10)=$G10,0,IF($G10*$E10/12<($G10-SUM($Q10:BF10)),$G10*$E10/12,($G10-SUM($Q10:BF10))))) -> 0 | BH10: =IF($D10>=BH$3,0,IF(SUM($Q10:BG10)=$G10,0,IF($G10*$E10/12<($G10-SUM($Q10:BG10)),$G10*$E10/12,($G10-SUM($Q10:BG10))))) -> 0 | BI10: =IF($D10>=BI$3,0,IF(SUM($Q10:BH10)=$G10,0,IF($G10*$E10/12<($G10-SUM($Q10:BH10)),$G10*$E10/12,($G10-SUM($Q10:BH10))))) -> 0 | BJ10: =IF($D10>=BJ$3,0,IF(SUM($Q10:BI10)=$G10,0,IF($G10*$E10/12<($G10-SUM($Q10:BI10)),$G10*$E10/12,($G10-SUM($Q10:BI10))))) -> 0 | BK10: =IF($D10>=BK$3,0,IF(SUM($Q10:BJ10)=$G10,0,IF($G10*$E10/12<($G10-SUM($Q10:BJ10)),$G10*$E10/12,($G10-SUM($Q10:BJ10))))) -> 0 | BL10: =IF($D10>=BL$3,0,IF(SUM($Q10:BK10)=$G10,0,IF($G10*$E10/12<($G10-SUM($Q10:BK10)),$G10*$E10/12,($G10-SUM($Q10:BK10))))) -> 0 | BM10: =IF($D10>=BM$3,0,IF(SUM($Q10:BL10)=$G10,0,IF($G10*$E10/12<($G10-SUM($Q10:BL10)),$G10*$E10/12,($G10-SUM($Q10:BL10))))) -> 0 | BN10: =IF($D10>=BN$3,0,IF(SUM($Q10:BM10)=$G10,0,IF($G10*$E10/12<($G10-SUM($Q10:BM10)),$G10*$E10/12,($G10-SUM($Q10:BM10))))) -> 0 | BO10: =IF($D10>=BO$3,0,IF(SUM($Q10:BN10)=$G10,0,IF($G10*$E10/12<($G10-SUM($Q10:BN10)),$G10*$E10/12,($G10-SUM($Q10:BN10))))) -> 0 | BP10: =IF($D10>=BP$3,0,IF(SUM($Q10:BO10)=$G10,0,IF($G10*$E10/12<($G10-SUM($Q10:BO10)),$G10*$E10/12,($G10-SUM($Q10:BO10))))) -> 0 | BQ10: =IF($D10>=BQ$3,0,IF(SUM($Q10:BP10)=$G10,0,IF($G10*$E10/12<($G10-SUM($Q10:BP10)),$G10*$E10/12,($G10-SUM($Q10:BP10))))) -> 0 | BR10: =IF($D10>=BR$3,0,IF(SUM($Q10:BQ10)=$G10,0,IF($G10*$E10/12<($G10-SUM($Q10:BQ10)),$G10*$E10/12,($G10-SUM($Q10:BQ10))))) -> 0 | BS10: =IF($D10>=BS$3,0,IF(SUM($Q10:BR10)=$G10,0,IF($G10*$E10/12<($G10-SUM($Q10:BR10)),$G10*$E10/12,($G10-SUM($Q10:BR10))))) -> 0 | BT10: =IF($D10>=BT$3,0,IF(SUM($Q10:BS10)=$G10,0,IF($G10*$E10/12<($G10-SUM($Q10:BS10)),$G10*$E10/12,($G10-SUM($Q10:BS10))))) -> 0 | BU10: =IF($D10>=BU$3,0,IF(SUM($Q10:BT10)=$G10,0,IF($G10*$E10/12<($G10-SUM($Q10:BT10)),$G10*$E10/12,($G10-SUM($Q10:BT10))))) -> 0 | BV10: =IF($D10>=BV$3,0,IF(SUM($Q10:BU10)=$G10,0,IF($G10*$E10/12<($G10-SUM($Q10:BU10)),$G10*$E10/12,($G10-SUM($Q10:BU10))))) -> 0 | BW10: =IF($D10>=BW$3,0,IF(SUM($Q10:BV10)=$G10,0,IF($G10*$E10/12<($G10-SUM($Q10:BV10)),$G10*$E10/12,($G10-SUM($Q10:BV10))))) -> 0 | BX10: =IF($D10>=BX$3,0,IF(SUM($Q10:BW10)=$G10,0,IF($G10*$E10/12<($G10-SUM($Q10:BW10)),$G10*$E10/12,($G10-SUM($Q10:BW10))))) -> 0 | BY10: =IF($D10>=BY$3,0,IF(SUM($Q10:BX10)=$G10,0,IF($G10*$E10/12<($G10-SUM($Q10:BX10)),$G10*$E10/12,($G10-SUM($Q10:BX10))))) -> 0 | BZ10: =IF($D10>=BZ$3,0,IF(SUM($Q10:BY10)=$G10,0,IF($G10*$E10/12<($G10-SUM($Q10:BY10)),$G10*$E10/12,($G10-SUM($Q10:BY10))))) -> 0 | CA10: =IF($D10>=CA$3,0,IF(SUM($Q10:BZ10)=$G10,0,IF($G10*$E10/12<($G10-SUM($Q10:BZ10)),$G10*$E10/12,($G10-SUM($Q10:BZ10))))) -> 0 | CB10: =IF($D10>=CB$3,0,IF(SUM($Q10:CA10)=$G10,0,IF($G10*$E10/12<($G10-SUM($Q10:CA10)),$G10*$E10/12,($G10-SUM($Q10:CA10))))) -> 0 | CC10: =IF($D10>=CC$3,0,IF(SUM($Q10:CB10)=$G10,0,IF($G10*$E10/12<($G10-SUM($Q10:CB10)),$G10*$E10/12,($G10-SUM($Q10:CB10))))) -> 0 | CD10: =IF($D10>=CD$3,0,IF(SUM($Q10:CC10)=$G10,0,IF($G10*$E10/12<($G10-SUM($Q10:CC10)),$G10*$E10/12,($G10-SUM($Q10:CC10))))) -> 0 | CE10: =IF($D10>=CE$3,0,IF(SUM($Q10:CD10)=$G10,0,IF($G10*$E10/12<($G10-SUM($Q10:CD10)),$G10*$E10/12,($G10-SUM($Q10:CD10))))) -> 0 | CF10: =IF($D10>=CF$3,0,IF(SUM($Q10:CE10)=$G10,0,IF($G10*$E10/12<($G10-SUM($Q10:CE10)),$G10*$E10/12,($G10-SUM($Q10:CE10))))) -> 0 | CG10: =IF($D10>=CG$3,0,IF(SUM($Q10:CF10)=$G10,0,IF($G10*$E10/12<($G10-SUM($Q10:CF10)),$G10*$E10/12,($G10-SUM($Q10:CF10))))) -> 0 | CH10: =IF($D10>=CH$3,0,IF(SUM($Q10:CG10)=$G10,0,IF($G10*$E10/12<($G10-SUM($Q10:CG10)),$G10*$E10/12,($G10-SUM($Q10:CG10))))) -> 0 | CI10: =IF($D10>=CI$3,0,IF(SUM($Q10:CH10)=$G10,0,IF($G10*$E10/12<($G10-SUM($Q10:CH10)),$G10*$E10/12,($G10-SUM($Q10:CH10))))) -> 0 | CJ10: =IF($D10>=CJ$3,0,IF(SUM($Q10:CI10)=$G10,0,IF($G10*$E10/12<($G10-SUM($Q10:CI10)),$G10*$E10/12,($G10-SUM($Q10:CI10))))) -> 0 | CK10: =IF($D10>=CK$3,0,IF(SUM($Q10:CJ10)=$G10,0,IF($G10*$E10/12<($G10-SUM($Q10:CJ10)),$G10*$E10/12,($G10-SUM($Q10:CJ10))))) -> 0 | CL10: =IF($D10>=CL$3,0,IF(SUM($Q10:CK10)=$G10,0,IF($G10*$E10/12<($G10-SUM($Q10:CK10)),$G10*$E10/12,($G10-SUM($Q10:CK10))))) -> 0 | CM10: =IF($D10>=CM$3,0,IF(SUM($Q10:CL10)=$G10,0,IF($G10*$E10/12<($G10-SUM($Q10:CL10)),$G10*$E10/12,($G10-SUM($Q10:CL10))))) -> 0 | CN10: =IF($D10>=CN$3,0,IF(SUM($Q10:CM10)=$G10,0,IF($G10*$E10/12<($G10-SUM($Q10:CM10)),$G10*$E10/12,($G10-SUM($Q10:CM10))))) -> 0 | CO10: =IF($D10>=CO$3,0,IF(SUM($Q10:CN10)=$G10,0,IF($G10*$E10/12<($G10-SUM($Q10:CN10)),$G10*$E10/12,($G10-SUM($Q10:CN10))))) -> 0 | CP10: =IF($D10>=CP$3,0,IF(SUM($Q10:CO10)=$G10,0,IF($G10*$E10/12<($G10-SUM($Q10:CO10)),$G10*$E10/12,($G10-SUM($Q10:CO10))))) -> 0 | CQ10: =IF($D10>=CQ$3,0,IF(SUM($Q10:CP10)=$G10,0,IF($G10*$E10/12<($G10-SUM($Q10:CP10)),$G10*$E10/12,($G10-SUM($Q10:CP10))))) -> 0 | CR10: =IF($D10>=CR$3,0,IF(SUM($Q10:CQ10)=$G10,0,IF($G10*$E10/12<($G10-SUM($Q10:CQ10)),$G10*$E10/12,($G10-SUM($Q10:CQ10))))) -> 0 | CS10: =IF($D10>=CS$3,0,IF(SUM($Q10:CR10)=$G10,0,IF($G10*$E10/12<($G10-SUM($Q10:CR10)),$G10*$E10/12,($G10-SUM($Q10:CR10))))) -> 0 | CT10: =IF($D10>=CT$3,0,IF(SUM($Q10:CS10)=$G10,0,IF($G10*$E10/12<($G10-SUM($Q10:CS10)),$G10*$E10/12,($G10-SUM($Q10:CS10))))) -> 0 | CU10: =IF($D10>=CU$3,0,IF(SUM($Q10:CT10)=$G10,0,IF($G10*$E10/12<($G10-SUM($Q10:CT10)),$G10*$E10/12,($G10-SUM($Q10:CT10))))) -> 0 | CV10: =IF($D10>=CV$3,0,IF(SUM($Q10:CU10)=$G10,0,IF($G10*$E10/12<($G10-SUM($Q10:CU10)),$G10*$E10/12,($G10-SUM($Q10:CU10))))) -> 0
A11: =IF(D11<EOMONTH($D$2,-12),"Fuera de plazo",IF(D11>BALANCE!$J$3,"Fuera de plazo","")) ->  | B11: Mobiliario | D11: 2013-12-31 | E11: 0.1 | F11: 0.21 | G11: =IF(YEAR(D11)<=YEAR($D$2),C11*RIESGO!$C$4,C11*RIESGO!$C$4*(1+CONTROL!$H$4)^(YEAR(D11)-YEAR($D$2))) -> 0 | H11: 0 | I11: 0 | J11: 0 | K11: 0 | L11: 0 | M11: 0 | N11: 0 | O11: 0 | Q11: 0 | R11: =IF($D11>=R$3,0,IF(SUM($Q11:Q11)=$G11,0,IF($G11*$E11/12<($G11-SUM($Q11:Q11)),$G11*$E11/12,($G11-SUM($Q11:Q11))))) -> 0 | S11: =IF($D11>=S$3,0,IF(SUM($Q11:R11)=$G11,0,IF($G11*$E11/12<($G11-SUM($Q11:R11)),$G11*$E11/12,($G11-SUM($Q11:R11))))) -> 0 | T11: =IF($D11>=T$3,0,IF(SUM($Q11:S11)=$G11,0,IF($G11*$E11/12<($G11-SUM($Q11:S11)),$G11*$E11/12,($G11-SUM($Q11:S11))))) -> 0 | U11: =IF($D11>=U$3,0,IF(SUM($Q11:T11)=$G11,0,IF($G11*$E11/12<($G11-SUM($Q11:T11)),$G11*$E11/12,($G11-SUM($Q11:T11))))) -> 0 | V11: =IF($D11>=V$3,0,IF(SUM($Q11:U11)=$G11,0,IF($G11*$E11/12<($G11-SUM($Q11:U11)),$G11*$E11/12,($G11-SUM($Q11:U11))))) -> 0 | W11: =IF($D11>=W$3,0,IF(SUM($Q11:V11)=$G11,0,IF($G11*$E11/12<($G11-SUM($Q11:V11)),$G11*$E11/12,($G11-SUM($Q11:V11))))) -> 0 | X11: =IF($D11>=X$3,0,IF(SUM($Q11:W11)=$G11,0,IF($G11*$E11/12<($G11-SUM($Q11:W11)),$G11*$E11/12,($G11-SUM($Q11:W11))))) -> 0 | Y11: =IF($D11>=Y$3,0,IF(SUM($Q11:X11)=$G11,0,IF($G11*$E11/12<($G11-SUM($Q11:X11)),$G11*$E11/12,($G11-SUM($Q11:X11))))) -> 0 | Z11: =IF($D11>=Z$3,0,IF(SUM($Q11:Y11)=$G11,0,IF($G11*$E11/12<($G11-SUM($Q11:Y11)),$G11*$E11/12,($G11-SUM($Q11:Y11))))) -> 0 | AA11: =IF($D11>=AA$3,0,IF(SUM($Q11:Z11)=$G11,0,IF($G11*$E11/12<($G11-SUM($Q11:Z11)),$G11*$E11/12,($G11-SUM($Q11:Z11))))) -> 0 | AB11: =IF($D11>=AB$3,0,IF(SUM($Q11:AA11)=$G11,0,IF($G11*$E11/12<($G11-SUM($Q11:AA11)),$G11*$E11/12,($G11-SUM($Q11:AA11))))) -> 0 | AC11: =IF($D11>=AC$3,0,IF(SUM($Q11:AB11)=$G11,0,IF($G11*$E11/12<($G11-SUM($Q11:AB11)),$G11*$E11/12,($G11-SUM($Q11:AB11))))) -> 0 | AD11: =IF($D11>=AD$3,0,IF(SUM($Q11:AC11)=$G11,0,IF($G11*$E11/12<($G11-SUM($Q11:AC11)),$G11*$E11/12,($G11-SUM($Q11:AC11))))) -> 0 | AE11: =IF($D11>=AE$3,0,IF(SUM($Q11:AD11)=$G11,0,IF($G11*$E11/12<($G11-SUM($Q11:AD11)),$G11*$E11/12,($G11-SUM($Q11:AD11))))) -> 0 | AF11: =IF($D11>=AF$3,0,IF(SUM($Q11:AE11)=$G11,0,IF($G11*$E11/12<($G11-SUM($Q11:AE11)),$G11*$E11/12,($G11-SUM($Q11:AE11))))) -> 0 | AG11: =IF($D11>=AG$3,0,IF(SUM($Q11:AF11)=$G11,0,IF($G11*$E11/12<($G11-SUM($Q11:AF11)),$G11*$E11/12,($G11-SUM($Q11:AF11))))) -> 0 | AH11: =IF($D11>=AH$3,0,IF(SUM($Q11:AG11)=$G11,0,IF($G11*$E11/12<($G11-SUM($Q11:AG11)),$G11*$E11/12,($G11-SUM($Q11:AG11))))) -> 0 | AI11: =IF($D11>=AI$3,0,IF(SUM($Q11:AH11)=$G11,0,IF($G11*$E11/12<($G11-SUM($Q11:AH11)),$G11*$E11/12,($G11-SUM($Q11:AH11))))) -> 0 | AJ11: =IF($D11>=AJ$3,0,IF(SUM($Q11:AI11)=$G11,0,IF($G11*$E11/12<($G11-SUM($Q11:AI11)),$G11*$E11/12,($G11-SUM($Q11:AI11))))) -> 0 | AK11: =IF($D11>=AK$3,0,IF(SUM($Q11:AJ11)=$G11,0,IF($G11*$E11/12<($G11-SUM($Q11:AJ11)),$G11*$E11/12,($G11-SUM($Q11:AJ11))))) -> 0 | AL11: =IF($D11>=AL$3,0,IF(SUM($Q11:AK11)=$G11,0,IF($G11*$E11/12<($G11-SUM($Q11:AK11)),$G11*$E11/12,($G11-SUM($Q11:AK11))))) -> 0 | AM11: =IF($D11>=AM$3,0,IF(SUM($Q11:AL11)=$G11,0,IF($G11*$E11/12<($G11-SUM($Q11:AL11)),$G11*$E11/12,($G11-SUM($Q11:AL11))))) -> 0 | AN11: =IF($D11>=AN$3,0,IF(SUM($Q11:AM11)=$G11,0,IF($G11*$E11/12<($G11-SUM($Q11:AM11)),$G11*$E11/12,($G11-SUM($Q11:AM11))))) -> 0 | AO11: =IF($D11>=AO$3,0,IF(SUM($Q11:AN11)=$G11,0,IF($G11*$E11/12<($G11-SUM($Q11:AN11)),$G11*$E11/12,($G11-SUM($Q11:AN11))))) -> 0 | AP11: =IF($D11>=AP$3,0,IF(SUM($Q11:AO11)=$G11,0,IF($G11*$E11/12<($G11-SUM($Q11:AO11)),$G11*$E11/12,($G11-SUM($Q11:AO11))))) -> 0 | AQ11: =IF($D11>=AQ$3,0,IF(SUM($Q11:AP11)=$G11,0,IF($G11*$E11/12<($G11-SUM($Q11:AP11)),$G11*$E11/12,($G11-SUM($Q11:AP11))))) -> 0 | AR11: =IF($D11>=AR$3,0,IF(SUM($Q11:AQ11)=$G11,0,IF($G11*$E11/12<($G11-SUM($Q11:AQ11)),$G11*$E11/12,($G11-SUM($Q11:AQ11))))) -> 0 | AS11: =IF($D11>=AS$3,0,IF(SUM($Q11:AR11)=$G11,0,IF($G11*$E11/12<($G11-SUM($Q11:AR11)),$G11*$E11/12,($G11-SUM($Q11:AR11))))) -> 0 | AT11: =IF($D11>=AT$3,0,IF(SUM($Q11:AS11)=$G11,0,IF($G11*$E11/12<($G11-SUM($Q11:AS11)),$G11*$E11/12,($G11-SUM($Q11:AS11))))) -> 0 | AU11: =IF($D11>=AU$3,0,IF(SUM($Q11:AT11)=$G11,0,IF($G11*$E11/12<($G11-SUM($Q11:AT11)),$G11*$E11/12,($G11-SUM($Q11:AT11))))) -> 0 | AV11: =IF($D11>=AV$3,0,IF(SUM($Q11:AU11)=$G11,0,IF($G11*$E11/12<($G11-SUM($Q11:AU11)),$G11*$E11/12,($G11-SUM($Q11:AU11))))) -> 0 | AW11: =IF($D11>=AW$3,0,IF(SUM($Q11:AV11)=$G11,0,IF($G11*$E11/12<($G11-SUM($Q11:AV11)),$G11*$E11/12,($G11-SUM($Q11:AV11))))) -> 0 | AX11: =IF($D11>=AX$3,0,IF(SUM($Q11:AW11)=$G11,0,IF($G11*$E11/12<($G11-SUM($Q11:AW11)),$G11*$E11/12,($G11-SUM($Q11:AW11))))) -> 0 | AY11: =IF($D11>=AY$3,0,IF(SUM($Q11:AX11)=$G11,0,IF($G11*$E11/12<($G11-SUM($Q11:AX11)),$G11*$E11/12,($G11-SUM($Q11:AX11))))) -> 0 | AZ11: =IF($D11>=AZ$3,0,IF(SUM($Q11:AY11)=$G11,0,IF($G11*$E11/12<($G11-SUM($Q11:AY11)),$G11*$E11/12,($G11-SUM($Q11:AY11))))) -> 0 | BA11: =IF($D11>=BA$3,0,IF(SUM($Q11:AZ11)=$G11,0,IF($G11*$E11/12<($G11-SUM($Q11:AZ11)),$G11*$E11/12,($G11-SUM($Q11:AZ11))))) -> 0 | BB11: =IF($D11>=BB$3,0,IF(SUM($Q11:BA11)=$G11,0,IF($G11*$E11/12<($G11-SUM($Q11:BA11)),$G11*$E11/12,($G11-SUM($Q11:BA11))))) -> 0 | BC11: =IF($D11>=BC$3,0,IF(SUM($Q11:BB11)=$G11,0,IF($G11*$E11/12<($G11-SUM($Q11:BB11)),$G11*$E11/12,($G11-SUM($Q11:BB11))))) -> 0 | BD11: =IF($D11>=BD$3,0,IF(SUM($Q11:BC11)=$G11,0,IF($G11*$E11/12<($G11-SUM($Q11:BC11)),$G11*$E11/12,($G11-SUM($Q11:BC11))))) -> 0 | BE11: =IF($D11>=BE$3,0,IF(SUM($Q11:BD11)=$G11,0,IF($G11*$E11/12<($G11-SUM($Q11:BD11)),$G11*$E11/12,($G11-SUM($Q11:BD11))))) -> 0 | BF11: =IF($D11>=BF$3,0,IF(SUM($Q11:BE11)=$G11,0,IF($G11*$E11/12<($G11-SUM($Q11:BE11)),$G11*$E11/12,($G11-SUM($Q11:BE11))))) -> 0 | BG11: =IF($D11>=BG$3,0,IF(SUM($Q11:BF11)=$G11,0,IF($G11*$E11/12<($G11-SUM($Q11:BF11)),$G11*$E11/12,($G11-SUM($Q11:BF11))))) -> 0 | BH11: =IF($D11>=BH$3,0,IF(SUM($Q11:BG11)=$G11,0,IF($G11*$E11/12<($G11-SUM($Q11:BG11)),$G11*$E11/12,($G11-SUM($Q11:BG11))))) -> 0 | BI11: =IF($D11>=BI$3,0,IF(SUM($Q11:BH11)=$G11,0,IF($G11*$E11/12<($G11-SUM($Q11:BH11)),$G11*$E11/12,($G11-SUM($Q11:BH11))))) -> 0 | BJ11: =IF($D11>=BJ$3,0,IF(SUM($Q11:BI11)=$G11,0,IF($G11*$E11/12<($G11-SUM($Q11:BI11)),$G11*$E11/12,($G11-SUM($Q11:BI11))))) -> 0 | BK11: =IF($D11>=BK$3,0,IF(SUM($Q11:BJ11)=$G11,0,IF($G11*$E11/12<($G11-SUM($Q11:BJ11)),$G11*$E11/12,($G11-SUM($Q11:BJ11))))) -> 0 | BL11: =IF($D11>=BL$3,0,IF(SUM($Q11:BK11)=$G11,0,IF($G11*$E11/12<($G11-SUM($Q11:BK11)),$G11*$E11/12,($G11-SUM($Q11:BK11))))) -> 0 | BM11: =IF($D11>=BM$3,0,IF(SUM($Q11:BL11)=$G11,0,IF($G11*$E11/12<($G11-SUM($Q11:BL11)),$G11*$E11/12,($G11-SUM($Q11:BL11))))) -> 0 | BN11: =IF($D11>=BN$3,0,IF(SUM($Q11:BM11)=$G11,0,IF($G11*$E11/12<($G11-SUM($Q11:BM11)),$G11*$E11/12,($G11-SUM($Q11:BM11))))) -> 0 | BO11: =IF($D11>=BO$3,0,IF(SUM($Q11:BN11)=$G11,0,IF($G11*$E11/12<($G11-SUM($Q11:BN11)),$G11*$E11/12,($G11-SUM($Q11:BN11))))) -> 0 | BP11: =IF($D11>=BP$3,0,IF(SUM($Q11:BO11)=$G11,0,IF($G11*$E11/12<($G11-SUM($Q11:BO11)),$G11*$E11/12,($G11-SUM($Q11:BO11))))) -> 0 | BQ11: =IF($D11>=BQ$3,0,IF(SUM($Q11:BP11)=$G11,0,IF($G11*$E11/12<($G11-SUM($Q11:BP11)),$G11*$E11/12,($G11-SUM($Q11:BP11))))) -> 0 | BR11: =IF($D11>=BR$3,0,IF(SUM($Q11:BQ11)=$G11,0,IF($G11*$E11/12<($G11-SUM($Q11:BQ11)),$G11*$E11/12,($G11-SUM($Q11:BQ11))))) -> 0 | BS11: =IF($D11>=BS$3,0,IF(SUM($Q11:BR11)=$G11,0,IF($G11*$E11/12<($G11-SUM($Q11:BR11)),$G11*$E11/12,($G11-SUM($Q11:BR11))))) -> 0 | BT11: =IF($D11>=BT$3,0,IF(SUM($Q11:BS11)=$G11,0,IF($G11*$E11/12<($G11-SUM($Q11:BS11)),$G11*$E11/12,($G11-SUM($Q11:BS11))))) -> 0 | BU11: =IF($D11>=BU$3,0,IF(SUM($Q11:BT11)=$G11,0,IF($G11*$E11/12<($G11-SUM($Q11:BT11)),$G11*$E11/12,($G11-SUM($Q11:BT11))))) -> 0 | BV11: =IF($D11>=BV$3,0,IF(SUM($Q11:BU11)=$G11,0,IF($G11*$E11/12<($G11-SUM($Q11:BU11)),$G11*$E11/12,($G11-SUM($Q11:BU11))))) -> 0 | BW11: =IF($D11>=BW$3,0,IF(SUM($Q11:BV11)=$G11,0,IF($G11*$E11/12<($G11-SUM($Q11:BV11)),$G11*$E11/12,($G11-SUM($Q11:BV11))))) -> 0 | BX11: =IF($D11>=BX$3,0,IF(SUM($Q11:BW11)=$G11,0,IF($G11*$E11/12<($G11-SUM($Q11:BW11)),$G11*$E11/12,($G11-SUM($Q11:BW11))))) -> 0 | BY11: =IF($D11>=BY$3,0,IF(SUM($Q11:BX11)=$G11,0,IF($G11*$E11/12<($G11-SUM($Q11:BX11)),$G11*$E11/12,($G11-SUM($Q11:BX11))))) -> 0 | BZ11: =IF($D11>=BZ$3,0,IF(SUM($Q11:BY11)=$G11,0,IF($G11*$E11/12<($G11-SUM($Q11:BY11)),$G11*$E11/12,($G11-SUM($Q11:BY11))))) -> 0 | CA11: =IF($D11>=CA$3,0,IF(SUM($Q11:BZ11)=$G11,0,IF($G11*$E11/12<($G11-SUM($Q11:BZ11)),$G11*$E11/12,($G11-SUM($Q11:BZ11))))) -> 0 | CB11: =IF($D11>=CB$3,0,IF(SUM($Q11:CA11)=$G11,0,IF($G11*$E11/12<($G11-SUM($Q11:CA11)),$G11*$E11/12,($G11-SUM($Q11:CA11))))) -> 0 | CC11: =IF($D11>=CC$3,0,IF(SUM($Q11:CB11)=$G11,0,IF($G11*$E11/12<($G11-SUM($Q11:CB11)),$G11*$E11/12,($G11-SUM($Q11:CB11))))) -> 0 | CD11: =IF($D11>=CD$3,0,IF(SUM($Q11:CC11)=$G11,0,IF($G11*$E11/12<($G11-SUM($Q11:CC11)),$G11*$E11/12,($G11-SUM($Q11:CC11))))) -> 0 | CE11: =IF($D11>=CE$3,0,IF(SUM($Q11:CD11)=$G11,0,IF($G11*$E11/12<($G11-SUM($Q11:CD11)),$G11*$E11/12,($G11-SUM($Q11:CD11))))) -> 0 | CF11: =IF($D11>=CF$3,0,IF(SUM($Q11:CE11)=$G11,0,IF($G11*$E11/12<($G11-SUM($Q11:CE11)),$G11*$E11/12,($G11-SUM($Q11:CE11))))) -> 0 | CG11: =IF($D11>=CG$3,0,IF(SUM($Q11:CF11)=$G11,0,IF($G11*$E11/12<($G11-SUM($Q11:CF11)),$G11*$E11/12,($G11-SUM($Q11:CF11))))) -> 0 | CH11: =IF($D11>=CH$3,0,IF(SUM($Q11:CG11)=$G11,0,IF($G11*$E11/12<($G11-SUM($Q11:CG11)),$G11*$E11/12,($G11-SUM($Q11:CG11))))) -> 0 | CI11: =IF($D11>=CI$3,0,IF(SUM($Q11:CH11)=$G11,0,IF($G11*$E11/12<($G11-SUM($Q11:CH11)),$G11*$E11/12,($G11-SUM($Q11:CH11))))) -> 0 | CJ11: =IF($D11>=CJ$3,0,IF(SUM($Q11:CI11)=$G11,0,IF($G11*$E11/12<($G11-SUM($Q11:CI11)),$G11*$E11/12,($G11-SUM($Q11:CI11))))) -> 0 | CK11: =IF($D11>=CK$3,0,IF(SUM($Q11:CJ11)=$G11,0,IF($G11*$E11/12<($G11-SUM($Q11:CJ11)),$G11*$E11/12,($G11-SUM($Q11:CJ11))))) -> 0 | CL11: =IF($D11>=CL$3,0,IF(SUM($Q11:CK11)=$G11,0,IF($G11*$E11/12<($G11-SUM($Q11:CK11)),$G11*$E11/12,($G11-SUM($Q11:CK11))))) -> 0 | CM11: =IF($D11>=CM$3,0,IF(SUM($Q11:CL11)=$G11,0,IF($G11*$E11/12<($G11-SUM($Q11:CL11)),$G11*$E11/12,($G11-SUM($Q11:CL11))))) -> 0 | CN11: =IF($D11>=CN$3,0,IF(SUM($Q11:CM11)=$G11,0,IF($G11*$E11/12<($G11-SUM($Q11:CM11)),$G11*$E11/12,($G11-SUM($Q11:CM11))))) -> 0 | CO11: =IF($D11>=CO$3,0,IF(SUM($Q11:CN11)=$G11,0,IF($G11*$E11/12<($G11-SUM($Q11:CN11)),$G11*$E11/12,($G11-SUM($Q11:CN11))))) -> 0 | CP11: =IF($D11>=CP$3,0,IF(SUM($Q11:CO11)=$G11,0,IF($G11*$E11/12<($G11-SUM($Q11:CO11)),$G11*$E11/12,($G11-SUM($Q11:CO11))))) -> 0 | CQ11: =IF($D11>=CQ$3,0,IF(SUM($Q11:CP11)=$G11,0,IF($G11*$E11/12<($G11-SUM($Q11:CP11)),$G11*$E11/12,($G11-SUM($Q11:CP11))))) -> 0 | CR11: =IF($D11>=CR$3,0,IF(SUM($Q11:CQ11)=$G11,0,IF($G11*$E11/12<($G11-SUM($Q11:CQ11)),$G11*$E11/12,($G11-SUM($Q11:CQ11))))) -> 0 | CS11: =IF($D11>=CS$3,0,IF(SUM($Q11:CR11)=$G11,0,IF($G11*$E11/12<($G11-SUM($Q11:CR11)),$G11*$E11/12,($G11-SUM($Q11:CR11))))) -> 0 | CT11: =IF($D11>=CT$3,0,IF(SUM($Q11:CS11)=$G11,0,IF($G11*$E11/12<($G11-SUM($Q11:CS11)),$G11*$E11/12,($G11-SUM($Q11:CS11))))) -> 0 | CU11: =IF($D11>=CU$3,0,IF(SUM($Q11:CT11)=$G11,0,IF($G11*$E11/12<($G11-SUM($Q11:CT11)),$G11*$E11/12,($G11-SUM($Q11:CT11))))) -> 0 | CV11: =IF($D11>=CV$3,0,IF(SUM($Q11:CU11)=$G11,0,IF($G11*$E11/12<($G11-SUM($Q11:CU11)),$G11*$E11/12,($G11-SUM($Q11:CU11))))) -> 0
A12: =IF(D12<EOMONTH($D$2,-12),"Fuera de plazo",IF(D12>BALANCE!$J$3,"Fuera de plazo","")) ->  | B12: Elementos de transporte | D12: 2013-11-30 | E12: 0.16 | F12: 0.21 | G12: =IF(YEAR(D12)<=YEAR($D$2),C12*RIESGO!$C$4,C12*RIESGO!$C$4*(1+CONTROL!$H$4)^(YEAR(D12)-YEAR($D$2))) -> 0 | H12: 0 | I12: 0 | J12: 0 | K12: 0 | L12: 0 | M12: 0 | N12: 0 | O12: 0 | Q12: 0 | R12: =IF($D12>=R$3,0,IF(SUM($Q12:Q12)=$G12,0,IF($G12*$E12/12<($G12-SUM($Q12:Q12)),$G12*$E12/12,($G12-SUM($Q12:Q12))))) -> 0 | S12: =IF($D12>=S$3,0,IF(SUM($Q12:R12)=$G12,0,IF($G12*$E12/12<($G12-SUM($Q12:R12)),$G12*$E12/12,($G12-SUM($Q12:R12))))) -> 0 | T12: =IF($D12>=T$3,0,IF(SUM($Q12:S12)=$G12,0,IF($G12*$E12/12<($G12-SUM($Q12:S12)),$G12*$E12/12,($G12-SUM($Q12:S12))))) -> 0 | U12: =IF($D12>=U$3,0,IF(SUM($Q12:T12)=$G12,0,IF($G12*$E12/12<($G12-SUM($Q12:T12)),$G12*$E12/12,($G12-SUM($Q12:T12))))) -> 0 | V12: =IF($D12>=V$3,0,IF(SUM($Q12:U12)=$G12,0,IF($G12*$E12/12<($G12-SUM($Q12:U12)),$G12*$E12/12,($G12-SUM($Q12:U12))))) -> 0 | W12: =IF($D12>=W$3,0,IF(SUM($Q12:V12)=$G12,0,IF($G12*$E12/12<($G12-SUM($Q12:V12)),$G12*$E12/12,($G12-SUM($Q12:V12))))) -> 0 | X12: =IF($D12>=X$3,0,IF(SUM($Q12:W12)=$G12,0,IF($G12*$E12/12<($G12-SUM($Q12:W12)),$G12*$E12/12,($G12-SUM($Q12:W12))))) -> 0 | Y12: =IF($D12>=Y$3,0,IF(SUM($Q12:X12)=$G12,0,IF($G12*$E12/12<($G12-SUM($Q12:X12)),$G12*$E12/12,($G12-SUM($Q12:X12))))) -> 0 | Z12: =IF($D12>=Z$3,0,IF(SUM($Q12:Y12)=$G12,0,IF($G12*$E12/12<($G12-SUM($Q12:Y12)),$G12*$E12/12,($G12-SUM($Q12:Y12))))) -> 0 | AA12: =IF($D12>=AA$3,0,IF(SUM($Q12:Z12)=$G12,0,IF($G12*$E12/12<($G12-SUM($Q12:Z12)),$G12*$E12/12,($G12-SUM($Q12:Z12))))) -> 0 | AB12: =IF($D12>=AB$3,0,IF(SUM($Q12:AA12)=$G12,0,IF($G12*$E12/12<($G12-SUM($Q12:AA12)),$G12*$E12/12,($G12-SUM($Q12:AA12))))) -> 0 | AC12: =IF($D12>=AC$3,0,IF(SUM($Q12:AB12)=$G12,0,IF($G12*$E12/12<($G12-SUM($Q12:AB12)),$G12*$E12/12,($G12-SUM($Q12:AB12))))) -> 0 | AD12: =IF($D12>=AD$3,0,IF(SUM($Q12:AC12)=$G12,0,IF($G12*$E12/12<($G12-SUM($Q12:AC12)),$G12*$E12/12,($G12-SUM($Q12:AC12))))) -> 0 | AE12: =IF($D12>=AE$3,0,IF(SUM($Q12:AD12)=$G12,0,IF($G12*$E12/12<($G12-SUM($Q12:AD12)),$G12*$E12/12,($G12-SUM($Q12:AD12))))) -> 0 | AF12: =IF($D12>=AF$3,0,IF(SUM($Q12:AE12)=$G12,0,IF($G12*$E12/12<($G12-SUM($Q12:AE12)),$G12*$E12/12,($G12-SUM($Q12:AE12))))) -> 0 | AG12: =IF($D12>=AG$3,0,IF(SUM($Q12:AF12)=$G12,0,IF($G12*$E12/12<($G12-SUM($Q12:AF12)),$G12*$E12/12,($G12-SUM($Q12:AF12))))) -> 0 | AH12: =IF($D12>=AH$3,0,IF(SUM($Q12:AG12)=$G12,0,IF($G12*$E12/12<($G12-SUM($Q12:AG12)),$G12*$E12/12,($G12-SUM($Q12:AG12))))) -> 0 | AI12: =IF($D12>=AI$3,0,IF(SUM($Q12:AH12)=$G12,0,IF($G12*$E12/12<($G12-SUM($Q12:AH12)),$G12*$E12/12,($G12-SUM($Q12:AH12))))) -> 0 | AJ12: =IF($D12>=AJ$3,0,IF(SUM($Q12:AI12)=$G12,0,IF($G12*$E12/12<($G12-SUM($Q12:AI12)),$G12*$E12/12,($G12-SUM($Q12:AI12))))) -> 0 | AK12: =IF($D12>=AK$3,0,IF(SUM($Q12:AJ12)=$G12,0,IF($G12*$E12/12<($G12-SUM($Q12:AJ12)),$G12*$E12/12,($G12-SUM($Q12:AJ12))))) -> 0 | AL12: =IF($D12>=AL$3,0,IF(SUM($Q12:AK12)=$G12,0,IF($G12*$E12/12<($G12-SUM($Q12:AK12)),$G12*$E12/12,($G12-SUM($Q12:AK12))))) -> 0 | AM12: =IF($D12>=AM$3,0,IF(SUM($Q12:AL12)=$G12,0,IF($G12*$E12/12<($G12-SUM($Q12:AL12)),$G12*$E12/12,($G12-SUM($Q12:AL12))))) -> 0 | AN12: =IF($D12>=AN$3,0,IF(SUM($Q12:AM12)=$G12,0,IF($G12*$E12/12<($G12-SUM($Q12:AM12)),$G12*$E12/12,($G12-SUM($Q12:AM12))))) -> 0 | AO12: =IF($D12>=AO$3,0,IF(SUM($Q12:AN12)=$G12,0,IF($G12*$E12/12<($G12-SUM($Q12:AN12)),$G12*$E12/12,($G12-SUM($Q12:AN12))))) -> 0 | AP12: =IF($D12>=AP$3,0,IF(SUM($Q12:AO12)=$G12,0,IF($G12*$E12/12<($G12-SUM($Q12:AO12)),$G12*$E12/12,($G12-SUM($Q12:AO12))))) -> 0 | AQ12: =IF($D12>=AQ$3,0,IF(SUM($Q12:AP12)=$G12,0,IF($G12*$E12/12<($G12-SUM($Q12:AP12)),$G12*$E12/12,($G12-SUM($Q12:AP12))))) -> 0 | AR12: =IF($D12>=AR$3,0,IF(SUM($Q12:AQ12)=$G12,0,IF($G12*$E12/12<($G12-SUM($Q12:AQ12)),$G12*$E12/12,($G12-SUM($Q12:AQ12))))) -> 0 | AS12: =IF($D12>=AS$3,0,IF(SUM($Q12:AR12)=$G12,0,IF($G12*$E12/12<($G12-SUM($Q12:AR12)),$G12*$E12/12,($G12-SUM($Q12:AR12))))) -> 0 | AT12: =IF($D12>=AT$3,0,IF(SUM($Q12:AS12)=$G12,0,IF($G12*$E12/12<($G12-SUM($Q12:AS12)),$G12*$E12/12,($G12-SUM($Q12:AS12))))) -> 0 | AU12: =IF($D12>=AU$3,0,IF(SUM($Q12:AT12)=$G12,0,IF($G12*$E12/12<($G12-SUM($Q12:AT12)),$G12*$E12/12,($G12-SUM($Q12:AT12))))) -> 0 | AV12: =IF($D12>=AV$3,0,IF(SUM($Q12:AU12)=$G12,0,IF($G12*$E12/12<($G12-SUM($Q12:AU12)),$G12*$E12/12,($G12-SUM($Q12:AU12))))) -> 0 | AW12: =IF($D12>=AW$3,0,IF(SUM($Q12:AV12)=$G12,0,IF($G12*$E12/12<($G12-SUM($Q12:AV12)),$G12*$E12/12,($G12-SUM($Q12:AV12))))) -> 0 | AX12: =IF($D12>=AX$3,0,IF(SUM($Q12:AW12)=$G12,0,IF($G12*$E12/12<($G12-SUM($Q12:AW12)),$G12*$E12/12,($G12-SUM($Q12:AW12))))) -> 0 | AY12: =IF($D12>=AY$3,0,IF(SUM($Q12:AX12)=$G12,0,IF($G12*$E12/12<($G12-SUM($Q12:AX12)),$G12*$E12/12,($G12-SUM($Q12:AX12))))) -> 0 | AZ12: =IF($D12>=AZ$3,0,IF(SUM($Q12:AY12)=$G12,0,IF($G12*$E12/12<($G12-SUM($Q12:AY12)),$G12*$E12/12,($G12-SUM($Q12:AY12))))) -> 0 | BA12: =IF($D12>=BA$3,0,IF(SUM($Q12:AZ12)=$G12,0,IF($G12*$E12/12<($G12-SUM($Q12:AZ12)),$G12*$E12/12,($G12-SUM($Q12:AZ12))))) -> 0 | BB12: =IF($D12>=BB$3,0,IF(SUM($Q12:BA12)=$G12,0,IF($G12*$E12/12<($G12-SUM($Q12:BA12)),$G12*$E12/12,($G12-SUM($Q12:BA12))))) -> 0 | BC12: =IF($D12>=BC$3,0,IF(SUM($Q12:BB12)=$G12,0,IF($G12*$E12/12<($G12-SUM($Q12:BB12)),$G12*$E12/12,($G12-SUM($Q12:BB12))))) -> 0 | BD12: =IF($D12>=BD$3,0,IF(SUM($Q12:BC12)=$G12,0,IF($G12*$E12/12<($G12-SUM($Q12:BC12)),$G12*$E12/12,($G12-SUM($Q12:BC12))))) -> 0 | BE12: =IF($D12>=BE$3,0,IF(SUM($Q12:BD12)=$G12,0,IF($G12*$E12/12<($G12-SUM($Q12:BD12)),$G12*$E12/12,($G12-SUM($Q12:BD12))))) -> 0 | BF12: =IF($D12>=BF$3,0,IF(SUM($Q12:BE12)=$G12,0,IF($G12*$E12/12<($G12-SUM($Q12:BE12)),$G12*$E12/12,($G12-SUM($Q12:BE12))))) -> 0 | BG12: =IF($D12>=BG$3,0,IF(SUM($Q12:BF12)=$G12,0,IF($G12*$E12/12<($G12-SUM($Q12:BF12)),$G12*$E12/12,($G12-SUM($Q12:BF12))))) -> 0 | BH12: =IF($D12>=BH$3,0,IF(SUM($Q12:BG12)=$G12,0,IF($G12*$E12/12<($G12-SUM($Q12:BG12)),$G12*$E12/12,($G12-SUM($Q12:BG12))))) -> 0 | BI12: =IF($D12>=BI$3,0,IF(SUM($Q12:BH12)=$G12,0,IF($G12*$E12/12<($G12-SUM($Q12:BH12)),$G12*$E12/12,($G12-SUM($Q12:BH12))))) -> 0 | BJ12: =IF($D12>=BJ$3,0,IF(SUM($Q12:BI12)=$G12,0,IF($G12*$E12/12<($G12-SUM($Q12:BI12)),$G12*$E12/12,($G12-SUM($Q12:BI12))))) -> 0 | BK12: =IF($D12>=BK$3,0,IF(SUM($Q12:BJ12)=$G12,0,IF($G12*$E12/12<($G12-SUM($Q12:BJ12)),$G12*$E12/12,($G12-SUM($Q12:BJ12))))) -> 0 | BL12: =IF($D12>=BL$3,0,IF(SUM($Q12:BK12)=$G12,0,IF($G12*$E12/12<($G12-SUM($Q12:BK12)),$G12*$E12/12,($G12-SUM($Q12:BK12))))) -> 0 | BM12: =IF($D12>=BM$3,0,IF(SUM($Q12:BL12)=$G12,0,IF($G12*$E12/12<($G12-SUM($Q12:BL12)),$G12*$E12/12,($G12-SUM($Q12:BL12))))) -> 0 | BN12: =IF($D12>=BN$3,0,IF(SUM($Q12:BM12)=$G12,0,IF($G12*$E12/12<($G12-SUM($Q12:BM12)),$G12*$E12/12,($G12-SUM($Q12:BM12))))) -> 0 | BO12: =IF($D12>=BO$3,0,IF(SUM($Q12:BN12)=$G12,0,IF($G12*$E12/12<($G12-SUM($Q12:BN12)),$G12*$E12/12,($G12-SUM($Q12:BN12))))) -> 0 | BP12: =IF($D12>=BP$3,0,IF(SUM($Q12:BO12)=$G12,0,IF($G12*$E12/12<($G12-SUM($Q12:BO12)),$G12*$E12/12,($G12-SUM($Q12:BO12))))) -> 0 | BQ12: =IF($D12>=BQ$3,0,IF(SUM($Q12:BP12)=$G12,0,IF($G12*$E12/12<($G12-SUM($Q12:BP12)),$G12*$E12/12,($G12-SUM($Q12:BP12))))) -> 0 | BR12: =IF($D12>=BR$3,0,IF(SUM($Q12:BQ12)=$G12,0,IF($G12*$E12/12<($G12-SUM($Q12:BQ12)),$G12*$E12/12,($G12-SUM($Q12:BQ12))))) -> 0 | BS12: =IF($D12>=BS$3,0,IF(SUM($Q12:BR12)=$G12,0,IF($G12*$E12/12<($G12-SUM($Q12:BR12)),$G12*$E12/12,($G12-SUM($Q12:BR12))))) -> 0 | BT12: =IF($D12>=BT$3,0,IF(SUM($Q12:BS12)=$G12,0,IF($G12*$E12/12<($G12-SUM($Q12:BS12)),$G12*$E12/12,($G12-SUM($Q12:BS12))))) -> 0 | BU12: =IF($D12>=BU$3,0,IF(SUM($Q12:BT12)=$G12,0,IF($G12*$E12/12<($G12-SUM($Q12:BT12)),$G12*$E12/12,($G12-SUM($Q12:BT12))))) -> 0 | BV12: =IF($D12>=BV$3,0,IF(SUM($Q12:BU12)=$G12,0,IF($G12*$E12/12<($G12-SUM($Q12:BU12)),$G12*$E12/12,($G12-SUM($Q12:BU12))))) -> 0 | BW12: =IF($D12>=BW$3,0,IF(SUM($Q12:BV12)=$G12,0,IF($G12*$E12/12<($G12-SUM($Q12:BV12)),$G12*$E12/12,($G12-SUM($Q12:BV12))))) -> 0 | BX12: =IF($D12>=BX$3,0,IF(SUM($Q12:BW12)=$G12,0,IF($G12*$E12/12<($G12-SUM($Q12:BW12)),$G12*$E12/12,($G12-SUM($Q12:BW12))))) -> 0 | BY12: =IF($D12>=BY$3,0,IF(SUM($Q12:BX12)=$G12,0,IF($G12*$E12/12<($G12-SUM($Q12:BX12)),$G12*$E12/12,($G12-SUM($Q12:BX12))))) -> 0 | BZ12: =IF($D12>=BZ$3,0,IF(SUM($Q12:BY12)=$G12,0,IF($G12*$E12/12<($G12-SUM($Q12:BY12)),$G12*$E12/12,($G12-SUM($Q12:BY12))))) -> 0 | CA12: =IF($D12>=CA$3,0,IF(SUM($Q12:BZ12)=$G12,0,IF($G12*$E12/12<($G12-SUM($Q12:BZ12)),$G12*$E12/12,($G12-SUM($Q12:BZ12))))) -> 0 | CB12: =IF($D12>=CB$3,0,IF(SUM($Q12:CA12)=$G12,0,IF($G12*$E12/12<($G12-SUM($Q12:CA12)),$G12*$E12/12,($G12-SUM($Q12:CA12))))) -> 0 | CC12: =IF($D12>=CC$3,0,IF(SUM($Q12:CB12)=$G12,0,IF($G12*$E12/12<($G12-SUM($Q12:CB12)),$G12*$E12/12,($G12-SUM($Q12:CB12))))) -> 0 | CD12: =IF($D12>=CD$3,0,IF(SUM($Q12:CC12)=$G12,0,IF($G12*$E12/12<($G12-SUM($Q12:CC12)),$G12*$E12/12,($G12-SUM($Q12:CC12))))) -> 0 | CE12: =IF($D12>=CE$3,0,IF(SUM($Q12:CD12)=$G12,0,IF($G12*$E12/12<($G12-SUM($Q12:CD12)),$G12*$E12/12,($G12-SUM($Q12:CD12))))) -> 0 | CF12: =IF($D12>=CF$3,0,IF(SUM($Q12:CE12)=$G12,0,IF($G12*$E12/12<($G12-SUM($Q12:CE12)),$G12*$E12/12,($G12-SUM($Q12:CE12))))) -> 0 | CG12: =IF($D12>=CG$3,0,IF(SUM($Q12:CF12)=$G12,0,IF($G12*$E12/12<($G12-SUM($Q12:CF12)),$G12*$E12/12,($G12-SUM($Q12:CF12))))) -> 0 | CH12: =IF($D12>=CH$3,0,IF(SUM($Q12:CG12)=$G12,0,IF($G12*$E12/12<($G12-SUM($Q12:CG12)),$G12*$E12/12,($G12-SUM($Q12:CG12))))) -> 0 | CI12: =IF($D12>=CI$3,0,IF(SUM($Q12:CH12)=$G12,0,IF($G12*$E12/12<($G12-SUM($Q12:CH12)),$G12*$E12/12,($G12-SUM($Q12:CH12))))) -> 0 | CJ12: =IF($D12>=CJ$3,0,IF(SUM($Q12:CI12)=$G12,0,IF($G12*$E12/12<($G12-SUM($Q12:CI12)),$G12*$E12/12,($G12-SUM($Q12:CI12))))) -> 0 | CK12: =IF($D12>=CK$3,0,IF(SUM($Q12:CJ12)=$G12,0,IF($G12*$E12/12<($G12-SUM($Q12:CJ12)),$G12*$E12/12,($G12-SUM($Q12:CJ12))))) -> 0 | CL12: =IF($D12>=CL$3,0,IF(SUM($Q12:CK12)=$G12,0,IF($G12*$E12/12<($G12-SUM($Q12:CK12)),$G12*$E12/12,($G12-SUM($Q12:CK12))))) -> 0 | CM12: =IF($D12>=CM$3,0,IF(SUM($Q12:CL12)=$G12,0,IF($G12*$E12/12<($G12-SUM($Q12:CL12)),$G12*$E12/12,($G12-SUM($Q12:CL12))))) -> 0 | CN12: =IF($D12>=CN$3,0,IF(SUM($Q12:CM12)=$G12,0,IF($G12*$E12/12<($G12-SUM($Q12:CM12)),$G12*$E12/12,($G12-SUM($Q12:CM12))))) -> 0 | CO12: =IF($D12>=CO$3,0,IF(SUM($Q12:CN12)=$G12,0,IF($G12*$E12/12<($G12-SUM($Q12:CN12)),$G12*$E12/12,($G12-SUM($Q12:CN12))))) -> 0 | CP12: =IF($D12>=CP$3,0,IF(SUM($Q12:CO12)=$G12,0,IF($G12*$E12/12<($G12-SUM($Q12:CO12)),$G12*$E12/12,($G12-SUM($Q12:CO12))))) -> 0 | CQ12: =IF($D12>=CQ$3,0,IF(SUM($Q12:CP12)=$G12,0,IF($G12*$E12/12<($G12-SUM($Q12:CP12)),$G12*$E12/12,($G12-SUM($Q12:CP12))))) -> 0 | CR12: =IF($D12>=CR$3,0,IF(SUM($Q12:CQ12)=$G12,0,IF($G12*$E12/12<($G12-SUM($Q12:CQ12)),$G12*$E12/12,($G12-SUM($Q12:CQ12))))) -> 0 | CS12: =IF($D12>=CS$3,0,IF(SUM($Q12:CR12)=$G12,0,IF($G12*$E12/12<($G12-SUM($Q12:CR12)),$G12*$E12/12,($G12-SUM($Q12:CR12))))) -> 0 | CT12: =IF($D12>=CT$3,0,IF(SUM($Q12:CS12)=$G12,0,IF($G12*$E12/12<($G12-SUM($Q12:CS12)),$G12*$E12/12,($G12-SUM($Q12:CS12))))) -> 0 | CU12: =IF($D12>=CU$3,0,IF(SUM($Q12:CT12)=$G12,0,IF($G12*$E12/12<($G12-SUM($Q12:CT12)),$G12*$E12/12,($G12-SUM($Q12:CT12))))) -> 0 | CV12: =IF($D12>=CV$3,0,IF(SUM($Q12:CU12)=$G12,0,IF($G12*$E12/12<($G12-SUM($Q12:CU12)),$G12*$E12/12,($G12-SUM($Q12:CU12))))) -> 0
A13: =IF(D13<EOMONTH($D$2,-12),"Fuera de plazo",IF(D13>BALANCE!$J$3,"Fuera de plazo","")) ->  | B13: Otros | D13: 2014-10-31 | E13: 0.18 | F13: 0.21 | G13: =IF(YEAR(D13)<=YEAR($D$2),C13*RIESGO!$C$4,C13*RIESGO!$C$4*(1+CONTROL!$H$4)^(YEAR(D13)-YEAR($D$2))) -> 0 | H13: 0 | I13: 0 | J13: 0 | K13: 0 | L13: 0 | M13: 0 | N13: 0 | O13: 0 | Q13: 0 | R13: =IF($D13>=R$3,0,IF(SUM($Q13:Q13)=$G13,0,IF($G13*$E13/12<($G13-SUM($Q13:Q13)),$G13*$E13/12,($G13-SUM($Q13:Q13))))) -> 0 | S13: =IF($D13>=S$3,0,IF(SUM($Q13:R13)=$G13,0,IF($G13*$E13/12<($G13-SUM($Q13:R13)),$G13*$E13/12,($G13-SUM($Q13:R13))))) -> 0 | T13: =IF($D13>=T$3,0,IF(SUM($Q13:S13)=$G13,0,IF($G13*$E13/12<($G13-SUM($Q13:S13)),$G13*$E13/12,($G13-SUM($Q13:S13))))) -> 0 | U13: =IF($D13>=U$3,0,IF(SUM($Q13:T13)=$G13,0,IF($G13*$E13/12<($G13-SUM($Q13:T13)),$G13*$E13/12,($G13-SUM($Q13:T13))))) -> 0 | V13: =IF($D13>=V$3,0,IF(SUM($Q13:U13)=$G13,0,IF($G13*$E13/12<($G13-SUM($Q13:U13)),$G13*$E13/12,($G13-SUM($Q13:U13))))) -> 0 | W13: =IF($D13>=W$3,0,IF(SUM($Q13:V13)=$G13,0,IF($G13*$E13/12<($G13-SUM($Q13:V13)),$G13*$E13/12,($G13-SUM($Q13:V13))))) -> 0 | X13: =IF($D13>=X$3,0,IF(SUM($Q13:W13)=$G13,0,IF($G13*$E13/12<($G13-SUM($Q13:W13)),$G13*$E13/12,($G13-SUM($Q13:W13))))) -> 0 | Y13: =IF($D13>=Y$3,0,IF(SUM($Q13:X13)=$G13,0,IF($G13*$E13/12<($G13-SUM($Q13:X13)),$G13*$E13/12,($G13-SUM($Q13:X13))))) -> 0 | Z13: =IF($D13>=Z$3,0,IF(SUM($Q13:Y13)=$G13,0,IF($G13*$E13/12<($G13-SUM($Q13:Y13)),$G13*$E13/12,($G13-SUM($Q13:Y13))))) -> 0 | AA13: =IF($D13>=AA$3,0,IF(SUM($Q13:Z13)=$G13,0,IF($G13*$E13/12<($G13-SUM($Q13:Z13)),$G13*$E13/12,($G13-SUM($Q13:Z13))))) -> 0 | AB13: =IF($D13>=AB$3,0,IF(SUM($Q13:AA13)=$G13,0,IF($G13*$E13/12<($G13-SUM($Q13:AA13)),$G13*$E13/12,($G13-SUM($Q13:AA13))))) -> 0 | AC13: =IF($D13>=AC$3,0,IF(SUM($Q13:AB13)=$G13,0,IF($G13*$E13/12<($G13-SUM($Q13:AB13)),$G13*$E13/12,($G13-SUM($Q13:AB13))))) -> 0 | AD13: =IF($D13>=AD$3,0,IF(SUM($Q13:AC13)=$G13,0,IF($G13*$E13/12<($G13-SUM($Q13:AC13)),$G13*$E13/12,($G13-SUM($Q13:AC13))))) -> 0 | AE13: =IF($D13>=AE$3,0,IF(SUM($Q13:AD13)=$G13,0,IF($G13*$E13/12<($G13-SUM($Q13:AD13)),$G13*$E13/12,($G13-SUM($Q13:AD13))))) -> 0 | AF13: =IF($D13>=AF$3,0,IF(SUM($Q13:AE13)=$G13,0,IF($G13*$E13/12<($G13-SUM($Q13:AE13)),$G13*$E13/12,($G13-SUM($Q13:AE13))))) -> 0 | AG13: =IF($D13>=AG$3,0,IF(SUM($Q13:AF13)=$G13,0,IF($G13*$E13/12<($G13-SUM($Q13:AF13)),$G13*$E13/12,($G13-SUM($Q13:AF13))))) -> 0 | AH13: =IF($D13>=AH$3,0,IF(SUM($Q13:AG13)=$G13,0,IF($G13*$E13/12<($G13-SUM($Q13:AG13)),$G13*$E13/12,($G13-SUM($Q13:AG13))))) -> 0 | AI13: =IF($D13>=AI$3,0,IF(SUM($Q13:AH13)=$G13,0,IF($G13*$E13/12<($G13-SUM($Q13:AH13)),$G13*$E13/12,($G13-SUM($Q13:AH13))))) -> 0 | AJ13: =IF($D13>=AJ$3,0,IF(SUM($Q13:AI13)=$G13,0,IF($G13*$E13/12<($G13-SUM($Q13:AI13)),$G13*$E13/12,($G13-SUM($Q13:AI13))))) -> 0 | AK13: =IF($D13>=AK$3,0,IF(SUM($Q13:AJ13)=$G13,0,IF($G13*$E13/12<($G13-SUM($Q13:AJ13)),$G13*$E13/12,($G13-SUM($Q13:AJ13))))) -> 0 | AL13: =IF($D13>=AL$3,0,IF(SUM($Q13:AK13)=$G13,0,IF($G13*$E13/12<($G13-SUM($Q13:AK13)),$G13*$E13/12,($G13-SUM($Q13:AK13))))) -> 0 | AM13: =IF($D13>=AM$3,0,IF(SUM($Q13:AL13)=$G13,0,IF($G13*$E13/12<($G13-SUM($Q13:AL13)),$G13*$E13/12,($G13-SUM($Q13:AL13))))) -> 0 | AN13: =IF($D13>=AN$3,0,IF(SUM($Q13:AM13)=$G13,0,IF($G13*$E13/12<($G13-SUM($Q13:AM13)),$G13*$E13/12,($G13-SUM($Q13:AM13))))) -> 0 | AO13: =IF($D13>=AO$3,0,IF(SUM($Q13:AN13)=$G13,0,IF($G13*$E13/12<($G13-SUM($Q13:AN13)),$G13*$E13/12,($G13-SUM($Q13:AN13))))) -> 0 | AP13: =IF($D13>=AP$3,0,IF(SUM($Q13:AO13)=$G13,0,IF($G13*$E13/12<($G13-SUM($Q13:AO13)),$G13*$E13/12,($G13-SUM($Q13:AO13))))) -> 0 | AQ13: =IF($D13>=AQ$3,0,IF(SUM($Q13:AP13)=$G13,0,IF($G13*$E13/12<($G13-SUM($Q13:AP13)),$G13*$E13/12,($G13-SUM($Q13:AP13))))) -> 0 | AR13: =IF($D13>=AR$3,0,IF(SUM($Q13:AQ13)=$G13,0,IF($G13*$E13/12<($G13-SUM($Q13:AQ13)),$G13*$E13/12,($G13-SUM($Q13:AQ13))))) -> 0 | AS13: =IF($D13>=AS$3,0,IF(SUM($Q13:AR13)=$G13,0,IF($G13*$E13/12<($G13-SUM($Q13:AR13)),$G13*$E13/12,($G13-SUM($Q13:AR13))))) -> 0 | AT13: =IF($D13>=AT$3,0,IF(SUM($Q13:AS13)=$G13,0,IF($G13*$E13/12<($G13-SUM($Q13:AS13)),$G13*$E13/12,($G13-SUM($Q13:AS13))))) -> 0 | AU13: =IF($D13>=AU$3,0,IF(SUM($Q13:AT13)=$G13,0,IF($G13*$E13/12<($G13-SUM($Q13:AT13)),$G13*$E13/12,($G13-SUM($Q13:AT13))))) -> 0 | AV13: =IF($D13>=AV$3,0,IF(SUM($Q13:AU13)=$G13,0,IF($G13*$E13/12<($G13-SUM($Q13:AU13)),$G13*$E13/12,($G13-SUM($Q13:AU13))))) -> 0 | AW13: =IF($D13>=AW$3,0,IF(SUM($Q13:AV13)=$G13,0,IF($G13*$E13/12<($G13-SUM($Q13:AV13)),$G13*$E13/12,($G13-SUM($Q13:AV13))))) -> 0 | AX13: =IF($D13>=AX$3,0,IF(SUM($Q13:AW13)=$G13,0,IF($G13*$E13/12<($G13-SUM($Q13:AW13)),$G13*$E13/12,($G13-SUM($Q13:AW13))))) -> 0 | AY13: =IF($D13>=AY$3,0,IF(SUM($Q13:AX13)=$G13,0,IF($G13*$E13/12<($G13-SUM($Q13:AX13)),$G13*$E13/12,($G13-SUM($Q13:AX13))))) -> 0 | AZ13: =IF($D13>=AZ$3,0,IF(SUM($Q13:AY13)=$G13,0,IF($G13*$E13/12<($G13-SUM($Q13:AY13)),$G13*$E13/12,($G13-SUM($Q13:AY13))))) -> 0 | BA13: =IF($D13>=BA$3,0,IF(SUM($Q13:AZ13)=$G13,0,IF($G13*$E13/12<($G13-SUM($Q13:AZ13)),$G13*$E13/12,($G13-SUM($Q13:AZ13))))) -> 0 | BB13: =IF($D13>=BB$3,0,IF(SUM($Q13:BA13)=$G13,0,IF($G13*$E13/12<($G13-SUM($Q13:BA13)),$G13*$E13/12,($G13-SUM($Q13:BA13))))) -> 0 | BC13: =IF($D13>=BC$3,0,IF(SUM($Q13:BB13)=$G13,0,IF($G13*$E13/12<($G13-SUM($Q13:BB13)),$G13*$E13/12,($G13-SUM($Q13:BB13))))) -> 0 | BD13: =IF($D13>=BD$3,0,IF(SUM($Q13:BC13)=$G13,0,IF($G13*$E13/12<($G13-SUM($Q13:BC13)),$G13*$E13/12,($G13-SUM($Q13:BC13))))) -> 0 | BE13: =IF($D13>=BE$3,0,IF(SUM($Q13:BD13)=$G13,0,IF($G13*$E13/12<($G13-SUM($Q13:BD13)),$G13*$E13/12,($G13-SUM($Q13:BD13))))) -> 0 | BF13: =IF($D13>=BF$3,0,IF(SUM($Q13:BE13)=$G13,0,IF($G13*$E13/12<($G13-SUM($Q13:BE13)),$G13*$E13/12,($G13-SUM($Q13:BE13))))) -> 0 | BG13: =IF($D13>=BG$3,0,IF(SUM($Q13:BF13)=$G13,0,IF($G13*$E13/12<($G13-SUM($Q13:BF13)),$G13*$E13/12,($G13-SUM($Q13:BF13))))) -> 0 | BH13: =IF($D13>=BH$3,0,IF(SUM($Q13:BG13)=$G13,0,IF($G13*$E13/12<($G13-SUM($Q13:BG13)),$G13*$E13/12,($G13-SUM($Q13:BG13))))) -> 0 | BI13: =IF($D13>=BI$3,0,IF(SUM($Q13:BH13)=$G13,0,IF($G13*$E13/12<($G13-SUM($Q13:BH13)),$G13*$E13/12,($G13-SUM($Q13:BH13))))) -> 0 | BJ13: =IF($D13>=BJ$3,0,IF(SUM($Q13:BI13)=$G13,0,IF($G13*$E13/12<($G13-SUM($Q13:BI13)),$G13*$E13/12,($G13-SUM($Q13:BI13))))) -> 0 | BK13: =IF($D13>=BK$3,0,IF(SUM($Q13:BJ13)=$G13,0,IF($G13*$E13/12<($G13-SUM($Q13:BJ13)),$G13*$E13/12,($G13-SUM($Q13:BJ13))))) -> 0 | BL13: =IF($D13>=BL$3,0,IF(SUM($Q13:BK13)=$G13,0,IF($G13*$E13/12<($G13-SUM($Q13:BK13)),$G13*$E13/12,($G13-SUM($Q13:BK13))))) -> 0 | BM13: =IF($D13>=BM$3,0,IF(SUM($Q13:BL13)=$G13,0,IF($G13*$E13/12<($G13-SUM($Q13:BL13)),$G13*$E13/12,($G13-SUM($Q13:BL13))))) -> 0 | BN13: =IF($D13>=BN$3,0,IF(SUM($Q13:BM13)=$G13,0,IF($G13*$E13/12<($G13-SUM($Q13:BM13)),$G13*$E13/12,($G13-SUM($Q13:BM13))))) -> 0 | BO13: =IF($D13>=BO$3,0,IF(SUM($Q13:BN13)=$G13,0,IF($G13*$E13/12<($G13-SUM($Q13:BN13)),$G13*$E13/12,($G13-SUM($Q13:BN13))))) -> 0 | BP13: =IF($D13>=BP$3,0,IF(SUM($Q13:BO13)=$G13,0,IF($G13*$E13/12<($G13-SUM($Q13:BO13)),$G13*$E13/12,($G13-SUM($Q13:BO13))))) -> 0 | BQ13: =IF($D13>=BQ$3,0,IF(SUM($Q13:BP13)=$G13,0,IF($G13*$E13/12<($G13-SUM($Q13:BP13)),$G13*$E13/12,($G13-SUM($Q13:BP13))))) -> 0 | BR13: =IF($D13>=BR$3,0,IF(SUM($Q13:BQ13)=$G13,0,IF($G13*$E13/12<($G13-SUM($Q13:BQ13)),$G13*$E13/12,($G13-SUM($Q13:BQ13))))) -> 0 | BS13: =IF($D13>=BS$3,0,IF(SUM($Q13:BR13)=$G13,0,IF($G13*$E13/12<($G13-SUM($Q13:BR13)),$G13*$E13/12,($G13-SUM($Q13:BR13))))) -> 0 | BT13: =IF($D13>=BT$3,0,IF(SUM($Q13:BS13)=$G13,0,IF($G13*$E13/12<($G13-SUM($Q13:BS13)),$G13*$E13/12,($G13-SUM($Q13:BS13))))) -> 0 | BU13: =IF($D13>=BU$3,0,IF(SUM($Q13:BT13)=$G13,0,IF($G13*$E13/12<($G13-SUM($Q13:BT13)),$G13*$E13/12,($G13-SUM($Q13:BT13))))) -> 0 | BV13: =IF($D13>=BV$3,0,IF(SUM($Q13:BU13)=$G13,0,IF($G13*$E13/12<($G13-SUM($Q13:BU13)),$G13*$E13/12,($G13-SUM($Q13:BU13))))) -> 0 | BW13: =IF($D13>=BW$3,0,IF(SUM($Q13:BV13)=$G13,0,IF($G13*$E13/12<($G13-SUM($Q13:BV13)),$G13*$E13/12,($G13-SUM($Q13:BV13))))) -> 0 | BX13: =IF($D13>=BX$3,0,IF(SUM($Q13:BW13)=$G13,0,IF($G13*$E13/12<($G13-SUM($Q13:BW13)),$G13*$E13/12,($G13-SUM($Q13:BW13))))) -> 0 | BY13: =IF($D13>=BY$3,0,IF(SUM($Q13:BX13)=$G13,0,IF($G13*$E13/12<($G13-SUM($Q13:BX13)),$G13*$E13/12,($G13-SUM($Q13:BX13))))) -> 0 | BZ13: =IF($D13>=BZ$3,0,IF(SUM($Q13:BY13)=$G13,0,IF($G13*$E13/12<($G13-SUM($Q13:BY13)),$G13*$E13/12,($G13-SUM($Q13:BY13))))) -> 0 | CA13: =IF($D13>=CA$3,0,IF(SUM($Q13:BZ13)=$G13,0,IF($G13*$E13/12<($G13-SUM($Q13:BZ13)),$G13*$E13/12,($G13-SUM($Q13:BZ13))))) -> 0 | CB13: =IF($D13>=CB$3,0,IF(SUM($Q13:CA13)=$G13,0,IF($G13*$E13/12<($G13-SUM($Q13:CA13)),$G13*$E13/12,($G13-SUM($Q13:CA13))))) -> 0 | CC13: =IF($D13>=CC$3,0,IF(SUM($Q13:CB13)=$G13,0,IF($G13*$E13/12<($G13-SUM($Q13:CB13)),$G13*$E13/12,($G13-SUM($Q13:CB13))))) -> 0 | CD13: =IF($D13>=CD$3,0,IF(SUM($Q13:CC13)=$G13,0,IF($G13*$E13/12<($G13-SUM($Q13:CC13)),$G13*$E13/12,($G13-SUM($Q13:CC13))))) -> 0 | CE13: =IF($D13>=CE$3,0,IF(SUM($Q13:CD13)=$G13,0,IF($G13*$E13/12<($G13-SUM($Q13:CD13)),$G13*$E13/12,($G13-SUM($Q13:CD13))))) -> 0 | CF13: =IF($D13>=CF$3,0,IF(SUM($Q13:CE13)=$G13,0,IF($G13*$E13/12<($G13-SUM($Q13:CE13)),$G13*$E13/12,($G13-SUM($Q13:CE13))))) -> 0 | CG13: =IF($D13>=CG$3,0,IF(SUM($Q13:CF13)=$G13,0,IF($G13*$E13/12<($G13-SUM($Q13:CF13)),$G13*$E13/12,($G13-SUM($Q13:CF13))))) -> 0 | CH13: =IF($D13>=CH$3,0,IF(SUM($Q13:CG13)=$G13,0,IF($G13*$E13/12<($G13-SUM($Q13:CG13)),$G13*$E13/12,($G13-SUM($Q13:CG13))))) -> 0 | CI13: =IF($D13>=CI$3,0,IF(SUM($Q13:CH13)=$G13,0,IF($G13*$E13/12<($G13-SUM($Q13:CH13)),$G13*$E13/12,($G13-SUM($Q13:CH13))))) -> 0 | CJ13: =IF($D13>=CJ$3,0,IF(SUM($Q13:CI13)=$G13,0,IF($G13*$E13/12<($G13-SUM($Q13:CI13)),$G13*$E13/12,($G13-SUM($Q13:CI13))))) -> 0 | CK13: =IF($D13>=CK$3,0,IF(SUM($Q13:CJ13)=$G13,0,IF($G13*$E13/12<($G13-SUM($Q13:CJ13)),$G13*$E13/12,($G13-SUM($Q13:CJ13))))) -> 0 | CL13: =IF($D13>=CL$3,0,IF(SUM($Q13:CK13)=$G13,0,IF($G13*$E13/12<($G13-SUM($Q13:CK13)),$G13*$E13/12,($G13-SUM($Q13:CK13))))) -> 0 | CM13: =IF($D13>=CM$3,0,IF(SUM($Q13:CL13)=$G13,0,IF($G13*$E13/12<($G13-SUM($Q13:CL13)),$G13*$E13/12,($G13-SUM($Q13:CL13))))) -> 0 | CN13: =IF($D13>=CN$3,0,IF(SUM($Q13:CM13)=$G13,0,IF($G13*$E13/12<($G13-SUM($Q13:CM13)),$G13*$E13/12,($G13-SUM($Q13:CM13))))) -> 0 | CO13: =IF($D13>=CO$3,0,IF(SUM($Q13:CN13)=$G13,0,IF($G13*$E13/12<($G13-SUM($Q13:CN13)),$G13*$E13/12,($G13-SUM($Q13:CN13))))) -> 0 | CP13: =IF($D13>=CP$3,0,IF(SUM($Q13:CO13)=$G13,0,IF($G13*$E13/12<($G13-SUM($Q13:CO13)),$G13*$E13/12,($G13-SUM($Q13:CO13))))) -> 0 | CQ13: =IF($D13>=CQ$3,0,IF(SUM($Q13:CP13)=$G13,0,IF($G13*$E13/12<($G13-SUM($Q13:CP13)),$G13*$E13/12,($G13-SUM($Q13:CP13))))) -> 0 | CR13: =IF($D13>=CR$3,0,IF(SUM($Q13:CQ13)=$G13,0,IF($G13*$E13/12<($G13-SUM($Q13:CQ13)),$G13*$E13/12,($G13-SUM($Q13:CQ13))))) -> 0 | CS13: =IF($D13>=CS$3,0,IF(SUM($Q13:CR13)=$G13,0,IF($G13*$E13/12<($G13-SUM($Q13:CR13)),$G13*$E13/12,($G13-SUM($Q13:CR13))))) -> 0 | CT13: =IF($D13>=CT$3,0,IF(SUM($Q13:CS13)=$G13,0,IF($G13*$E13/12<($G13-SUM($Q13:CS13)),$G13*$E13/12,($G13-SUM($Q13:CS13))))) -> 0 | CU13: =IF($D13>=CU$3,0,IF(SUM($Q13:CT13)=$G13,0,IF($G13*$E13/12<($G13-SUM($Q13:CT13)),$G13*$E13/12,($G13-SUM($Q13:CT13))))) -> 0 | CV13: =IF($D13>=CV$3,0,IF(SUM($Q13:CU13)=$G13,0,IF($G13*$E13/12<($G13-SUM($Q13:CU13)),$G13*$E13/12,($G13-SUM($Q13:CU13))))) -> 0
A14: =IF(D14<EOMONTH($D$2,-12),"Fuera de plazo",IF(D14>BALANCE!$J$3,"Fuera de plazo","")) ->  | B14: Otros | D14: 2016-03-31 | E14: 0.12 | F14: 0.21 | G14: =IF(YEAR(D14)<=YEAR($D$2),C14*RIESGO!$C$4,C14*RIESGO!$C$4*(1+CONTROL!$H$4)^(YEAR(D14)-YEAR($D$2))) -> 0 | H14: =G14*F14 -> 0 | I14: 0 | J14: 0 | K14: 0 | L14: 0 | M14: 0 | N14: 0 | O14: 0 | Q14: 0 | R14: =IF($D14>=R$3,0,IF(SUM($Q14:Q14)=$G14,0,IF($G14*$E14/12<($G14-SUM($Q14:Q14)),$G14*$E14/12,($G14-SUM($Q14:Q14))))) -> 0 | S14: =IF($D14>=S$3,0,IF(SUM($Q14:R14)=$G14,0,IF($G14*$E14/12<($G14-SUM($Q14:R14)),$G14*$E14/12,($G14-SUM($Q14:R14))))) -> 0 | T14: =IF($D14>=T$3,0,IF(SUM($Q14:S14)=$G14,0,IF($G14*$E14/12<($G14-SUM($Q14:S14)),$G14*$E14/12,($G14-SUM($Q14:S14))))) -> 0 | U14: =IF($D14>=U$3,0,IF(SUM($Q14:T14)=$G14,0,IF($G14*$E14/12<($G14-SUM($Q14:T14)),$G14*$E14/12,($G14-SUM($Q14:T14))))) -> 0 | V14: =IF($D14>=V$3,0,IF(SUM($Q14:U14)=$G14,0,IF($G14*$E14/12<($G14-SUM($Q14:U14)),$G14*$E14/12,($G14-SUM($Q14:U14))))) -> 0 | W14: =IF($D14>=W$3,0,IF(SUM($Q14:V14)=$G14,0,IF($G14*$E14/12<($G14-SUM($Q14:V14)),$G14*$E14/12,($G14-SUM($Q14:V14))))) -> 0 | X14: =IF($D14>=X$3,0,IF(SUM($Q14:W14)=$G14,0,IF($G14*$E14/12<($G14-SUM($Q14:W14)),$G14*$E14/12,($G14-SUM($Q14:W14))))) -> 0 | Y14: =IF($D14>=Y$3,0,IF(SUM($Q14:X14)=$G14,0,IF($G14*$E14/12<($G14-SUM($Q14:X14)),$G14*$E14/12,($G14-SUM($Q14:X14))))) -> 0 | Z14: =IF($D14>=Z$3,0,IF(SUM($Q14:Y14)=$G14,0,IF($G14*$E14/12<($G14-SUM($Q14:Y14)),$G14*$E14/12,($G14-SUM($Q14:Y14))))) -> 0 | AA14: =IF($D14>=AA$3,0,IF(SUM($Q14:Z14)=$G14,0,IF($G14*$E14/12<($G14-SUM($Q14:Z14)),$G14*$E14/12,($G14-SUM($Q14:Z14))))) -> 0 | AB14: =IF($D14>=AB$3,0,IF(SUM($Q14:AA14)=$G14,0,IF($G14*$E14/12<($G14-SUM($Q14:AA14)),$G14*$E14/12,($G14-SUM($Q14:AA14))))) -> 0 | AC14: =IF($D14>=AC$3,0,IF(SUM($Q14:AB14)=$G14,0,IF($G14*$E14/12<($G14-SUM($Q14:AB14)),$G14*$E14/12,($G14-SUM($Q14:AB14))))) -> 0 | AD14: =IF($D14>=AD$3,0,IF(SUM($Q14:AC14)=$G14,0,IF($G14*$E14/12<($G14-SUM($Q14:AC14)),$G14*$E14/12,($G14-SUM($Q14:AC14))))) -> 0 | AE14: =IF($D14>=AE$3,0,IF(SUM($Q14:AD14)=$G14,0,IF($G14*$E14/12<($G14-SUM($Q14:AD14)),$G14*$E14/12,($G14-SUM($Q14:AD14))))) -> 0 | AF14: =IF($D14>=AF$3,0,IF(SUM($Q14:AE14)=$G14,0,IF($G14*$E14/12<($G14-SUM($Q14:AE14)),$G14*$E14/12,($G14-SUM($Q14:AE14))))) -> 0 | AG14: =IF($D14>=AG$3,0,IF(SUM($Q14:AF14)=$G14,0,IF($G14*$E14/12<($G14-SUM($Q14:AF14)),$G14*$E14/12,($G14-SUM($Q14:AF14))))) -> 0 | AH14: =IF($D14>=AH$3,0,IF(SUM($Q14:AG14)=$G14,0,IF($G14*$E14/12<($G14-SUM($Q14:AG14)),$G14*$E14/12,($G14-SUM($Q14:AG14))))) -> 0 | AI14: =IF($D14>=AI$3,0,IF(SUM($Q14:AH14)=$G14,0,IF($G14*$E14/12<($G14-SUM($Q14:AH14)),$G14*$E14/12,($G14-SUM($Q14:AH14))))) -> 0 | AJ14: =IF($D14>=AJ$3,0,IF(SUM($Q14:AI14)=$G14,0,IF($G14*$E14/12<($G14-SUM($Q14:AI14)),$G14*$E14/12,($G14-SUM($Q14:AI14))))) -> 0 | AK14: =IF($D14>=AK$3,0,IF(SUM($Q14:AJ14)=$G14,0,IF($G14*$E14/12<($G14-SUM($Q14:AJ14)),$G14*$E14/12,($G14-SUM($Q14:AJ14))))) -> 0 | AL14: =IF($D14>=AL$3,0,IF(SUM($Q14:AK14)=$G14,0,IF($G14*$E14/12<($G14-SUM($Q14:AK14)),$G14*$E14/12,($G14-SUM($Q14:AK14))))) -> 0 | AM14: =IF($D14>=AM$3,0,IF(SUM($Q14:AL14)=$G14,0,IF($G14*$E14/12<($G14-SUM($Q14:AL14)),$G14*$E14/12,($G14-SUM($Q14:AL14))))) -> 0 | AN14: =IF($D14>=AN$3,0,IF(SUM($Q14:AM14)=$G14,0,IF($G14*$E14/12<($G14-SUM($Q14:AM14)),$G14*$E14/12,($G14-SUM($Q14:AM14))))) -> 0 | AO14: =IF($D14>=AO$3,0,IF(SUM($Q14:AN14)=$G14,0,IF($G14*$E14/12<($G14-SUM($Q14:AN14)),$G14*$E14/12,($G14-SUM($Q14:AN14))))) -> 0 | AP14: =IF($D14>=AP$3,0,IF(SUM($Q14:AO14)=$G14,0,IF($G14*$E14/12<($G14-SUM($Q14:AO14)),$G14*$E14/12,($G14-SUM($Q14:AO14))))) -> 0 | AQ14: =IF($D14>=AQ$3,0,IF(SUM($Q14:AP14)=$G14,0,IF($G14*$E14/12<($G14-SUM($Q14:AP14)),$G14*$E14/12,($G14-SUM($Q14:AP14))))) -> 0 | AR14: =IF($D14>=AR$3,0,IF(SUM($Q14:AQ14)=$G14,0,IF($G14*$E14/12<($G14-SUM($Q14:AQ14)),$G14*$E14/12,($G14-SUM($Q14:AQ14))))) -> 0 | AS14: =IF($D14>=AS$3,0,IF(SUM($Q14:AR14)=$G14,0,IF($G14*$E14/12<($G14-SUM($Q14:AR14)),$G14*$E14/12,($G14-SUM($Q14:AR14))))) -> 0 | AT14: =IF($D14>=AT$3,0,IF(SUM($Q14:AS14)=$G14,0,IF($G14*$E14/12<($G14-SUM($Q14:AS14)),$G14*$E14/12,($G14-SUM($Q14:AS14))))) -> 0 | AU14: =IF($D14>=AU$3,0,IF(SUM($Q14:AT14)=$G14,0,IF($G14*$E14/12<($G14-SUM($Q14:AT14)),$G14*$E14/12,($G14-SUM($Q14:AT14))))) -> 0 | AV14: =IF($D14>=AV$3,0,IF(SUM($Q14:AU14)=$G14,0,IF($G14*$E14/12<($G14-SUM($Q14:AU14)),$G14*$E14/12,($G14-SUM($Q14:AU14))))) -> 0 | AW14: =IF($D14>=AW$3,0,IF(SUM($Q14:AV14)=$G14,0,IF($G14*$E14/12<($G14-SUM($Q14:AV14)),$G14*$E14/12,($G14-SUM($Q14:AV14))))) -> 0 | AX14: =IF($D14>=AX$3,0,IF(SUM($Q14:AW14)=$G14,0,IF($G14*$E14/12<($G14-SUM($Q14:AW14)),$G14*$E14/12,($G14-SUM($Q14:AW14))))) -> 0 | AY14: =IF($D14>=AY$3,0,IF(SUM($Q14:AX14)=$G14,0,IF($G14*$E14/12<($G14-SUM($Q14:AX14)),$G14*$E14/12,($G14-SUM($Q14:AX14))))) -> 0 | AZ14: =IF($D14>=AZ$3,0,IF(SUM($Q14:AY14)=$G14,0,IF($G14*$E14/12<($G14-SUM($Q14:AY14)),$G14*$E14/12,($G14-SUM($Q14:AY14))))) -> 0 | BA14: =IF($D14>=BA$3,0,IF(SUM($Q14:AZ14)=$G14,0,IF($G14*$E14/12<($G14-SUM($Q14:AZ14)),$G14*$E14/12,($G14-SUM($Q14:AZ14))))) -> 0 | BB14: =IF($D14>=BB$3,0,IF(SUM($Q14:BA14)=$G14,0,IF($G14*$E14/12<($G14-SUM($Q14:BA14)),$G14*$E14/12,($G14-SUM($Q14:BA14))))) -> 0 | BC14: =IF($D14>=BC$3,0,IF(SUM($Q14:BB14)=$G14,0,IF($G14*$E14/12<($G14-SUM($Q14:BB14)),$G14*$E14/12,($G14-SUM($Q14:BB14))))) -> 0 | BD14: =IF($D14>=BD$3,0,IF(SUM($Q14:BC14)=$G14,0,IF($G14*$E14/12<($G14-SUM($Q14:BC14)),$G14*$E14/12,($G14-SUM($Q14:BC14))))) -> 0 | BE14: =IF($D14>=BE$3,0,IF(SUM($Q14:BD14)=$G14,0,IF($G14*$E14/12<($G14-SUM($Q14:BD14)),$G14*$E14/12,($G14-SUM($Q14:BD14))))) -> 0 | BF14: =IF($D14>=BF$3,0,IF(SUM($Q14:BE14)=$G14,0,IF($G14*$E14/12<($G14-SUM($Q14:BE14)),$G14*$E14/12,($G14-SUM($Q14:BE14))))) -> 0 | BG14: =IF($D14>=BG$3,0,IF(SUM($Q14:BF14)=$G14,0,IF($G14*$E14/12<($G14-SUM($Q14:BF14)),$G14*$E14/12,($G14-SUM($Q14:BF14))))) -> 0 | BH14: =IF($D14>=BH$3,0,IF(SUM($Q14:BG14)=$G14,0,IF($G14*$E14/12<($G14-SUM($Q14:BG14)),$G14*$E14/12,($G14-SUM($Q14:BG14))))) -> 0 | BI14: =IF($D14>=BI$3,0,IF(SUM($Q14:BH14)=$G14,0,IF($G14*$E14/12<($G14-SUM($Q14:BH14)),$G14*$E14/12,($G14-SUM($Q14:BH14))))) -> 0 | BJ14: =IF($D14>=BJ$3,0,IF(SUM($Q14:BI14)=$G14,0,IF($G14*$E14/12<($G14-SUM($Q14:BI14)),$G14*$E14/12,($G14-SUM($Q14:BI14))))) -> 0 | BK14: =IF($D14>=BK$3,0,IF(SUM($Q14:BJ14)=$G14,0,IF($G14*$E14/12<($G14-SUM($Q14:BJ14)),$G14*$E14/12,($G14-SUM($Q14:BJ14))))) -> 0 | BL14: =IF($D14>=BL$3,0,IF(SUM($Q14:BK14)=$G14,0,IF($G14*$E14/12<($G14-SUM($Q14:BK14)),$G14*$E14/12,($G14-SUM($Q14:BK14))))) -> 0 | BM14: =IF($D14>=BM$3,0,IF(SUM($Q14:BL14)=$G14,0,IF($G14*$E14/12<($G14-SUM($Q14:BL14)),$G14*$E14/12,($G14-SUM($Q14:BL14))))) -> 0 | BN14: =IF($D14>=BN$3,0,IF(SUM($Q14:BM14)=$G14,0,IF($G14*$E14/12<($G14-SUM($Q14:BM14)),$G14*$E14/12,($G14-SUM($Q14:BM14))))) -> 0 | BO14: =IF($D14>=BO$3,0,IF(SUM($Q14:BN14)=$G14,0,IF($G14*$E14/12<($G14-SUM($Q14:BN14)),$G14*$E14/12,($G14-SUM($Q14:BN14))))) -> 0 | BP14: =IF($D14>=BP$3,0,IF(SUM($Q14:BO14)=$G14,0,IF($G14*$E14/12<($G14-SUM($Q14:BO14)),$G14*$E14/12,($G14-SUM($Q14:BO14))))) -> 0 | BQ14: =IF($D14>=BQ$3,0,IF(SUM($Q14:BP14)=$G14,0,IF($G14*$E14/12<($G14-SUM($Q14:BP14)),$G14*$E14/12,($G14-SUM($Q14:BP14))))) -> 0 | BR14: =IF($D14>=BR$3,0,IF(SUM($Q14:BQ14)=$G14,0,IF($G14*$E14/12<($G14-SUM($Q14:BQ14)),$G14*$E14/12,($G14-SUM($Q14:BQ14))))) -> 0 | BS14: =IF($D14>=BS$3,0,IF(SUM($Q14:BR14)=$G14,0,IF($G14*$E14/12<($G14-SUM($Q14:BR14)),$G14*$E14/12,($G14-SUM($Q14:BR14))))) -> 0 | BT14: =IF($D14>=BT$3,0,IF(SUM($Q14:BS14)=$G14,0,IF($G14*$E14/12<($G14-SUM($Q14:BS14)),$G14*$E14/12,($G14-SUM($Q14:BS14))))) -> 0 | BU14: =IF($D14>=BU$3,0,IF(SUM($Q14:BT14)=$G14,0,IF($G14*$E14/12<($G14-SUM($Q14:BT14)),$G14*$E14/12,($G14-SUM($Q14:BT14))))) -> 0 | BV14: =IF($D14>=BV$3,0,IF(SUM($Q14:BU14)=$G14,0,IF($G14*$E14/12<($G14-SUM($Q14:BU14)),$G14*$E14/12,($G14-SUM($Q14:BU14))))) -> 0 | BW14: =IF($D14>=BW$3,0,IF(SUM($Q14:BV14)=$G14,0,IF($G14*$E14/12<($G14-SUM($Q14:BV14)),$G14*$E14/12,($G14-SUM($Q14:BV14))))) -> 0 | BX14: =IF($D14>=BX$3,0,IF(SUM($Q14:BW14)=$G14,0,IF($G14*$E14/12<($G14-SUM($Q14:BW14)),$G14*$E14/12,($G14-SUM($Q14:BW14))))) -> 0 | BY14: =IF($D14>=BY$3,0,IF(SUM($Q14:BX14)=$G14,0,IF($G14*$E14/12<($G14-SUM($Q14:BX14)),$G14*$E14/12,($G14-SUM($Q14:BX14))))) -> 0 | BZ14: =IF($D14>=BZ$3,0,IF(SUM($Q14:BY14)=$G14,0,IF($G14*$E14/12<($G14-SUM($Q14:BY14)),$G14*$E14/12,($G14-SUM($Q14:BY14))))) -> 0 | CA14: =IF($D14>=CA$3,0,IF(SUM($Q14:BZ14)=$G14,0,IF($G14*$E14/12<($G14-SUM($Q14:BZ14)),$G14*$E14/12,($G14-SUM($Q14:BZ14))))) -> 0 | CB14: =IF($D14>=CB$3,0,IF(SUM($Q14:CA14)=$G14,0,IF($G14*$E14/12<($G14-SUM($Q14:CA14)),$G14*$E14/12,($G14-SUM($Q14:CA14))))) -> 0 | CC14: =IF($D14>=CC$3,0,IF(SUM($Q14:CB14)=$G14,0,IF($G14*$E14/12<($G14-SUM($Q14:CB14)),$G14*$E14/12,($G14-SUM($Q14:CB14))))) -> 0 | CD14: =IF($D14>=CD$3,0,IF(SUM($Q14:CC14)=$G14,0,IF($G14*$E14/12<($G14-SUM($Q14:CC14)),$G14*$E14/12,($G14-SUM($Q14:CC14))))) -> 0 | CE14: =IF($D14>=CE$3,0,IF(SUM($Q14:CD14)=$G14,0,IF($G14*$E14/12<($G14-SUM($Q14:CD14)),$G14*$E14/12,($G14-SUM($Q14:CD14))))) -> 0 | CF14: =IF($D14>=CF$3,0,IF(SUM($Q14:CE14)=$G14,0,IF($G14*$E14/12<($G14-SUM($Q14:CE14)),$G14*$E14/12,($G14-SUM($Q14:CE14))))) -> 0 | CG14: =IF($D14>=CG$3,0,IF(SUM($Q14:CF14)=$G14,0,IF($G14*$E14/12<($G14-SUM($Q14:CF14)),$G14*$E14/12,($G14-SUM($Q14:CF14))))) -> 0 | CH14: =IF($D14>=CH$3,0,IF(SUM($Q14:CG14)=$G14,0,IF($G14*$E14/12<($G14-SUM($Q14:CG14)),$G14*$E14/12,($G14-SUM($Q14:CG14))))) -> 0 | CI14: =IF($D14>=CI$3,0,IF(SUM($Q14:CH14)=$G14,0,IF($G14*$E14/12<($G14-SUM($Q14:CH14)),$G14*$E14/12,($G14-SUM($Q14:CH14))))) -> 0 | CJ14: =IF($D14>=CJ$3,0,IF(SUM($Q14:CI14)=$G14,0,IF($G14*$E14/12<($G14-SUM($Q14:CI14)),$G14*$E14/12,($G14-SUM($Q14:CI14))))) -> 0 | CK14: =IF($D14>=CK$3,0,IF(SUM($Q14:CJ14)=$G14,0,IF($G14*$E14/12<($G14-SUM($Q14:CJ14)),$G14*$E14/12,($G14-SUM($Q14:CJ14))))) -> 0 | CL14: =IF($D14>=CL$3,0,IF(SUM($Q14:CK14)=$G14,0,IF($G14*$E14/12<($G14-SUM($Q14:CK14)),$G14*$E14/12,($G14-SUM($Q14:CK14))))) -> 0 | CM14: =IF($D14>=CM$3,0,IF(SUM($Q14:CL14)=$G14,0,IF($G14*$E14/12<($G14-SUM($Q14:CL14)),$G14*$E14/12,($G14-SUM($Q14:CL14))))) -> 0 | CN14: =IF($D14>=CN$3,0,IF(SUM($Q14:CM14)=$G14,0,IF($G14*$E14/12<($G14-SUM($Q14:CM14)),$G14*$E14/12,($G14-SUM($Q14:CM14))))) -> 0 | CO14: =IF($D14>=CO$3,0,IF(SUM($Q14:CN14)=$G14,0,IF($G14*$E14/12<($G14-SUM($Q14:CN14)),$G14*$E14/12,($G14-SUM($Q14:CN14))))) -> 0 | CP14: =IF($D14>=CP$3,0,IF(SUM($Q14:CO14)=$G14,0,IF($G14*$E14/12<($G14-SUM($Q14:CO14)),$G14*$E14/12,($G14-SUM($Q14:CO14))))) -> 0 | CQ14: =IF($D14>=CQ$3,0,IF(SUM($Q14:CP14)=$G14,0,IF($G14*$E14/12<($G14-SUM($Q14:CP14)),$G14*$E14/12,($G14-SUM($Q14:CP14))))) -> 0 | CR14: =IF($D14>=CR$3,0,IF(SUM($Q14:CQ14)=$G14,0,IF($G14*$E14/12<($G14-SUM($Q14:CQ14)),$G14*$E14/12,($G14-SUM($Q14:CQ14))))) -> 0 | CS14: =IF($D14>=CS$3,0,IF(SUM($Q14:CR14)=$G14,0,IF($G14*$E14/12<($G14-SUM($Q14:CR14)),$G14*$E14/12,($G14-SUM($Q14:CR14))))) -> 0 | CT14: =IF($D14>=CT$3,0,IF(SUM($Q14:CS14)=$G14,0,IF($G14*$E14/12<($G14-SUM($Q14:CS14)),$G14*$E14/12,($G14-SUM($Q14:CS14))))) -> 0 | CU14: =IF($D14>=CU$3,0,IF(SUM($Q14:CT14)=$G14,0,IF($G14*$E14/12<($G14-SUM($Q14:CT14)),$G14*$E14/12,($G14-SUM($Q14:CT14))))) -> 0 | CV14: =IF($D14>=CV$3,0,IF(SUM($Q14:CU14)=$G14,0,IF($G14*$E14/12<($G14-SUM($Q14:CU14)),$G14*$E14/12,($G14-SUM($Q14:CU14))))) -> 0
A15: =IF(D15<EOMONTH($D$2,-12),"Fuera de plazo",IF(D15>BALANCE!$J$3,"Fuera de plazo","")) ->  | B15: Otros | D15: 2017-03-31 | E15: 0.15 | F15: 0.21 | G15: =IF(YEAR(D15)<=YEAR($D$2),C15*RIESGO!$C$4,C15*RIESGO!$C$4*(1+CONTROL!$H$4)^(YEAR(D15)-YEAR($D$2))) -> 0 | H15: =G15*F15 -> 0 | I15: 0 | J15: 0 | K15: 0 | L15: 0 | M15: 0 | N15: 0 | O15: 0 | Q15: 0 | R15: =IF($D15>=R$3,0,IF(SUM($Q15:Q15)=$G15,0,IF($G15*$E15/12<($G15-SUM($Q15:Q15)),$G15*$E15/12,($G15-SUM($Q15:Q15))))) -> 0 | S15: =IF($D15>=S$3,0,IF(SUM($Q15:R15)=$G15,0,IF($G15*$E15/12<($G15-SUM($Q15:R15)),$G15*$E15/12,($G15-SUM($Q15:R15))))) -> 0 | T15: =IF($D15>=T$3,0,IF(SUM($Q15:S15)=$G15,0,IF($G15*$E15/12<($G15-SUM($Q15:S15)),$G15*$E15/12,($G15-SUM($Q15:S15))))) -> 0 | U15: =IF($D15>=U$3,0,IF(SUM($Q15:T15)=$G15,0,IF($G15*$E15/12<($G15-SUM($Q15:T15)),$G15*$E15/12,($G15-SUM($Q15:T15))))) -> 0 | V15: =IF($D15>=V$3,0,IF(SUM($Q15:U15)=$G15,0,IF($G15*$E15/12<($G15-SUM($Q15:U15)),$G15*$E15/12,($G15-SUM($Q15:U15))))) -> 0 | W15: =IF($D15>=W$3,0,IF(SUM($Q15:V15)=$G15,0,IF($G15*$E15/12<($G15-SUM($Q15:V15)),$G15*$E15/12,($G15-SUM($Q15:V15))))) -> 0 | X15: =IF($D15>=X$3,0,IF(SUM($Q15:W15)=$G15,0,IF($G15*$E15/12<($G15-SUM($Q15:W15)),$G15*$E15/12,($G15-SUM($Q15:W15))))) -> 0 | Y15: =IF($D15>=Y$3,0,IF(SUM($Q15:X15)=$G15,0,IF($G15*$E15/12<($G15-SUM($Q15:X15)),$G15*$E15/12,($G15-SUM($Q15:X15))))) -> 0 | Z15: =IF($D15>=Z$3,0,IF(SUM($Q15:Y15)=$G15,0,IF($G15*$E15/12<($G15-SUM($Q15:Y15)),$G15*$E15/12,($G15-SUM($Q15:Y15))))) -> 0 | AA15: =IF($D15>=AA$3,0,IF(SUM($Q15:Z15)=$G15,0,IF($G15*$E15/12<($G15-SUM($Q15:Z15)),$G15*$E15/12,($G15-SUM($Q15:Z15))))) -> 0 | AB15: =IF($D15>=AB$3,0,IF(SUM($Q15:AA15)=$G15,0,IF($G15*$E15/12<($G15-SUM($Q15:AA15)),$G15*$E15/12,($G15-SUM($Q15:AA15))))) -> 0 | AC15: =IF($D15>=AC$3,0,IF(SUM($Q15:AB15)=$G15,0,IF($G15*$E15/12<($G15-SUM($Q15:AB15)),$G15*$E15/12,($G15-SUM($Q15:AB15))))) -> 0 | AD15: =IF($D15>=AD$3,0,IF(SUM($Q15:AC15)=$G15,0,IF($G15*$E15/12<($G15-SUM($Q15:AC15)),$G15*$E15/12,($G15-SUM($Q15:AC15))))) -> 0 | AE15: =IF($D15>=AE$3,0,IF(SUM($Q15:AD15)=$G15,0,IF($G15*$E15/12<($G15-SUM($Q15:AD15)),$G15*$E15/12,($G15-SUM($Q15:AD15))))) -> 0 | AF15: =IF($D15>=AF$3,0,IF(SUM($Q15:AE15)=$G15,0,IF($G15*$E15/12<($G15-SUM($Q15:AE15)),$G15*$E15/12,($G15-SUM($Q15:AE15))))) -> 0 | AG15: =IF($D15>=AG$3,0,IF(SUM($Q15:AF15)=$G15,0,IF($G15*$E15/12<($G15-SUM($Q15:AF15)),$G15*$E15/12,($G15-SUM($Q15:AF15))))) -> 0 | AH15: =IF($D15>=AH$3,0,IF(SUM($Q15:AG15)=$G15,0,IF($G15*$E15/12<($G15-SUM($Q15:AG15)),$G15*$E15/12,($G15-SUM($Q15:AG15))))) -> 0 | AI15: =IF($D15>=AI$3,0,IF(SUM($Q15:AH15)=$G15,0,IF($G15*$E15/12<($G15-SUM($Q15:AH15)),$G15*$E15/12,($G15-SUM($Q15:AH15))))) -> 0 | AJ15: =IF($D15>=AJ$3,0,IF(SUM($Q15:AI15)=$G15,0,IF($G15*$E15/12<($G15-SUM($Q15:AI15)),$G15*$E15/12,($G15-SUM($Q15:AI15))))) -> 0 | AK15: =IF($D15>=AK$3,0,IF(SUM($Q15:AJ15)=$G15,0,IF($G15*$E15/12<($G15-SUM($Q15:AJ15)),$G15*$E15/12,($G15-SUM($Q15:AJ15))))) -> 0 | AL15: =IF($D15>=AL$3,0,IF(SUM($Q15:AK15)=$G15,0,IF($G15*$E15/12<($G15-SUM($Q15:AK15)),$G15*$E15/12,($G15-SUM($Q15:AK15))))) -> 0 | AM15: =IF($D15>=AM$3,0,IF(SUM($Q15:AL15)=$G15,0,IF($G15*$E15/12<($G15-SUM($Q15:AL15)),$G15*$E15/12,($G15-SUM($Q15:AL15))))) -> 0 | AN15: =IF($D15>=AN$3,0,IF(SUM($Q15:AM15)=$G15,0,IF($G15*$E15/12<($G15-SUM($Q15:AM15)),$G15*$E15/12,($G15-SUM($Q15:AM15))))) -> 0 | AO15: =IF($D15>=AO$3,0,IF(SUM($Q15:AN15)=$G15,0,IF($G15*$E15/12<($G15-SUM($Q15:AN15)),$G15*$E15/12,($G15-SUM($Q15:AN15))))) -> 0 | AP15: =IF($D15>=AP$3,0,IF(SUM($Q15:AO15)=$G15,0,IF($G15*$E15/12<($G15-SUM($Q15:AO15)),$G15*$E15/12,($G15-SUM($Q15:AO15))))) -> 0 | AQ15: =IF($D15>=AQ$3,0,IF(SUM($Q15:AP15)=$G15,0,IF($G15*$E15/12<($G15-SUM($Q15:AP15)),$G15*$E15/12,($G15-SUM($Q15:AP15))))) -> 0 | AR15: =IF($D15>=AR$3,0,IF(SUM($Q15:AQ15)=$G15,0,IF($G15*$E15/12<($G15-SUM($Q15:AQ15)),$G15*$E15/12,($G15-SUM($Q15:AQ15))))) -> 0 | AS15: =IF($D15>=AS$3,0,IF(SUM($Q15:AR15)=$G15,0,IF($G15*$E15/12<($G15-SUM($Q15:AR15)),$G15*$E15/12,($G15-SUM($Q15:AR15))))) -> 0 | AT15: =IF($D15>=AT$3,0,IF(SUM($Q15:AS15)=$G15,0,IF($G15*$E15/12<($G15-SUM($Q15:AS15)),$G15*$E15/12,($G15-SUM($Q15:AS15))))) -> 0 | AU15: =IF($D15>=AU$3,0,IF(SUM($Q15:AT15)=$G15,0,IF($G15*$E15/12<($G15-SUM($Q15:AT15)),$G15*$E15/12,($G15-SUM($Q15:AT15))))) -> 0 | AV15: =IF($D15>=AV$3,0,IF(SUM($Q15:AU15)=$G15,0,IF($G15*$E15/12<($G15-SUM($Q15:AU15)),$G15*$E15/12,($G15-SUM($Q15:AU15))))) -> 0 | AW15: =IF($D15>=AW$3,0,IF(SUM($Q15:AV15)=$G15,0,IF($G15*$E15/12<($G15-SUM($Q15:AV15)),$G15*$E15/12,($G15-SUM($Q15:AV15))))) -> 0 | AX15: =IF($D15>=AX$3,0,IF(SUM($Q15:AW15)=$G15,0,IF($G15*$E15/12<($G15-SUM($Q15:AW15)),$G15*$E15/12,($G15-SUM($Q15:AW15))))) -> 0 | AY15: =IF($D15>=AY$3,0,IF(SUM($Q15:AX15)=$G15,0,IF($G15*$E15/12<($G15-SUM($Q15:AX15)),$G15*$E15/12,($G15-SUM($Q15:AX15))))) -> 0 | AZ15: =IF($D15>=AZ$3,0,IF(SUM($Q15:AY15)=$G15,0,IF($G15*$E15/12<($G15-SUM($Q15:AY15)),$G15*$E15/12,($G15-SUM($Q15:AY15))))) -> 0 | BA15: =IF($D15>=BA$3,0,IF(SUM($Q15:AZ15)=$G15,0,IF($G15*$E15/12<($G15-SUM($Q15:AZ15)),$G15*$E15/12,($G15-SUM($Q15:AZ15))))) -> 0 | BB15: =IF($D15>=BB$3,0,IF(SUM($Q15:BA15)=$G15,0,IF($G15*$E15/12<($G15-SUM($Q15:BA15)),$G15*$E15/12,($G15-SUM($Q15:BA15))))) -> 0 | BC15: =IF($D15>=BC$3,0,IF(SUM($Q15:BB15)=$G15,0,IF($G15*$E15/12<($G15-SUM($Q15:BB15)),$G15*$E15/12,($G15-SUM($Q15:BB15))))) -> 0 | BD15: =IF($D15>=BD$3,0,IF(SUM($Q15:BC15)=$G15,0,IF($G15*$E15/12<($G15-SUM($Q15:BC15)),$G15*$E15/12,($G15-SUM($Q15:BC15))))) -> 0 | BE15: =IF($D15>=BE$3,0,IF(SUM($Q15:BD15)=$G15,0,IF($G15*$E15/12<($G15-SUM($Q15:BD15)),$G15*$E15/12,($G15-SUM($Q15:BD15))))) -> 0 | BF15: =IF($D15>=BF$3,0,IF(SUM($Q15:BE15)=$G15,0,IF($G15*$E15/12<($G15-SUM($Q15:BE15)),$G15*$E15/12,($G15-SUM($Q15:BE15))))) -> 0 | BG15: =IF($D15>=BG$3,0,IF(SUM($Q15:BF15)=$G15,0,IF($G15*$E15/12<($G15-SUM($Q15:BF15)),$G15*$E15/12,($G15-SUM($Q15:BF15))))) -> 0 | BH15: =IF($D15>=BH$3,0,IF(SUM($Q15:BG15)=$G15,0,IF($G15*$E15/12<($G15-SUM($Q15:BG15)),$G15*$E15/12,($G15-SUM($Q15:BG15))))) -> 0 | BI15: =IF($D15>=BI$3,0,IF(SUM($Q15:BH15)=$G15,0,IF($G15*$E15/12<($G15-SUM($Q15:BH15)),$G15*$E15/12,($G15-SUM($Q15:BH15))))) -> 0 | BJ15: =IF($D15>=BJ$3,0,IF(SUM($Q15:BI15)=$G15,0,IF($G15*$E15/12<($G15-SUM($Q15:BI15)),$G15*$E15/12,($G15-SUM($Q15:BI15))))) -> 0 | BK15: =IF($D15>=BK$3,0,IF(SUM($Q15:BJ15)=$G15,0,IF($G15*$E15/12<($G15-SUM($Q15:BJ15)),$G15*$E15/12,($G15-SUM($Q15:BJ15))))) -> 0 | BL15: =IF($D15>=BL$3,0,IF(SUM($Q15:BK15)=$G15,0,IF($G15*$E15/12<($G15-SUM($Q15:BK15)),$G15*$E15/12,($G15-SUM($Q15:BK15))))) -> 0 | BM15: =IF($D15>=BM$3,0,IF(SUM($Q15:BL15)=$G15,0,IF($G15*$E15/12<($G15-SUM($Q15:BL15)),$G15*$E15/12,($G15-SUM($Q15:BL15))))) -> 0 | BN15: =IF($D15>=BN$3,0,IF(SUM($Q15:BM15)=$G15,0,IF($G15*$E15/12<($G15-SUM($Q15:BM15)),$G15*$E15/12,($G15-SUM($Q15:BM15))))) -> 0 | BO15: =IF($D15>=BO$3,0,IF(SUM($Q15:BN15)=$G15,0,IF($G15*$E15/12<($G15-SUM($Q15:BN15)),$G15*$E15/12,($G15-SUM($Q15:BN15))))) -> 0 | BP15: =IF($D15>=BP$3,0,IF(SUM($Q15:BO15)=$G15,0,IF($G15*$E15/12<($G15-SUM($Q15:BO15)),$G15*$E15/12,($G15-SUM($Q15:BO15))))) -> 0 | BQ15: =IF($D15>=BQ$3,0,IF(SUM($Q15:BP15)=$G15,0,IF($G15*$E15/12<($G15-SUM($Q15:BP15)),$G15*$E15/12,($G15-SUM($Q15:BP15))))) -> 0 | BR15: =IF($D15>=BR$3,0,IF(SUM($Q15:BQ15)=$G15,0,IF($G15*$E15/12<($G15-SUM($Q15:BQ15)),$G15*$E15/12,($G15-SUM($Q15:BQ15))))) -> 0 | BS15: =IF($D15>=BS$3,0,IF(SUM($Q15:BR15)=$G15,0,IF($G15*$E15/12<($G15-SUM($Q15:BR15)),$G15*$E15/12,($G15-SUM($Q15:BR15))))) -> 0 | BT15: =IF($D15>=BT$3,0,IF(SUM($Q15:BS15)=$G15,0,IF($G15*$E15/12<($G15-SUM($Q15:BS15)),$G15*$E15/12,($G15-SUM($Q15:BS15))))) -> 0 | BU15: =IF($D15>=BU$3,0,IF(SUM($Q15:BT15)=$G15,0,IF($G15*$E15/12<($G15-SUM($Q15:BT15)),$G15*$E15/12,($G15-SUM($Q15:BT15))))) -> 0 | BV15: =IF($D15>=BV$3,0,IF(SUM($Q15:BU15)=$G15,0,IF($G15*$E15/12<($G15-SUM($Q15:BU15)),$G15*$E15/12,($G15-SUM($Q15:BU15))))) -> 0 | BW15: =IF($D15>=BW$3,0,IF(SUM($Q15:BV15)=$G15,0,IF($G15*$E15/12<($G15-SUM($Q15:BV15)),$G15*$E15/12,($G15-SUM($Q15:BV15))))) -> 0 | BX15: =IF($D15>=BX$3,0,IF(SUM($Q15:BW15)=$G15,0,IF($G15*$E15/12<($G15-SUM($Q15:BW15)),$G15*$E15/12,($G15-SUM($Q15:BW15))))) -> 0 | BY15: =IF($D15>=BY$3,0,IF(SUM($Q15:BX15)=$G15,0,IF($G15*$E15/12<($G15-SUM($Q15:BX15)),$G15*$E15/12,($G15-SUM($Q15:BX15))))) -> 0 | BZ15: =IF($D15>=BZ$3,0,IF(SUM($Q15:BY15)=$G15,0,IF($G15*$E15/12<($G15-SUM($Q15:BY15)),$G15*$E15/12,($G15-SUM($Q15:BY15))))) -> 0 | CA15: =IF($D15>=CA$3,0,IF(SUM($Q15:BZ15)=$G15,0,IF($G15*$E15/12<($G15-SUM($Q15:BZ15)),$G15*$E15/12,($G15-SUM($Q15:BZ15))))) -> 0 | CB15: =IF($D15>=CB$3,0,IF(SUM($Q15:CA15)=$G15,0,IF($G15*$E15/12<($G15-SUM($Q15:CA15)),$G15*$E15/12,($G15-SUM($Q15:CA15))))) -> 0 | CC15: =IF($D15>=CC$3,0,IF(SUM($Q15:CB15)=$G15,0,IF($G15*$E15/12<($G15-SUM($Q15:CB15)),$G15*$E15/12,($G15-SUM($Q15:CB15))))) -> 0 | CD15: =IF($D15>=CD$3,0,IF(SUM($Q15:CC15)=$G15,0,IF($G15*$E15/12<($G15-SUM($Q15:CC15)),$G15*$E15/12,($G15-SUM($Q15:CC15))))) -> 0 | CE15: =IF($D15>=CE$3,0,IF(SUM($Q15:CD15)=$G15,0,IF($G15*$E15/12<($G15-SUM($Q15:CD15)),$G15*$E15/12,($G15-SUM($Q15:CD15))))) -> 0 | CF15: =IF($D15>=CF$3,0,IF(SUM($Q15:CE15)=$G15,0,IF($G15*$E15/12<($G15-SUM($Q15:CE15)),$G15*$E15/12,($G15-SUM($Q15:CE15))))) -> 0 | CG15: =IF($D15>=CG$3,0,IF(SUM($Q15:CF15)=$G15,0,IF($G15*$E15/12<($G15-SUM($Q15:CF15)),$G15*$E15/12,($G15-SUM($Q15:CF15))))) -> 0 | CH15: =IF($D15>=CH$3,0,IF(SUM($Q15:CG15)=$G15,0,IF($G15*$E15/12<($G15-SUM($Q15:CG15)),$G15*$E15/12,($G15-SUM($Q15:CG15))))) -> 0 | CI15: =IF($D15>=CI$3,0,IF(SUM($Q15:CH15)=$G15,0,IF($G15*$E15/12<($G15-SUM($Q15:CH15)),$G15*$E15/12,($G15-SUM($Q15:CH15))))) -> 0 | CJ15: =IF($D15>=CJ$3,0,IF(SUM($Q15:CI15)=$G15,0,IF($G15*$E15/12<($G15-SUM($Q15:CI15)),$G15*$E15/12,($G15-SUM($Q15:CI15))))) -> 0 | CK15: =IF($D15>=CK$3,0,IF(SUM($Q15:CJ15)=$G15,0,IF($G15*$E15/12<($G15-SUM($Q15:CJ15)),$G15*$E15/12,($G15-SUM($Q15:CJ15))))) -> 0 | CL15: =IF($D15>=CL$3,0,IF(SUM($Q15:CK15)=$G15,0,IF($G15*$E15/12<($G15-SUM($Q15:CK15)),$G15*$E15/12,($G15-SUM($Q15:CK15))))) -> 0 | CM15: =IF($D15>=CM$3,0,IF(SUM($Q15:CL15)=$G15,0,IF($G15*$E15/12<($G15-SUM($Q15:CL15)),$G15*$E15/12,($G15-SUM($Q15:CL15))))) -> 0 | CN15: =IF($D15>=CN$3,0,IF(SUM($Q15:CM15)=$G15,0,IF($G15*$E15/12<($G15-SUM($Q15:CM15)),$G15*$E15/12,($G15-SUM($Q15:CM15))))) -> 0 | CO15: =IF($D15>=CO$3,0,IF(SUM($Q15:CN15)=$G15,0,IF($G15*$E15/12<($G15-SUM($Q15:CN15)),$G15*$E15/12,($G15-SUM($Q15:CN15))))) -> 0 | CP15: =IF($D15>=CP$3,0,IF(SUM($Q15:CO15)=$G15,0,IF($G15*$E15/12<($G15-SUM($Q15:CO15)),$G15*$E15/12,($G15-SUM($Q15:CO15))))) -> 0 | CQ15: =IF($D15>=CQ$3,0,IF(SUM($Q15:CP15)=$G15,0,IF($G15*$E15/12<($G15-SUM($Q15:CP15)),$G15*$E15/12,($G15-SUM($Q15:CP15))))) -> 0 | CR15: =IF($D15>=CR$3,0,IF(SUM($Q15:CQ15)=$G15,0,IF($G15*$E15/12<($G15-SUM($Q15:CQ15)),$G15*$E15/12,($G15-SUM($Q15:CQ15))))) -> 0 | CS15: =IF($D15>=CS$3,0,IF(SUM($Q15:CR15)=$G15,0,IF($G15*$E15/12<($G15-SUM($Q15:CR15)),$G15*$E15/12,($G15-SUM($Q15:CR15))))) -> 0 | CT15: =IF($D15>=CT$3,0,IF(SUM($Q15:CS15)=$G15,0,IF($G15*$E15/12<($G15-SUM($Q15:CS15)),$G15*$E15/12,($G15-SUM($Q15:CS15))))) -> 0 | CU15: =IF($D15>=CU$3,0,IF(SUM($Q15:CT15)=$G15,0,IF($G15*$E15/12<($G15-SUM($Q15:CT15)),$G15*$E15/12,($G15-SUM($Q15:CT15))))) -> 0 | CV15: =IF($D15>=CV$3,0,IF(SUM($Q15:CU15)=$G15,0,IF($G15*$E15/12<($G15-SUM($Q15:CU15)),$G15*$E15/12,($G15-SUM($Q15:CU15))))) -> 0
A16: =IF(D16<EOMONTH($D$2,-12),"Fuera de plazo",IF(D16>BALANCE!$J$3,"Fuera de plazo","")) ->  | B16: Otros | D16: 2018-03-31 | E16: 0.12 | F16: 0.21 | G16: =IF(YEAR(D16)<=YEAR($D$2),C16*RIESGO!$C$4,C16*RIESGO!$C$4*(1+CONTROL!$H$4)^(YEAR(D16)-YEAR($D$2))) -> 0 | H16: =G16*F16 -> 0 | I16: 0 | J16: 0 | K16: 0 | L16: 0 | M16: 0 | N16: 0 | O16: 0 | Q16: 0 | R16: =IF($D16>=R$3,0,IF(SUM($Q16:Q16)=$G16,0,IF($G16*$E16/12<($G16-SUM($Q16:Q16)),$G16*$E16/12,($G16-SUM($Q16:Q16))))) -> 0 | S16: =IF($D16>=S$3,0,IF(SUM($Q16:R16)=$G16,0,IF($G16*$E16/12<($G16-SUM($Q16:R16)),$G16*$E16/12,($G16-SUM($Q16:R16))))) -> 0 | T16: =IF($D16>=T$3,0,IF(SUM($Q16:S16)=$G16,0,IF($G16*$E16/12<($G16-SUM($Q16:S16)),$G16*$E16/12,($G16-SUM($Q16:S16))))) -> 0 | U16: =IF($D16>=U$3,0,IF(SUM($Q16:T16)=$G16,0,IF($G16*$E16/12<($G16-SUM($Q16:T16)),$G16*$E16/12,($G16-SUM($Q16:T16))))) -> 0 | V16: =IF($D16>=V$3,0,IF(SUM($Q16:U16)=$G16,0,IF($G16*$E16/12<($G16-SUM($Q16:U16)),$G16*$E16/12,($G16-SUM($Q16:U16))))) -> 0 | W16: =IF($D16>=W$3,0,IF(SUM($Q16:V16)=$G16,0,IF($G16*$E16/12<($G16-SUM($Q16:V16)),$G16*$E16/12,($G16-SUM($Q16:V16))))) -> 0 | X16: =IF($D16>=X$3,0,IF(SUM($Q16:W16)=$G16,0,IF($G16*$E16/12<($G16-SUM($Q16:W16)),$G16*$E16/12,($G16-SUM($Q16:W16))))) -> 0 | Y16: =IF($D16>=Y$3,0,IF(SUM($Q16:X16)=$G16,0,IF($G16*$E16/12<($G16-SUM($Q16:X16)),$G16*$E16/12,($G16-SUM($Q16:X16))))) -> 0 | Z16: =IF($D16>=Z$3,0,IF(SUM($Q16:Y16)=$G16,0,IF($G16*$E16/12<($G16-SUM($Q16:Y16)),$G16*$E16/12,($G16-SUM($Q16:Y16))))) -> 0 | AA16: =IF($D16>=AA$3,0,IF(SUM($Q16:Z16)=$G16,0,IF($G16*$E16/12<($G16-SUM($Q16:Z16)),$G16*$E16/12,($G16-SUM($Q16:Z16))))) -> 0 | AB16: =IF($D16>=AB$3,0,IF(SUM($Q16:AA16)=$G16,0,IF($G16*$E16/12<($G16-SUM($Q16:AA16)),$G16*$E16/12,($G16-SUM($Q16:AA16))))) -> 0 | AC16: =IF($D16>=AC$3,0,IF(SUM($Q16:AB16)=$G16,0,IF($G16*$E16/12<($G16-SUM($Q16:AB16)),$G16*$E16/12,($G16-SUM($Q16:AB16))))) -> 0 | AD16: =IF($D16>=AD$3,0,IF(SUM($Q16:AC16)=$G16,0,IF($G16*$E16/12<($G16-SUM($Q16:AC16)),$G16*$E16/12,($G16-SUM($Q16:AC16))))) -> 0 | AE16: =IF($D16>=AE$3,0,IF(SUM($Q16:AD16)=$G16,0,IF($G16*$E16/12<($G16-SUM($Q16:AD16)),$G16*$E16/12,($G16-SUM($Q16:AD16))))) -> 0 | AF16: =IF($D16>=AF$3,0,IF(SUM($Q16:AE16)=$G16,0,IF($G16*$E16/12<($G16-SUM($Q16:AE16)),$G16*$E16/12,($G16-SUM($Q16:AE16))))) -> 0 | AG16: =IF($D16>=AG$3,0,IF(SUM($Q16:AF16)=$G16,0,IF($G16*$E16/12<($G16-SUM($Q16:AF16)),$G16*$E16/12,($G16-SUM($Q16:AF16))))) -> 0 | AH16: =IF($D16>=AH$3,0,IF(SUM($Q16:AG16)=$G16,0,IF($G16*$E16/12<($G16-SUM($Q16:AG16)),$G16*$E16/12,($G16-SUM($Q16:AG16))))) -> 0 | AI16: =IF($D16>=AI$3,0,IF(SUM($Q16:AH16)=$G16,0,IF($G16*$E16/12<($G16-SUM($Q16:AH16)),$G16*$E16/12,($G16-SUM($Q16:AH16))))) -> 0 | AJ16: =IF($D16>=AJ$3,0,IF(SUM($Q16:AI16)=$G16,0,IF($G16*$E16/12<($G16-SUM($Q16:AI16)),$G16*$E16/12,($G16-SUM($Q16:AI16))))) -> 0 | AK16: =IF($D16>=AK$3,0,IF(SUM($Q16:AJ16)=$G16,0,IF($G16*$E16/12<($G16-SUM($Q16:AJ16)),$G16*$E16/12,($G16-SUM($Q16:AJ16))))) -> 0 | AL16: =IF($D16>=AL$3,0,IF(SUM($Q16:AK16)=$G16,0,IF($G16*$E16/12<($G16-SUM($Q16:AK16)),$G16*$E16/12,($G16-SUM($Q16:AK16))))) -> 0 | AM16: =IF($D16>=AM$3,0,IF(SUM($Q16:AL16)=$G16,0,IF($G16*$E16/12<($G16-SUM($Q16:AL16)),$G16*$E16/12,($G16-SUM($Q16:AL16))))) -> 0 | AN16: =IF($D16>=AN$3,0,IF(SUM($Q16:AM16)=$G16,0,IF($G16*$E16/12<($G16-SUM($Q16:AM16)),$G16*$E16/12,($G16-SUM($Q16:AM16))))) -> 0 | AO16: =IF($D16>=AO$3,0,IF(SUM($Q16:AN16)=$G16,0,IF($G16*$E16/12<($G16-SUM($Q16:AN16)),$G16*$E16/12,($G16-SUM($Q16:AN16))))) -> 0 | AP16: =IF($D16>=AP$3,0,IF(SUM($Q16:AO16)=$G16,0,IF($G16*$E16/12<($G16-SUM($Q16:AO16)),$G16*$E16/12,($G16-SUM($Q16:AO16))))) -> 0 | AQ16: =IF($D16>=AQ$3,0,IF(SUM($Q16:AP16)=$G16,0,IF($G16*$E16/12<($G16-SUM($Q16:AP16)),$G16*$E16/12,($G16-SUM($Q16:AP16))))) -> 0 | AR16: =IF($D16>=AR$3,0,IF(SUM($Q16:AQ16)=$G16,0,IF($G16*$E16/12<($G16-SUM($Q16:AQ16)),$G16*$E16/12,($G16-SUM($Q16:AQ16))))) -> 0 | AS16: =IF($D16>=AS$3,0,IF(SUM($Q16:AR16)=$G16,0,IF($G16*$E16/12<($G16-SUM($Q16:AR16)),$G16*$E16/12,($G16-SUM($Q16:AR16))))) -> 0 | AT16: =IF($D16>=AT$3,0,IF(SUM($Q16:AS16)=$G16,0,IF($G16*$E16/12<($G16-SUM($Q16:AS16)),$G16*$E16/12,($G16-SUM($Q16:AS16))))) -> 0 | AU16: =IF($D16>=AU$3,0,IF(SUM($Q16:AT16)=$G16,0,IF($G16*$E16/12<($G16-SUM($Q16:AT16)),$G16*$E16/12,($G16-SUM($Q16:AT16))))) -> 0 | AV16: =IF($D16>=AV$3,0,IF(SUM($Q16:AU16)=$G16,0,IF($G16*$E16/12<($G16-SUM($Q16:AU16)),$G16*$E16/12,($G16-SUM($Q16:AU16))))) -> 0 | AW16: =IF($D16>=AW$3,0,IF(SUM($Q16:AV16)=$G16,0,IF($G16*$E16/12<($G16-SUM($Q16:AV16)),$G16*$E16/12,($G16-SUM($Q16:AV16))))) -> 0 | AX16: =IF($D16>=AX$3,0,IF(SUM($Q16:AW16)=$G16,0,IF($G16*$E16/12<($G16-SUM($Q16:AW16)),$G16*$E16/12,($G16-SUM($Q16:AW16))))) -> 0 | AY16: =IF($D16>=AY$3,0,IF(SUM($Q16:AX16)=$G16,0,IF($G16*$E16/12<($G16-SUM($Q16:AX16)),$G16*$E16/12,($G16-SUM($Q16:AX16))))) -> 0 | AZ16: =IF($D16>=AZ$3,0,IF(SUM($Q16:AY16)=$G16,0,IF($G16*$E16/12<($G16-SUM($Q16:AY16)),$G16*$E16/12,($G16-SUM($Q16:AY16))))) -> 0 | BA16: =IF($D16>=BA$3,0,IF(SUM($Q16:AZ16)=$G16,0,IF($G16*$E16/12<($G16-SUM($Q16:AZ16)),$G16*$E16/12,($G16-SUM($Q16:AZ16))))) -> 0 | BB16: =IF($D16>=BB$3,0,IF(SUM($Q16:BA16)=$G16,0,IF($G16*$E16/12<($G16-SUM($Q16:BA16)),$G16*$E16/12,($G16-SUM($Q16:BA16))))) -> 0 | BC16: =IF($D16>=BC$3,0,IF(SUM($Q16:BB16)=$G16,0,IF($G16*$E16/12<($G16-SUM($Q16:BB16)),$G16*$E16/12,($G16-SUM($Q16:BB16))))) -> 0 | BD16: =IF($D16>=BD$3,0,IF(SUM($Q16:BC16)=$G16,0,IF($G16*$E16/12<($G16-SUM($Q16:BC16)),$G16*$E16/12,($G16-SUM($Q16:BC16))))) -> 0 | BE16: =IF($D16>=BE$3,0,IF(SUM($Q16:BD16)=$G16,0,IF($G16*$E16/12<($G16-SUM($Q16:BD16)),$G16*$E16/12,($G16-SUM($Q16:BD16))))) -> 0 | BF16: =IF($D16>=BF$3,0,IF(SUM($Q16:BE16)=$G16,0,IF($G16*$E16/12<($G16-SUM($Q16:BE16)),$G16*$E16/12,($G16-SUM($Q16:BE16))))) -> 0 | BG16: =IF($D16>=BG$3,0,IF(SUM($Q16:BF16)=$G16,0,IF($G16*$E16/12<($G16-SUM($Q16:BF16)),$G16*$E16/12,($G16-SUM($Q16:BF16))))) -> 0 | BH16: =IF($D16>=BH$3,0,IF(SUM($Q16:BG16)=$G16,0,IF($G16*$E16/12<($G16-SUM($Q16:BG16)),$G16*$E16/12,($G16-SUM($Q16:BG16))))) -> 0 | BI16: =IF($D16>=BI$3,0,IF(SUM($Q16:BH16)=$G16,0,IF($G16*$E16/12<($G16-SUM($Q16:BH16)),$G16*$E16/12,($G16-SUM($Q16:BH16))))) -> 0 | BJ16: =IF($D16>=BJ$3,0,IF(SUM($Q16:BI16)=$G16,0,IF($G16*$E16/12<($G16-SUM($Q16:BI16)),$G16*$E16/12,($G16-SUM($Q16:BI16))))) -> 0 | BK16: =IF($D16>=BK$3,0,IF(SUM($Q16:BJ16)=$G16,0,IF($G16*$E16/12<($G16-SUM($Q16:BJ16)),$G16*$E16/12,($G16-SUM($Q16:BJ16))))) -> 0 | BL16: =IF($D16>=BL$3,0,IF(SUM($Q16:BK16)=$G16,0,IF($G16*$E16/12<($G16-SUM($Q16:BK16)),$G16*$E16/12,($G16-SUM($Q16:BK16))))) -> 0 | BM16: =IF($D16>=BM$3,0,IF(SUM($Q16:BL16)=$G16,0,IF($G16*$E16/12<($G16-SUM($Q16:BL16)),$G16*$E16/12,($G16-SUM($Q16:BL16))))) -> 0 | BN16: =IF($D16>=BN$3,0,IF(SUM($Q16:BM16)=$G16,0,IF($G16*$E16/12<($G16-SUM($Q16:BM16)),$G16*$E16/12,($G16-SUM($Q16:BM16))))) -> 0 | BO16: =IF($D16>=BO$3,0,IF(SUM($Q16:BN16)=$G16,0,IF($G16*$E16/12<($G16-SUM($Q16:BN16)),$G16*$E16/12,($G16-SUM($Q16:BN16))))) -> 0 | BP16: =IF($D16>=BP$3,0,IF(SUM($Q16:BO16)=$G16,0,IF($G16*$E16/12<($G16-SUM($Q16:BO16)),$G16*$E16/12,($G16-SUM($Q16:BO16))))) -> 0 | BQ16: =IF($D16>=BQ$3,0,IF(SUM($Q16:BP16)=$G16,0,IF($G16*$E16/12<($G16-SUM($Q16:BP16)),$G16*$E16/12,($G16-SUM($Q16:BP16))))) -> 0 | BR16: =IF($D16>=BR$3,0,IF(SUM($Q16:BQ16)=$G16,0,IF($G16*$E16/12<($G16-SUM($Q16:BQ16)),$G16*$E16/12,($G16-SUM($Q16:BQ16))))) -> 0 | BS16: =IF($D16>=BS$3,0,IF(SUM($Q16:BR16)=$G16,0,IF($G16*$E16/12<($G16-SUM($Q16:BR16)),$G16*$E16/12,($G16-SUM($Q16:BR16))))) -> 0 | BT16: =IF($D16>=BT$3,0,IF(SUM($Q16:BS16)=$G16,0,IF($G16*$E16/12<($G16-SUM($Q16:BS16)),$G16*$E16/12,($G16-SUM($Q16:BS16))))) -> 0 | BU16: =IF($D16>=BU$3,0,IF(SUM($Q16:BT16)=$G16,0,IF($G16*$E16/12<($G16-SUM($Q16:BT16)),$G16*$E16/12,($G16-SUM($Q16:BT16))))) -> 0 | BV16: =IF($D16>=BV$3,0,IF(SUM($Q16:BU16)=$G16,0,IF($G16*$E16/12<($G16-SUM($Q16:BU16)),$G16*$E16/12,($G16-SUM($Q16:BU16))))) -> 0 | BW16: =IF($D16>=BW$3,0,IF(SUM($Q16:BV16)=$G16,0,IF($G16*$E16/12<($G16-SUM($Q16:BV16)),$G16*$E16/12,($G16-SUM($Q16:BV16))))) -> 0 | BX16: =IF($D16>=BX$3,0,IF(SUM($Q16:BW16)=$G16,0,IF($G16*$E16/12<($G16-SUM($Q16:BW16)),$G16*$E16/12,($G16-SUM($Q16:BW16))))) -> 0 | BY16: =IF($D16>=BY$3,0,IF(SUM($Q16:BX16)=$G16,0,IF($G16*$E16/12<($G16-SUM($Q16:BX16)),$G16*$E16/12,($G16-SUM($Q16:BX16))))) -> 0 | BZ16: =IF($D16>=BZ$3,0,IF(SUM($Q16:BY16)=$G16,0,IF($G16*$E16/12<($G16-SUM($Q16:BY16)),$G16*$E16/12,($G16-SUM($Q16:BY16))))) -> 0 | CA16: =IF($D16>=CA$3,0,IF(SUM($Q16:BZ16)=$G16,0,IF($G16*$E16/12<($G16-SUM($Q16:BZ16)),$G16*$E16/12,($G16-SUM($Q16:BZ16))))) -> 0 | CB16: =IF($D16>=CB$3,0,IF(SUM($Q16:CA16)=$G16,0,IF($G16*$E16/12<($G16-SUM($Q16:CA16)),$G16*$E16/12,($G16-SUM($Q16:CA16))))) -> 0 | CC16: =IF($D16>=CC$3,0,IF(SUM($Q16:CB16)=$G16,0,IF($G16*$E16/12<($G16-SUM($Q16:CB16)),$G16*$E16/12,($G16-SUM($Q16:CB16))))) -> 0 | CD16: =IF($D16>=CD$3,0,IF(SUM($Q16:CC16)=$G16,0,IF($G16*$E16/12<($G16-SUM($Q16:CC16)),$G16*$E16/12,($G16-SUM($Q16:CC16))))) -> 0 | CE16: =IF($D16>=CE$3,0,IF(SUM($Q16:CD16)=$G16,0,IF($G16*$E16/12<($G16-SUM($Q16:CD16)),$G16*$E16/12,($G16-SUM($Q16:CD16))))) -> 0 | CF16: =IF($D16>=CF$3,0,IF(SUM($Q16:CE16)=$G16,0,IF($G16*$E16/12<($G16-SUM($Q16:CE16)),$G16*$E16/12,($G16-SUM($Q16:CE16))))) -> 0 | CG16: =IF($D16>=CG$3,0,IF(SUM($Q16:CF16)=$G16,0,IF($G16*$E16/12<($G16-SUM($Q16:CF16)),$G16*$E16/12,($G16-SUM($Q16:CF16))))) -> 0 | CH16: =IF($D16>=CH$3,0,IF(SUM($Q16:CG16)=$G16,0,IF($G16*$E16/12<($G16-SUM($Q16:CG16)),$G16*$E16/12,($G16-SUM($Q16:CG16))))) -> 0 | CI16: =IF($D16>=CI$3,0,IF(SUM($Q16:CH16)=$G16,0,IF($G16*$E16/12<($G16-SUM($Q16:CH16)),$G16*$E16/12,($G16-SUM($Q16:CH16))))) -> 0 | CJ16: =IF($D16>=CJ$3,0,IF(SUM($Q16:CI16)=$G16,0,IF($G16*$E16/12<($G16-SUM($Q16:CI16)),$G16*$E16/12,($G16-SUM($Q16:CI16))))) -> 0 | CK16: =IF($D16>=CK$3,0,IF(SUM($Q16:CJ16)=$G16,0,IF($G16*$E16/12<($G16-SUM($Q16:CJ16)),$G16*$E16/12,($G16-SUM($Q16:CJ16))))) -> 0 | CL16: =IF($D16>=CL$3,0,IF(SUM($Q16:CK16)=$G16,0,IF($G16*$E16/12<($G16-SUM($Q16:CK16)),$G16*$E16/12,($G16-SUM($Q16:CK16))))) -> 0 | CM16: =IF($D16>=CM$3,0,IF(SUM($Q16:CL16)=$G16,0,IF($G16*$E16/12<($G16-SUM($Q16:CL16)),$G16*$E16/12,($G16-SUM($Q16:CL16))))) -> 0 | CN16: =IF($D16>=CN$3,0,IF(SUM($Q16:CM16)=$G16,0,IF($G16*$E16/12<($G16-SUM($Q16:CM16)),$G16*$E16/12,($G16-SUM($Q16:CM16))))) -> 0 | CO16: =IF($D16>=CO$3,0,IF(SUM($Q16:CN16)=$G16,0,IF($G16*$E16/12<($G16-SUM($Q16:CN16)),$G16*$E16/12,($G16-SUM($Q16:CN16))))) -> 0 | CP16: =IF($D16>=CP$3,0,IF(SUM($Q16:CO16)=$G16,0,IF($G16*$E16/12<($G16-SUM($Q16:CO16)),$G16*$E16/12,($G16-SUM($Q16:CO16))))) -> 0 | CQ16: =IF($D16>=CQ$3,0,IF(SUM($Q16:CP16)=$G16,0,IF($G16*$E16/12<($G16-SUM($Q16:CP16)),$G16*$E16/12,($G16-SUM($Q16:CP16))))) -> 0 | CR16: =IF($D16>=CR$3,0,IF(SUM($Q16:CQ16)=$G16,0,IF($G16*$E16/12<($G16-SUM($Q16:CQ16)),$G16*$E16/12,($G16-SUM($Q16:CQ16))))) -> 0 | CS16: =IF($D16>=CS$3,0,IF(SUM($Q16:CR16)=$G16,0,IF($G16*$E16/12<($G16-SUM($Q16:CR16)),$G16*$E16/12,($G16-SUM($Q16:CR16))))) -> 0 | CT16: =IF($D16>=CT$3,0,IF(SUM($Q16:CS16)=$G16,0,IF($G16*$E16/12<($G16-SUM($Q16:CS16)),$G16*$E16/12,($G16-SUM($Q16:CS16))))) -> 0 | CU16: =IF($D16>=CU$3,0,IF(SUM($Q16:CT16)=$G16,0,IF($G16*$E16/12<($G16-SUM($Q16:CT16)),$G16*$E16/12,($G16-SUM($Q16:CT16))))) -> 0 | CV16: =IF($D16>=CV$3,0,IF(SUM($Q16:CU16)=$G16,0,IF($G16*$E16/12<($G16-SUM($Q16:CU16)),$G16*$E16/12,($G16-SUM($Q16:CU16))))) -> 0
A17: =IF(D17<EOMONTH($D$2,-12),"Fuera de plazo",IF(D17>BALANCE!$J$3,"Fuera de plazo","")) ->  | B17: Otros | D17: 2019-03-31 | E17: 0.12 | F17: 0.21 | G17: =IF(YEAR(D17)<=YEAR($D$2),C17*RIESGO!$C$4,C17*RIESGO!$C$4*(1+CONTROL!$H$4)^(YEAR(D17)-YEAR($D$2))) -> 0 | H17: 0 | I17: 0 | J17: 0 | K17: 0 | L17: 0 | M17: 0 | N17: 0 | O17: 0 | Q17: 0 | R17: =IF($D17>=R$3,0,IF(SUM($Q17:Q17)=$G17,0,IF($G17*$E17/12<($G17-SUM($Q17:Q17)),$G17*$E17/12,($G17-SUM($Q17:Q17))))) -> 0 | S17: =IF($D17>=S$3,0,IF(SUM($Q17:R17)=$G17,0,IF($G17*$E17/12<($G17-SUM($Q17:R17)),$G17*$E17/12,($G17-SUM($Q17:R17))))) -> 0 | T17: =IF($D17>=T$3,0,IF(SUM($Q17:S17)=$G17,0,IF($G17*$E17/12<($G17-SUM($Q17:S17)),$G17*$E17/12,($G17-SUM($Q17:S17))))) -> 0 | U17: =IF($D17>=U$3,0,IF(SUM($Q17:T17)=$G17,0,IF($G17*$E17/12<($G17-SUM($Q17:T17)),$G17*$E17/12,($G17-SUM($Q17:T17))))) -> 0 | V17: =IF($D17>=V$3,0,IF(SUM($Q17:U17)=$G17,0,IF($G17*$E17/12<($G17-SUM($Q17:U17)),$G17*$E17/12,($G17-SUM($Q17:U17))))) -> 0 | W17: =IF($D17>=W$3,0,IF(SUM($Q17:V17)=$G17,0,IF($G17*$E17/12<($G17-SUM($Q17:V17)),$G17*$E17/12,($G17-SUM($Q17:V17))))) -> 0 | X17: =IF($D17>=X$3,0,IF(SUM($Q17:W17)=$G17,0,IF($G17*$E17/12<($G17-SUM($Q17:W17)),$G17*$E17/12,($G17-SUM($Q17:W17))))) -> 0 | Y17: =IF($D17>=Y$3,0,IF(SUM($Q17:X17)=$G17,0,IF($G17*$E17/12<($G17-SUM($Q17:X17)),$G17*$E17/12,($G17-SUM($Q17:X17))))) -> 0 | Z17: =IF($D17>=Z$3,0,IF(SUM($Q17:Y17)=$G17,0,IF($G17*$E17/12<($G17-SUM($Q17:Y17)),$G17*$E17/12,($G17-SUM($Q17:Y17))))) -> 0 | AA17: =IF($D17>=AA$3,0,IF(SUM($Q17:Z17)=$G17,0,IF($G17*$E17/12<($G17-SUM($Q17:Z17)),$G17*$E17/12,($G17-SUM($Q17:Z17))))) -> 0 | AB17: =IF($D17>=AB$3,0,IF(SUM($Q17:AA17)=$G17,0,IF($G17*$E17/12<($G17-SUM($Q17:AA17)),$G17*$E17/12,($G17-SUM($Q17:AA17))))) -> 0 | AC17: =IF($D17>=AC$3,0,IF(SUM($Q17:AB17)=$G17,0,IF($G17*$E17/12<($G17-SUM($Q17:AB17)),$G17*$E17/12,($G17-SUM($Q17:AB17))))) -> 0 | AD17: =IF($D17>=AD$3,0,IF(SUM($Q17:AC17)=$G17,0,IF($G17*$E17/12<($G17-SUM($Q17:AC17)),$G17*$E17/12,($G17-SUM($Q17:AC17))))) -> 0 | AE17: =IF($D17>=AE$3,0,IF(SUM($Q17:AD17)=$G17,0,IF($G17*$E17/12<($G17-SUM($Q17:AD17)),$G17*$E17/12,($G17-SUM($Q17:AD17))))) -> 0 | AF17: =IF($D17>=AF$3,0,IF(SUM($Q17:AE17)=$G17,0,IF($G17*$E17/12<($G17-SUM($Q17:AE17)),$G17*$E17/12,($G17-SUM($Q17:AE17))))) -> 0 | AG17: =IF($D17>=AG$3,0,IF(SUM($Q17:AF17)=$G17,0,IF($G17*$E17/12<($G17-SUM($Q17:AF17)),$G17*$E17/12,($G17-SUM($Q17:AF17))))) -> 0 | AH17: =IF($D17>=AH$3,0,IF(SUM($Q17:AG17)=$G17,0,IF($G17*$E17/12<($G17-SUM($Q17:AG17)),$G17*$E17/12,($G17-SUM($Q17:AG17))))) -> 0 | AI17: =IF($D17>=AI$3,0,IF(SUM($Q17:AH17)=$G17,0,IF($G17*$E17/12<($G17-SUM($Q17:AH17)),$G17*$E17/12,($G17-SUM($Q17:AH17))))) -> 0 | AJ17: =IF($D17>=AJ$3,0,IF(SUM($Q17:AI17)=$G17,0,IF($G17*$E17/12<($G17-SUM($Q17:AI17)),$G17*$E17/12,($G17-SUM($Q17:AI17))))) -> 0 | AK17: =IF($D17>=AK$3,0,IF(SUM($Q17:AJ17)=$G17,0,IF($G17*$E17/12<($G17-SUM($Q17:AJ17)),$G17*$E17/12,($G17-SUM($Q17:AJ17))))) -> 0 | AL17: =IF($D17>=AL$3,0,IF(SUM($Q17:AK17)=$G17,0,IF($G17*$E17/12<($G17-SUM($Q17:AK17)),$G17*$E17/12,($G17-SUM($Q17:AK17))))) -> 0 | AM17: =IF($D17>=AM$3,0,IF(SUM($Q17:AL17)=$G17,0,IF($G17*$E17/12<($G17-SUM($Q17:AL17)),$G17*$E17/12,($G17-SUM($Q17:AL17))))) -> 0 | AN17: =IF($D17>=AN$3,0,IF(SUM($Q17:AM17)=$G17,0,IF($G17*$E17/12<($G17-SUM($Q17:AM17)),$G17*$E17/12,($G17-SUM($Q17:AM17))))) -> 0 | AO17: =IF($D17>=AO$3,0,IF(SUM($Q17:AN17)=$G17,0,IF($G17*$E17/12<($G17-SUM($Q17:AN17)),$G17*$E17/12,($G17-SUM($Q17:AN17))))) -> 0 | AP17: =IF($D17>=AP$3,0,IF(SUM($Q17:AO17)=$G17,0,IF($G17*$E17/12<($G17-SUM($Q17:AO17)),$G17*$E17/12,($G17-SUM($Q17:AO17))))) -> 0 | AQ17: =IF($D17>=AQ$3,0,IF(SUM($Q17:AP17)=$G17,0,IF($G17*$E17/12<($G17-SUM($Q17:AP17)),$G17*$E17/12,($G17-SUM($Q17:AP17))))) -> 0 | AR17: =IF($D17>=AR$3,0,IF(SUM($Q17:AQ17)=$G17,0,IF($G17*$E17/12<($G17-SUM($Q17:AQ17)),$G17*$E17/12,($G17-SUM($Q17:AQ17))))) -> 0 | AS17: =IF($D17>=AS$3,0,IF(SUM($Q17:AR17)=$G17,0,IF($G17*$E17/12<($G17-SUM($Q17:AR17)),$G17*$E17/12,($G17-SUM($Q17:AR17))))) -> 0 | AT17: =IF($D17>=AT$3,0,IF(SUM($Q17:AS17)=$G17,0,IF($G17*$E17/12<($G17-SUM($Q17:AS17)),$G17*$E17/12,($G17-SUM($Q17:AS17))))) -> 0 | AU17: =IF($D17>=AU$3,0,IF(SUM($Q17:AT17)=$G17,0,IF($G17*$E17/12<($G17-SUM($Q17:AT17)),$G17*$E17/12,($G17-SUM($Q17:AT17))))) -> 0 | AV17: =IF($D17>=AV$3,0,IF(SUM($Q17:AU17)=$G17,0,IF($G17*$E17/12<($G17-SUM($Q17:AU17)),$G17*$E17/12,($G17-SUM($Q17:AU17))))) -> 0 | AW17: =IF($D17>=AW$3,0,IF(SUM($Q17:AV17)=$G17,0,IF($G17*$E17/12<($G17-SUM($Q17:AV17)),$G17*$E17/12,($G17-SUM($Q17:AV17))))) -> 0 | AX17: =IF($D17>=AX$3,0,IF(SUM($Q17:AW17)=$G17,0,IF($G17*$E17/12<($G17-SUM($Q17:AW17)),$G17*$E17/12,($G17-SUM($Q17:AW17))))) -> 0 | AY17: =IF($D17>=AY$3,0,IF(SUM($Q17:AX17)=$G17,0,IF($G17*$E17/12<($G17-SUM($Q17:AX17)),$G17*$E17/12,($G17-SUM($Q17:AX17))))) -> 0 | AZ17: =IF($D17>=AZ$3,0,IF(SUM($Q17:AY17)=$G17,0,IF($G17*$E17/12<($G17-SUM($Q17:AY17)),$G17*$E17/12,($G17-SUM($Q17:AY17))))) -> 0 | BA17: =IF($D17>=BA$3,0,IF(SUM($Q17:AZ17)=$G17,0,IF($G17*$E17/12<($G17-SUM($Q17:AZ17)),$G17*$E17/12,($G17-SUM($Q17:AZ17))))) -> 0 | BB17: =IF($D17>=BB$3,0,IF(SUM($Q17:BA17)=$G17,0,IF($G17*$E17/12<($G17-SUM($Q17:BA17)),$G17*$E17/12,($G17-SUM($Q17:BA17))))) -> 0 | BC17: =IF($D17>=BC$3,0,IF(SUM($Q17:BB17)=$G17,0,IF($G17*$E17/12<($G17-SUM($Q17:BB17)),$G17*$E17/12,($G17-SUM($Q17:BB17))))) -> 0 | BD17: =IF($D17>=BD$3,0,IF(SUM($Q17:BC17)=$G17,0,IF($G17*$E17/12<($G17-SUM($Q17:BC17)),$G17*$E17/12,($G17-SUM($Q17:BC17))))) -> 0 | BE17: =IF($D17>=BE$3,0,IF(SUM($Q17:BD17)=$G17,0,IF($G17*$E17/12<($G17-SUM($Q17:BD17)),$G17*$E17/12,($G17-SUM($Q17:BD17))))) -> 0 | BF17: =IF($D17>=BF$3,0,IF(SUM($Q17:BE17)=$G17,0,IF($G17*$E17/12<($G17-SUM($Q17:BE17)),$G17*$E17/12,($G17-SUM($Q17:BE17))))) -> 0 | BG17: =IF($D17>=BG$3,0,IF(SUM($Q17:BF17)=$G17,0,IF($G17*$E17/12<($G17-SUM($Q17:BF17)),$G17*$E17/12,($G17-SUM($Q17:BF17))))) -> 0 | BH17: =IF($D17>=BH$3,0,IF(SUM($Q17:BG17)=$G17,0,IF($G17*$E17/12<($G17-SUM($Q17:BG17)),$G17*$E17/12,($G17-SUM($Q17:BG17))))) -> 0 | BI17: =IF($D17>=BI$3,0,IF(SUM($Q17:BH17)=$G17,0,IF($G17*$E17/12<($G17-SUM($Q17:BH17)),$G17*$E17/12,($G17-SUM($Q17:BH17))))) -> 0 | BJ17: =IF($D17>=BJ$3,0,IF(SUM($Q17:BI17)=$G17,0,IF($G17*$E17/12<($G17-SUM($Q17:BI17)),$G17*$E17/12,($G17-SUM($Q17:BI17))))) -> 0 | BK17: =IF($D17>=BK$3,0,IF(SUM($Q17:BJ17)=$G17,0,IF($G17*$E17/12<($G17-SUM($Q17:BJ17)),$G17*$E17/12,($G17-SUM($Q17:BJ17))))) -> 0 | BL17: =IF($D17>=BL$3,0,IF(SUM($Q17:BK17)=$G17,0,IF($G17*$E17/12<($G17-SUM($Q17:BK17)),$G17*$E17/12,($G17-SUM($Q17:BK17))))) -> 0 | BM17: =IF($D17>=BM$3,0,IF(SUM($Q17:BL17)=$G17,0,IF($G17*$E17/12<($G17-SUM($Q17:BL17)),$G17*$E17/12,($G17-SUM($Q17:BL17))))) -> 0 | BN17: =IF($D17>=BN$3,0,IF(SUM($Q17:BM17)=$G17,0,IF($G17*$E17/12<($G17-SUM($Q17:BM17)),$G17*$E17/12,($G17-SUM($Q17:BM17))))) -> 0 | BO17: =IF($D17>=BO$3,0,IF(SUM($Q17:BN17)=$G17,0,IF($G17*$E17/12<($G17-SUM($Q17:BN17)),$G17*$E17/12,($G17-SUM($Q17:BN17))))) -> 0 | BP17: =IF($D17>=BP$3,0,IF(SUM($Q17:BO17)=$G17,0,IF($G17*$E17/12<($G17-SUM($Q17:BO17)),$G17*$E17/12,($G17-SUM($Q17:BO17))))) -> 0 | BQ17: =IF($D17>=BQ$3,0,IF(SUM($Q17:BP17)=$G17,0,IF($G17*$E17/12<($G17-SUM($Q17:BP17)),$G17*$E17/12,($G17-SUM($Q17:BP17))))) -> 0 | BR17: =IF($D17>=BR$3,0,IF(SUM($Q17:BQ17)=$G17,0,IF($G17*$E17/12<($G17-SUM($Q17:BQ17)),$G17*$E17/12,($G17-SUM($Q17:BQ17))))) -> 0 | BS17: =IF($D17>=BS$3,0,IF(SUM($Q17:BR17)=$G17,0,IF($G17*$E17/12<($G17-SUM($Q17:BR17)),$G17*$E17/12,($G17-SUM($Q17:BR17))))) -> 0 | BT17: =IF($D17>=BT$3,0,IF(SUM($Q17:BS17)=$G17,0,IF($G17*$E17/12<($G17-SUM($Q17:BS17)),$G17*$E17/12,($G17-SUM($Q17:BS17))))) -> 0 | BU17: =IF($D17>=BU$3,0,IF(SUM($Q17:BT17)=$G17,0,IF($G17*$E17/12<($G17-SUM($Q17:BT17)),$G17*$E17/12,($G17-SUM($Q17:BT17))))) -> 0 | BV17: =IF($D17>=BV$3,0,IF(SUM($Q17:BU17)=$G17,0,IF($G17*$E17/12<($G17-SUM($Q17:BU17)),$G17*$E17/12,($G17-SUM($Q17:BU17))))) -> 0 | BW17: =IF($D17>=BW$3,0,IF(SUM($Q17:BV17)=$G17,0,IF($G17*$E17/12<($G17-SUM($Q17:BV17)),$G17*$E17/12,($G17-SUM($Q17:BV17))))) -> 0 | BX17: =IF($D17>=BX$3,0,IF(SUM($Q17:BW17)=$G17,0,IF($G17*$E17/12<($G17-SUM($Q17:BW17)),$G17*$E17/12,($G17-SUM($Q17:BW17))))) -> 0 | BY17: =IF($D17>=BY$3,0,IF(SUM($Q17:BX17)=$G17,0,IF($G17*$E17/12<($G17-SUM($Q17:BX17)),$G17*$E17/12,($G17-SUM($Q17:BX17))))) -> 0 | BZ17: =IF($D17>=BZ$3,0,IF(SUM($Q17:BY17)=$G17,0,IF($G17*$E17/12<($G17-SUM($Q17:BY17)),$G17*$E17/12,($G17-SUM($Q17:BY17))))) -> 0 | CA17: =IF($D17>=CA$3,0,IF(SUM($Q17:BZ17)=$G17,0,IF($G17*$E17/12<($G17-SUM($Q17:BZ17)),$G17*$E17/12,($G17-SUM($Q17:BZ17))))) -> 0 | CB17: =IF($D17>=CB$3,0,IF(SUM($Q17:CA17)=$G17,0,IF($G17*$E17/12<($G17-SUM($Q17:CA17)),$G17*$E17/12,($G17-SUM($Q17:CA17))))) -> 0 | CC17: =IF($D17>=CC$3,0,IF(SUM($Q17:CB17)=$G17,0,IF($G17*$E17/12<($G17-SUM($Q17:CB17)),$G17*$E17/12,($G17-SUM($Q17:CB17))))) -> 0 | CD17: =IF($D17>=CD$3,0,IF(SUM($Q17:CC17)=$G17,0,IF($G17*$E17/12<($G17-SUM($Q17:CC17)),$G17*$E17/12,($G17-SUM($Q17:CC17))))) -> 0 | CE17: =IF($D17>=CE$3,0,IF(SUM($Q17:CD17)=$G17,0,IF($G17*$E17/12<($G17-SUM($Q17:CD17)),$G17*$E17/12,($G17-SUM($Q17:CD17))))) -> 0 | CF17: =IF($D17>=CF$3,0,IF(SUM($Q17:CE17)=$G17,0,IF($G17*$E17/12<($G17-SUM($Q17:CE17)),$G17*$E17/12,($G17-SUM($Q17:CE17))))) -> 0 | CG17: =IF($D17>=CG$3,0,IF(SUM($Q17:CF17)=$G17,0,IF($G17*$E17/12<($G17-SUM($Q17:CF17)),$G17*$E17/12,($G17-SUM($Q17:CF17))))) -> 0 | CH17: =IF($D17>=CH$3,0,IF(SUM($Q17:CG17)=$G17,0,IF($G17*$E17/12<($G17-SUM($Q17:CG17)),$G17*$E17/12,($G17-SUM($Q17:CG17))))) -> 0 | CI17: =IF($D17>=CI$3,0,IF(SUM($Q17:CH17)=$G17,0,IF($G17*$E17/12<($G17-SUM($Q17:CH17)),$G17*$E17/12,($G17-SUM($Q17:CH17))))) -> 0 | CJ17: =IF($D17>=CJ$3,0,IF(SUM($Q17:CI17)=$G17,0,IF($G17*$E17/12<($G17-SUM($Q17:CI17)),$G17*$E17/12,($G17-SUM($Q17:CI17))))) -> 0 | CK17: =IF($D17>=CK$3,0,IF(SUM($Q17:CJ17)=$G17,0,IF($G17*$E17/12<($G17-SUM($Q17:CJ17)),$G17*$E17/12,($G17-SUM($Q17:CJ17))))) -> 0 | CL17: =IF($D17>=CL$3,0,IF(SUM($Q17:CK17)=$G17,0,IF($G17*$E17/12<($G17-SUM($Q17:CK17)),$G17*$E17/12,($G17-SUM($Q17:CK17))))) -> 0 | CM17: =IF($D17>=CM$3,0,IF(SUM($Q17:CL17)=$G17,0,IF($G17*$E17/12<($G17-SUM($Q17:CL17)),$G17*$E17/12,($G17-SUM($Q17:CL17))))) -> 0 | CN17: =IF($D17>=CN$3,0,IF(SUM($Q17:CM17)=$G17,0,IF($G17*$E17/12<($G17-SUM($Q17:CM17)),$G17*$E17/12,($G17-SUM($Q17:CM17))))) -> 0 | CO17: =IF($D17>=CO$3,0,IF(SUM($Q17:CN17)=$G17,0,IF($G17*$E17/12<($G17-SUM($Q17:CN17)),$G17*$E17/12,($G17-SUM($Q17:CN17))))) -> 0 | CP17: =IF($D17>=CP$3,0,IF(SUM($Q17:CO17)=$G17,0,IF($G17*$E17/12<($G17-SUM($Q17:CO17)),$G17*$E17/12,($G17-SUM($Q17:CO17))))) -> 0 | CQ17: =IF($D17>=CQ$3,0,IF(SUM($Q17:CP17)=$G17,0,IF($G17*$E17/12<($G17-SUM($Q17:CP17)),$G17*$E17/12,($G17-SUM($Q17:CP17))))) -> 0 | CR17: =IF($D17>=CR$3,0,IF(SUM($Q17:CQ17)=$G17,0,IF($G17*$E17/12<($G17-SUM($Q17:CQ17)),$G17*$E17/12,($G17-SUM($Q17:CQ17))))) -> 0 | CS17: =IF($D17>=CS$3,0,IF(SUM($Q17:CR17)=$G17,0,IF($G17*$E17/12<($G17-SUM($Q17:CR17)),$G17*$E17/12,($G17-SUM($Q17:CR17))))) -> 0 | CT17: =IF($D17>=CT$3,0,IF(SUM($Q17:CS17)=$G17,0,IF($G17*$E17/12<($G17-SUM($Q17:CS17)),$G17*$E17/12,($G17-SUM($Q17:CS17))))) -> 0 | CU17: =IF($D17>=CU$3,0,IF(SUM($Q17:CT17)=$G17,0,IF($G17*$E17/12<($G17-SUM($Q17:CT17)),$G17*$E17/12,($G17-SUM($Q17:CT17))))) -> 0 | CV17: =IF($D17>=CV$3,0,IF(SUM($Q17:CU17)=$G17,0,IF($G17*$E17/12<($G17-SUM($Q17:CU17)),$G17*$E17/12,($G17-SUM($Q17:CU17))))) -> 0
A18: =IF(D18<EOMONTH($D$2,-12),"Fuera de plazo",IF(D18>BALANCE!$J$3,"Fuera de plazo","")) ->  | B18: Otros | D18: 2020-04-30 | E18: 0.18 | F18: 0.21 | G18: =IF(YEAR(D18)<=YEAR($D$2),C18*RIESGO!$C$4,C18*RIESGO!$C$4*(1+CONTROL!$H$4)^(YEAR(D18)-YEAR($D$2))) -> 0 | H18: =G18*F18 -> 0 | I18: 0 | J18: 0 | K18: 0 | L18: 0 | M18: 0 | N18: 0 | O18: 0 | Q18: 0 | R18: =IF($D18>=R$3,0,IF(SUM($Q18:Q18)=$G18,0,IF($G18*$E18/12<($G18-SUM($Q18:Q18)),$G18*$E18/12,($G18-SUM($Q18:Q18))))) -> 0 | S18: =IF($D18>=S$3,0,IF(SUM($Q18:R18)=$G18,0,IF($G18*$E18/12<($G18-SUM($Q18:R18)),$G18*$E18/12,($G18-SUM($Q18:R18))))) -> 0 | T18: =IF($D18>=T$3,0,IF(SUM($Q18:S18)=$G18,0,IF($G18*$E18/12<($G18-SUM($Q18:S18)),$G18*$E18/12,($G18-SUM($Q18:S18))))) -> 0 | U18: =IF($D18>=U$3,0,IF(SUM($Q18:T18)=$G18,0,IF($G18*$E18/12<($G18-SUM($Q18:T18)),$G18*$E18/12,($G18-SUM($Q18:T18))))) -> 0 | V18: =IF($D18>=V$3,0,IF(SUM($Q18:U18)=$G18,0,IF($G18*$E18/12<($G18-SUM($Q18:U18)),$G18*$E18/12,($G18-SUM($Q18:U18))))) -> 0 | W18: =IF($D18>=W$3,0,IF(SUM($Q18:V18)=$G18,0,IF($G18*$E18/12<($G18-SUM($Q18:V18)),$G18*$E18/12,($G18-SUM($Q18:V18))))) -> 0 | X18: =IF($D18>=X$3,0,IF(SUM($Q18:W18)=$G18,0,IF($G18*$E18/12<($G18-SUM($Q18:W18)),$G18*$E18/12,($G18-SUM($Q18:W18))))) -> 0 | Y18: =IF($D18>=Y$3,0,IF(SUM($Q18:X18)=$G18,0,IF($G18*$E18/12<($G18-SUM($Q18:X18)),$G18*$E18/12,($G18-SUM($Q18:X18))))) -> 0 | Z18: =IF($D18>=Z$3,0,IF(SUM($Q18:Y18)=$G18,0,IF($G18*$E18/12<($G18-SUM($Q18:Y18)),$G18*$E18/12,($G18-SUM($Q18:Y18))))) -> 0 | AA18: =IF($D18>=AA$3,0,IF(SUM($Q18:Z18)=$G18,0,IF($G18*$E18/12<($G18-SUM($Q18:Z18)),$G18*$E18/12,($G18-SUM($Q18:Z18))))) -> 0 | AB18: =IF($D18>=AB$3,0,IF(SUM($Q18:AA18)=$G18,0,IF($G18*$E18/12<($G18-SUM($Q18:AA18)),$G18*$E18/12,($G18-SUM($Q18:AA18))))) -> 0 | AC18: =IF($D18>=AC$3,0,IF(SUM($Q18:AB18)=$G18,0,IF($G18*$E18/12<($G18-SUM($Q18:AB18)),$G18*$E18/12,($G18-SUM($Q18:AB18))))) -> 0 | AD18: =IF($D18>=AD$3,0,IF(SUM($Q18:AC18)=$G18,0,IF($G18*$E18/12<($G18-SUM($Q18:AC18)),$G18*$E18/12,($G18-SUM($Q18:AC18))))) -> 0 | AE18: =IF($D18>=AE$3,0,IF(SUM($Q18:AD18)=$G18,0,IF($G18*$E18/12<($G18-SUM($Q18:AD18)),$G18*$E18/12,($G18-SUM($Q18:AD18))))) -> 0 | AF18: =IF($D18>=AF$3,0,IF(SUM($Q18:AE18)=$G18,0,IF($G18*$E18/12<($G18-SUM($Q18:AE18)),$G18*$E18/12,($G18-SUM($Q18:AE18))))) -> 0 | AG18: =IF($D18>=AG$3,0,IF(SUM($Q18:AF18)=$G18,0,IF($G18*$E18/12<($G18-SUM($Q18:AF18)),$G18*$E18/12,($G18-SUM($Q18:AF18))))) -> 0 | AH18: =IF($D18>=AH$3,0,IF(SUM($Q18:AG18)=$G18,0,IF($G18*$E18/12<($G18-SUM($Q18:AG18)),$G18*$E18/12,($G18-SUM($Q18:AG18))))) -> 0 | AI18: =IF($D18>=AI$3,0,IF(SUM($Q18:AH18)=$G18,0,IF($G18*$E18/12<($G18-SUM($Q18:AH18)),$G18*$E18/12,($G18-SUM($Q18:AH18))))) -> 0 | AJ18: =IF($D18>=AJ$3,0,IF(SUM($Q18:AI18)=$G18,0,IF($G18*$E18/12<($G18-SUM($Q18:AI18)),$G18*$E18/12,($G18-SUM($Q18:AI18))))) -> 0 | AK18: =IF($D18>=AK$3,0,IF(SUM($Q18:AJ18)=$G18,0,IF($G18*$E18/12<($G18-SUM($Q18:AJ18)),$G18*$E18/12,($G18-SUM($Q18:AJ18))))) -> 0 | AL18: =IF($D18>=AL$3,0,IF(SUM($Q18:AK18)=$G18,0,IF($G18*$E18/12<($G18-SUM($Q18:AK18)),$G18*$E18/12,($G18-SUM($Q18:AK18))))) -> 0 | AM18: =IF($D18>=AM$3,0,IF(SUM($Q18:AL18)=$G18,0,IF($G18*$E18/12<($G18-SUM($Q18:AL18)),$G18*$E18/12,($G18-SUM($Q18:AL18))))) -> 0 | AN18: =IF($D18>=AN$3,0,IF(SUM($Q18:AM18)=$G18,0,IF($G18*$E18/12<($G18-SUM($Q18:AM18)),$G18*$E18/12,($G18-SUM($Q18:AM18))))) -> 0 | AO18: =IF($D18>=AO$3,0,IF(SUM($Q18:AN18)=$G18,0,IF($G18*$E18/12<($G18-SUM($Q18:AN18)),$G18*$E18/12,($G18-SUM($Q18:AN18))))) -> 0 | AP18: =IF($D18>=AP$3,0,IF(SUM($Q18:AO18)=$G18,0,IF($G18*$E18/12<($G18-SUM($Q18:AO18)),$G18*$E18/12,($G18-SUM($Q18:AO18))))) -> 0 | AQ18: =IF($D18>=AQ$3,0,IF(SUM($Q18:AP18)=$G18,0,IF($G18*$E18/12<($G18-SUM($Q18:AP18)),$G18*$E18/12,($G18-SUM($Q18:AP18))))) -> 0 | AR18: =IF($D18>=AR$3,0,IF(SUM($Q18:AQ18)=$G18,0,IF($G18*$E18/12<($G18-SUM($Q18:AQ18)),$G18*$E18/12,($G18-SUM($Q18:AQ18))))) -> 0 | AS18: =IF($D18>=AS$3,0,IF(SUM($Q18:AR18)=$G18,0,IF($G18*$E18/12<($G18-SUM($Q18:AR18)),$G18*$E18/12,($G18-SUM($Q18:AR18))))) -> 0 | AT18: =IF($D18>=AT$3,0,IF(SUM($Q18:AS18)=$G18,0,IF($G18*$E18/12<($G18-SUM($Q18:AS18)),$G18*$E18/12,($G18-SUM($Q18:AS18))))) -> 0 | AU18: =IF($D18>=AU$3,0,IF(SUM($Q18:AT18)=$G18,0,IF($G18*$E18/12<($G18-SUM($Q18:AT18)),$G18*$E18/12,($G18-SUM($Q18:AT18))))) -> 0 | AV18: =IF($D18>=AV$3,0,IF(SUM($Q18:AU18)=$G18,0,IF($G18*$E18/12<($G18-SUM($Q18:AU18)),$G18*$E18/12,($G18-SUM($Q18:AU18))))) -> 0 | AW18: =IF($D18>=AW$3,0,IF(SUM($Q18:AV18)=$G18,0,IF($G18*$E18/12<($G18-SUM($Q18:AV18)),$G18*$E18/12,($G18-SUM($Q18:AV18))))) -> 0 | AX18: =IF($D18>=AX$3,0,IF(SUM($Q18:AW18)=$G18,0,IF($G18*$E18/12<($G18-SUM($Q18:AW18)),$G18*$E18/12,($G18-SUM($Q18:AW18))))) -> 0 | AY18: =IF($D18>=AY$3,0,IF(SUM($Q18:AX18)=$G18,0,IF($G18*$E18/12<($G18-SUM($Q18:AX18)),$G18*$E18/12,($G18-SUM($Q18:AX18))))) -> 0 | AZ18: =IF($D18>=AZ$3,0,IF(SUM($Q18:AY18)=$G18,0,IF($G18*$E18/12<($G18-SUM($Q18:AY18)),$G18*$E18/12,($G18-SUM($Q18:AY18))))) -> 0 | BA18: =IF($D18>=BA$3,0,IF(SUM($Q18:AZ18)=$G18,0,IF($G18*$E18/12<($G18-SUM($Q18:AZ18)),$G18*$E18/12,($G18-SUM($Q18:AZ18))))) -> 0 | BB18: =IF($D18>=BB$3,0,IF(SUM($Q18:BA18)=$G18,0,IF($G18*$E18/12<($G18-SUM($Q18:BA18)),$G18*$E18/12,($G18-SUM($Q18:BA18))))) -> 0 | BC18: =IF($D18>=BC$3,0,IF(SUM($Q18:BB18)=$G18,0,IF($G18*$E18/12<($G18-SUM($Q18:BB18)),$G18*$E18/12,($G18-SUM($Q18:BB18))))) -> 0 | BD18: =IF($D18>=BD$3,0,IF(SUM($Q18:BC18)=$G18,0,IF($G18*$E18/12<($G18-SUM($Q18:BC18)),$G18*$E18/12,($G18-SUM($Q18:BC18))))) -> 0 | BE18: =IF($D18>=BE$3,0,IF(SUM($Q18:BD18)=$G18,0,IF($G18*$E18/12<($G18-SUM($Q18:BD18)),$G18*$E18/12,($G18-SUM($Q18:BD18))))) -> 0 | BF18: =IF($D18>=BF$3,0,IF(SUM($Q18:BE18)=$G18,0,IF($G18*$E18/12<($G18-SUM($Q18:BE18)),$G18*$E18/12,($G18-SUM($Q18:BE18))))) -> 0 | BG18: =IF($D18>=BG$3,0,IF(SUM($Q18:BF18)=$G18,0,IF($G18*$E18/12<($G18-SUM($Q18:BF18)),$G18*$E18/12,($G18-SUM($Q18:BF18))))) -> 0 | BH18: =IF($D18>=BH$3,0,IF(SUM($Q18:BG18)=$G18,0,IF($G18*$E18/12<($G18-SUM($Q18:BG18)),$G18*$E18/12,($G18-SUM($Q18:BG18))))) -> 0 | BI18: =IF($D18>=BI$3,0,IF(SUM($Q18:BH18)=$G18,0,IF($G18*$E18/12<($G18-SUM($Q18:BH18)),$G18*$E18/12,($G18-SUM($Q18:BH18))))) -> 0 | BJ18: =IF($D18>=BJ$3,0,IF(SUM($Q18:BI18)=$G18,0,IF($G18*$E18/12<($G18-SUM($Q18:BI18)),$G18*$E18/12,($G18-SUM($Q18:BI18))))) -> 0 | BK18: =IF($D18>=BK$3,0,IF(SUM($Q18:BJ18)=$G18,0,IF($G18*$E18/12<($G18-SUM($Q18:BJ18)),$G18*$E18/12,($G18-SUM($Q18:BJ18))))) -> 0 | BL18: =IF($D18>=BL$3,0,IF(SUM($Q18:BK18)=$G18,0,IF($G18*$E18/12<($G18-SUM($Q18:BK18)),$G18*$E18/12,($G18-SUM($Q18:BK18))))) -> 0 | BM18: =IF($D18>=BM$3,0,IF(SUM($Q18:BL18)=$G18,0,IF($G18*$E18/12<($G18-SUM($Q18:BL18)),$G18*$E18/12,($G18-SUM($Q18:BL18))))) -> 0 | BN18: =IF($D18>=BN$3,0,IF(SUM($Q18:BM18)=$G18,0,IF($G18*$E18/12<($G18-SUM($Q18:BM18)),$G18*$E18/12,($G18-SUM($Q18:BM18))))) -> 0 | BO18: =IF($D18>=BO$3,0,IF(SUM($Q18:BN18)=$G18,0,IF($G18*$E18/12<($G18-SUM($Q18:BN18)),$G18*$E18/12,($G18-SUM($Q18:BN18))))) -> 0 | BP18: =IF($D18>=BP$3,0,IF(SUM($Q18:BO18)=$G18,0,IF($G18*$E18/12<($G18-SUM($Q18:BO18)),$G18*$E18/12,($G18-SUM($Q18:BO18))))) -> 0 | BQ18: =IF($D18>=BQ$3,0,IF(SUM($Q18:BP18)=$G18,0,IF($G18*$E18/12<($G18-SUM($Q18:BP18)),$G18*$E18/12,($G18-SUM($Q18:BP18))))) -> 0 | BR18: =IF($D18>=BR$3,0,IF(SUM($Q18:BQ18)=$G18,0,IF($G18*$E18/12<($G18-SUM($Q18:BQ18)),$G18*$E18/12,($G18-SUM($Q18:BQ18))))) -> 0 | BS18: =IF($D18>=BS$3,0,IF(SUM($Q18:BR18)=$G18,0,IF($G18*$E18/12<($G18-SUM($Q18:BR18)),$G18*$E18/12,($G18-SUM($Q18:BR18))))) -> 0 | BT18: =IF($D18>=BT$3,0,IF(SUM($Q18:BS18)=$G18,0,IF($G18*$E18/12<($G18-SUM($Q18:BS18)),$G18*$E18/12,($G18-SUM($Q18:BS18))))) -> 0 | BU18: =IF($D18>=BU$3,0,IF(SUM($Q18:BT18)=$G18,0,IF($G18*$E18/12<($G18-SUM($Q18:BT18)),$G18*$E18/12,($G18-SUM($Q18:BT18))))) -> 0 | BV18: =IF($D18>=BV$3,0,IF(SUM($Q18:BU18)=$G18,0,IF($G18*$E18/12<($G18-SUM($Q18:BU18)),$G18*$E18/12,($G18-SUM($Q18:BU18))))) -> 0 | BW18: =IF($D18>=BW$3,0,IF(SUM($Q18:BV18)=$G18,0,IF($G18*$E18/12<($G18-SUM($Q18:BV18)),$G18*$E18/12,($G18-SUM($Q18:BV18))))) -> 0 | BX18: =IF($D18>=BX$3,0,IF(SUM($Q18:BW18)=$G18,0,IF($G18*$E18/12<($G18-SUM($Q18:BW18)),$G18*$E18/12,($G18-SUM($Q18:BW18))))) -> 0 | BY18: =IF($D18>=BY$3,0,IF(SUM($Q18:BX18)=$G18,0,IF($G18*$E18/12<($G18-SUM($Q18:BX18)),$G18*$E18/12,($G18-SUM($Q18:BX18))))) -> 0 | BZ18: =IF($D18>=BZ$3,0,IF(SUM($Q18:BY18)=$G18,0,IF($G18*$E18/12<($G18-SUM($Q18:BY18)),$G18*$E18/12,($G18-SUM($Q18:BY18))))) -> 0 | CA18: =IF($D18>=CA$3,0,IF(SUM($Q18:BZ18)=$G18,0,IF($G18*$E18/12<($G18-SUM($Q18:BZ18)),$G18*$E18/12,($G18-SUM($Q18:BZ18))))) -> 0 | CB18: =IF($D18>=CB$3,0,IF(SUM($Q18:CA18)=$G18,0,IF($G18*$E18/12<($G18-SUM($Q18:CA18)),$G18*$E18/12,($G18-SUM($Q18:CA18))))) -> 0 | CC18: =IF($D18>=CC$3,0,IF(SUM($Q18:CB18)=$G18,0,IF($G18*$E18/12<($G18-SUM($Q18:CB18)),$G18*$E18/12,($G18-SUM($Q18:CB18))))) -> 0 | CD18: =IF($D18>=CD$3,0,IF(SUM($Q18:CC18)=$G18,0,IF($G18*$E18/12<($G18-SUM($Q18:CC18)),$G18*$E18/12,($G18-SUM($Q18:CC18))))) -> 0 | CE18: =IF($D18>=CE$3,0,IF(SUM($Q18:CD18)=$G18,0,IF($G18*$E18/12<($G18-SUM($Q18:CD18)),$G18*$E18/12,($G18-SUM($Q18:CD18))))) -> 0 | CF18: =IF($D18>=CF$3,0,IF(SUM($Q18:CE18)=$G18,0,IF($G18*$E18/12<($G18-SUM($Q18:CE18)),$G18*$E18/12,($G18-SUM($Q18:CE18))))) -> 0 | CG18: =IF($D18>=CG$3,0,IF(SUM($Q18:CF18)=$G18,0,IF($G18*$E18/12<($G18-SUM($Q18:CF18)),$G18*$E18/12,($G18-SUM($Q18:CF18))))) -> 0 | CH18: =IF($D18>=CH$3,0,IF(SUM($Q18:CG18)=$G18,0,IF($G18*$E18/12<($G18-SUM($Q18:CG18)),$G18*$E18/12,($G18-SUM($Q18:CG18))))) -> 0 | CI18: =IF($D18>=CI$3,0,IF(SUM($Q18:CH18)=$G18,0,IF($G18*$E18/12<($G18-SUM($Q18:CH18)),$G18*$E18/12,($G18-SUM($Q18:CH18))))) -> 0 | CJ18: =IF($D18>=CJ$3,0,IF(SUM($Q18:CI18)=$G18,0,IF($G18*$E18/12<($G18-SUM($Q18:CI18)),$G18*$E18/12,($G18-SUM($Q18:CI18))))) -> 0 | CK18: =IF($D18>=CK$3,0,IF(SUM($Q18:CJ18)=$G18,0,IF($G18*$E18/12<($G18-SUM($Q18:CJ18)),$G18*$E18/12,($G18-SUM($Q18:CJ18))))) -> 0 | CL18: =IF($D18>=CL$3,0,IF(SUM($Q18:CK18)=$G18,0,IF($G18*$E18/12<($G18-SUM($Q18:CK18)),$G18*$E18/12,($G18-SUM($Q18:CK18))))) -> 0 | CM18: =IF($D18>=CM$3,0,IF(SUM($Q18:CL18)=$G18,0,IF($G18*$E18/12<($G18-SUM($Q18:CL18)),$G18*$E18/12,($G18-SUM($Q18:CL18))))) -> 0 | CN18: =IF($D18>=CN$3,0,IF(SUM($Q18:CM18)=$G18,0,IF($G18*$E18/12<($G18-SUM($Q18:CM18)),$G18*$E18/12,($G18-SUM($Q18:CM18))))) -> 0 | CO18: =IF($D18>=CO$3,0,IF(SUM($Q18:CN18)=$G18,0,IF($G18*$E18/12<($G18-SUM($Q18:CN18)),$G18*$E18/12,($G18-SUM($Q18:CN18))))) -> 0 | CP18: =IF($D18>=CP$3,0,IF(SUM($Q18:CO18)=$G18,0,IF($G18*$E18/12<($G18-SUM($Q18:CO18)),$G18*$E18/12,($G18-SUM($Q18:CO18))))) -> 0 | CQ18: =IF($D18>=CQ$3,0,IF(SUM($Q18:CP18)=$G18,0,IF($G18*$E18/12<($G18-SUM($Q18:CP18)),$G18*$E18/12,($G18-SUM($Q18:CP18))))) -> 0 | CR18: =IF($D18>=CR$3,0,IF(SUM($Q18:CQ18)=$G18,0,IF($G18*$E18/12<($G18-SUM($Q18:CQ18)),$G18*$E18/12,($G18-SUM($Q18:CQ18))))) -> 0 | CS18: =IF($D18>=CS$3,0,IF(SUM($Q18:CR18)=$G18,0,IF($G18*$E18/12<($G18-SUM($Q18:CR18)),$G18*$E18/12,($G18-SUM($Q18:CR18))))) -> 0 | CT18: =IF($D18>=CT$3,0,IF(SUM($Q18:CS18)=$G18,0,IF($G18*$E18/12<($G18-SUM($Q18:CS18)),$G18*$E18/12,($G18-SUM($Q18:CS18))))) -> 0 | CU18: =IF($D18>=CU$3,0,IF(SUM($Q18:CT18)=$G18,0,IF($G18*$E18/12<($G18-SUM($Q18:CT18)),$G18*$E18/12,($G18-SUM($Q18:CT18))))) -> 0 | CV18: =IF($D18>=CV$3,0,IF(SUM($Q18:CU18)=$G18,0,IF($G18*$E18/12<($G18-SUM($Q18:CU18)),$G18*$E18/12,($G18-SUM($Q18:CU18))))) -> 0
A19: =IF(D19<EOMONTH($D$2,-12),"Fuera de plazo",IF(D19>BALANCE!$J$3,"Fuera de plazo","")) ->  | B19: Otros | D19: 2018-01-31 | E19: 0.18 | F19: 0.21 | G19: =IF(YEAR(D19)<=YEAR($D$2),C19*RIESGO!$C$4,C19*RIESGO!$C$4*(1+CONTROL!$H$4)^(YEAR(D19)-YEAR($D$2))) -> 0 | H19: =G19*F19 -> 0 | I19: 0 | J19: 0 | K19: 0 | L19: 0 | M19: 0 | N19: 0 | O19: 0 | Q19: 0 | R19: =IF($D19>=R$3,0,IF(SUM($Q19:Q19)=$G19,0,IF($G19*$E19/12<($G19-SUM($Q19:Q19)),$G19*$E19/12,($G19-SUM($Q19:Q19))))) -> 0 | S19: =IF($D19>=S$3,0,IF(SUM($Q19:R19)=$G19,0,IF($G19*$E19/12<($G19-SUM($Q19:R19)),$G19*$E19/12,($G19-SUM($Q19:R19))))) -> 0 | T19: =IF($D19>=T$3,0,IF(SUM($Q19:S19)=$G19,0,IF($G19*$E19/12<($G19-SUM($Q19:S19)),$G19*$E19/12,($G19-SUM($Q19:S19))))) -> 0 | U19: =IF($D19>=U$3,0,IF(SUM($Q19:T19)=$G19,0,IF($G19*$E19/12<($G19-SUM($Q19:T19)),$G19*$E19/12,($G19-SUM($Q19:T19))))) -> 0 | V19: =IF($D19>=V$3,0,IF(SUM($Q19:U19)=$G19,0,IF($G19*$E19/12<($G19-SUM($Q19:U19)),$G19*$E19/12,($G19-SUM($Q19:U19))))) -> 0 | W19: =IF($D19>=W$3,0,IF(SUM($Q19:V19)=$G19,0,IF($G19*$E19/12<($G19-SUM($Q19:V19)),$G19*$E19/12,($G19-SUM($Q19:V19))))) -> 0 | X19: =IF($D19>=X$3,0,IF(SUM($Q19:W19)=$G19,0,IF($G19*$E19/12<($G19-SUM($Q19:W19)),$G19*$E19/12,($G19-SUM($Q19:W19))))) -> 0 | Y19: =IF($D19>=Y$3,0,IF(SUM($Q19:X19)=$G19,0,IF($G19*$E19/12<($G19-SUM($Q19:X19)),$G19*$E19/12,($G19-SUM($Q19:X19))))) -> 0 | Z19: =IF($D19>=Z$3,0,IF(SUM($Q19:Y19)=$G19,0,IF($G19*$E19/12<($G19-SUM($Q19:Y19)),$G19*$E19/12,($G19-SUM($Q19:Y19))))) -> 0 | AA19: =IF($D19>=AA$3,0,IF(SUM($Q19:Z19)=$G19,0,IF($G19*$E19/12<($G19-SUM($Q19:Z19)),$G19*$E19/12,($G19-SUM($Q19:Z19))))) -> 0 | AB19: =IF($D19>=AB$3,0,IF(SUM($Q19:AA19)=$G19,0,IF($G19*$E19/12<($G19-SUM($Q19:AA19)),$G19*$E19/12,($G19-SUM($Q19:AA19))))) -> 0 | AC19: =IF($D19>=AC$3,0,IF(SUM($Q19:AB19)=$G19,0,IF($G19*$E19/12<($G19-SUM($Q19:AB19)),$G19*$E19/12,($G19-SUM($Q19:AB19))))) -> 0 | AD19: =IF($D19>=AD$3,0,IF(SUM($Q19:AC19)=$G19,0,IF($G19*$E19/12<($G19-SUM($Q19:AC19)),$G19*$E19/12,($G19-SUM($Q19:AC19))))) -> 0 | AE19: =IF($D19>=AE$3,0,IF(SUM($Q19:AD19)=$G19,0,IF($G19*$E19/12<($G19-SUM($Q19:AD19)),$G19*$E19/12,($G19-SUM($Q19:AD19))))) -> 0 | AF19: =IF($D19>=AF$3,0,IF(SUM($Q19:AE19)=$G19,0,IF($G19*$E19/12<($G19-SUM($Q19:AE19)),$G19*$E19/12,($G19-SUM($Q19:AE19))))) -> 0 | AG19: =IF($D19>=AG$3,0,IF(SUM($Q19:AF19)=$G19,0,IF($G19*$E19/12<($G19-SUM($Q19:AF19)),$G19*$E19/12,($G19-SUM($Q19:AF19))))) -> 0 | AH19: =IF($D19>=AH$3,0,IF(SUM($Q19:AG19)=$G19,0,IF($G19*$E19/12<($G19-SUM($Q19:AG19)),$G19*$E19/12,($G19-SUM($Q19:AG19))))) -> 0 | AI19: =IF($D19>=AI$3,0,IF(SUM($Q19:AH19)=$G19,0,IF($G19*$E19/12<($G19-SUM($Q19:AH19)),$G19*$E19/12,($G19-SUM($Q19:AH19))))) -> 0 | AJ19: =IF($D19>=AJ$3,0,IF(SUM($Q19:AI19)=$G19,0,IF($G19*$E19/12<($G19-SUM($Q19:AI19)),$G19*$E19/12,($G19-SUM($Q19:AI19))))) -> 0 | AK19: =IF($D19>=AK$3,0,IF(SUM($Q19:AJ19)=$G19,0,IF($G19*$E19/12<($G19-SUM($Q19:AJ19)),$G19*$E19/12,($G19-SUM($Q19:AJ19))))) -> 0 | AL19: =IF($D19>=AL$3,0,IF(SUM($Q19:AK19)=$G19,0,IF($G19*$E19/12<($G19-SUM($Q19:AK19)),$G19*$E19/12,($G19-SUM($Q19:AK19))))) -> 0 | AM19: =IF($D19>=AM$3,0,IF(SUM($Q19:AL19)=$G19,0,IF($G19*$E19/12<($G19-SUM($Q19:AL19)),$G19*$E19/12,($G19-SUM($Q19:AL19))))) -> 0 | AN19: =IF($D19>=AN$3,0,IF(SUM($Q19:AM19)=$G19,0,IF($G19*$E19/12<($G19-SUM($Q19:AM19)),$G19*$E19/12,($G19-SUM($Q19:AM19))))) -> 0 | AO19: =IF($D19>=AO$3,0,IF(SUM($Q19:AN19)=$G19,0,IF($G19*$E19/12<($G19-SUM($Q19:AN19)),$G19*$E19/12,($G19-SUM($Q19:AN19))))) -> 0 | AP19: =IF($D19>=AP$3,0,IF(SUM($Q19:AO19)=$G19,0,IF($G19*$E19/12<($G19-SUM($Q19:AO19)),$G19*$E19/12,($G19-SUM($Q19:AO19))))) -> 0 | AQ19: =IF($D19>=AQ$3,0,IF(SUM($Q19:AP19)=$G19,0,IF($G19*$E19/12<($G19-SUM($Q19:AP19)),$G19*$E19/12,($G19-SUM($Q19:AP19))))) -> 0 | AR19: =IF($D19>=AR$3,0,IF(SUM($Q19:AQ19)=$G19,0,IF($G19*$E19/12<($G19-SUM($Q19:AQ19)),$G19*$E19/12,($G19-SUM($Q19:AQ19))))) -> 0 | AS19: =IF($D19>=AS$3,0,IF(SUM($Q19:AR19)=$G19,0,IF($G19*$E19/12<($G19-SUM($Q19:AR19)),$G19*$E19/12,($G19-SUM($Q19:AR19))))) -> 0 | AT19: =IF($D19>=AT$3,0,IF(SUM($Q19:AS19)=$G19,0,IF($G19*$E19/12<($G19-SUM($Q19:AS19)),$G19*$E19/12,($G19-SUM($Q19:AS19))))) -> 0 | AU19: =IF($D19>=AU$3,0,IF(SUM($Q19:AT19)=$G19,0,IF($G19*$E19/12<($G19-SUM($Q19:AT19)),$G19*$E19/12,($G19-SUM($Q19:AT19))))) -> 0 | AV19: =IF($D19>=AV$3,0,IF(SUM($Q19:AU19)=$G19,0,IF($G19*$E19/12<($G19-SUM($Q19:AU19)),$G19*$E19/12,($G19-SUM($Q19:AU19))))) -> 0 | AW19: =IF($D19>=AW$3,0,IF(SUM($Q19:AV19)=$G19,0,IF($G19*$E19/12<($G19-SUM($Q19:AV19)),$G19*$E19/12,($G19-SUM($Q19:AV19))))) -> 0 | AX19: =IF($D19>=AX$3,0,IF(SUM($Q19:AW19)=$G19,0,IF($G19*$E19/12<($G19-SUM($Q19:AW19)),$G19*$E19/12,($G19-SUM($Q19:AW19))))) -> 0 | AY19: =IF($D19>=AY$3,0,IF(SUM($Q19:AX19)=$G19,0,IF($G19*$E19/12<($G19-SUM($Q19:AX19)),$G19*$E19/12,($G19-SUM($Q19:AX19))))) -> 0 | AZ19: =IF($D19>=AZ$3,0,IF(SUM($Q19:AY19)=$G19,0,IF($G19*$E19/12<($G19-SUM($Q19:AY19)),$G19*$E19/12,($G19-SUM($Q19:AY19))))) -> 0 | BA19: =IF($D19>=BA$3,0,IF(SUM($Q19:AZ19)=$G19,0,IF($G19*$E19/12<($G19-SUM($Q19:AZ19)),$G19*$E19/12,($G19-SUM($Q19:AZ19))))) -> 0 | BB19: =IF($D19>=BB$3,0,IF(SUM($Q19:BA19)=$G19,0,IF($G19*$E19/12<($G19-SUM($Q19:BA19)),$G19*$E19/12,($G19-SUM($Q19:BA19))))) -> 0 | BC19: =IF($D19>=BC$3,0,IF(SUM($Q19:BB19)=$G19,0,IF($G19*$E19/12<($G19-SUM($Q19:BB19)),$G19*$E19/12,($G19-SUM($Q19:BB19))))) -> 0 | BD19: =IF($D19>=BD$3,0,IF(SUM($Q19:BC19)=$G19,0,IF($G19*$E19/12<($G19-SUM($Q19:BC19)),$G19*$E19/12,($G19-SUM($Q19:BC19))))) -> 0 | BE19: =IF($D19>=BE$3,0,IF(SUM($Q19:BD19)=$G19,0,IF($G19*$E19/12<($G19-SUM($Q19:BD19)),$G19*$E19/12,($G19-SUM($Q19:BD19))))) -> 0 | BF19: =IF($D19>=BF$3,0,IF(SUM($Q19:BE19)=$G19,0,IF($G19*$E19/12<($G19-SUM($Q19:BE19)),$G19*$E19/12,($G19-SUM($Q19:BE19))))) -> 0 | BG19: =IF($D19>=BG$3,0,IF(SUM($Q19:BF19)=$G19,0,IF($G19*$E19/12<($G19-SUM($Q19:BF19)),$G19*$E19/12,($G19-SUM($Q19:BF19))))) -> 0 | BH19: =IF($D19>=BH$3,0,IF(SUM($Q19:BG19)=$G19,0,IF($G19*$E19/12<($G19-SUM($Q19:BG19)),$G19*$E19/12,($G19-SUM($Q19:BG19))))) -> 0 | BI19: =IF($D19>=BI$3,0,IF(SUM($Q19:BH19)=$G19,0,IF($G19*$E19/12<($G19-SUM($Q19:BH19)),$G19*$E19/12,($G19-SUM($Q19:BH19))))) -> 0 | BJ19: =IF($D19>=BJ$3,0,IF(SUM($Q19:BI19)=$G19,0,IF($G19*$E19/12<($G19-SUM($Q19:BI19)),$G19*$E19/12,($G19-SUM($Q19:BI19))))) -> 0 | BK19: =IF($D19>=BK$3,0,IF(SUM($Q19:BJ19)=$G19,0,IF($G19*$E19/12<($G19-SUM($Q19:BJ19)),$G19*$E19/12,($G19-SUM($Q19:BJ19))))) -> 0 | BL19: =IF($D19>=BL$3,0,IF(SUM($Q19:BK19)=$G19,0,IF($G19*$E19/12<($G19-SUM($Q19:BK19)),$G19*$E19/12,($G19-SUM($Q19:BK19))))) -> 0 | BM19: =IF($D19>=BM$3,0,IF(SUM($Q19:BL19)=$G19,0,IF($G19*$E19/12<($G19-SUM($Q19:BL19)),$G19*$E19/12,($G19-SUM($Q19:BL19))))) -> 0 | BN19: =IF($D19>=BN$3,0,IF(SUM($Q19:BM19)=$G19,0,IF($G19*$E19/12<($G19-SUM($Q19:BM19)),$G19*$E19/12,($G19-SUM($Q19:BM19))))) -> 0 | BO19: =IF($D19>=BO$3,0,IF(SUM($Q19:BN19)=$G19,0,IF($G19*$E19/12<($G19-SUM($Q19:BN19)),$G19*$E19/12,($G19-SUM($Q19:BN19))))) -> 0 | BP19: =IF($D19>=BP$3,0,IF(SUM($Q19:BO19)=$G19,0,IF($G19*$E19/12<($G19-SUM($Q19:BO19)),$G19*$E19/12,($G19-SUM($Q19:BO19))))) -> 0 | BQ19: =IF($D19>=BQ$3,0,IF(SUM($Q19:BP19)=$G19,0,IF($G19*$E19/12<($G19-SUM($Q19:BP19)),$G19*$E19/12,($G19-SUM($Q19:BP19))))) -> 0 | BR19: =IF($D19>=BR$3,0,IF(SUM($Q19:BQ19)=$G19,0,IF($G19*$E19/12<($G19-SUM($Q19:BQ19)),$G19*$E19/12,($G19-SUM($Q19:BQ19))))) -> 0 | BS19: =IF($D19>=BS$3,0,IF(SUM($Q19:BR19)=$G19,0,IF($G19*$E19/12<($G19-SUM($Q19:BR19)),$G19*$E19/12,($G19-SUM($Q19:BR19))))) -> 0 | BT19: =IF($D19>=BT$3,0,IF(SUM($Q19:BS19)=$G19,0,IF($G19*$E19/12<($G19-SUM($Q19:BS19)),$G19*$E19/12,($G19-SUM($Q19:BS19))))) -> 0 | BU19: =IF($D19>=BU$3,0,IF(SUM($Q19:BT19)=$G19,0,IF($G19*$E19/12<($G19-SUM($Q19:BT19)),$G19*$E19/12,($G19-SUM($Q19:BT19))))) -> 0 | BV19: =IF($D19>=BV$3,0,IF(SUM($Q19:BU19)=$G19,0,IF($G19*$E19/12<($G19-SUM($Q19:BU19)),$G19*$E19/12,($G19-SUM($Q19:BU19))))) -> 0 | BW19: =IF($D19>=BW$3,0,IF(SUM($Q19:BV19)=$G19,0,IF($G19*$E19/12<($G19-SUM($Q19:BV19)),$G19*$E19/12,($G19-SUM($Q19:BV19))))) -> 0 | BX19: =IF($D19>=BX$3,0,IF(SUM($Q19:BW19)=$G19,0,IF($G19*$E19/12<($G19-SUM($Q19:BW19)),$G19*$E19/12,($G19-SUM($Q19:BW19))))) -> 0 | BY19: =IF($D19>=BY$3,0,IF(SUM($Q19:BX19)=$G19,0,IF($G19*$E19/12<($G19-SUM($Q19:BX19)),$G19*$E19/12,($G19-SUM($Q19:BX19))))) -> 0 | BZ19: =IF($D19>=BZ$3,0,IF(SUM($Q19:BY19)=$G19,0,IF($G19*$E19/12<($G19-SUM($Q19:BY19)),$G19*$E19/12,($G19-SUM($Q19:BY19))))) -> 0 | CA19: =IF($D19>=CA$3,0,IF(SUM($Q19:BZ19)=$G19,0,IF($G19*$E19/12<($G19-SUM($Q19:BZ19)),$G19*$E19/12,($G19-SUM($Q19:BZ19))))) -> 0 | CB19: =IF($D19>=CB$3,0,IF(SUM($Q19:CA19)=$G19,0,IF($G19*$E19/12<($G19-SUM($Q19:CA19)),$G19*$E19/12,($G19-SUM($Q19:CA19))))) -> 0 | CC19: =IF($D19>=CC$3,0,IF(SUM($Q19:CB19)=$G19,0,IF($G19*$E19/12<($G19-SUM($Q19:CB19)),$G19*$E19/12,($G19-SUM($Q19:CB19))))) -> 0 | CD19: =IF($D19>=CD$3,0,IF(SUM($Q19:CC19)=$G19,0,IF($G19*$E19/12<($G19-SUM($Q19:CC19)),$G19*$E19/12,($G19-SUM($Q19:CC19))))) -> 0 | CE19: =IF($D19>=CE$3,0,IF(SUM($Q19:CD19)=$G19,0,IF($G19*$E19/12<($G19-SUM($Q19:CD19)),$G19*$E19/12,($G19-SUM($Q19:CD19))))) -> 0 | CF19: =IF($D19>=CF$3,0,IF(SUM($Q19:CE19)=$G19,0,IF($G19*$E19/12<($G19-SUM($Q19:CE19)),$G19*$E19/12,($G19-SUM($Q19:CE19))))) -> 0 | CG19: =IF($D19>=CG$3,0,IF(SUM($Q19:CF19)=$G19,0,IF($G19*$E19/12<($G19-SUM($Q19:CF19)),$G19*$E19/12,($G19-SUM($Q19:CF19))))) -> 0 | CH19: =IF($D19>=CH$3,0,IF(SUM($Q19:CG19)=$G19,0,IF($G19*$E19/12<($G19-SUM($Q19:CG19)),$G19*$E19/12,($G19-SUM($Q19:CG19))))) -> 0 | CI19: =IF($D19>=CI$3,0,IF(SUM($Q19:CH19)=$G19,0,IF($G19*$E19/12<($G19-SUM($Q19:CH19)),$G19*$E19/12,($G19-SUM($Q19:CH19))))) -> 0 | CJ19: =IF($D19>=CJ$3,0,IF(SUM($Q19:CI19)=$G19,0,IF($G19*$E19/12<($G19-SUM($Q19:CI19)),$G19*$E19/12,($G19-SUM($Q19:CI19))))) -> 0 | CK19: =IF($D19>=CK$3,0,IF(SUM($Q19:CJ19)=$G19,0,IF($G19*$E19/12<($G19-SUM($Q19:CJ19)),$G19*$E19/12,($G19-SUM($Q19:CJ19))))) -> 0 | CL19: =IF($D19>=CL$3,0,IF(SUM($Q19:CK19)=$G19,0,IF($G19*$E19/12<($G19-SUM($Q19:CK19)),$G19*$E19/12,($G19-SUM($Q19:CK19))))) -> 0 | CM19: =IF($D19>=CM$3,0,IF(SUM($Q19:CL19)=$G19,0,IF($G19*$E19/12<($G19-SUM($Q19:CL19)),$G19*$E19/12,($G19-SUM($Q19:CL19))))) -> 0 | CN19: =IF($D19>=CN$3,0,IF(SUM($Q19:CM19)=$G19,0,IF($G19*$E19/12<($G19-SUM($Q19:CM19)),$G19*$E19/12,($G19-SUM($Q19:CM19))))) -> 0 | CO19: =IF($D19>=CO$3,0,IF(SUM($Q19:CN19)=$G19,0,IF($G19*$E19/12<($G19-SUM($Q19:CN19)),$G19*$E19/12,($G19-SUM($Q19:CN19))))) -> 0 | CP19: =IF($D19>=CP$3,0,IF(SUM($Q19:CO19)=$G19,0,IF($G19*$E19/12<($G19-SUM($Q19:CO19)),$G19*$E19/12,($G19-SUM($Q19:CO19))))) -> 0 | CQ19: =IF($D19>=CQ$3,0,IF(SUM($Q19:CP19)=$G19,0,IF($G19*$E19/12<($G19-SUM($Q19:CP19)),$G19*$E19/12,($G19-SUM($Q19:CP19))))) -> 0 | CR19: =IF($D19>=CR$3,0,IF(SUM($Q19:CQ19)=$G19,0,IF($G19*$E19/12<($G19-SUM($Q19:CQ19)),$G19*$E19/12,($G19-SUM($Q19:CQ19))))) -> 0 | CS19: =IF($D19>=CS$3,0,IF(SUM($Q19:CR19)=$G19,0,IF($G19*$E19/12<($G19-SUM($Q19:CR19)),$G19*$E19/12,($G19-SUM($Q19:CR19))))) -> 0 | CT19: =IF($D19>=CT$3,0,IF(SUM($Q19:CS19)=$G19,0,IF($G19*$E19/12<($G19-SUM($Q19:CS19)),$G19*$E19/12,($G19-SUM($Q19:CS19))))) -> 0 | CU19: =IF($D19>=CU$3,0,IF(SUM($Q19:CT19)=$G19,0,IF($G19*$E19/12<($G19-SUM($Q19:CT19)),$G19*$E19/12,($G19-SUM($Q19:CT19))))) -> 0 | CV19: =IF($D19>=CV$3,0,IF(SUM($Q19:CU19)=$G19,0,IF($G19*$E19/12<($G19-SUM($Q19:CU19)),$G19*$E19/12,($G19-SUM($Q19:CU19))))) -> 0
A20: =IF(D20<EOMONTH($D$2,-12),"Fuera de plazo",IF(D20>BALANCE!$J$3,"Fuera de plazo","")) ->  | B20: Otros | D20: 2018-01-31 | E20: 0.18 | F20: 0.21 | G20: =IF(YEAR(D20)<=YEAR($D$2),C20*RIESGO!$C$4,C20*RIESGO!$C$4*(1+CONTROL!$H$4)^(YEAR(D20)-YEAR($D$2))) -> 0 | H20: 0 | I20: 0 | J20: 0 | K20: 0 | L20: 0 | M20: 0 | N20: 0 | O20: 0 | Q20: 0 | R20: =IF($D20>=R$3,0,IF(SUM($Q20:Q20)=$G20,0,IF($G20*$E20/12<($G20-SUM($Q20:Q20)),$G20*$E20/12,($G20-SUM($Q20:Q20))))) -> 0 | S20: =IF($D20>=S$3,0,IF(SUM($Q20:R20)=$G20,0,IF($G20*$E20/12<($G20-SUM($Q20:R20)),$G20*$E20/12,($G20-SUM($Q20:R20))))) -> 0 | T20: =IF($D20>=T$3,0,IF(SUM($Q20:S20)=$G20,0,IF($G20*$E20/12<($G20-SUM($Q20:S20)),$G20*$E20/12,($G20-SUM($Q20:S20))))) -> 0 | U20: =IF($D20>=U$3,0,IF(SUM($Q20:T20)=$G20,0,IF($G20*$E20/12<($G20-SUM($Q20:T20)),$G20*$E20/12,($G20-SUM($Q20:T20))))) -> 0 | V20: =IF($D20>=V$3,0,IF(SUM($Q20:U20)=$G20,0,IF($G20*$E20/12<($G20-SUM($Q20:U20)),$G20*$E20/12,($G20-SUM($Q20:U20))))) -> 0 | W20: =IF($D20>=W$3,0,IF(SUM($Q20:V20)=$G20,0,IF($G20*$E20/12<($G20-SUM($Q20:V20)),$G20*$E20/12,($G20-SUM($Q20:V20))))) -> 0 | X20: =IF($D20>=X$3,0,IF(SUM($Q20:W20)=$G20,0,IF($G20*$E20/12<($G20-SUM($Q20:W20)),$G20*$E20/12,($G20-SUM($Q20:W20))))) -> 0 | Y20: =IF($D20>=Y$3,0,IF(SUM($Q20:X20)=$G20,0,IF($G20*$E20/12<($G20-SUM($Q20:X20)),$G20*$E20/12,($G20-SUM($Q20:X20))))) -> 0 | Z20: =IF($D20>=Z$3,0,IF(SUM($Q20:Y20)=$G20,0,IF($G20*$E20/12<($G20-SUM($Q20:Y20)),$G20*$E20/12,($G20-SUM($Q20:Y20))))) -> 0 | AA20: =IF($D20>=AA$3,0,IF(SUM($Q20:Z20)=$G20,0,IF($G20*$E20/12<($G20-SUM($Q20:Z20)),$G20*$E20/12,($G20-SUM($Q20:Z20))))) -> 0 | AB20: =IF($D20>=AB$3,0,IF(SUM($Q20:AA20)=$G20,0,IF($G20*$E20/12<($G20-SUM($Q20:AA20)),$G20*$E20/12,($G20-SUM($Q20:AA20))))) -> 0 | AC20: =IF($D20>=AC$3,0,IF(SUM($Q20:AB20)=$G20,0,IF($G20*$E20/12<($G20-SUM($Q20:AB20)),$G20*$E20/12,($G20-SUM($Q20:AB20))))) -> 0 | AD20: =IF($D20>=AD$3,0,IF(SUM($Q20:AC20)=$G20,0,IF($G20*$E20/12<($G20-SUM($Q20:AC20)),$G20*$E20/12,($G20-SUM($Q20:AC20))))) -> 0 | AE20: =IF($D20>=AE$3,0,IF(SUM($Q20:AD20)=$G20,0,IF($G20*$E20/12<($G20-SUM($Q20:AD20)),$G20*$E20/12,($G20-SUM($Q20:AD20))))) -> 0 | AF20: =IF($D20>=AF$3,0,IF(SUM($Q20:AE20)=$G20,0,IF($G20*$E20/12<($G20-SUM($Q20:AE20)),$G20*$E20/12,($G20-SUM($Q20:AE20))))) -> 0 | AG20: =IF($D20>=AG$3,0,IF(SUM($Q20:AF20)=$G20,0,IF($G20*$E20/12<($G20-SUM($Q20:AF20)),$G20*$E20/12,($G20-SUM($Q20:AF20))))) -> 0 | AH20: =IF($D20>=AH$3,0,IF(SUM($Q20:AG20)=$G20,0,IF($G20*$E20/12<($G20-SUM($Q20:AG20)),$G20*$E20/12,($G20-SUM($Q20:AG20))))) -> 0 | AI20: =IF($D20>=AI$3,0,IF(SUM($Q20:AH20)=$G20,0,IF($G20*$E20/12<($G20-SUM($Q20:AH20)),$G20*$E20/12,($G20-SUM($Q20:AH20))))) -> 0 | AJ20: =IF($D20>=AJ$3,0,IF(SUM($Q20:AI20)=$G20,0,IF($G20*$E20/12<($G20-SUM($Q20:AI20)),$G20*$E20/12,($G20-SUM($Q20:AI20))))) -> 0 | AK20: =IF($D20>=AK$3,0,IF(SUM($Q20:AJ20)=$G20,0,IF($G20*$E20/12<($G20-SUM($Q20:AJ20)),$G20*$E20/12,($G20-SUM($Q20:AJ20))))) -> 0 | AL20: =IF($D20>=AL$3,0,IF(SUM($Q20:AK20)=$G20,0,IF($G20*$E20/12<($G20-SUM($Q20:AK20)),$G20*$E20/12,($G20-SUM($Q20:AK20))))) -> 0 | AM20: =IF($D20>=AM$3,0,IF(SUM($Q20:AL20)=$G20,0,IF($G20*$E20/12<($G20-SUM($Q20:AL20)),$G20*$E20/12,($G20-SUM($Q20:AL20))))) -> 0 | AN20: =IF($D20>=AN$3,0,IF(SUM($Q20:AM20)=$G20,0,IF($G20*$E20/12<($G20-SUM($Q20:AM20)),$G20*$E20/12,($G20-SUM($Q20:AM20))))) -> 0 | AO20: =IF($D20>=AO$3,0,IF(SUM($Q20:AN20)=$G20,0,IF($G20*$E20/12<($G20-SUM($Q20:AN20)),$G20*$E20/12,($G20-SUM($Q20:AN20))))) -> 0 | AP20: =IF($D20>=AP$3,0,IF(SUM($Q20:AO20)=$G20,0,IF($G20*$E20/12<($G20-SUM($Q20:AO20)),$G20*$E20/12,($G20-SUM($Q20:AO20))))) -> 0 | AQ20: =IF($D20>=AQ$3,0,IF(SUM($Q20:AP20)=$G20,0,IF($G20*$E20/12<($G20-SUM($Q20:AP20)),$G20*$E20/12,($G20-SUM($Q20:AP20))))) -> 0 | AR20: =IF($D20>=AR$3,0,IF(SUM($Q20:AQ20)=$G20,0,IF($G20*$E20/12<($G20-SUM($Q20:AQ20)),$G20*$E20/12,($G20-SUM($Q20:AQ20))))) -> 0 | AS20: =IF($D20>=AS$3,0,IF(SUM($Q20:AR20)=$G20,0,IF($G20*$E20/12<($G20-SUM($Q20:AR20)),$G20*$E20/12,($G20-SUM($Q20:AR20))))) -> 0 | AT20: =IF($D20>=AT$3,0,IF(SUM($Q20:AS20)=$G20,0,IF($G20*$E20/12<($G20-SUM($Q20:AS20)),$G20*$E20/12,($G20-SUM($Q20:AS20))))) -> 0 | AU20: =IF($D20>=AU$3,0,IF(SUM($Q20:AT20)=$G20,0,IF($G20*$E20/12<($G20-SUM($Q20:AT20)),$G20*$E20/12,($G20-SUM($Q20:AT20))))) -> 0 | AV20: =IF($D20>=AV$3,0,IF(SUM($Q20:AU20)=$G20,0,IF($G20*$E20/12<($G20-SUM($Q20:AU20)),$G20*$E20/12,($G20-SUM($Q20:AU20))))) -> 0 | AW20: =IF($D20>=AW$3,0,IF(SUM($Q20:AV20)=$G20,0,IF($G20*$E20/12<($G20-SUM($Q20:AV20)),$G20*$E20/12,($G20-SUM($Q20:AV20))))) -> 0 | AX20: =IF($D20>=AX$3,0,IF(SUM($Q20:AW20)=$G20,0,IF($G20*$E20/12<($G20-SUM($Q20:AW20)),$G20*$E20/12,($G20-SUM($Q20:AW20))))) -> 0 | AY20: =IF($D20>=AY$3,0,IF(SUM($Q20:AX20)=$G20,0,IF($G20*$E20/12<($G20-SUM($Q20:AX20)),$G20*$E20/12,($G20-SUM($Q20:AX20))))) -> 0 | AZ20: =IF($D20>=AZ$3,0,IF(SUM($Q20:AY20)=$G20,0,IF($G20*$E20/12<($G20-SUM($Q20:AY20)),$G20*$E20/12,($G20-SUM($Q20:AY20))))) -> 0 | BA20: =IF($D20>=BA$3,0,IF(SUM($Q20:AZ20)=$G20,0,IF($G20*$E20/12<($G20-SUM($Q20:AZ20)),$G20*$E20/12,($G20-SUM($Q20:AZ20))))) -> 0 | BB20: =IF($D20>=BB$3,0,IF(SUM($Q20:BA20)=$G20,0,IF($G20*$E20/12<($G20-SUM($Q20:BA20)),$G20*$E20/12,($G20-SUM($Q20:BA20))))) -> 0 | BC20: =IF($D20>=BC$3,0,IF(SUM($Q20:BB20)=$G20,0,IF($G20*$E20/12<($G20-SUM($Q20:BB20)),$G20*$E20/12,($G20-SUM($Q20:BB20))))) -> 0 | BD20: =IF($D20>=BD$3,0,IF(SUM($Q20:BC20)=$G20,0,IF($G20*$E20/12<($G20-SUM($Q20:BC20)),$G20*$E20/12,($G20-SUM($Q20:BC20))))) -> 0 | BE20: =IF($D20>=BE$3,0,IF(SUM($Q20:BD20)=$G20,0,IF($G20*$E20/12<($G20-SUM($Q20:BD20)),$G20*$E20/12,($G20-SUM($Q20:BD20))))) -> 0 | BF20: =IF($D20>=BF$3,0,IF(SUM($Q20:BE20)=$G20,0,IF($G20*$E20/12<($G20-SUM($Q20:BE20)),$G20*$E20/12,($G20-SUM($Q20:BE20))))) -> 0 | BG20: =IF($D20>=BG$3,0,IF(SUM($Q20:BF20)=$G20,0,IF($G20*$E20/12<($G20-SUM($Q20:BF20)),$G20*$E20/12,($G20-SUM($Q20:BF20))))) -> 0 | BH20: =IF($D20>=BH$3,0,IF(SUM($Q20:BG20)=$G20,0,IF($G20*$E20/12<($G20-SUM($Q20:BG20)),$G20*$E20/12,($G20-SUM($Q20:BG20))))) -> 0 | BI20: =IF($D20>=BI$3,0,IF(SUM($Q20:BH20)=$G20,0,IF($G20*$E20/12<($G20-SUM($Q20:BH20)),$G20*$E20/12,($G20-SUM($Q20:BH20))))) -> 0 | BJ20: =IF($D20>=BJ$3,0,IF(SUM($Q20:BI20)=$G20,0,IF($G20*$E20/12<($G20-SUM($Q20:BI20)),$G20*$E20/12,($G20-SUM($Q20:BI20))))) -> 0 | BK20: =IF($D20>=BK$3,0,IF(SUM($Q20:BJ20)=$G20,0,IF($G20*$E20/12<($G20-SUM($Q20:BJ20)),$G20*$E20/12,($G20-SUM($Q20:BJ20))))) -> 0 | BL20: =IF($D20>=BL$3,0,IF(SUM($Q20:BK20)=$G20,0,IF($G20*$E20/12<($G20-SUM($Q20:BK20)),$G20*$E20/12,($G20-SUM($Q20:BK20))))) -> 0 | BM20: =IF($D20>=BM$3,0,IF(SUM($Q20:BL20)=$G20,0,IF($G20*$E20/12<($G20-SUM($Q20:BL20)),$G20*$E20/12,($G20-SUM($Q20:BL20))))) -> 0 | BN20: =IF($D20>=BN$3,0,IF(SUM($Q20:BM20)=$G20,0,IF($G20*$E20/12<($G20-SUM($Q20:BM20)),$G20*$E20/12,($G20-SUM($Q20:BM20))))) -> 0 | BO20: =IF($D20>=BO$3,0,IF(SUM($Q20:BN20)=$G20,0,IF($G20*$E20/12<($G20-SUM($Q20:BN20)),$G20*$E20/12,($G20-SUM($Q20:BN20))))) -> 0 | BP20: =IF($D20>=BP$3,0,IF(SUM($Q20:BO20)=$G20,0,IF($G20*$E20/12<($G20-SUM($Q20:BO20)),$G20*$E20/12,($G20-SUM($Q20:BO20))))) -> 0 | BQ20: =IF($D20>=BQ$3,0,IF(SUM($Q20:BP20)=$G20,0,IF($G20*$E20/12<($G20-SUM($Q20:BP20)),$G20*$E20/12,($G20-SUM($Q20:BP20))))) -> 0 | BR20: =IF($D20>=BR$3,0,IF(SUM($Q20:BQ20)=$G20,0,IF($G20*$E20/12<($G20-SUM($Q20:BQ20)),$G20*$E20/12,($G20-SUM($Q20:BQ20))))) -> 0 | BS20: =IF($D20>=BS$3,0,IF(SUM($Q20:BR20)=$G20,0,IF($G20*$E20/12<($G20-SUM($Q20:BR20)),$G20*$E20/12,($G20-SUM($Q20:BR20))))) -> 0 | BT20: =IF($D20>=BT$3,0,IF(SUM($Q20:BS20)=$G20,0,IF($G20*$E20/12<($G20-SUM($Q20:BS20)),$G20*$E20/12,($G20-SUM($Q20:BS20))))) -> 0 | BU20: =IF($D20>=BU$3,0,IF(SUM($Q20:BT20)=$G20,0,IF($G20*$E20/12<($G20-SUM($Q20:BT20)),$G20*$E20/12,($G20-SUM($Q20:BT20))))) -> 0 | BV20: =IF($D20>=BV$3,0,IF(SUM($Q20:BU20)=$G20,0,IF($G20*$E20/12<($G20-SUM($Q20:BU20)),$G20*$E20/12,($G20-SUM($Q20:BU20))))) -> 0 | BW20: =IF($D20>=BW$3,0,IF(SUM($Q20:BV20)=$G20,0,IF($G20*$E20/12<($G20-SUM($Q20:BV20)),$G20*$E20/12,($G20-SUM($Q20:BV20))))) -> 0 | BX20: =IF($D20>=BX$3,0,IF(SUM($Q20:BW20)=$G20,0,IF($G20*$E20/12<($G20-SUM($Q20:BW20)),$G20*$E20/12,($G20-SUM($Q20:BW20))))) -> 0 | BY20: =IF($D20>=BY$3,0,IF(SUM($Q20:BX20)=$G20,0,IF($G20*$E20/12<($G20-SUM($Q20:BX20)),$G20*$E20/12,($G20-SUM($Q20:BX20))))) -> 0 | BZ20: =IF($D20>=BZ$3,0,IF(SUM($Q20:BY20)=$G20,0,IF($G20*$E20/12<($G20-SUM($Q20:BY20)),$G20*$E20/12,($G20-SUM($Q20:BY20))))) -> 0 | CA20: =IF($D20>=CA$3,0,IF(SUM($Q20:BZ20)=$G20,0,IF($G20*$E20/12<($G20-SUM($Q20:BZ20)),$G20*$E20/12,($G20-SUM($Q20:BZ20))))) -> 0 | CB20: =IF($D20>=CB$3,0,IF(SUM($Q20:CA20)=$G20,0,IF($G20*$E20/12<($G20-SUM($Q20:CA20)),$G20*$E20/12,($G20-SUM($Q20:CA20))))) -> 0 | CC20: =IF($D20>=CC$3,0,IF(SUM($Q20:CB20)=$G20,0,IF($G20*$E20/12<($G20-SUM($Q20:CB20)),$G20*$E20/12,($G20-SUM($Q20:CB20))))) -> 0 | CD20: =IF($D20>=CD$3,0,IF(SUM($Q20:CC20)=$G20,0,IF($G20*$E20/12<($G20-SUM($Q20:CC20)),$G20*$E20/12,($G20-SUM($Q20:CC20))))) -> 0 | CE20: =IF($D20>=CE$3,0,IF(SUM($Q20:CD20)=$G20,0,IF($G20*$E20/12<($G20-SUM($Q20:CD20)),$G20*$E20/12,($G20-SUM($Q20:CD20))))) -> 0 | CF20: =IF($D20>=CF$3,0,IF(SUM($Q20:CE20)=$G20,0,IF($G20*$E20/12<($G20-SUM($Q20:CE20)),$G20*$E20/12,($G20-SUM($Q20:CE20))))) -> 0 | CG20: =IF($D20>=CG$3,0,IF(SUM($Q20:CF20)=$G20,0,IF($G20*$E20/12<($G20-SUM($Q20:CF20)),$G20*$E20/12,($G20-SUM($Q20:CF20))))) -> 0 | CH20: =IF($D20>=CH$3,0,IF(SUM($Q20:CG20)=$G20,0,IF($G20*$E20/12<($G20-SUM($Q20:CG20)),$G20*$E20/12,($G20-SUM($Q20:CG20))))) -> 0 | CI20: =IF($D20>=CI$3,0,IF(SUM($Q20:CH20)=$G20,0,IF($G20*$E20/12<($G20-SUM($Q20:CH20)),$G20*$E20/12,($G20-SUM($Q20:CH20))))) -> 0 | CJ20: =IF($D20>=CJ$3,0,IF(SUM($Q20:CI20)=$G20,0,IF($G20*$E20/12<($G20-SUM($Q20:CI20)),$G20*$E20/12,($G20-SUM($Q20:CI20))))) -> 0 | CK20: =IF($D20>=CK$3,0,IF(SUM($Q20:CJ20)=$G20,0,IF($G20*$E20/12<($G20-SUM($Q20:CJ20)),$G20*$E20/12,($G20-SUM($Q20:CJ20))))) -> 0 | CL20: =IF($D20>=CL$3,0,IF(SUM($Q20:CK20)=$G20,0,IF($G20*$E20/12<($G20-SUM($Q20:CK20)),$G20*$E20/12,($G20-SUM($Q20:CK20))))) -> 0 | CM20: =IF($D20>=CM$3,0,IF(SUM($Q20:CL20)=$G20,0,IF($G20*$E20/12<($G20-SUM($Q20:CL20)),$G20*$E20/12,($G20-SUM($Q20:CL20))))) -> 0 | CN20: =IF($D20>=CN$3,0,IF(SUM($Q20:CM20)=$G20,0,IF($G20*$E20/12<($G20-SUM($Q20:CM20)),$G20*$E20/12,($G20-SUM($Q20:CM20))))) -> 0 | CO20: =IF($D20>=CO$3,0,IF(SUM($Q20:CN20)=$G20,0,IF($G20*$E20/12<($G20-SUM($Q20:CN20)),$G20*$E20/12,($G20-SUM($Q20:CN20))))) -> 0 | CP20: =IF($D20>=CP$3,0,IF(SUM($Q20:CO20)=$G20,0,IF($G20*$E20/12<($G20-SUM($Q20:CO20)),$G20*$E20/12,($G20-SUM($Q20:CO20))))) -> 0 | CQ20: =IF($D20>=CQ$3,0,IF(SUM($Q20:CP20)=$G20,0,IF($G20*$E20/12<($G20-SUM($Q20:CP20)),$G20*$E20/12,($G20-SUM($Q20:CP20))))) -> 0 | CR20: =IF($D20>=CR$3,0,IF(SUM($Q20:CQ20)=$G20,0,IF($G20*$E20/12<($G20-SUM($Q20:CQ20)),$G20*$E20/12,($G20-SUM($Q20:CQ20))))) -> 0 | CS20: =IF($D20>=CS$3,0,IF(SUM($Q20:CR20)=$G20,0,IF($G20*$E20/12<($G20-SUM($Q20:CR20)),$G20*$E20/12,($G20-SUM($Q20:CR20))))) -> 0 | CT20: =IF($D20>=CT$3,0,IF(SUM($Q20:CS20)=$G20,0,IF($G20*$E20/12<($G20-SUM($Q20:CS20)),$G20*$E20/12,($G20-SUM($Q20:CS20))))) -> 0 | CU20: =IF($D20>=CU$3,0,IF(SUM($Q20:CT20)=$G20,0,IF($G20*$E20/12<($G20-SUM($Q20:CT20)),$G20*$E20/12,($G20-SUM($Q20:CT20))))) -> 0 | CV20: =IF($D20>=CV$3,0,IF(SUM($Q20:CU20)=$G20,0,IF($G20*$E20/12<($G20-SUM($Q20:CU20)),$G20*$E20/12,($G20-SUM($Q20:CU20))))) -> 0
B21: INMOVILIZADO INTANGIBLE
A22: =IF(D22<EOMONTH($D$2,-12),"Fuera de plazo",IF(D22>BALANCE!$J$3,"Fuera de plazo","")) ->  | B22: Patentes | D22: 2013-11-30 | E22: 0.2 | F22: 0.21 | G22: =IF(YEAR(D22)<=YEAR($D$2),C22*RIESGO!$C$4,C22*RIESGO!$C$4*(1+CONTROL!$H$4)^(YEAR(D22)-YEAR($D$2))) -> 0 | H22: =G22*F22 -> 0 | I22: =SUMIF($Q$2:$CV$2,I$3,$Q22:$CV22) -> 0 | J22: 0 | K22: 0 | L22: 0 | M22: 0 | N22: 0 | O22: 0 | Q22: 0 | R22: =IF($D22>=R$3,0,IF(SUM($Q22:Q22)=$G22,0,IF($G22*$E22/12<($G22-SUM($Q22:Q22)),$G22*$E22/12,($G22-SUM($Q22:Q22))))) -> 0 | S22: =IF($D22>=S$3,0,IF(SUM($Q22:R22)=$G22,0,IF($G22*$E22/12<($G22-SUM($Q22:R22)),$G22*$E22/12,($G22-SUM($Q22:R22))))) -> 0 | T22: =IF($D22>=T$3,0,IF(SUM($Q22:S22)=$G22,0,IF($G22*$E22/12<($G22-SUM($Q22:S22)),$G22*$E22/12,($G22-SUM($Q22:S22))))) -> 0 | U22: =IF($D22>=U$3,0,IF(SUM($Q22:T22)=$G22,0,IF($G22*$E22/12<($G22-SUM($Q22:T22)),$G22*$E22/12,($G22-SUM($Q22:T22))))) -> 0 | V22: =IF($D22>=V$3,0,IF(SUM($Q22:U22)=$G22,0,IF($G22*$E22/12<($G22-SUM($Q22:U22)),$G22*$E22/12,($G22-SUM($Q22:U22))))) -> 0 | W22: =IF($D22>=W$3,0,IF(SUM($Q22:V22)=$G22,0,IF($G22*$E22/12<($G22-SUM($Q22:V22)),$G22*$E22/12,($G22-SUM($Q22:V22))))) -> 0 | X22: =IF($D22>=X$3,0,IF(SUM($Q22:W22)=$G22,0,IF($G22*$E22/12<($G22-SUM($Q22:W22)),$G22*$E22/12,($G22-SUM($Q22:W22))))) -> 0 | Y22: =IF($D22>=Y$3,0,IF(SUM($Q22:X22)=$G22,0,IF($G22*$E22/12<($G22-SUM($Q22:X22)),$G22*$E22/12,($G22-SUM($Q22:X22))))) -> 0 | Z22: =IF($D22>=Z$3,0,IF(SUM($Q22:Y22)=$G22,0,IF($G22*$E22/12<($G22-SUM($Q22:Y22)),$G22*$E22/12,($G22-SUM($Q22:Y22))))) -> 0 | AA22: =IF($D22>=AA$3,0,IF(SUM($Q22:Z22)=$G22,0,IF($G22*$E22/12<($G22-SUM($Q22:Z22)),$G22*$E22/12,($G22-SUM($Q22:Z22))))) -> 0 | AB22: =IF($D22>=AB$3,0,IF(SUM($Q22:AA22)=$G22,0,IF($G22*$E22/12<($G22-SUM($Q22:AA22)),$G22*$E22/12,($G22-SUM($Q22:AA22))))) -> 0 | AC22: =IF($D22>=AC$3,0,IF(SUM($Q22:AB22)=$G22,0,IF($G22*$E22/12<($G22-SUM($Q22:AB22)),$G22*$E22/12,($G22-SUM($Q22:AB22))))) -> 0 | AD22: =IF($D22>=AD$3,0,IF(SUM($Q22:AC22)=$G22,0,IF($G22*$E22/12<($G22-SUM($Q22:AC22)),$G22*$E22/12,($G22-SUM($Q22:AC22))))) -> 0 | AE22: =IF($D22>=AE$3,0,IF(SUM($Q22:AD22)=$G22,0,IF($G22*$E22/12<($G22-SUM($Q22:AD22)),$G22*$E22/12,($G22-SUM($Q22:AD22))))) -> 0 | AF22: =IF($D22>=AF$3,0,IF(SUM($Q22:AE22)=$G22,0,IF($G22*$E22/12<($G22-SUM($Q22:AE22)),$G22*$E22/12,($G22-SUM($Q22:AE22))))) -> 0 | AG22: =IF($D22>=AG$3,0,IF(SUM($Q22:AF22)=$G22,0,IF($G22*$E22/12<($G22-SUM($Q22:AF22)),$G22*$E22/12,($G22-SUM($Q22:AF22))))) -> 0 | AH22: =IF($D22>=AH$3,0,IF(SUM($Q22:AG22)=$G22,0,IF($G22*$E22/12<($G22-SUM($Q22:AG22)),$G22*$E22/12,($G22-SUM($Q22:AG22))))) -> 0 | AI22: =IF($D22>=AI$3,0,IF(SUM($Q22:AH22)=$G22,0,IF($G22*$E22/12<($G22-SUM($Q22:AH22)),$G22*$E22/12,($G22-SUM($Q22:AH22))))) -> 0 | AJ22: =IF($D22>=AJ$3,0,IF(SUM($Q22:AI22)=$G22,0,IF($G22*$E22/12<($G22-SUM($Q22:AI22)),$G22*$E22/12,($G22-SUM($Q22:AI22))))) -> 0 | AK22: =IF($D22>=AK$3,0,IF(SUM($Q22:AJ22)=$G22,0,IF($G22*$E22/12<($G22-SUM($Q22:AJ22)),$G22*$E22/12,($G22-SUM($Q22:AJ22))))) -> 0 | AL22: =IF($D22>=AL$3,0,IF(SUM($Q22:AK22)=$G22,0,IF($G22*$E22/12<($G22-SUM($Q22:AK22)),$G22*$E22/12,($G22-SUM($Q22:AK22))))) -> 0 | AM22: =IF($D22>=AM$3,0,IF(SUM($Q22:AL22)=$G22,0,IF($G22*$E22/12<($G22-SUM($Q22:AL22)),$G22*$E22/12,($G22-SUM($Q22:AL22))))) -> 0 | AN22: =IF($D22>=AN$3,0,IF(SUM($Q22:AM22)=$G22,0,IF($G22*$E22/12<($G22-SUM($Q22:AM22)),$G22*$E22/12,($G22-SUM($Q22:AM22))))) -> 0 | AO22: =IF($D22>=AO$3,0,IF(SUM($Q22:AN22)=$G22,0,IF($G22*$E22/12<($G22-SUM($Q22:AN22)),$G22*$E22/12,($G22-SUM($Q22:AN22))))) -> 0 | AP22: =IF($D22>=AP$3,0,IF(SUM($Q22:AO22)=$G22,0,IF($G22*$E22/12<($G22-SUM($Q22:AO22)),$G22*$E22/12,($G22-SUM($Q22:AO22))))) -> 0 | AQ22: =IF($D22>=AQ$3,0,IF(SUM($Q22:AP22)=$G22,0,IF($G22*$E22/12<($G22-SUM($Q22:AP22)),$G22*$E22/12,($G22-SUM($Q22:AP22))))) -> 0 | AR22: =IF($D22>=AR$3,0,IF(SUM($Q22:AQ22)=$G22,0,IF($G22*$E22/12<($G22-SUM($Q22:AQ22)),$G22*$E22/12,($G22-SUM($Q22:AQ22))))) -> 0 | AS22: =IF($D22>=AS$3,0,IF(SUM($Q22:AR22)=$G22,0,IF($G22*$E22/12<($G22-SUM($Q22:AR22)),$G22*$E22/12,($G22-SUM($Q22:AR22))))) -> 0 | AT22: =IF($D22>=AT$3,0,IF(SUM($Q22:AS22)=$G22,0,IF($G22*$E22/12<($G22-SUM($Q22:AS22)),$G22*$E22/12,($G22-SUM($Q22:AS22))))) -> 0 | AU22: =IF($D22>=AU$3,0,IF(SUM($Q22:AT22)=$G22,0,IF($G22*$E22/12<($G22-SUM($Q22:AT22)),$G22*$E22/12,($G22-SUM($Q22:AT22))))) -> 0 | AV22: =IF($D22>=AV$3,0,IF(SUM($Q22:AU22)=$G22,0,IF($G22*$E22/12<($G22-SUM($Q22:AU22)),$G22*$E22/12,($G22-SUM($Q22:AU22))))) -> 0 | AW22: =IF($D22>=AW$3,0,IF(SUM($Q22:AV22)=$G22,0,IF($G22*$E22/12<($G22-SUM($Q22:AV22)),$G22*$E22/12,($G22-SUM($Q22:AV22))))) -> 0 | AX22: =IF($D22>=AX$3,0,IF(SUM($Q22:AW22)=$G22,0,IF($G22*$E22/12<($G22-SUM($Q22:AW22)),$G22*$E22/12,($G22-SUM($Q22:AW22))))) -> 0 | AY22: =IF($D22>=AY$3,0,IF(SUM($Q22:AX22)=$G22,0,IF($G22*$E22/12<($G22-SUM($Q22:AX22)),$G22*$E22/12,($G22-SUM($Q22:AX22))))) -> 0 | AZ22: =IF($D22>=AZ$3,0,IF(SUM($Q22:AY22)=$G22,0,IF($G22*$E22/12<($G22-SUM($Q22:AY22)),$G22*$E22/12,($G22-SUM($Q22:AY22))))) -> 0 | BA22: =IF($D22>=BA$3,0,IF(SUM($Q22:AZ22)=$G22,0,IF($G22*$E22/12<($G22-SUM($Q22:AZ22)),$G22*$E22/12,($G22-SUM($Q22:AZ22))))) -> 0 | BB22: =IF($D22>=BB$3,0,IF(SUM($Q22:BA22)=$G22,0,IF($G22*$E22/12<($G22-SUM($Q22:BA22)),$G22*$E22/12,($G22-SUM($Q22:BA22))))) -> 0 | BC22: =IF($D22>=BC$3,0,IF(SUM($Q22:BB22)=$G22,0,IF($G22*$E22/12<($G22-SUM($Q22:BB22)),$G22*$E22/12,($G22-SUM($Q22:BB22))))) -> 0 | BD22: =IF($D22>=BD$3,0,IF(SUM($Q22:BC22)=$G22,0,IF($G22*$E22/12<($G22-SUM($Q22:BC22)),$G22*$E22/12,($G22-SUM($Q22:BC22))))) -> 0 | BE22: =IF($D22>=BE$3,0,IF(SUM($Q22:BD22)=$G22,0,IF($G22*$E22/12<($G22-SUM($Q22:BD22)),$G22*$E22/12,($G22-SUM($Q22:BD22))))) -> 0 | BF22: =IF($D22>=BF$3,0,IF(SUM($Q22:BE22)=$G22,0,IF($G22*$E22/12<($G22-SUM($Q22:BE22)),$G22*$E22/12,($G22-SUM($Q22:BE22))))) -> 0 | BG22: =IF($D22>=BG$3,0,IF(SUM($Q22:BF22)=$G22,0,IF($G22*$E22/12<($G22-SUM($Q22:BF22)),$G22*$E22/12,($G22-SUM($Q22:BF22))))) -> 0 | BH22: =IF($D22>=BH$3,0,IF(SUM($Q22:BG22)=$G22,0,IF($G22*$E22/12<($G22-SUM($Q22:BG22)),$G22*$E22/12,($G22-SUM($Q22:BG22))))) -> 0 | BI22: =IF($D22>=BI$3,0,IF(SUM($Q22:BH22)=$G22,0,IF($G22*$E22/12<($G22-SUM($Q22:BH22)),$G22*$E22/12,($G22-SUM($Q22:BH22))))) -> 0 | BJ22: =IF($D22>=BJ$3,0,IF(SUM($Q22:BI22)=$G22,0,IF($G22*$E22/12<($G22-SUM($Q22:BI22)),$G22*$E22/12,($G22-SUM($Q22:BI22))))) -> 0 | BK22: =IF($D22>=BK$3,0,IF(SUM($Q22:BJ22)=$G22,0,IF($G22*$E22/12<($G22-SUM($Q22:BJ22)),$G22*$E22/12,($G22-SUM($Q22:BJ22))))) -> 0 | BL22: =IF($D22>=BL$3,0,IF(SUM($Q22:BK22)=$G22,0,IF($G22*$E22/12<($G22-SUM($Q22:BK22)),$G22*$E22/12,($G22-SUM($Q22:BK22))))) -> 0 | BM22: =IF($D22>=BM$3,0,IF(SUM($Q22:BL22)=$G22,0,IF($G22*$E22/12<($G22-SUM($Q22:BL22)),$G22*$E22/12,($G22-SUM($Q22:BL22))))) -> 0 | BN22: =IF($D22>=BN$3,0,IF(SUM($Q22:BM22)=$G22,0,IF($G22*$E22/12<($G22-SUM($Q22:BM22)),$G22*$E22/12,($G22-SUM($Q22:BM22))))) -> 0 | BO22: =IF($D22>=BO$3,0,IF(SUM($Q22:BN22)=$G22,0,IF($G22*$E22/12<($G22-SUM($Q22:BN22)),$G22*$E22/12,($G22-SUM($Q22:BN22))))) -> 0 | BP22: =IF($D22>=BP$3,0,IF(SUM($Q22:BO22)=$G22,0,IF($G22*$E22/12<($G22-SUM($Q22:BO22)),$G22*$E22/12,($G22-SUM($Q22:BO22))))) -> 0 | BQ22: =IF($D22>=BQ$3,0,IF(SUM($Q22:BP22)=$G22,0,IF($G22*$E22/12<($G22-SUM($Q22:BP22)),$G22*$E22/12,($G22-SUM($Q22:BP22))))) -> 0 | BR22: =IF($D22>=BR$3,0,IF(SUM($Q22:BQ22)=$G22,0,IF($G22*$E22/12<($G22-SUM($Q22:BQ22)),$G22*$E22/12,($G22-SUM($Q22:BQ22))))) -> 0 | BS22: =IF($D22>=BS$3,0,IF(SUM($Q22:BR22)=$G22,0,IF($G22*$E22/12<($G22-SUM($Q22:BR22)),$G22*$E22/12,($G22-SUM($Q22:BR22))))) -> 0 | BT22: =IF($D22>=BT$3,0,IF(SUM($Q22:BS22)=$G22,0,IF($G22*$E22/12<($G22-SUM($Q22:BS22)),$G22*$E22/12,($G22-SUM($Q22:BS22))))) -> 0 | BU22: =IF($D22>=BU$3,0,IF(SUM($Q22:BT22)=$G22,0,IF($G22*$E22/12<($G22-SUM($Q22:BT22)),$G22*$E22/12,($G22-SUM($Q22:BT22))))) -> 0 | BV22: =IF($D22>=BV$3,0,IF(SUM($Q22:BU22)=$G22,0,IF($G22*$E22/12<($G22-SUM($Q22:BU22)),$G22*$E22/12,($G22-SUM($Q22:BU22))))) -> 0 | BW22: =IF($D22>=BW$3,0,IF(SUM($Q22:BV22)=$G22,0,IF($G22*$E22/12<($G22-SUM($Q22:BV22)),$G22*$E22/12,($G22-SUM($Q22:BV22))))) -> 0 | BX22: =IF($D22>=BX$3,0,IF(SUM($Q22:BW22)=$G22,0,IF($G22*$E22/12<($G22-SUM($Q22:BW22)),$G22*$E22/12,($G22-SUM($Q22:BW22))))) -> 0 | BY22: =IF($D22>=BY$3,0,IF(SUM($Q22:BX22)=$G22,0,IF($G22*$E22/12<($G22-SUM($Q22:BX22)),$G22*$E22/12,($G22-SUM($Q22:BX22))))) -> 0 | BZ22: =IF($D22>=BZ$3,0,IF(SUM($Q22:BY22)=$G22,0,IF($G22*$E22/12<($G22-SUM($Q22:BY22)),$G22*$E22/12,($G22-SUM($Q22:BY22))))) -> 0 | CA22: =IF($D22>=CA$3,0,IF(SUM($Q22:BZ22)=$G22,0,IF($G22*$E22/12<($G22-SUM($Q22:BZ22)),$G22*$E22/12,($G22-SUM($Q22:BZ22))))) -> 0 | CB22: =IF($D22>=CB$3,0,IF(SUM($Q22:CA22)=$G22,0,IF($G22*$E22/12<($G22-SUM($Q22:CA22)),$G22*$E22/12,($G22-SUM($Q22:CA22))))) -> 0 | CC22: =IF($D22>=CC$3,0,IF(SUM($Q22:CB22)=$G22,0,IF($G22*$E22/12<($G22-SUM($Q22:CB22)),$G22*$E22/12,($G22-SUM($Q22:CB22))))) -> 0 | CD22: =IF($D22>=CD$3,0,IF(SUM($Q22:CC22)=$G22,0,IF($G22*$E22/12<($G22-SUM($Q22:CC22)),$G22*$E22/12,($G22-SUM($Q22:CC22))))) -> 0 | CE22: =IF($D22>=CE$3,0,IF(SUM($Q22:CD22)=$G22,0,IF($G22*$E22/12<($G22-SUM($Q22:CD22)),$G22*$E22/12,($G22-SUM($Q22:CD22))))) -> 0 | CF22: =IF($D22>=CF$3,0,IF(SUM($Q22:CE22)=$G22,0,IF($G22*$E22/12<($G22-SUM($Q22:CE22)),$G22*$E22/12,($G22-SUM($Q22:CE22))))) -> 0 | CG22: =IF($D22>=CG$3,0,IF(SUM($Q22:CF22)=$G22,0,IF($G22*$E22/12<($G22-SUM($Q22:CF22)),$G22*$E22/12,($G22-SUM($Q22:CF22))))) -> 0 | CH22: =IF($D22>=CH$3,0,IF(SUM($Q22:CG22)=$G22,0,IF($G22*$E22/12<($G22-SUM($Q22:CG22)),$G22*$E22/12,($G22-SUM($Q22:CG22))))) -> 0 | CI22: =IF($D22>=CI$3,0,IF(SUM($Q22:CH22)=$G22,0,IF($G22*$E22/12<($G22-SUM($Q22:CH22)),$G22*$E22/12,($G22-SUM($Q22:CH22))))) -> 0 | CJ22: =IF($D22>=CJ$3,0,IF(SUM($Q22:CI22)=$G22,0,IF($G22*$E22/12<($G22-SUM($Q22:CI22)),$G22*$E22/12,($G22-SUM($Q22:CI22))))) -> 0 | CK22: =IF($D22>=CK$3,0,IF(SUM($Q22:CJ22)=$G22,0,IF($G22*$E22/12<($G22-SUM($Q22:CJ22)),$G22*$E22/12,($G22-SUM($Q22:CJ22))))) -> 0 | CL22: =IF($D22>=CL$3,0,IF(SUM($Q22:CK22)=$G22,0,IF($G22*$E22/12<($G22-SUM($Q22:CK22)),$G22*$E22/12,($G22-SUM($Q22:CK22))))) -> 0 | CM22: =IF($D22>=CM$3,0,IF(SUM($Q22:CL22)=$G22,0,IF($G22*$E22/12<($G22-SUM($Q22:CL22)),$G22*$E22/12,($G22-SUM($Q22:CL22))))) -> 0 | CN22: =IF($D22>=CN$3,0,IF(SUM($Q22:CM22)=$G22,0,IF($G22*$E22/12<($G22-SUM($Q22:CM22)),$G22*$E22/12,($G22-SUM($Q22:CM22))))) -> 0 | CO22: =IF($D22>=CO$3,0,IF(SUM($Q22:CN22)=$G22,0,IF($G22*$E22/12<($G22-SUM($Q22:CN22)),$G22*$E22/12,($G22-SUM($Q22:CN22))))) -> 0 | CP22: =IF($D22>=CP$3,0,IF(SUM($Q22:CO22)=$G22,0,IF($G22*$E22/12<($G22-SUM($Q22:CO22)),$G22*$E22/12,($G22-SUM($Q22:CO22))))) -> 0 | CQ22: =IF($D22>=CQ$3,0,IF(SUM($Q22:CP22)=$G22,0,IF($G22*$E22/12<($G22-SUM($Q22:CP22)),$G22*$E22/12,($G22-SUM($Q22:CP22))))) -> 0 | CR22: =IF($D22>=CR$3,0,IF(SUM($Q22:CQ22)=$G22,0,IF($G22*$E22/12<($G22-SUM($Q22:CQ22)),$G22*$E22/12,($G22-SUM($Q22:CQ22))))) -> 0 | CS22: =IF($D22>=CS$3,0,IF(SUM($Q22:CR22)=$G22,0,IF($G22*$E22/12<($G22-SUM($Q22:CR22)),$G22*$E22/12,($G22-SUM($Q22:CR22))))) -> 0 | CT22: =IF($D22>=CT$3,0,IF(SUM($Q22:CS22)=$G22,0,IF($G22*$E22/12<($G22-SUM($Q22:CS22)),$G22*$E22/12,($G22-SUM($Q22:CS22))))) -> 0 | CU22: =IF($D22>=CU$3,0,IF(SUM($Q22:CT22)=$G22,0,IF($G22*$E22/12<($G22-SUM($Q22:CT22)),$G22*$E22/12,($G22-SUM($Q22:CT22))))) -> 0 | CV22: =IF($D22>=CV$3,0,IF(SUM($Q22:CU22)=$G22,0,IF($G22*$E22/12<($G22-SUM($Q22:CU22)),$G22*$E22/12,($G22-SUM($Q22:CU22))))) -> 0
A23: =IF(D23<EOMONTH($D$2,-12),"Fuera de plazo",IF(D23>BALANCE!$J$3,"Fuera de plazo","")) ->  | B23: Aplicaciones Informáticas | D23: 2013-12-31 | E23: 0.2 | F23: 0.21 | G23: =IF(YEAR(D23)<=YEAR($D$2),C23*RIESGO!$C$4,C23*RIESGO!$C$4*(1+CONTROL!$H$4)^(YEAR(D23)-YEAR($D$2))) -> 0 | H23: 0 | I23: 0 | J23: 0 | K23: 0 | L23: 0 | M23: 0 | N23: 0 | O23: 0 | Q23: 0 | R23: =IF($D23>=R$3,0,IF(SUM($Q23:Q23)=$G23,0,IF($G23*$E23/12<($G23-SUM($Q23:Q23)),$G23*$E23/12,($G23-SUM($Q23:Q23))))) -> 0 | S23: =IF($D23>=S$3,0,IF(SUM($Q23:R23)=$G23,0,IF($G23*$E23/12<($G23-SUM($Q23:R23)),$G23*$E23/12,($G23-SUM($Q23:R23))))) -> 0 | T23: =IF($D23>=T$3,0,IF(SUM($Q23:S23)=$G23,0,IF($G23*$E23/12<($G23-SUM($Q23:S23)),$G23*$E23/12,($G23-SUM($Q23:S23))))) -> 0 | U23: =IF($D23>=U$3,0,IF(SUM($Q23:T23)=$G23,0,IF($G23*$E23/12<($G23-SUM($Q23:T23)),$G23*$E23/12,($G23-SUM($Q23:T23))))) -> 0 | V23: =IF($D23>=V$3,0,IF(SUM($Q23:U23)=$G23,0,IF($G23*$E23/12<($G23-SUM($Q23:U23)),$G23*$E23/12,($G23-SUM($Q23:U23))))) -> 0 | W23: =IF($D23>=W$3,0,IF(SUM($Q23:V23)=$G23,0,IF($G23*$E23/12<($G23-SUM($Q23:V23)),$G23*$E23/12,($G23-SUM($Q23:V23))))) -> 0 | X23: =IF($D23>=X$3,0,IF(SUM($Q23:W23)=$G23,0,IF($G23*$E23/12<($G23-SUM($Q23:W23)),$G23*$E23/12,($G23-SUM($Q23:W23))))) -> 0 | Y23: =IF($D23>=Y$3,0,IF(SUM($Q23:X23)=$G23,0,IF($G23*$E23/12<($G23-SUM($Q23:X23)),$G23*$E23/12,($G23-SUM($Q23:X23))))) -> 0 | Z23: =IF($D23>=Z$3,0,IF(SUM($Q23:Y23)=$G23,0,IF($G23*$E23/12<($G23-SUM($Q23:Y23)),$G23*$E23/12,($G23-SUM($Q23:Y23))))) -> 0 | AA23: =IF($D23>=AA$3,0,IF(SUM($Q23:Z23)=$G23,0,IF($G23*$E23/12<($G23-SUM($Q23:Z23)),$G23*$E23/12,($G23-SUM($Q23:Z23))))) -> 0 | AB23: =IF($D23>=AB$3,0,IF(SUM($Q23:AA23)=$G23,0,IF($G23*$E23/12<($G23-SUM($Q23:AA23)),$G23*$E23/12,($G23-SUM($Q23:AA23))))) -> 0 | AC23: =IF($D23>=AC$3,0,IF(SUM($Q23:AB23)=$G23,0,IF($G23*$E23/12<($G23-SUM($Q23:AB23)),$G23*$E23/12,($G23-SUM($Q23:AB23))))) -> 0 | AD23: =IF($D23>=AD$3,0,IF(SUM($Q23:AC23)=$G23,0,IF($G23*$E23/12<($G23-SUM($Q23:AC23)),$G23*$E23/12,($G23-SUM($Q23:AC23))))) -> 0 | AE23: =IF($D23>=AE$3,0,IF(SUM($Q23:AD23)=$G23,0,IF($G23*$E23/12<($G23-SUM($Q23:AD23)),$G23*$E23/12,($G23-SUM($Q23:AD23))))) -> 0 | AF23: =IF($D23>=AF$3,0,IF(SUM($Q23:AE23)=$G23,0,IF($G23*$E23/12<($G23-SUM($Q23:AE23)),$G23*$E23/12,($G23-SUM($Q23:AE23))))) -> 0 | AG23: =IF($D23>=AG$3,0,IF(SUM($Q23:AF23)=$G23,0,IF($G23*$E23/12<($G23-SUM($Q23:AF23)),$G23*$E23/12,($G23-SUM($Q23:AF23))))) -> 0 | AH23: =IF($D23>=AH$3,0,IF(SUM($Q23:AG23)=$G23,0,IF($G23*$E23/12<($G23-SUM($Q23:AG23)),$G23*$E23/12,($G23-SUM($Q23:AG23))))) -> 0 | AI23: =IF($D23>=AI$3,0,IF(SUM($Q23:AH23)=$G23,0,IF($G23*$E23/12<($G23-SUM($Q23:AH23)),$G23*$E23/12,($G23-SUM($Q23:AH23))))) -> 0 | AJ23: =IF($D23>=AJ$3,0,IF(SUM($Q23:AI23)=$G23,0,IF($G23*$E23/12<($G23-SUM($Q23:AI23)),$G23*$E23/12,($G23-SUM($Q23:AI23))))) -> 0 | AK23: =IF($D23>=AK$3,0,IF(SUM($Q23:AJ23)=$G23,0,IF($G23*$E23/12<($G23-SUM($Q23:AJ23)),$G23*$E23/12,($G23-SUM($Q23:AJ23))))) -> 0 | AL23: =IF($D23>=AL$3,0,IF(SUM($Q23:AK23)=$G23,0,IF($G23*$E23/12<($G23-SUM($Q23:AK23)),$G23*$E23/12,($G23-SUM($Q23:AK23))))) -> 0 | AM23: =IF($D23>=AM$3,0,IF(SUM($Q23:AL23)=$G23,0,IF($G23*$E23/12<($G23-SUM($Q23:AL23)),$G23*$E23/12,($G23-SUM($Q23:AL23))))) -> 0 | AN23: =IF($D23>=AN$3,0,IF(SUM($Q23:AM23)=$G23,0,IF($G23*$E23/12<($G23-SUM($Q23:AM23)),$G23*$E23/12,($G23-SUM($Q23:AM23))))) -> 0 | AO23: =IF($D23>=AO$3,0,IF(SUM($Q23:AN23)=$G23,0,IF($G23*$E23/12<($G23-SUM($Q23:AN23)),$G23*$E23/12,($G23-SUM($Q23:AN23))))) -> 0 | AP23: =IF($D23>=AP$3,0,IF(SUM($Q23:AO23)=$G23,0,IF($G23*$E23/12<($G23-SUM($Q23:AO23)),$G23*$E23/12,($G23-SUM($Q23:AO23))))) -> 0 | AQ23: =IF($D23>=AQ$3,0,IF(SUM($Q23:AP23)=$G23,0,IF($G23*$E23/12<($G23-SUM($Q23:AP23)),$G23*$E23/12,($G23-SUM($Q23:AP23))))) -> 0 | AR23: =IF($D23>=AR$3,0,IF(SUM($Q23:AQ23)=$G23,0,IF($G23*$E23/12<($G23-SUM($Q23:AQ23)),$G23*$E23/12,($G23-SUM($Q23:AQ23))))) -> 0 | AS23: =IF($D23>=AS$3,0,IF(SUM($Q23:AR23)=$G23,0,IF($G23*$E23/12<($G23-SUM($Q23:AR23)),$G23*$E23/12,($G23-SUM($Q23:AR23))))) -> 0 | AT23: =IF($D23>=AT$3,0,IF(SUM($Q23:AS23)=$G23,0,IF($G23*$E23/12<($G23-SUM($Q23:AS23)),$G23*$E23/12,($G23-SUM($Q23:AS23))))) -> 0 | AU23: =IF($D23>=AU$3,0,IF(SUM($Q23:AT23)=$G23,0,IF($G23*$E23/12<($G23-SUM($Q23:AT23)),$G23*$E23/12,($G23-SUM($Q23:AT23))))) -> 0 | AV23: =IF($D23>=AV$3,0,IF(SUM($Q23:AU23)=$G23,0,IF($G23*$E23/12<($G23-SUM($Q23:AU23)),$G23*$E23/12,($G23-SUM($Q23:AU23))))) -> 0 | AW23: =IF($D23>=AW$3,0,IF(SUM($Q23:AV23)=$G23,0,IF($G23*$E23/12<($G23-SUM($Q23:AV23)),$G23*$E23/12,($G23-SUM($Q23:AV23))))) -> 0 | AX23: =IF($D23>=AX$3,0,IF(SUM($Q23:AW23)=$G23,0,IF($G23*$E23/12<($G23-SUM($Q23:AW23)),$G23*$E23/12,($G23-SUM($Q23:AW23))))) -> 0 | AY23: =IF($D23>=AY$3,0,IF(SUM($Q23:AX23)=$G23,0,IF($G23*$E23/12<($G23-SUM($Q23:AX23)),$G23*$E23/12,($G23-SUM($Q23:AX23))))) -> 0 | AZ23: =IF($D23>=AZ$3,0,IF(SUM($Q23:AY23)=$G23,0,IF($G23*$E23/12<($G23-SUM($Q23:AY23)),$G23*$E23/12,($G23-SUM($Q23:AY23))))) -> 0 | BA23: =IF($D23>=BA$3,0,IF(SUM($Q23:AZ23)=$G23,0,IF($G23*$E23/12<($G23-SUM($Q23:AZ23)),$G23*$E23/12,($G23-SUM($Q23:AZ23))))) -> 0 | BB23: =IF($D23>=BB$3,0,IF(SUM($Q23:BA23)=$G23,0,IF($G23*$E23/12<($G23-SUM($Q23:BA23)),$G23*$E23/12,($G23-SUM($Q23:BA23))))) -> 0 | BC23: =IF($D23>=BC$3,0,IF(SUM($Q23:BB23)=$G23,0,IF($G23*$E23/12<($G23-SUM($Q23:BB23)),$G23*$E23/12,($G23-SUM($Q23:BB23))))) -> 0 | BD23: =IF($D23>=BD$3,0,IF(SUM($Q23:BC23)=$G23,0,IF($G23*$E23/12<($G23-SUM($Q23:BC23)),$G23*$E23/12,($G23-SUM($Q23:BC23))))) -> 0 | BE23: =IF($D23>=BE$3,0,IF(SUM($Q23:BD23)=$G23,0,IF($G23*$E23/12<($G23-SUM($Q23:BD23)),$G23*$E23/12,($G23-SUM($Q23:BD23))))) -> 0 | BF23: =IF($D23>=BF$3,0,IF(SUM($Q23:BE23)=$G23,0,IF($G23*$E23/12<($G23-SUM($Q23:BE23)),$G23*$E23/12,($G23-SUM($Q23:BE23))))) -> 0 | BG23: =IF($D23>=BG$3,0,IF(SUM($Q23:BF23)=$G23,0,IF($G23*$E23/12<($G23-SUM($Q23:BF23)),$G23*$E23/12,($G23-SUM($Q23:BF23))))) -> 0 | BH23: =IF($D23>=BH$3,0,IF(SUM($Q23:BG23)=$G23,0,IF($G23*$E23/12<($G23-SUM($Q23:BG23)),$G23*$E23/12,($G23-SUM($Q23:BG23))))) -> 0 | BI23: =IF($D23>=BI$3,0,IF(SUM($Q23:BH23)=$G23,0,IF($G23*$E23/12<($G23-SUM($Q23:BH23)),$G23*$E23/12,($G23-SUM($Q23:BH23))))) -> 0 | BJ23: =IF($D23>=BJ$3,0,IF(SUM($Q23:BI23)=$G23,0,IF($G23*$E23/12<($G23-SUM($Q23:BI23)),$G23*$E23/12,($G23-SUM($Q23:BI23))))) -> 0 | BK23: =IF($D23>=BK$3,0,IF(SUM($Q23:BJ23)=$G23,0,IF($G23*$E23/12<($G23-SUM($Q23:BJ23)),$G23*$E23/12,($G23-SUM($Q23:BJ23))))) -> 0 | BL23: =IF($D23>=BL$3,0,IF(SUM($Q23:BK23)=$G23,0,IF($G23*$E23/12<($G23-SUM($Q23:BK23)),$G23*$E23/12,($G23-SUM($Q23:BK23))))) -> 0 | BM23: =IF($D23>=BM$3,0,IF(SUM($Q23:BL23)=$G23,0,IF($G23*$E23/12<($G23-SUM($Q23:BL23)),$G23*$E23/12,($G23-SUM($Q23:BL23))))) -> 0 | BN23: =IF($D23>=BN$3,0,IF(SUM($Q23:BM23)=$G23,0,IF($G23*$E23/12<($G23-SUM($Q23:BM23)),$G23*$E23/12,($G23-SUM($Q23:BM23))))) -> 0 | BO23: =IF($D23>=BO$3,0,IF(SUM($Q23:BN23)=$G23,0,IF($G23*$E23/12<($G23-SUM($Q23:BN23)),$G23*$E23/12,($G23-SUM($Q23:BN23))))) -> 0 | BP23: =IF($D23>=BP$3,0,IF(SUM($Q23:BO23)=$G23,0,IF($G23*$E23/12<($G23-SUM($Q23:BO23)),$G23*$E23/12,($G23-SUM($Q23:BO23))))) -> 0 | BQ23: =IF($D23>=BQ$3,0,IF(SUM($Q23:BP23)=$G23,0,IF($G23*$E23/12<($G23-SUM($Q23:BP23)),$G23*$E23/12,($G23-SUM($Q23:BP23))))) -> 0 | BR23: =IF($D23>=BR$3,0,IF(SUM($Q23:BQ23)=$G23,0,IF($G23*$E23/12<($G23-SUM($Q23:BQ23)),$G23*$E23/12,($G23-SUM($Q23:BQ23))))) -> 0 | BS23: =IF($D23>=BS$3,0,IF(SUM($Q23:BR23)=$G23,0,IF($G23*$E23/12<($G23-SUM($Q23:BR23)),$G23*$E23/12,($G23-SUM($Q23:BR23))))) -> 0 | BT23: =IF($D23>=BT$3,0,IF(SUM($Q23:BS23)=$G23,0,IF($G23*$E23/12<($G23-SUM($Q23:BS23)),$G23*$E23/12,($G23-SUM($Q23:BS23))))) -> 0 | BU23: =IF($D23>=BU$3,0,IF(SUM($Q23:BT23)=$G23,0,IF($G23*$E23/12<($G23-SUM($Q23:BT23)),$G23*$E23/12,($G23-SUM($Q23:BT23))))) -> 0 | BV23: =IF($D23>=BV$3,0,IF(SUM($Q23:BU23)=$G23,0,IF($G23*$E23/12<($G23-SUM($Q23:BU23)),$G23*$E23/12,($G23-SUM($Q23:BU23))))) -> 0 | BW23: =IF($D23>=BW$3,0,IF(SUM($Q23:BV23)=$G23,0,IF($G23*$E23/12<($G23-SUM($Q23:BV23)),$G23*$E23/12,($G23-SUM($Q23:BV23))))) -> 0 | BX23: =IF($D23>=BX$3,0,IF(SUM($Q23:BW23)=$G23,0,IF($G23*$E23/12<($G23-SUM($Q23:BW23)),$G23*$E23/12,($G23-SUM($Q23:BW23))))) -> 0 | BY23: =IF($D23>=BY$3,0,IF(SUM($Q23:BX23)=$G23,0,IF($G23*$E23/12<($G23-SUM($Q23:BX23)),$G23*$E23/12,($G23-SUM($Q23:BX23))))) -> 0 | BZ23: =IF($D23>=BZ$3,0,IF(SUM($Q23:BY23)=$G23,0,IF($G23*$E23/12<($G23-SUM($Q23:BY23)),$G23*$E23/12,($G23-SUM($Q23:BY23))))) -> 0 | CA23: =IF($D23>=CA$3,0,IF(SUM($Q23:BZ23)=$G23,0,IF($G23*$E23/12<($G23-SUM($Q23:BZ23)),$G23*$E23/12,($G23-SUM($Q23:BZ23))))) -> 0 | CB23: =IF($D23>=CB$3,0,IF(SUM($Q23:CA23)=$G23,0,IF($G23*$E23/12<($G23-SUM($Q23:CA23)),$G23*$E23/12,($G23-SUM($Q23:CA23))))) -> 0 | CC23: =IF($D23>=CC$3,0,IF(SUM($Q23:CB23)=$G23,0,IF($G23*$E23/12<($G23-SUM($Q23:CB23)),$G23*$E23/12,($G23-SUM($Q23:CB23))))) -> 0 | CD23: =IF($D23>=CD$3,0,IF(SUM($Q23:CC23)=$G23,0,IF($G23*$E23/12<($G23-SUM($Q23:CC23)),$G23*$E23/12,($G23-SUM($Q23:CC23))))) -> 0 | CE23: =IF($D23>=CE$3,0,IF(SUM($Q23:CD23)=$G23,0,IF($G23*$E23/12<($G23-SUM($Q23:CD23)),$G23*$E23/12,($G23-SUM($Q23:CD23))))) -> 0 | CF23: =IF($D23>=CF$3,0,IF(SUM($Q23:CE23)=$G23,0,IF($G23*$E23/12<($G23-SUM($Q23:CE23)),$G23*$E23/12,($G23-SUM($Q23:CE23))))) -> 0 | CG23: =IF($D23>=CG$3,0,IF(SUM($Q23:CF23)=$G23,0,IF($G23*$E23/12<($G23-SUM($Q23:CF23)),$G23*$E23/12,($G23-SUM($Q23:CF23))))) -> 0 | CH23: =IF($D23>=CH$3,0,IF(SUM($Q23:CG23)=$G23,0,IF($G23*$E23/12<($G23-SUM($Q23:CG23)),$G23*$E23/12,($G23-SUM($Q23:CG23))))) -> 0 | CI23: =IF($D23>=CI$3,0,IF(SUM($Q23:CH23)=$G23,0,IF($G23*$E23/12<($G23-SUM($Q23:CH23)),$G23*$E23/12,($G23-SUM($Q23:CH23))))) -> 0 | CJ23: =IF($D23>=CJ$3,0,IF(SUM($Q23:CI23)=$G23,0,IF($G23*$E23/12<($G23-SUM($Q23:CI23)),$G23*$E23/12,($G23-SUM($Q23:CI23))))) -> 0 | CK23: =IF($D23>=CK$3,0,IF(SUM($Q23:CJ23)=$G23,0,IF($G23*$E23/12<($G23-SUM($Q23:CJ23)),$G23*$E23/12,($G23-SUM($Q23:CJ23))))) -> 0 | CL23: =IF($D23>=CL$3,0,IF(SUM($Q23:CK23)=$G23,0,IF($G23*$E23/12<($G23-SUM($Q23:CK23)),$G23*$E23/12,($G23-SUM($Q23:CK23))))) -> 0 | CM23: =IF($D23>=CM$3,0,IF(SUM($Q23:CL23)=$G23,0,IF($G23*$E23/12<($G23-SUM($Q23:CL23)),$G23*$E23/12,($G23-SUM($Q23:CL23))))) -> 0 | CN23: =IF($D23>=CN$3,0,IF(SUM($Q23:CM23)=$G23,0,IF($G23*$E23/12<($G23-SUM($Q23:CM23)),$G23*$E23/12,($G23-SUM($Q23:CM23))))) -> 0 | CO23: =IF($D23>=CO$3,0,IF(SUM($Q23:CN23)=$G23,0,IF($G23*$E23/12<($G23-SUM($Q23:CN23)),$G23*$E23/12,($G23-SUM($Q23:CN23))))) -> 0 | CP23: =IF($D23>=CP$3,0,IF(SUM($Q23:CO23)=$G23,0,IF($G23*$E23/12<($G23-SUM($Q23:CO23)),$G23*$E23/12,($G23-SUM($Q23:CO23))))) -> 0 | CQ23: =IF($D23>=CQ$3,0,IF(SUM($Q23:CP23)=$G23,0,IF($G23*$E23/12<($G23-SUM($Q23:CP23)),$G23*$E23/12,($G23-SUM($Q23:CP23))))) -> 0 | CR23: =IF($D23>=CR$3,0,IF(SUM($Q23:CQ23)=$G23,0,IF($G23*$E23/12<($G23-SUM($Q23:CQ23)),$G23*$E23/12,($G23-SUM($Q23:CQ23))))) -> 0 | CS23: =IF($D23>=CS$3,0,IF(SUM($Q23:CR23)=$G23,0,IF($G23*$E23/12<($G23-SUM($Q23:CR23)),$G23*$E23/12,($G23-SUM($Q23:CR23))))) -> 0 | CT23: =IF($D23>=CT$3,0,IF(SUM($Q23:CS23)=$G23,0,IF($G23*$E23/12<($G23-SUM($Q23:CS23)),$G23*$E23/12,($G23-SUM($Q23:CS23))))) -> 0 | CU23: =IF($D23>=CU$3,0,IF(SUM($Q23:CT23)=$G23,0,IF($G23*$E23/12<($G23-SUM($Q23:CT23)),$G23*$E23/12,($G23-SUM($Q23:CT23))))) -> 0 | CV23: =IF($D23>=CV$3,0,IF(SUM($Q23:CU23)=$G23,0,IF($G23*$E23/12<($G23-SUM($Q23:CU23)),$G23*$E23/12,($G23-SUM($Q23:CU23))))) -> 0
A24: =IF(D24<EOMONTH($D$2,-12),"Fuera de plazo",IF(D24>BALANCE!$J$3,"Fuera de plazo","")) ->  | B24: Otros | D24: 2013-11-30 | E24: 0.2 | F24: 0.21 | G24: =IF(YEAR(D24)<=YEAR($D$2),C24*RIESGO!$C$4,C24*RIESGO!$C$4*(1+CONTROL!$H$4)^(YEAR(D24)-YEAR($D$2))) -> 0 | H24: 0 | I24: 0 | J24: 0 | K24: 0 | L24: 0 | M24: 0 | N24: 0 | O24: 0 | Q24: 0 | R24: =IF($D24>=R$3,0,IF(SUM($Q24:Q24)=$G24,0,IF($G24*$E24/12<($G24-SUM($Q24:Q24)),$G24*$E24/12,($G24-SUM($Q24:Q24))))) -> 0 | S24: =IF($D24>=S$3,0,IF(SUM($Q24:R24)=$G24,0,IF($G24*$E24/12<($G24-SUM($Q24:R24)),$G24*$E24/12,($G24-SUM($Q24:R24))))) -> 0 | T24: =IF($D24>=T$3,0,IF(SUM($Q24:S24)=$G24,0,IF($G24*$E24/12<($G24-SUM($Q24:S24)),$G24*$E24/12,($G24-SUM($Q24:S24))))) -> 0 | U24: =IF($D24>=U$3,0,IF(SUM($Q24:T24)=$G24,0,IF($G24*$E24/12<($G24-SUM($Q24:T24)),$G24*$E24/12,($G24-SUM($Q24:T24))))) -> 0 | V24: =IF($D24>=V$3,0,IF(SUM($Q24:U24)=$G24,0,IF($G24*$E24/12<($G24-SUM($Q24:U24)),$G24*$E24/12,($G24-SUM($Q24:U24))))) -> 0 | W24: =IF($D24>=W$3,0,IF(SUM($Q24:V24)=$G24,0,IF($G24*$E24/12<($G24-SUM($Q24:V24)),$G24*$E24/12,($G24-SUM($Q24:V24))))) -> 0 | X24: =IF($D24>=X$3,0,IF(SUM($Q24:W24)=$G24,0,IF($G24*$E24/12<($G24-SUM($Q24:W24)),$G24*$E24/12,($G24-SUM($Q24:W24))))) -> 0 | Y24: =IF($D24>=Y$3,0,IF(SUM($Q24:X24)=$G24,0,IF($G24*$E24/12<($G24-SUM($Q24:X24)),$G24*$E24/12,($G24-SUM($Q24:X24))))) -> 0 | Z24: =IF($D24>=Z$3,0,IF(SUM($Q24:Y24)=$G24,0,IF($G24*$E24/12<($G24-SUM($Q24:Y24)),$G24*$E24/12,($G24-SUM($Q24:Y24))))) -> 0 | AA24: =IF($D24>=AA$3,0,IF(SUM($Q24:Z24)=$G24,0,IF($G24*$E24/12<($G24-SUM($Q24:Z24)),$G24*$E24/12,($G24-SUM($Q24:Z24))))) -> 0 | AB24: =IF($D24>=AB$3,0,IF(SUM($Q24:AA24)=$G24,0,IF($G24*$E24/12<($G24-SUM($Q24:AA24)),$G24*$E24/12,($G24-SUM($Q24:AA24))))) -> 0 | AC24: =IF($D24>=AC$3,0,IF(SUM($Q24:AB24)=$G24,0,IF($G24*$E24/12<($G24-SUM($Q24:AB24)),$G24*$E24/12,($G24-SUM($Q24:AB24))))) -> 0 | AD24: =IF($D24>=AD$3,0,IF(SUM($Q24:AC24)=$G24,0,IF($G24*$E24/12<($G24-SUM($Q24:AC24)),$G24*$E24/12,($G24-SUM($Q24:AC24))))) -> 0 | AE24: =IF($D24>=AE$3,0,IF(SUM($Q24:AD24)=$G24,0,IF($G24*$E24/12<($G24-SUM($Q24:AD24)),$G24*$E24/12,($G24-SUM($Q24:AD24))))) -> 0 | AF24: =IF($D24>=AF$3,0,IF(SUM($Q24:AE24)=$G24,0,IF($G24*$E24/12<($G24-SUM($Q24:AE24)),$G24*$E24/12,($G24-SUM($Q24:AE24))))) -> 0 | AG24: =IF($D24>=AG$3,0,IF(SUM($Q24:AF24)=$G24,0,IF($G24*$E24/12<($G24-SUM($Q24:AF24)),$G24*$E24/12,($G24-SUM($Q24:AF24))))) -> 0 | AH24: =IF($D24>=AH$3,0,IF(SUM($Q24:AG24)=$G24,0,IF($G24*$E24/12<($G24-SUM($Q24:AG24)),$G24*$E24/12,($G24-SUM($Q24:AG24))))) -> 0 | AI24: =IF($D24>=AI$3,0,IF(SUM($Q24:AH24)=$G24,0,IF($G24*$E24/12<($G24-SUM($Q24:AH24)),$G24*$E24/12,($G24-SUM($Q24:AH24))))) -> 0 | AJ24: =IF($D24>=AJ$3,0,IF(SUM($Q24:AI24)=$G24,0,IF($G24*$E24/12<($G24-SUM($Q24:AI24)),$G24*$E24/12,($G24-SUM($Q24:AI24))))) -> 0 | AK24: =IF($D24>=AK$3,0,IF(SUM($Q24:AJ24)=$G24,0,IF($G24*$E24/12<($G24-SUM($Q24:AJ24)),$G24*$E24/12,($G24-SUM($Q24:AJ24))))) -> 0 | AL24: =IF($D24>=AL$3,0,IF(SUM($Q24:AK24)=$G24,0,IF($G24*$E24/12<($G24-SUM($Q24:AK24)),$G24*$E24/12,($G24-SUM($Q24:AK24))))) -> 0 | AM24: =IF($D24>=AM$3,0,IF(SUM($Q24:AL24)=$G24,0,IF($G24*$E24/12<($G24-SUM($Q24:AL24)),$G24*$E24/12,($G24-SUM($Q24:AL24))))) -> 0 | AN24: =IF($D24>=AN$3,0,IF(SUM($Q24:AM24)=$G24,0,IF($G24*$E24/12<($G24-SUM($Q24:AM24)),$G24*$E24/12,($G24-SUM($Q24:AM24))))) -> 0 | AO24: =IF($D24>=AO$3,0,IF(SUM($Q24:AN24)=$G24,0,IF($G24*$E24/12<($G24-SUM($Q24:AN24)),$G24*$E24/12,($G24-SUM($Q24:AN24))))) -> 0 | AP24: =IF($D24>=AP$3,0,IF(SUM($Q24:AO24)=$G24,0,IF($G24*$E24/12<($G24-SUM($Q24:AO24)),$G24*$E24/12,($G24-SUM($Q24:AO24))))) -> 0 | AQ24: =IF($D24>=AQ$3,0,IF(SUM($Q24:AP24)=$G24,0,IF($G24*$E24/12<($G24-SUM($Q24:AP24)),$G24*$E24/12,($G24-SUM($Q24:AP24))))) -> 0 | AR24: =IF($D24>=AR$3,0,IF(SUM($Q24:AQ24)=$G24,0,IF($G24*$E24/12<($G24-SUM($Q24:AQ24)),$G24*$E24/12,($G24-SUM($Q24:AQ24))))) -> 0 | AS24: =IF($D24>=AS$3,0,IF(SUM($Q24:AR24)=$G24,0,IF($G24*$E24/12<($G24-SUM($Q24:AR24)),$G24*$E24/12,($G24-SUM($Q24:AR24))))) -> 0 | AT24: =IF($D24>=AT$3,0,IF(SUM($Q24:AS24)=$G24,0,IF($G24*$E24/12<($G24-SUM($Q24:AS24)),$G24*$E24/12,($G24-SUM($Q24:AS24))))) -> 0 | AU24: =IF($D24>=AU$3,0,IF(SUM($Q24:AT24)=$G24,0,IF($G24*$E24/12<($G24-SUM($Q24:AT24)),$G24*$E24/12,($G24-SUM($Q24:AT24))))) -> 0 | AV24: =IF($D24>=AV$3,0,IF(SUM($Q24:AU24)=$G24,0,IF($G24*$E24/12<($G24-SUM($Q24:AU24)),$G24*$E24/12,($G24-SUM($Q24:AU24))))) -> 0 | AW24: =IF($D24>=AW$3,0,IF(SUM($Q24:AV24)=$G24,0,IF($G24*$E24/12<($G24-SUM($Q24:AV24)),$G24*$E24/12,($G24-SUM($Q24:AV24))))) -> 0 | AX24: =IF($D24>=AX$3,0,IF(SUM($Q24:AW24)=$G24,0,IF($G24*$E24/12<($G24-SUM($Q24:AW24)),$G24*$E24/12,($G24-SUM($Q24:AW24))))) -> 0 | AY24: =IF($D24>=AY$3,0,IF(SUM($Q24:AX24)=$G24,0,IF($G24*$E24/12<($G24-SUM($Q24:AX24)),$G24*$E24/12,($G24-SUM($Q24:AX24))))) -> 0 | AZ24: =IF($D24>=AZ$3,0,IF(SUM($Q24:AY24)=$G24,0,IF($G24*$E24/12<($G24-SUM($Q24:AY24)),$G24*$E24/12,($G24-SUM($Q24:AY24))))) -> 0 | BA24: =IF($D24>=BA$3,0,IF(SUM($Q24:AZ24)=$G24,0,IF($G24*$E24/12<($G24-SUM($Q24:AZ24)),$G24*$E24/12,($G24-SUM($Q24:AZ24))))) -> 0 | BB24: =IF($D24>=BB$3,0,IF(SUM($Q24:BA24)=$G24,0,IF($G24*$E24/12<($G24-SUM($Q24:BA24)),$G24*$E24/12,($G24-SUM($Q24:BA24))))) -> 0 | BC24: =IF($D24>=BC$3,0,IF(SUM($Q24:BB24)=$G24,0,IF($G24*$E24/12<($G24-SUM($Q24:BB24)),$G24*$E24/12,($G24-SUM($Q24:BB24))))) -> 0 | BD24: =IF($D24>=BD$3,0,IF(SUM($Q24:BC24)=$G24,0,IF($G24*$E24/12<($G24-SUM($Q24:BC24)),$G24*$E24/12,($G24-SUM($Q24:BC24))))) -> 0 | BE24: =IF($D24>=BE$3,0,IF(SUM($Q24:BD24)=$G24,0,IF($G24*$E24/12<($G24-SUM($Q24:BD24)),$G24*$E24/12,($G24-SUM($Q24:BD24))))) -> 0 | BF24: =IF($D24>=BF$3,0,IF(SUM($Q24:BE24)=$G24,0,IF($G24*$E24/12<($G24-SUM($Q24:BE24)),$G24*$E24/12,($G24-SUM($Q24:BE24))))) -> 0 | BG24: =IF($D24>=BG$3,0,IF(SUM($Q24:BF24)=$G24,0,IF($G24*$E24/12<($G24-SUM($Q24:BF24)),$G24*$E24/12,($G24-SUM($Q24:BF24))))) -> 0 | BH24: =IF($D24>=BH$3,0,IF(SUM($Q24:BG24)=$G24,0,IF($G24*$E24/12<($G24-SUM($Q24:BG24)),$G24*$E24/12,($G24-SUM($Q24:BG24))))) -> 0 | BI24: =IF($D24>=BI$3,0,IF(SUM($Q24:BH24)=$G24,0,IF($G24*$E24/12<($G24-SUM($Q24:BH24)),$G24*$E24/12,($G24-SUM($Q24:BH24))))) -> 0 | BJ24: =IF($D24>=BJ$3,0,IF(SUM($Q24:BI24)=$G24,0,IF($G24*$E24/12<($G24-SUM($Q24:BI24)),$G24*$E24/12,($G24-SUM($Q24:BI24))))) -> 0 | BK24: =IF($D24>=BK$3,0,IF(SUM($Q24:BJ24)=$G24,0,IF($G24*$E24/12<($G24-SUM($Q24:BJ24)),$G24*$E24/12,($G24-SUM($Q24:BJ24))))) -> 0 | BL24: =IF($D24>=BL$3,0,IF(SUM($Q24:BK24)=$G24,0,IF($G24*$E24/12<($G24-SUM($Q24:BK24)),$G24*$E24/12,($G24-SUM($Q24:BK24))))) -> 0 | BM24: =IF($D24>=BM$3,0,IF(SUM($Q24:BL24)=$G24,0,IF($G24*$E24/12<($G24-SUM($Q24:BL24)),$G24*$E24/12,($G24-SUM($Q24:BL24))))) -> 0 | BN24: =IF($D24>=BN$3,0,IF(SUM($Q24:BM24)=$G24,0,IF($G24*$E24/12<($G24-SUM($Q24:BM24)),$G24*$E24/12,($G24-SUM($Q24:BM24))))) -> 0 | BO24: =IF($D24>=BO$3,0,IF(SUM($Q24:BN24)=$G24,0,IF($G24*$E24/12<($G24-SUM($Q24:BN24)),$G24*$E24/12,($G24-SUM($Q24:BN24))))) -> 0 | BP24: =IF($D24>=BP$3,0,IF(SUM($Q24:BO24)=$G24,0,IF($G24*$E24/12<($G24-SUM($Q24:BO24)),$G24*$E24/12,($G24-SUM($Q24:BO24))))) -> 0 | BQ24: =IF($D24>=BQ$3,0,IF(SUM($Q24:BP24)=$G24,0,IF($G24*$E24/12<($G24-SUM($Q24:BP24)),$G24*$E24/12,($G24-SUM($Q24:BP24))))) -> 0 | BR24: =IF($D24>=BR$3,0,IF(SUM($Q24:BQ24)=$G24,0,IF($G24*$E24/12<($G24-SUM($Q24:BQ24)),$G24*$E24/12,($G24-SUM($Q24:BQ24))))) -> 0 | BS24: =IF($D24>=BS$3,0,IF(SUM($Q24:BR24)=$G24,0,IF($G24*$E24/12<($G24-SUM($Q24:BR24)),$G24*$E24/12,($G24-SUM($Q24:BR24))))) -> 0 | BT24: =IF($D24>=BT$3,0,IF(SUM($Q24:BS24)=$G24,0,IF($G24*$E24/12<($G24-SUM($Q24:BS24)),$G24*$E24/12,($G24-SUM($Q24:BS24))))) -> 0 | BU24: =IF($D24>=BU$3,0,IF(SUM($Q24:BT24)=$G24,0,IF($G24*$E24/12<($G24-SUM($Q24:BT24)),$G24*$E24/12,($G24-SUM($Q24:BT24))))) -> 0 | BV24: =IF($D24>=BV$3,0,IF(SUM($Q24:BU24)=$G24,0,IF($G24*$E24/12<($G24-SUM($Q24:BU24)),$G24*$E24/12,($G24-SUM($Q24:BU24))))) -> 0 | BW24: =IF($D24>=BW$3,0,IF(SUM($Q24:BV24)=$G24,0,IF($G24*$E24/12<($G24-SUM($Q24:BV24)),$G24*$E24/12,($G24-SUM($Q24:BV24))))) -> 0 | BX24: =IF($D24>=BX$3,0,IF(SUM($Q24:BW24)=$G24,0,IF($G24*$E24/12<($G24-SUM($Q24:BW24)),$G24*$E24/12,($G24-SUM($Q24:BW24))))) -> 0 | BY24: =IF($D24>=BY$3,0,IF(SUM($Q24:BX24)=$G24,0,IF($G24*$E24/12<($G24-SUM($Q24:BX24)),$G24*$E24/12,($G24-SUM($Q24:BX24))))) -> 0 | BZ24: =IF($D24>=BZ$3,0,IF(SUM($Q24:BY24)=$G24,0,IF($G24*$E24/12<($G24-SUM($Q24:BY24)),$G24*$E24/12,($G24-SUM($Q24:BY24))))) -> 0 | CA24: =IF($D24>=CA$3,0,IF(SUM($Q24:BZ24)=$G24,0,IF($G24*$E24/12<($G24-SUM($Q24:BZ24)),$G24*$E24/12,($G24-SUM($Q24:BZ24))))) -> 0 | CB24: =IF($D24>=CB$3,0,IF(SUM($Q24:CA24)=$G24,0,IF($G24*$E24/12<($G24-SUM($Q24:CA24)),$G24*$E24/12,($G24-SUM($Q24:CA24))))) -> 0 | CC24: =IF($D24>=CC$3,0,IF(SUM($Q24:CB24)=$G24,0,IF($G24*$E24/12<($G24-SUM($Q24:CB24)),$G24*$E24/12,($G24-SUM($Q24:CB24))))) -> 0 | CD24: =IF($D24>=CD$3,0,IF(SUM($Q24:CC24)=$G24,0,IF($G24*$E24/12<($G24-SUM($Q24:CC24)),$G24*$E24/12,($G24-SUM($Q24:CC24))))) -> 0 | CE24: =IF($D24>=CE$3,0,IF(SUM($Q24:CD24)=$G24,0,IF($G24*$E24/12<($G24-SUM($Q24:CD24)),$G24*$E24/12,($G24-SUM($Q24:CD24))))) -> 0 | CF24: =IF($D24>=CF$3,0,IF(SUM($Q24:CE24)=$G24,0,IF($G24*$E24/12<($G24-SUM($Q24:CE24)),$G24*$E24/12,($G24-SUM($Q24:CE24))))) -> 0 | CG24: =IF($D24>=CG$3,0,IF(SUM($Q24:CF24)=$G24,0,IF($G24*$E24/12<($G24-SUM($Q24:CF24)),$G24*$E24/12,($G24-SUM($Q24:CF24))))) -> 0 | CH24: =IF($D24>=CH$3,0,IF(SUM($Q24:CG24)=$G24,0,IF($G24*$E24/12<($G24-SUM($Q24:CG24)),$G24*$E24/12,($G24-SUM($Q24:CG24))))) -> 0 | CI24: =IF($D24>=CI$3,0,IF(SUM($Q24:CH24)=$G24,0,IF($G24*$E24/12<($G24-SUM($Q24:CH24)),$G24*$E24/12,($G24-SUM($Q24:CH24))))) -> 0 | CJ24: =IF($D24>=CJ$3,0,IF(SUM($Q24:CI24)=$G24,0,IF($G24*$E24/12<($G24-SUM($Q24:CI24)),$G24*$E24/12,($G24-SUM($Q24:CI24))))) -> 0 | CK24: =IF($D24>=CK$3,0,IF(SUM($Q24:CJ24)=$G24,0,IF($G24*$E24/12<($G24-SUM($Q24:CJ24)),$G24*$E24/12,($G24-SUM($Q24:CJ24))))) -> 0 | CL24: =IF($D24>=CL$3,0,IF(SUM($Q24:CK24)=$G24,0,IF($G24*$E24/12<($G24-SUM($Q24:CK24)),$G24*$E24/12,($G24-SUM($Q24:CK24))))) -> 0 | CM24: =IF($D24>=CM$3,0,IF(SUM($Q24:CL24)=$G24,0,IF($G24*$E24/12<($G24-SUM($Q24:CL24)),$G24*$E24/12,($G24-SUM($Q24:CL24))))) -> 0 | CN24: =IF($D24>=CN$3,0,IF(SUM($Q24:CM24)=$G24,0,IF($G24*$E24/12<($G24-SUM($Q24:CM24)),$G24*$E24/12,($G24-SUM($Q24:CM24))))) -> 0 | CO24: =IF($D24>=CO$3,0,IF(SUM($Q24:CN24)=$G24,0,IF($G24*$E24/12<($G24-SUM($Q24:CN24)),$G24*$E24/12,($G24-SUM($Q24:CN24))))) -> 0 | CP24: =IF($D24>=CP$3,0,IF(SUM($Q24:CO24)=$G24,0,IF($G24*$E24/12<($G24-SUM($Q24:CO24)),$G24*$E24/12,($G24-SUM($Q24:CO24))))) -> 0 | CQ24: =IF($D24>=CQ$3,0,IF(SUM($Q24:CP24)=$G24,0,IF($G24*$E24/12<($G24-SUM($Q24:CP24)),$G24*$E24/12,($G24-SUM($Q24:CP24))))) -> 0 | CR24: =IF($D24>=CR$3,0,IF(SUM($Q24:CQ24)=$G24,0,IF($G24*$E24/12<($G24-SUM($Q24:CQ24)),$G24*$E24/12,($G24-SUM($Q24:CQ24))))) -> 0 | CS24: =IF($D24>=CS$3,0,IF(SUM($Q24:CR24)=$G24,0,IF($G24*$E24/12<($G24-SUM($Q24:CR24)),$G24*$E24/12,($G24-SUM($Q24:CR24))))) -> 0 | CT24: =IF($D24>=CT$3,0,IF(SUM($Q24:CS24)=$G24,0,IF($G24*$E24/12<($G24-SUM($Q24:CS24)),$G24*$E24/12,($G24-SUM($Q24:CS24))))) -> 0 | CU24: =IF($D24>=CU$3,0,IF(SUM($Q24:CT24)=$G24,0,IF($G24*$E24/12<($G24-SUM($Q24:CT24)),$G24*$E24/12,($G24-SUM($Q24:CT24))))) -> 0 | CV24: =IF($D24>=CV$3,0,IF(SUM($Q24:CU24)=$G24,0,IF($G24*$E24/12<($G24-SUM($Q24:CU24)),$G24*$E24/12,($G24-SUM($Q24:CU24))))) -> 0
A25: =IF(D25<EOMONTH($D$2,-12),"Fuera de plazo",IF(D25>BALANCE!$J$3,"Fuera de plazo","")) ->  | B25: Otros | D25: 2013-12-31 | E25: 0.2 | F25: 0.21 | G25: =IF(YEAR(D25)<=YEAR($D$2),C25*RIESGO!$C$4,C25*RIESGO!$C$4*(1+CONTROL!$H$4)^(YEAR(D25)-YEAR($D$2))) -> 0 | H25: 0 | I25: 0 | J25: 0 | K25: 0 | L25: 0 | M25: 0 | N25: 0 | O25: 0 | Q25: 0 | R25: =IF($D25>=R$3,0,IF(SUM($Q25:Q25)=$G25,0,IF($G25*$E25/12<($G25-SUM($Q25:Q25)),$G25*$E25/12,($G25-SUM($Q25:Q25))))) -> 0 | S25: =IF($D25>=S$3,0,IF(SUM($Q25:R25)=$G25,0,IF($G25*$E25/12<($G25-SUM($Q25:R25)),$G25*$E25/12,($G25-SUM($Q25:R25))))) -> 0 | T25: =IF($D25>=T$3,0,IF(SUM($Q25:S25)=$G25,0,IF($G25*$E25/12<($G25-SUM($Q25:S25)),$G25*$E25/12,($G25-SUM($Q25:S25))))) -> 0 | U25: =IF($D25>=U$3,0,IF(SUM($Q25:T25)=$G25,0,IF($G25*$E25/12<($G25-SUM($Q25:T25)),$G25*$E25/12,($G25-SUM($Q25:T25))))) -> 0 | V25: =IF($D25>=V$3,0,IF(SUM($Q25:U25)=$G25,0,IF($G25*$E25/12<($G25-SUM($Q25:U25)),$G25*$E25/12,($G25-SUM($Q25:U25))))) -> 0 | W25: =IF($D25>=W$3,0,IF(SUM($Q25:V25)=$G25,0,IF($G25*$E25/12<($G25-SUM($Q25:V25)),$G25*$E25/12,($G25-SUM($Q25:V25))))) -> 0 | X25: =IF($D25>=X$3,0,IF(SUM($Q25:W25)=$G25,0,IF($G25*$E25/12<($G25-SUM($Q25:W25)),$G25*$E25/12,($G25-SUM($Q25:W25))))) -> 0 | Y25: =IF($D25>=Y$3,0,IF(SUM($Q25:X25)=$G25,0,IF($G25*$E25/12<($G25-SUM($Q25:X25)),$G25*$E25/12,($G25-SUM($Q25:X25))))) -> 0 | Z25: =IF($D25>=Z$3,0,IF(SUM($Q25:Y25)=$G25,0,IF($G25*$E25/12<($G25-SUM($Q25:Y25)),$G25*$E25/12,($G25-SUM($Q25:Y25))))) -> 0 | AA25: =IF($D25>=AA$3,0,IF(SUM($Q25:Z25)=$G25,0,IF($G25*$E25/12<($G25-SUM($Q25:Z25)),$G25*$E25/12,($G25-SUM($Q25:Z25))))) -> 0 | AB25: =IF($D25>=AB$3,0,IF(SUM($Q25:AA25)=$G25,0,IF($G25*$E25/12<($G25-SUM($Q25:AA25)),$G25*$E25/12,($G25-SUM($Q25:AA25))))) -> 0 | AC25: =IF($D25>=AC$3,0,IF(SUM($Q25:AB25)=$G25,0,IF($G25*$E25/12<($G25-SUM($Q25:AB25)),$G25*$E25/12,($G25-SUM($Q25:AB25))))) -> 0 | AD25: =IF($D25>=AD$3,0,IF(SUM($Q25:AC25)=$G25,0,IF($G25*$E25/12<($G25-SUM($Q25:AC25)),$G25*$E25/12,($G25-SUM($Q25:AC25))))) -> 0 | AE25: =IF($D25>=AE$3,0,IF(SUM($Q25:AD25)=$G25,0,IF($G25*$E25/12<($G25-SUM($Q25:AD25)),$G25*$E25/12,($G25-SUM($Q25:AD25))))) -> 0 | AF25: =IF($D25>=AF$3,0,IF(SUM($Q25:AE25)=$G25,0,IF($G25*$E25/12<($G25-SUM($Q25:AE25)),$G25*$E25/12,($G25-SUM($Q25:AE25))))) -> 0 | AG25: =IF($D25>=AG$3,0,IF(SUM($Q25:AF25)=$G25,0,IF($G25*$E25/12<($G25-SUM($Q25:AF25)),$G25*$E25/12,($G25-SUM($Q25:AF25))))) -> 0 | AH25: =IF($D25>=AH$3,0,IF(SUM($Q25:AG25)=$G25,0,IF($G25*$E25/12<($G25-SUM($Q25:AG25)),$G25*$E25/12,($G25-SUM($Q25:AG25))))) -> 0 | AI25: =IF($D25>=AI$3,0,IF(SUM($Q25:AH25)=$G25,0,IF($G25*$E25/12<($G25-SUM($Q25:AH25)),$G25*$E25/12,($G25-SUM($Q25:AH25))))) -> 0 | AJ25: =IF($D25>=AJ$3,0,IF(SUM($Q25:AI25)=$G25,0,IF($G25*$E25/12<($G25-SUM($Q25:AI25)),$G25*$E25/12,($G25-SUM($Q25:AI25))))) -> 0 | AK25: =IF($D25>=AK$3,0,IF(SUM($Q25:AJ25)=$G25,0,IF($G25*$E25/12<($G25-SUM($Q25:AJ25)),$G25*$E25/12,($G25-SUM($Q25:AJ25))))) -> 0 | AL25: =IF($D25>=AL$3,0,IF(SUM($Q25:AK25)=$G25,0,IF($G25*$E25/12<($G25-SUM($Q25:AK25)),$G25*$E25/12,($G25-SUM($Q25:AK25))))) -> 0 | AM25: =IF($D25>=AM$3,0,IF(SUM($Q25:AL25)=$G25,0,IF($G25*$E25/12<($G25-SUM($Q25:AL25)),$G25*$E25/12,($G25-SUM($Q25:AL25))))) -> 0 | AN25: =IF($D25>=AN$3,0,IF(SUM($Q25:AM25)=$G25,0,IF($G25*$E25/12<($G25-SUM($Q25:AM25)),$G25*$E25/12,($G25-SUM($Q25:AM25))))) -> 0 | AO25: =IF($D25>=AO$3,0,IF(SUM($Q25:AN25)=$G25,0,IF($G25*$E25/12<($G25-SUM($Q25:AN25)),$G25*$E25/12,($G25-SUM($Q25:AN25))))) -> 0 | AP25: =IF($D25>=AP$3,0,IF(SUM($Q25:AO25)=$G25,0,IF($G25*$E25/12<($G25-SUM($Q25:AO25)),$G25*$E25/12,($G25-SUM($Q25:AO25))))) -> 0 | AQ25: =IF($D25>=AQ$3,0,IF(SUM($Q25:AP25)=$G25,0,IF($G25*$E25/12<($G25-SUM($Q25:AP25)),$G25*$E25/12,($G25-SUM($Q25:AP25))))) -> 0 | AR25: =IF($D25>=AR$3,0,IF(SUM($Q25:AQ25)=$G25,0,IF($G25*$E25/12<($G25-SUM($Q25:AQ25)),$G25*$E25/12,($G25-SUM($Q25:AQ25))))) -> 0 | AS25: =IF($D25>=AS$3,0,IF(SUM($Q25:AR25)=$G25,0,IF($G25*$E25/12<($G25-SUM($Q25:AR25)),$G25*$E25/12,($G25-SUM($Q25:AR25))))) -> 0 | AT25: =IF($D25>=AT$3,0,IF(SUM($Q25:AS25)=$G25,0,IF($G25*$E25/12<($G25-SUM($Q25:AS25)),$G25*$E25/12,($G25-SUM($Q25:AS25))))) -> 0 | AU25: =IF($D25>=AU$3,0,IF(SUM($Q25:AT25)=$G25,0,IF($G25*$E25/12<($G25-SUM($Q25:AT25)),$G25*$E25/12,($G25-SUM($Q25:AT25))))) -> 0 | AV25: =IF($D25>=AV$3,0,IF(SUM($Q25:AU25)=$G25,0,IF($G25*$E25/12<($G25-SUM($Q25:AU25)),$G25*$E25/12,($G25-SUM($Q25:AU25))))) -> 0 | AW25: =IF($D25>=AW$3,0,IF(SUM($Q25:AV25)=$G25,0,IF($G25*$E25/12<($G25-SUM($Q25:AV25)),$G25*$E25/12,($G25-SUM($Q25:AV25))))) -> 0 | AX25: =IF($D25>=AX$3,0,IF(SUM($Q25:AW25)=$G25,0,IF($G25*$E25/12<($G25-SUM($Q25:AW25)),$G25*$E25/12,($G25-SUM($Q25:AW25))))) -> 0 | AY25: =IF($D25>=AY$3,0,IF(SUM($Q25:AX25)=$G25,0,IF($G25*$E25/12<($G25-SUM($Q25:AX25)),$G25*$E25/12,($G25-SUM($Q25:AX25))))) -> 0 | AZ25: =IF($D25>=AZ$3,0,IF(SUM($Q25:AY25)=$G25,0,IF($G25*$E25/12<($G25-SUM($Q25:AY25)),$G25*$E25/12,($G25-SUM($Q25:AY25))))) -> 0 | BA25: =IF($D25>=BA$3,0,IF(SUM($Q25:AZ25)=$G25,0,IF($G25*$E25/12<($G25-SUM($Q25:AZ25)),$G25*$E25/12,($G25-SUM($Q25:AZ25))))) -> 0 | BB25: =IF($D25>=BB$3,0,IF(SUM($Q25:BA25)=$G25,0,IF($G25*$E25/12<($G25-SUM($Q25:BA25)),$G25*$E25/12,($G25-SUM($Q25:BA25))))) -> 0 | BC25: =IF($D25>=BC$3,0,IF(SUM($Q25:BB25)=$G25,0,IF($G25*$E25/12<($G25-SUM($Q25:BB25)),$G25*$E25/12,($G25-SUM($Q25:BB25))))) -> 0 | BD25: =IF($D25>=BD$3,0,IF(SUM($Q25:BC25)=$G25,0,IF($G25*$E25/12<($G25-SUM($Q25:BC25)),$G25*$E25/12,($G25-SUM($Q25:BC25))))) -> 0 | BE25: =IF($D25>=BE$3,0,IF(SUM($Q25:BD25)=$G25,0,IF($G25*$E25/12<($G25-SUM($Q25:BD25)),$G25*$E25/12,($G25-SUM($Q25:BD25))))) -> 0 | BF25: =IF($D25>=BF$3,0,IF(SUM($Q25:BE25)=$G25,0,IF($G25*$E25/12<($G25-SUM($Q25:BE25)),$G25*$E25/12,($G25-SUM($Q25:BE25))))) -> 0 | BG25: =IF($D25>=BG$3,0,IF(SUM($Q25:BF25)=$G25,0,IF($G25*$E25/12<($G25-SUM($Q25:BF25)),$G25*$E25/12,($G25-SUM($Q25:BF25))))) -> 0 | BH25: =IF($D25>=BH$3,0,IF(SUM($Q25:BG25)=$G25,0,IF($G25*$E25/12<($G25-SUM($Q25:BG25)),$G25*$E25/12,($G25-SUM($Q25:BG25))))) -> 0 | BI25: =IF($D25>=BI$3,0,IF(SUM($Q25:BH25)=$G25,0,IF($G25*$E25/12<($G25-SUM($Q25:BH25)),$G25*$E25/12,($G25-SUM($Q25:BH25))))) -> 0 | BJ25: =IF($D25>=BJ$3,0,IF(SUM($Q25:BI25)=$G25,0,IF($G25*$E25/12<($G25-SUM($Q25:BI25)),$G25*$E25/12,($G25-SUM($Q25:BI25))))) -> 0 | BK25: =IF($D25>=BK$3,0,IF(SUM($Q25:BJ25)=$G25,0,IF($G25*$E25/12<($G25-SUM($Q25:BJ25)),$G25*$E25/12,($G25-SUM($Q25:BJ25))))) -> 0 | BL25: =IF($D25>=BL$3,0,IF(SUM($Q25:BK25)=$G25,0,IF($G25*$E25/12<($G25-SUM($Q25:BK25)),$G25*$E25/12,($G25-SUM($Q25:BK25))))) -> 0 | BM25: =IF($D25>=BM$3,0,IF(SUM($Q25:BL25)=$G25,0,IF($G25*$E25/12<($G25-SUM($Q25:BL25)),$G25*$E25/12,($G25-SUM($Q25:BL25))))) -> 0 | BN25: =IF($D25>=BN$3,0,IF(SUM($Q25:BM25)=$G25,0,IF($G25*$E25/12<($G25-SUM($Q25:BM25)),$G25*$E25/12,($G25-SUM($Q25:BM25))))) -> 0 | BO25: =IF($D25>=BO$3,0,IF(SUM($Q25:BN25)=$G25,0,IF($G25*$E25/12<($G25-SUM($Q25:BN25)),$G25*$E25/12,($G25-SUM($Q25:BN25))))) -> 0 | BP25: =IF($D25>=BP$3,0,IF(SUM($Q25:BO25)=$G25,0,IF($G25*$E25/12<($G25-SUM($Q25:BO25)),$G25*$E25/12,($G25-SUM($Q25:BO25))))) -> 0 | BQ25: =IF($D25>=BQ$3,0,IF(SUM($Q25:BP25)=$G25,0,IF($G25*$E25/12<($G25-SUM($Q25:BP25)),$G25*$E25/12,($G25-SUM($Q25:BP25))))) -> 0 | BR25: =IF($D25>=BR$3,0,IF(SUM($Q25:BQ25)=$G25,0,IF($G25*$E25/12<($G25-SUM($Q25:BQ25)),$G25*$E25/12,($G25-SUM($Q25:BQ25))))) -> 0 | BS25: =IF($D25>=BS$3,0,IF(SUM($Q25:BR25)=$G25,0,IF($G25*$E25/12<($G25-SUM($Q25:BR25)),$G25*$E25/12,($G25-SUM($Q25:BR25))))) -> 0 | BT25: =IF($D25>=BT$3,0,IF(SUM($Q25:BS25)=$G25,0,IF($G25*$E25/12<($G25-SUM($Q25:BS25)),$G25*$E25/12,($G25-SUM($Q25:BS25))))) -> 0 | BU25: =IF($D25>=BU$3,0,IF(SUM($Q25:BT25)=$G25,0,IF($G25*$E25/12<($G25-SUM($Q25:BT25)),$G25*$E25/12,($G25-SUM($Q25:BT25))))) -> 0 | BV25: =IF($D25>=BV$3,0,IF(SUM($Q25:BU25)=$G25,0,IF($G25*$E25/12<($G25-SUM($Q25:BU25)),$G25*$E25/12,($G25-SUM($Q25:BU25))))) -> 0 | BW25: =IF($D25>=BW$3,0,IF(SUM($Q25:BV25)=$G25,0,IF($G25*$E25/12<($G25-SUM($Q25:BV25)),$G25*$E25/12,($G25-SUM($Q25:BV25))))) -> 0 | BX25: =IF($D25>=BX$3,0,IF(SUM($Q25:BW25)=$G25,0,IF($G25*$E25/12<($G25-SUM($Q25:BW25)),$G25*$E25/12,($G25-SUM($Q25:BW25))))) -> 0 | BY25: =IF($D25>=BY$3,0,IF(SUM($Q25:BX25)=$G25,0,IF($G25*$E25/12<($G25-SUM($Q25:BX25)),$G25*$E25/12,($G25-SUM($Q25:BX25))))) -> 0 | BZ25: =IF($D25>=BZ$3,0,IF(SUM($Q25:BY25)=$G25,0,IF($G25*$E25/12<($G25-SUM($Q25:BY25)),$G25*$E25/12,($G25-SUM($Q25:BY25))))) -> 0 | CA25: =IF($D25>=CA$3,0,IF(SUM($Q25:BZ25)=$G25,0,IF($G25*$E25/12<($G25-SUM($Q25:BZ25)),$G25*$E25/12,($G25-SUM($Q25:BZ25))))) -> 0 | CB25: =IF($D25>=CB$3,0,IF(SUM($Q25:CA25)=$G25,0,IF($G25*$E25/12<($G25-SUM($Q25:CA25)),$G25*$E25/12,($G25-SUM($Q25:CA25))))) -> 0 | CC25: =IF($D25>=CC$3,0,IF(SUM($Q25:CB25)=$G25,0,IF($G25*$E25/12<($G25-SUM($Q25:CB25)),$G25*$E25/12,($G25-SUM($Q25:CB25))))) -> 0 | CD25: =IF($D25>=CD$3,0,IF(SUM($Q25:CC25)=$G25,0,IF($G25*$E25/12<($G25-SUM($Q25:CC25)),$G25*$E25/12,($G25-SUM($Q25:CC25))))) -> 0 | CE25: =IF($D25>=CE$3,0,IF(SUM($Q25:CD25)=$G25,0,IF($G25*$E25/12<($G25-SUM($Q25:CD25)),$G25*$E25/12,($G25-SUM($Q25:CD25))))) -> 0 | CF25: =IF($D25>=CF$3,0,IF(SUM($Q25:CE25)=$G25,0,IF($G25*$E25/12<($G25-SUM($Q25:CE25)),$G25*$E25/12,($G25-SUM($Q25:CE25))))) -> 0 | CG25: =IF($D25>=CG$3,0,IF(SUM($Q25:CF25)=$G25,0,IF($G25*$E25/12<($G25-SUM($Q25:CF25)),$G25*$E25/12,($G25-SUM($Q25:CF25))))) -> 0 | CH25: =IF($D25>=CH$3,0,IF(SUM($Q25:CG25)=$G25,0,IF($G25*$E25/12<($G25-SUM($Q25:CG25)),$G25*$E25/12,($G25-SUM($Q25:CG25))))) -> 0 | CI25: =IF($D25>=CI$3,0,IF(SUM($Q25:CH25)=$G25,0,IF($G25*$E25/12<($G25-SUM($Q25:CH25)),$G25*$E25/12,($G25-SUM($Q25:CH25))))) -> 0 | CJ25: =IF($D25>=CJ$3,0,IF(SUM($Q25:CI25)=$G25,0,IF($G25*$E25/12<($G25-SUM($Q25:CI25)),$G25*$E25/12,($G25-SUM($Q25:CI25))))) -> 0 | CK25: =IF($D25>=CK$3,0,IF(SUM($Q25:CJ25)=$G25,0,IF($G25*$E25/12<($G25-SUM($Q25:CJ25)),$G25*$E25/12,($G25-SUM($Q25:CJ25))))) -> 0 | CL25: =IF($D25>=CL$3,0,IF(SUM($Q25:CK25)=$G25,0,IF($G25*$E25/12<($G25-SUM($Q25:CK25)),$G25*$E25/12,($G25-SUM($Q25:CK25))))) -> 0 | CM25: =IF($D25>=CM$3,0,IF(SUM($Q25:CL25)=$G25,0,IF($G25*$E25/12<($G25-SUM($Q25:CL25)),$G25*$E25/12,($G25-SUM($Q25:CL25))))) -> 0 | CN25: =IF($D25>=CN$3,0,IF(SUM($Q25:CM25)=$G25,0,IF($G25*$E25/12<($G25-SUM($Q25:CM25)),$G25*$E25/12,($G25-SUM($Q25:CM25))))) -> 0 | CO25: =IF($D25>=CO$3,0,IF(SUM($Q25:CN25)=$G25,0,IF($G25*$E25/12<($G25-SUM($Q25:CN25)),$G25*$E25/12,($G25-SUM($Q25:CN25))))) -> 0 | CP25: =IF($D25>=CP$3,0,IF(SUM($Q25:CO25)=$G25,0,IF($G25*$E25/12<($G25-SUM($Q25:CO25)),$G25*$E25/12,($G25-SUM($Q25:CO25))))) -> 0 | CQ25: =IF($D25>=CQ$3,0,IF(SUM($Q25:CP25)=$G25,0,IF($G25*$E25/12<($G25-SUM($Q25:CP25)),$G25*$E25/12,($G25-SUM($Q25:CP25))))) -> 0 | CR25: =IF($D25>=CR$3,0,IF(SUM($Q25:CQ25)=$G25,0,IF($G25*$E25/12<($G25-SUM($Q25:CQ25)),$G25*$E25/12,($G25-SUM($Q25:CQ25))))) -> 0 | CS25: =IF($D25>=CS$3,0,IF(SUM($Q25:CR25)=$G25,0,IF($G25*$E25/12<($G25-SUM($Q25:CR25)),$G25*$E25/12,($G25-SUM($Q25:CR25))))) -> 0 | CT25: =IF($D25>=CT$3,0,IF(SUM($Q25:CS25)=$G25,0,IF($G25*$E25/12<($G25-SUM($Q25:CS25)),$G25*$E25/12,($G25-SUM($Q25:CS25))))) -> 0 | CU25: =IF($D25>=CU$3,0,IF(SUM($Q25:CT25)=$G25,0,IF($G25*$E25/12<($G25-SUM($Q25:CT25)),$G25*$E25/12,($G25-SUM($Q25:CT25))))) -> 0 | CV25: =IF($D25>=CV$3,0,IF(SUM($Q25:CU25)=$G25,0,IF($G25*$E25/12<($G25-SUM($Q25:CU25)),$G25*$E25/12,($G25-SUM($Q25:CU25))))) -> 0
A26: =IF(D26<EOMONTH($D$2,-12),"Fuera de plazo",IF(D26>BALANCE!$J$3,"Fuera de plazo","")) ->  | B26: Otros | D26: 2013-11-30 | E26: 0.2 | F26: 0.21 | G26: =IF(YEAR(D26)<=YEAR($D$2),C26*RIESGO!$C$4,C26*RIESGO!$C$4*(1+CONTROL!$H$4)^(YEAR(D26)-YEAR($D$2))) -> 0 | H26: 0 | I26: 0 | J26: 0 | K26: 0 | L26: 0 | M26: 0 | N26: 0 | O26: 0 | Q26: 0 | R26: =IF($D26>=R$3,0,IF(SUM($Q26:Q26)=$G26,0,IF($G26*$E26/12<($G26-SUM($Q26:Q26)),$G26*$E26/12,($G26-SUM($Q26:Q26))))) -> 0 | S26: =IF($D26>=S$3,0,IF(SUM($Q26:R26)=$G26,0,IF($G26*$E26/12<($G26-SUM($Q26:R26)),$G26*$E26/12,($G26-SUM($Q26:R26))))) -> 0 | T26: =IF($D26>=T$3,0,IF(SUM($Q26:S26)=$G26,0,IF($G26*$E26/12<($G26-SUM($Q26:S26)),$G26*$E26/12,($G26-SUM($Q26:S26))))) -> 0 | U26: =IF($D26>=U$3,0,IF(SUM($Q26:T26)=$G26,0,IF($G26*$E26/12<($G26-SUM($Q26:T26)),$G26*$E26/12,($G26-SUM($Q26:T26))))) -> 0 | V26: =IF($D26>=V$3,0,IF(SUM($Q26:U26)=$G26,0,IF($G26*$E26/12<($G26-SUM($Q26:U26)),$G26*$E26/12,($G26-SUM($Q26:U26))))) -> 0 | W26: =IF($D26>=W$3,0,IF(SUM($Q26:V26)=$G26,0,IF($G26*$E26/12<($G26-SUM($Q26:V26)),$G26*$E26/12,($G26-SUM($Q26:V26))))) -> 0 | X26: =IF($D26>=X$3,0,IF(SUM($Q26:W26)=$G26,0,IF($G26*$E26/12<($G26-SUM($Q26:W26)),$G26*$E26/12,($G26-SUM($Q26:W26))))) -> 0 | Y26: =IF($D26>=Y$3,0,IF(SUM($Q26:X26)=$G26,0,IF($G26*$E26/12<($G26-SUM($Q26:X26)),$G26*$E26/12,($G26-SUM($Q26:X26))))) -> 0 | Z26: =IF($D26>=Z$3,0,IF(SUM($Q26:Y26)=$G26,0,IF($G26*$E26/12<($G26-SUM($Q26:Y26)),$G26*$E26/12,($G26-SUM($Q26:Y26))))) -> 0 | AA26: =IF($D26>=AA$3,0,IF(SUM($Q26:Z26)=$G26,0,IF($G26*$E26/12<($G26-SUM($Q26:Z26)),$G26*$E26/12,($G26-SUM($Q26:Z26))))) -> 0 | AB26: =IF($D26>=AB$3,0,IF(SUM($Q26:AA26)=$G26,0,IF($G26*$E26/12<($G26-SUM($Q26:AA26)),$G26*$E26/12,($G26-SUM($Q26:AA26))))) -> 0 | AC26: =IF($D26>=AC$3,0,IF(SUM($Q26:AB26)=$G26,0,IF($G26*$E26/12<($G26-SUM($Q26:AB26)),$G26*$E26/12,($G26-SUM($Q26:AB26))))) -> 0 | AD26: =IF($D26>=AD$3,0,IF(SUM($Q26:AC26)=$G26,0,IF($G26*$E26/12<($G26-SUM($Q26:AC26)),$G26*$E26/12,($G26-SUM($Q26:AC26))))) -> 0 | AE26: =IF($D26>=AE$3,0,IF(SUM($Q26:AD26)=$G26,0,IF($G26*$E26/12<($G26-SUM($Q26:AD26)),$G26*$E26/12,($G26-SUM($Q26:AD26))))) -> 0 | AF26: =IF($D26>=AF$3,0,IF(SUM($Q26:AE26)=$G26,0,IF($G26*$E26/12<($G26-SUM($Q26:AE26)),$G26*$E26/12,($G26-SUM($Q26:AE26))))) -> 0 | AG26: =IF($D26>=AG$3,0,IF(SUM($Q26:AF26)=$G26,0,IF($G26*$E26/12<($G26-SUM($Q26:AF26)),$G26*$E26/12,($G26-SUM($Q26:AF26))))) -> 0 | AH26: =IF($D26>=AH$3,0,IF(SUM($Q26:AG26)=$G26,0,IF($G26*$E26/12<($G26-SUM($Q26:AG26)),$G26*$E26/12,($G26-SUM($Q26:AG26))))) -> 0 | AI26: =IF($D26>=AI$3,0,IF(SUM($Q26:AH26)=$G26,0,IF($G26*$E26/12<($G26-SUM($Q26:AH26)),$G26*$E26/12,($G26-SUM($Q26:AH26))))) -> 0 | AJ26: =IF($D26>=AJ$3,0,IF(SUM($Q26:AI26)=$G26,0,IF($G26*$E26/12<($G26-SUM($Q26:AI26)),$G26*$E26/12,($G26-SUM($Q26:AI26))))) -> 0 | AK26: =IF($D26>=AK$3,0,IF(SUM($Q26:AJ26)=$G26,0,IF($G26*$E26/12<($G26-SUM($Q26:AJ26)),$G26*$E26/12,($G26-SUM($Q26:AJ26))))) -> 0 | AL26: =IF($D26>=AL$3,0,IF(SUM($Q26:AK26)=$G26,0,IF($G26*$E26/12<($G26-SUM($Q26:AK26)),$G26*$E26/12,($G26-SUM($Q26:AK26))))) -> 0 | AM26: =IF($D26>=AM$3,0,IF(SUM($Q26:AL26)=$G26,0,IF($G26*$E26/12<($G26-SUM($Q26:AL26)),$G26*$E26/12,($G26-SUM($Q26:AL26))))) -> 0 | AN26: =IF($D26>=AN$3,0,IF(SUM($Q26:AM26)=$G26,0,IF($G26*$E26/12<($G26-SUM($Q26:AM26)),$G26*$E26/12,($G26-SUM($Q26:AM26))))) -> 0 | AO26: =IF($D26>=AO$3,0,IF(SUM($Q26:AN26)=$G26,0,IF($G26*$E26/12<($G26-SUM($Q26:AN26)),$G26*$E26/12,($G26-SUM($Q26:AN26))))) -> 0 | AP26: =IF($D26>=AP$3,0,IF(SUM($Q26:AO26)=$G26,0,IF($G26*$E26/12<($G26-SUM($Q26:AO26)),$G26*$E26/12,($G26-SUM($Q26:AO26))))) -> 0 | AQ26: =IF($D26>=AQ$3,0,IF(SUM($Q26:AP26)=$G26,0,IF($G26*$E26/12<($G26-SUM($Q26:AP26)),$G26*$E26/12,($G26-SUM($Q26:AP26))))) -> 0 | AR26: =IF($D26>=AR$3,0,IF(SUM($Q26:AQ26)=$G26,0,IF($G26*$E26/12<($G26-SUM($Q26:AQ26)),$G26*$E26/12,($G26-SUM($Q26:AQ26))))) -> 0 | AS26: =IF($D26>=AS$3,0,IF(SUM($Q26:AR26)=$G26,0,IF($G26*$E26/12<($G26-SUM($Q26:AR26)),$G26*$E26/12,($G26-SUM($Q26:AR26))))) -> 0 | AT26: =IF($D26>=AT$3,0,IF(SUM($Q26:AS26)=$G26,0,IF($G26*$E26/12<($G26-SUM($Q26:AS26)),$G26*$E26/12,($G26-SUM($Q26:AS26))))) -> 0 | AU26: =IF($D26>=AU$3,0,IF(SUM($Q26:AT26)=$G26,0,IF($G26*$E26/12<($G26-SUM($Q26:AT26)),$G26*$E26/12,($G26-SUM($Q26:AT26))))) -> 0 | AV26: =IF($D26>=AV$3,0,IF(SUM($Q26:AU26)=$G26,0,IF($G26*$E26/12<($G26-SUM($Q26:AU26)),$G26*$E26/12,($G26-SUM($Q26:AU26))))) -> 0 | AW26: =IF($D26>=AW$3,0,IF(SUM($Q26:AV26)=$G26,0,IF($G26*$E26/12<($G26-SUM($Q26:AV26)),$G26*$E26/12,($G26-SUM($Q26:AV26))))) -> 0 | AX26: =IF($D26>=AX$3,0,IF(SUM($Q26:AW26)=$G26,0,IF($G26*$E26/12<($G26-SUM($Q26:AW26)),$G26*$E26/12,($G26-SUM($Q26:AW26))))) -> 0 | AY26: =IF($D26>=AY$3,0,IF(SUM($Q26:AX26)=$G26,0,IF($G26*$E26/12<($G26-SUM($Q26:AX26)),$G26*$E26/12,($G26-SUM($Q26:AX26))))) -> 0 | AZ26: =IF($D26>=AZ$3,0,IF(SUM($Q26:AY26)=$G26,0,IF($G26*$E26/12<($G26-SUM($Q26:AY26)),$G26*$E26/12,($G26-SUM($Q26:AY26))))) -> 0 | BA26: =IF($D26>=BA$3,0,IF(SUM($Q26:AZ26)=$G26,0,IF($G26*$E26/12<($G26-SUM($Q26:AZ26)),$G26*$E26/12,($G26-SUM($Q26:AZ26))))) -> 0 | BB26: =IF($D26>=BB$3,0,IF(SUM($Q26:BA26)=$G26,0,IF($G26*$E26/12<($G26-SUM($Q26:BA26)),$G26*$E26/12,($G26-SUM($Q26:BA26))))) -> 0 | BC26: =IF($D26>=BC$3,0,IF(SUM($Q26:BB26)=$G26,0,IF($G26*$E26/12<($G26-SUM($Q26:BB26)),$G26*$E26/12,($G26-SUM($Q26:BB26))))) -> 0 | BD26: =IF($D26>=BD$3,0,IF(SUM($Q26:BC26)=$G26,0,IF($G26*$E26/12<($G26-SUM($Q26:BC26)),$G26*$E26/12,($G26-SUM($Q26:BC26))))) -> 0 | BE26: =IF($D26>=BE$3,0,IF(SUM($Q26:BD26)=$G26,0,IF($G26*$E26/12<($G26-SUM($Q26:BD26)),$G26*$E26/12,($G26-SUM($Q26:BD26))))) -> 0 | BF26: =IF($D26>=BF$3,0,IF(SUM($Q26:BE26)=$G26,0,IF($G26*$E26/12<($G26-SUM($Q26:BE26)),$G26*$E26/12,($G26-SUM($Q26:BE26))))) -> 0 | BG26: =IF($D26>=BG$3,0,IF(SUM($Q26:BF26)=$G26,0,IF($G26*$E26/12<($G26-SUM($Q26:BF26)),$G26*$E26/12,($G26-SUM($Q26:BF26))))) -> 0 | BH26: =IF($D26>=BH$3,0,IF(SUM($Q26:BG26)=$G26,0,IF($G26*$E26/12<($G26-SUM($Q26:BG26)),$G26*$E26/12,($G26-SUM($Q26:BG26))))) -> 0 | BI26: =IF($D26>=BI$3,0,IF(SUM($Q26:BH26)=$G26,0,IF($G26*$E26/12<($G26-SUM($Q26:BH26)),$G26*$E26/12,($G26-SUM($Q26:BH26))))) -> 0 | BJ26: =IF($D26>=BJ$3,0,IF(SUM($Q26:BI26)=$G26,0,IF($G26*$E26/12<($G26-SUM($Q26:BI26)),$G26*$E26/12,($G26-SUM($Q26:BI26))))) -> 0 | BK26: =IF($D26>=BK$3,0,IF(SUM($Q26:BJ26)=$G26,0,IF($G26*$E26/12<($G26-SUM($Q26:BJ26)),$G26*$E26/12,($G26-SUM($Q26:BJ26))))) -> 0 | BL26: =IF($D26>=BL$3,0,IF(SUM($Q26:BK26)=$G26,0,IF($G26*$E26/12<($G26-SUM($Q26:BK26)),$G26*$E26/12,($G26-SUM($Q26:BK26))))) -> 0 | BM26: =IF($D26>=BM$3,0,IF(SUM($Q26:BL26)=$G26,0,IF($G26*$E26/12<($G26-SUM($Q26:BL26)),$G26*$E26/12,($G26-SUM($Q26:BL26))))) -> 0 | BN26: =IF($D26>=BN$3,0,IF(SUM($Q26:BM26)=$G26,0,IF($G26*$E26/12<($G26-SUM($Q26:BM26)),$G26*$E26/12,($G26-SUM($Q26:BM26))))) -> 0 | BO26: =IF($D26>=BO$3,0,IF(SUM($Q26:BN26)=$G26,0,IF($G26*$E26/12<($G26-SUM($Q26:BN26)),$G26*$E26/12,($G26-SUM($Q26:BN26))))) -> 0 | BP26: =IF($D26>=BP$3,0,IF(SUM($Q26:BO26)=$G26,0,IF($G26*$E26/12<($G26-SUM($Q26:BO26)),$G26*$E26/12,($G26-SUM($Q26:BO26))))) -> 0 | BQ26: =IF($D26>=BQ$3,0,IF(SUM($Q26:BP26)=$G26,0,IF($G26*$E26/12<($G26-SUM($Q26:BP26)),$G26*$E26/12,($G26-SUM($Q26:BP26))))) -> 0 | BR26: =IF($D26>=BR$3,0,IF(SUM($Q26:BQ26)=$G26,0,IF($G26*$E26/12<($G26-SUM($Q26:BQ26)),$G26*$E26/12,($G26-SUM($Q26:BQ26))))) -> 0 | BS26: =IF($D26>=BS$3,0,IF(SUM($Q26:BR26)=$G26,0,IF($G26*$E26/12<($G26-SUM($Q26:BR26)),$G26*$E26/12,($G26-SUM($Q26:BR26))))) -> 0 | BT26: =IF($D26>=BT$3,0,IF(SUM($Q26:BS26)=$G26,0,IF($G26*$E26/12<($G26-SUM($Q26:BS26)),$G26*$E26/12,($G26-SUM($Q26:BS26))))) -> 0 | BU26: =IF($D26>=BU$3,0,IF(SUM($Q26:BT26)=$G26,0,IF($G26*$E26/12<($G26-SUM($Q26:BT26)),$G26*$E26/12,($G26-SUM($Q26:BT26))))) -> 0 | BV26: =IF($D26>=BV$3,0,IF(SUM($Q26:BU26)=$G26,0,IF($G26*$E26/12<($G26-SUM($Q26:BU26)),$G26*$E26/12,($G26-SUM($Q26:BU26))))) -> 0 | BW26: =IF($D26>=BW$3,0,IF(SUM($Q26:BV26)=$G26,0,IF($G26*$E26/12<($G26-SUM($Q26:BV26)),$G26*$E26/12,($G26-SUM($Q26:BV26))))) -> 0 | BX26: =IF($D26>=BX$3,0,IF(SUM($Q26:BW26)=$G26,0,IF($G26*$E26/12<($G26-SUM($Q26:BW26)),$G26*$E26/12,($G26-SUM($Q26:BW26))))) -> 0 | BY26: =IF($D26>=BY$3,0,IF(SUM($Q26:BX26)=$G26,0,IF($G26*$E26/12<($G26-SUM($Q26:BX26)),$G26*$E26/12,($G26-SUM($Q26:BX26))))) -> 0 | BZ26: =IF($D26>=BZ$3,0,IF(SUM($Q26:BY26)=$G26,0,IF($G26*$E26/12<($G26-SUM($Q26:BY26)),$G26*$E26/12,($G26-SUM($Q26:BY26))))) -> 0 | CA26: =IF($D26>=CA$3,0,IF(SUM($Q26:BZ26)=$G26,0,IF($G26*$E26/12<($G26-SUM($Q26:BZ26)),$G26*$E26/12,($G26-SUM($Q26:BZ26))))) -> 0 | CB26: =IF($D26>=CB$3,0,IF(SUM($Q26:CA26)=$G26,0,IF($G26*$E26/12<($G26-SUM($Q26:CA26)),$G26*$E26/12,($G26-SUM($Q26:CA26))))) -> 0 | CC26: =IF($D26>=CC$3,0,IF(SUM($Q26:CB26)=$G26,0,IF($G26*$E26/12<($G26-SUM($Q26:CB26)),$G26*$E26/12,($G26-SUM($Q26:CB26))))) -> 0 | CD26: =IF($D26>=CD$3,0,IF(SUM($Q26:CC26)=$G26,0,IF($G26*$E26/12<($G26-SUM($Q26:CC26)),$G26*$E26/12,($G26-SUM($Q26:CC26))))) -> 0 | CE26: =IF($D26>=CE$3,0,IF(SUM($Q26:CD26)=$G26,0,IF($G26*$E26/12<($G26-SUM($Q26:CD26)),$G26*$E26/12,($G26-SUM($Q26:CD26))))) -> 0 | CF26: =IF($D26>=CF$3,0,IF(SUM($Q26:CE26)=$G26,0,IF($G26*$E26/12<($G26-SUM($Q26:CE26)),$G26*$E26/12,($G26-SUM($Q26:CE26))))) -> 0 | CG26: =IF($D26>=CG$3,0,IF(SUM($Q26:CF26)=$G26,0,IF($G26*$E26/12<($G26-SUM($Q26:CF26)),$G26*$E26/12,($G26-SUM($Q26:CF26))))) -> 0 | CH26: =IF($D26>=CH$3,0,IF(SUM($Q26:CG26)=$G26,0,IF($G26*$E26/12<($G26-SUM($Q26:CG26)),$G26*$E26/12,($G26-SUM($Q26:CG26))))) -> 0 | CI26: =IF($D26>=CI$3,0,IF(SUM($Q26:CH26)=$G26,0,IF($G26*$E26/12<($G26-SUM($Q26:CH26)),$G26*$E26/12,($G26-SUM($Q26:CH26))))) -> 0 | CJ26: =IF($D26>=CJ$3,0,IF(SUM($Q26:CI26)=$G26,0,IF($G26*$E26/12<($G26-SUM($Q26:CI26)),$G26*$E26/12,($G26-SUM($Q26:CI26))))) -> 0 | CK26: =IF($D26>=CK$3,0,IF(SUM($Q26:CJ26)=$G26,0,IF($G26*$E26/12<($G26-SUM($Q26:CJ26)),$G26*$E26/12,($G26-SUM($Q26:CJ26))))) -> 0 | CL26: =IF($D26>=CL$3,0,IF(SUM($Q26:CK26)=$G26,0,IF($G26*$E26/12<($G26-SUM($Q26:CK26)),$G26*$E26/12,($G26-SUM($Q26:CK26))))) -> 0 | CM26: =IF($D26>=CM$3,0,IF(SUM($Q26:CL26)=$G26,0,IF($G26*$E26/12<($G26-SUM($Q26:CL26)),$G26*$E26/12,($G26-SUM($Q26:CL26))))) -> 0 | CN26: =IF($D26>=CN$3,0,IF(SUM($Q26:CM26)=$G26,0,IF($G26*$E26/12<($G26-SUM($Q26:CM26)),$G26*$E26/12,($G26-SUM($Q26:CM26))))) -> 0 | CO26: =IF($D26>=CO$3,0,IF(SUM($Q26:CN26)=$G26,0,IF($G26*$E26/12<($G26-SUM($Q26:CN26)),$G26*$E26/12,($G26-SUM($Q26:CN26))))) -> 0 | CP26: =IF($D26>=CP$3,0,IF(SUM($Q26:CO26)=$G26,0,IF($G26*$E26/12<($G26-SUM($Q26:CO26)),$G26*$E26/12,($G26-SUM($Q26:CO26))))) -> 0 | CQ26: =IF($D26>=CQ$3,0,IF(SUM($Q26:CP26)=$G26,0,IF($G26*$E26/12<($G26-SUM($Q26:CP26)),$G26*$E26/12,($G26-SUM($Q26:CP26))))) -> 0 | CR26: =IF($D26>=CR$3,0,IF(SUM($Q26:CQ26)=$G26,0,IF($G26*$E26/12<($G26-SUM($Q26:CQ26)),$G26*$E26/12,($G26-SUM($Q26:CQ26))))) -> 0 | CS26: =IF($D26>=CS$3,0,IF(SUM($Q26:CR26)=$G26,0,IF($G26*$E26/12<($G26-SUM($Q26:CR26)),$G26*$E26/12,($G26-SUM($Q26:CR26))))) -> 0 | CT26: =IF($D26>=CT$3,0,IF(SUM($Q26:CS26)=$G26,0,IF($G26*$E26/12<($G26-SUM($Q26:CS26)),$G26*$E26/12,($G26-SUM($Q26:CS26))))) -> 0 | CU26: =IF($D26>=CU$3,0,IF(SUM($Q26:CT26)=$G26,0,IF($G26*$E26/12<($G26-SUM($Q26:CT26)),$G26*$E26/12,($G26-SUM($Q26:CT26))))) -> 0 | CV26: =IF($D26>=CV$3,0,IF(SUM($Q26:CU26)=$G26,0,IF($G26*$E26/12<($G26-SUM($Q26:CU26)),$G26*$E26/12,($G26-SUM($Q26:CU26))))) -> 0
A27: =IF(D27<EOMONTH($D$2,-12),"Fuera de plazo",IF(D27>BALANCE!$J$3,"Fuera de plazo","")) ->  | B27: Otros | D27: 2018-08-31 | E27: 0.2 | F27: 0.21 | G27: =IF(YEAR(D27)<=YEAR($D$2),C27*RIESGO!$C$4,C27*RIESGO!$C$4*(1+CONTROL!$H$4)^(YEAR(D27)-YEAR($D$2))) -> 0 | H27: 0 | I27: 0 | J27: 0 | K27: 0 | L27: 0 | M27: 0 | N27: 0 | O27: 0 | Q27: 0 | R27: =IF($D27>=R$3,0,IF(SUM($Q27:Q27)=$G27,0,IF($G27*$E27/12<($G27-SUM($Q27:Q27)),$G27*$E27/12,($G27-SUM($Q27:Q27))))) -> 0 | S27: =IF($D27>=S$3,0,IF(SUM($Q27:R27)=$G27,0,IF($G27*$E27/12<($G27-SUM($Q27:R27)),$G27*$E27/12,($G27-SUM($Q27:R27))))) -> 0 | T27: =IF($D27>=T$3,0,IF(SUM($Q27:S27)=$G27,0,IF($G27*$E27/12<($G27-SUM($Q27:S27)),$G27*$E27/12,($G27-SUM($Q27:S27))))) -> 0 | U27: =IF($D27>=U$3,0,IF(SUM($Q27:T27)=$G27,0,IF($G27*$E27/12<($G27-SUM($Q27:T27)),$G27*$E27/12,($G27-SUM($Q27:T27))))) -> 0 | V27: =IF($D27>=V$3,0,IF(SUM($Q27:U27)=$G27,0,IF($G27*$E27/12<($G27-SUM($Q27:U27)),$G27*$E27/12,($G27-SUM($Q27:U27))))) -> 0 | W27: =IF($D27>=W$3,0,IF(SUM($Q27:V27)=$G27,0,IF($G27*$E27/12<($G27-SUM($Q27:V27)),$G27*$E27/12,($G27-SUM($Q27:V27))))) -> 0 | X27: =IF($D27>=X$3,0,IF(SUM($Q27:W27)=$G27,0,IF($G27*$E27/12<($G27-SUM($Q27:W27)),$G27*$E27/12,($G27-SUM($Q27:W27))))) -> 0 | Y27: =IF($D27>=Y$3,0,IF(SUM($Q27:X27)=$G27,0,IF($G27*$E27/12<($G27-SUM($Q27:X27)),$G27*$E27/12,($G27-SUM($Q27:X27))))) -> 0 | Z27: =IF($D27>=Z$3,0,IF(SUM($Q27:Y27)=$G27,0,IF($G27*$E27/12<($G27-SUM($Q27:Y27)),$G27*$E27/12,($G27-SUM($Q27:Y27))))) -> 0 | AA27: =IF($D27>=AA$3,0,IF(SUM($Q27:Z27)=$G27,0,IF($G27*$E27/12<($G27-SUM($Q27:Z27)),$G27*$E27/12,($G27-SUM($Q27:Z27))))) -> 0 | AB27: =IF($D27>=AB$3,0,IF(SUM($Q27:AA27)=$G27,0,IF($G27*$E27/12<($G27-SUM($Q27:AA27)),$G27*$E27/12,($G27-SUM($Q27:AA27))))) -> 0 | AC27: =IF($D27>=AC$3,0,IF(SUM($Q27:AB27)=$G27,0,IF($G27*$E27/12<($G27-SUM($Q27:AB27)),$G27*$E27/12,($G27-SUM($Q27:AB27))))) -> 0 | AD27: =IF($D27>=AD$3,0,IF(SUM($Q27:AC27)=$G27,0,IF($G27*$E27/12<($G27-SUM($Q27:AC27)),$G27*$E27/12,($G27-SUM($Q27:AC27))))) -> 0 | AE27: =IF($D27>=AE$3,0,IF(SUM($Q27:AD27)=$G27,0,IF($G27*$E27/12<($G27-SUM($Q27:AD27)),$G27*$E27/12,($G27-SUM($Q27:AD27))))) -> 0 | AF27: =IF($D27>=AF$3,0,IF(SUM($Q27:AE27)=$G27,0,IF($G27*$E27/12<($G27-SUM($Q27:AE27)),$G27*$E27/12,($G27-SUM($Q27:AE27))))) -> 0 | AG27: =IF($D27>=AG$3,0,IF(SUM($Q27:AF27)=$G27,0,IF($G27*$E27/12<($G27-SUM($Q27:AF27)),$G27*$E27/12,($G27-SUM($Q27:AF27))))) -> 0 | AH27: =IF($D27>=AH$3,0,IF(SUM($Q27:AG27)=$G27,0,IF($G27*$E27/12<($G27-SUM($Q27:AG27)),$G27*$E27/12,($G27-SUM($Q27:AG27))))) -> 0 | AI27: =IF($D27>=AI$3,0,IF(SUM($Q27:AH27)=$G27,0,IF($G27*$E27/12<($G27-SUM($Q27:AH27)),$G27*$E27/12,($G27-SUM($Q27:AH27))))) -> 0 | AJ27: =IF($D27>=AJ$3,0,IF(SUM($Q27:AI27)=$G27,0,IF($G27*$E27/12<($G27-SUM($Q27:AI27)),$G27*$E27/12,($G27-SUM($Q27:AI27))))) -> 0 | AK27: =IF($D27>=AK$3,0,IF(SUM($Q27:AJ27)=$G27,0,IF($G27*$E27/12<($G27-SUM($Q27:AJ27)),$G27*$E27/12,($G27-SUM($Q27:AJ27))))) -> 0 | AL27: =IF($D27>=AL$3,0,IF(SUM($Q27:AK27)=$G27,0,IF($G27*$E27/12<($G27-SUM($Q27:AK27)),$G27*$E27/12,($G27-SUM($Q27:AK27))))) -> 0 | AM27: =IF($D27>=AM$3,0,IF(SUM($Q27:AL27)=$G27,0,IF($G27*$E27/12<($G27-SUM($Q27:AL27)),$G27*$E27/12,($G27-SUM($Q27:AL27))))) -> 0 | AN27: =IF($D27>=AN$3,0,IF(SUM($Q27:AM27)=$G27,0,IF($G27*$E27/12<($G27-SUM($Q27:AM27)),$G27*$E27/12,($G27-SUM($Q27:AM27))))) -> 0 | AO27: =IF($D27>=AO$3,0,IF(SUM($Q27:AN27)=$G27,0,IF($G27*$E27/12<($G27-SUM($Q27:AN27)),$G27*$E27/12,($G27-SUM($Q27:AN27))))) -> 0 | AP27: =IF($D27>=AP$3,0,IF(SUM($Q27:AO27)=$G27,0,IF($G27*$E27/12<($G27-SUM($Q27:AO27)),$G27*$E27/12,($G27-SUM($Q27:AO27))))) -> 0 | AQ27: =IF($D27>=AQ$3,0,IF(SUM($Q27:AP27)=$G27,0,IF($G27*$E27/12<($G27-SUM($Q27:AP27)),$G27*$E27/12,($G27-SUM($Q27:AP27))))) -> 0 | AR27: =IF($D27>=AR$3,0,IF(SUM($Q27:AQ27)=$G27,0,IF($G27*$E27/12<($G27-SUM($Q27:AQ27)),$G27*$E27/12,($G27-SUM($Q27:AQ27))))) -> 0 | AS27: =IF($D27>=AS$3,0,IF(SUM($Q27:AR27)=$G27,0,IF($G27*$E27/12<($G27-SUM($Q27:AR27)),$G27*$E27/12,($G27-SUM($Q27:AR27))))) -> 0 | AT27: =IF($D27>=AT$3,0,IF(SUM($Q27:AS27)=$G27,0,IF($G27*$E27/12<($G27-SUM($Q27:AS27)),$G27*$E27/12,($G27-SUM($Q27:AS27))))) -> 0 | AU27: =IF($D27>=AU$3,0,IF(SUM($Q27:AT27)=$G27,0,IF($G27*$E27/12<($G27-SUM($Q27:AT27)),$G27*$E27/12,($G27-SUM($Q27:AT27))))) -> 0 | AV27: =IF($D27>=AV$3,0,IF(SUM($Q27:AU27)=$G27,0,IF($G27*$E27/12<($G27-SUM($Q27:AU27)),$G27*$E27/12,($G27-SUM($Q27:AU27))))) -> 0 | AW27: =IF($D27>=AW$3,0,IF(SUM($Q27:AV27)=$G27,0,IF($G27*$E27/12<($G27-SUM($Q27:AV27)),$G27*$E27/12,($G27-SUM($Q27:AV27))))) -> 0 | AX27: =IF($D27>=AX$3,0,IF(SUM($Q27:AW27)=$G27,0,IF($G27*$E27/12<($G27-SUM($Q27:AW27)),$G27*$E27/12,($G27-SUM($Q27:AW27))))) -> 0 | AY27: =IF($D27>=AY$3,0,IF(SUM($Q27:AX27)=$G27,0,IF($G27*$E27/12<($G27-SUM($Q27:AX27)),$G27*$E27/12,($G27-SUM($Q27:AX27))))) -> 0 | AZ27: =IF($D27>=AZ$3,0,IF(SUM($Q27:AY27)=$G27,0,IF($G27*$E27/12<($G27-SUM($Q27:AY27)),$G27*$E27/12,($G27-SUM($Q27:AY27))))) -> 0 | BA27: =IF($D27>=BA$3,0,IF(SUM($Q27:AZ27)=$G27,0,IF($G27*$E27/12<($G27-SUM($Q27:AZ27)),$G27*$E27/12,($G27-SUM($Q27:AZ27))))) -> 0 | BB27: =IF($D27>=BB$3,0,IF(SUM($Q27:BA27)=$G27,0,IF($G27*$E27/12<($G27-SUM($Q27:BA27)),$G27*$E27/12,($G27-SUM($Q27:BA27))))) -> 0 | BC27: =IF($D27>=BC$3,0,IF(SUM($Q27:BB27)=$G27,0,IF($G27*$E27/12<($G27-SUM($Q27:BB27)),$G27*$E27/12,($G27-SUM($Q27:BB27))))) -> 0 | BD27: =IF($D27>=BD$3,0,IF(SUM($Q27:BC27)=$G27,0,IF($G27*$E27/12<($G27-SUM($Q27:BC27)),$G27*$E27/12,($G27-SUM($Q27:BC27))))) -> 0 | BE27: =IF($D27>=BE$3,0,IF(SUM($Q27:BD27)=$G27,0,IF($G27*$E27/12<($G27-SUM($Q27:BD27)),$G27*$E27/12,($G27-SUM($Q27:BD27))))) -> 0 | BF27: =IF($D27>=BF$3,0,IF(SUM($Q27:BE27)=$G27,0,IF($G27*$E27/12<($G27-SUM($Q27:BE27)),$G27*$E27/12,($G27-SUM($Q27:BE27))))) -> 0 | BG27: =IF($D27>=BG$3,0,IF(SUM($Q27:BF27)=$G27,0,IF($G27*$E27/12<($G27-SUM($Q27:BF27)),$G27*$E27/12,($G27-SUM($Q27:BF27))))) -> 0 | BH27: =IF($D27>=BH$3,0,IF(SUM($Q27:BG27)=$G27,0,IF($G27*$E27/12<($G27-SUM($Q27:BG27)),$G27*$E27/12,($G27-SUM($Q27:BG27))))) -> 0 | BI27: =IF($D27>=BI$3,0,IF(SUM($Q27:BH27)=$G27,0,IF($G27*$E27/12<($G27-SUM($Q27:BH27)),$G27*$E27/12,($G27-SUM($Q27:BH27))))) -> 0 | BJ27: =IF($D27>=BJ$3,0,IF(SUM($Q27:BI27)=$G27,0,IF($G27*$E27/12<($G27-SUM($Q27:BI27)),$G27*$E27/12,($G27-SUM($Q27:BI27))))) -> 0 | BK27: =IF($D27>=BK$3,0,IF(SUM($Q27:BJ27)=$G27,0,IF($G27*$E27/12<($G27-SUM($Q27:BJ27)),$G27*$E27/12,($G27-SUM($Q27:BJ27))))) -> 0 | BL27: =IF($D27>=BL$3,0,IF(SUM($Q27:BK27)=$G27,0,IF($G27*$E27/12<($G27-SUM($Q27:BK27)),$G27*$E27/12,($G27-SUM($Q27:BK27))))) -> 0 | BM27: =IF($D27>=BM$3,0,IF(SUM($Q27:BL27)=$G27,0,IF($G27*$E27/12<($G27-SUM($Q27:BL27)),$G27*$E27/12,($G27-SUM($Q27:BL27))))) -> 0 | BN27: =IF($D27>=BN$3,0,IF(SUM($Q27:BM27)=$G27,0,IF($G27*$E27/12<($G27-SUM($Q27:BM27)),$G27*$E27/12,($G27-SUM($Q27:BM27))))) -> 0 | BO27: =IF($D27>=BO$3,0,IF(SUM($Q27:BN27)=$G27,0,IF($G27*$E27/12<($G27-SUM($Q27:BN27)),$G27*$E27/12,($G27-SUM($Q27:BN27))))) -> 0 | BP27: =IF($D27>=BP$3,0,IF(SUM($Q27:BO27)=$G27,0,IF($G27*$E27/12<($G27-SUM($Q27:BO27)),$G27*$E27/12,($G27-SUM($Q27:BO27))))) -> 0 | BQ27: =IF($D27>=BQ$3,0,IF(SUM($Q27:BP27)=$G27,0,IF($G27*$E27/12<($G27-SUM($Q27:BP27)),$G27*$E27/12,($G27-SUM($Q27:BP27))))) -> 0 | BR27: =IF($D27>=BR$3,0,IF(SUM($Q27:BQ27)=$G27,0,IF($G27*$E27/12<($G27-SUM($Q27:BQ27)),$G27*$E27/12,($G27-SUM($Q27:BQ27))))) -> 0 | BS27: =IF($D27>=BS$3,0,IF(SUM($Q27:BR27)=$G27,0,IF($G27*$E27/12<($G27-SUM($Q27:BR27)),$G27*$E27/12,($G27-SUM($Q27:BR27))))) -> 0 | BT27: =IF($D27>=BT$3,0,IF(SUM($Q27:BS27)=$G27,0,IF($G27*$E27/12<($G27-SUM($Q27:BS27)),$G27*$E27/12,($G27-SUM($Q27:BS27))))) -> 0 | BU27: =IF($D27>=BU$3,0,IF(SUM($Q27:BT27)=$G27,0,IF($G27*$E27/12<($G27-SUM($Q27:BT27)),$G27*$E27/12,($G27-SUM($Q27:BT27))))) -> 0 | BV27: =IF($D27>=BV$3,0,IF(SUM($Q27:BU27)=$G27,0,IF($G27*$E27/12<($G27-SUM($Q27:BU27)),$G27*$E27/12,($G27-SUM($Q27:BU27))))) -> 0 | BW27: =IF($D27>=BW$3,0,IF(SUM($Q27:BV27)=$G27,0,IF($G27*$E27/12<($G27-SUM($Q27:BV27)),$G27*$E27/12,($G27-SUM($Q27:BV27))))) -> 0 | BX27: =IF($D27>=BX$3,0,IF(SUM($Q27:BW27)=$G27,0,IF($G27*$E27/12<($G27-SUM($Q27:BW27)),$G27*$E27/12,($G27-SUM($Q27:BW27))))) -> 0 | BY27: =IF($D27>=BY$3,0,IF(SUM($Q27:BX27)=$G27,0,IF($G27*$E27/12<($G27-SUM($Q27:BX27)),$G27*$E27/12,($G27-SUM($Q27:BX27))))) -> 0 | BZ27: =IF($D27>=BZ$3,0,IF(SUM($Q27:BY27)=$G27,0,IF($G27*$E27/12<($G27-SUM($Q27:BY27)),$G27*$E27/12,($G27-SUM($Q27:BY27))))) -> 0 | CA27: =IF($D27>=CA$3,0,IF(SUM($Q27:BZ27)=$G27,0,IF($G27*$E27/12<($G27-SUM($Q27:BZ27)),$G27*$E27/12,($G27-SUM($Q27:BZ27))))) -> 0 | CB27: =IF($D27>=CB$3,0,IF(SUM($Q27:CA27)=$G27,0,IF($G27*$E27/12<($G27-SUM($Q27:CA27)),$G27*$E27/12,($G27-SUM($Q27:CA27))))) -> 0 | CC27: =IF($D27>=CC$3,0,IF(SUM($Q27:CB27)=$G27,0,IF($G27*$E27/12<($G27-SUM($Q27:CB27)),$G27*$E27/12,($G27-SUM($Q27:CB27))))) -> 0 | CD27: =IF($D27>=CD$3,0,IF(SUM($Q27:CC27)=$G27,0,IF($G27*$E27/12<($G27-SUM($Q27:CC27)),$G27*$E27/12,($G27-SUM($Q27:CC27))))) -> 0 | CE27: =IF($D27>=CE$3,0,IF(SUM($Q27:CD27)=$G27,0,IF($G27*$E27/12<($G27-SUM($Q27:CD27)),$G27*$E27/12,($G27-SUM($Q27:CD27))))) -> 0 | CF27: =IF($D27>=CF$3,0,IF(SUM($Q27:CE27)=$G27,0,IF($G27*$E27/12<($G27-SUM($Q27:CE27)),$G27*$E27/12,($G27-SUM($Q27:CE27))))) -> 0 | CG27: =IF($D27>=CG$3,0,IF(SUM($Q27:CF27)=$G27,0,IF($G27*$E27/12<($G27-SUM($Q27:CF27)),$G27*$E27/12,($G27-SUM($Q27:CF27))))) -> 0 | CH27: =IF($D27>=CH$3,0,IF(SUM($Q27:CG27)=$G27,0,IF($G27*$E27/12<($G27-SUM($Q27:CG27)),$G27*$E27/12,($G27-SUM($Q27:CG27))))) -> 0 | CI27: =IF($D27>=CI$3,0,IF(SUM($Q27:CH27)=$G27,0,IF($G27*$E27/12<($G27-SUM($Q27:CH27)),$G27*$E27/12,($G27-SUM($Q27:CH27))))) -> 0 | CJ27: =IF($D27>=CJ$3,0,IF(SUM($Q27:CI27)=$G27,0,IF($G27*$E27/12<($G27-SUM($Q27:CI27)),$G27*$E27/12,($G27-SUM($Q27:CI27))))) -> 0 | CK27: =IF($D27>=CK$3,0,IF(SUM($Q27:CJ27)=$G27,0,IF($G27*$E27/12<($G27-SUM($Q27:CJ27)),$G27*$E27/12,($G27-SUM($Q27:CJ27))))) -> 0 | CL27: =IF($D27>=CL$3,0,IF(SUM($Q27:CK27)=$G27,0,IF($G27*$E27/12<($G27-SUM($Q27:CK27)),$G27*$E27/12,($G27-SUM($Q27:CK27))))) -> 0 | CM27: =IF($D27>=CM$3,0,IF(SUM($Q27:CL27)=$G27,0,IF($G27*$E27/12<($G27-SUM($Q27:CL27)),$G27*$E27/12,($G27-SUM($Q27:CL27))))) -> 0 | CN27: =IF($D27>=CN$3,0,IF(SUM($Q27:CM27)=$G27,0,IF($G27*$E27/12<($G27-SUM($Q27:CM27)),$G27*$E27/12,($G27-SUM($Q27:CM27))))) -> 0 | CO27: =IF($D27>=CO$3,0,IF(SUM($Q27:CN27)=$G27,0,IF($G27*$E27/12<($G27-SUM($Q27:CN27)),$G27*$E27/12,($G27-SUM($Q27:CN27))))) -> 0 | CP27: =IF($D27>=CP$3,0,IF(SUM($Q27:CO27)=$G27,0,IF($G27*$E27/12<($G27-SUM($Q27:CO27)),$G27*$E27/12,($G27-SUM($Q27:CO27))))) -> 0 | CQ27: =IF($D27>=CQ$3,0,IF(SUM($Q27:CP27)=$G27,0,IF($G27*$E27/12<($G27-SUM($Q27:CP27)),$G27*$E27/12,($G27-SUM($Q27:CP27))))) -> 0 | CR27: =IF($D27>=CR$3,0,IF(SUM($Q27:CQ27)=$G27,0,IF($G27*$E27/12<($G27-SUM($Q27:CQ27)),$G27*$E27/12,($G27-SUM($Q27:CQ27))))) -> 0 | CS27: =IF($D27>=CS$3,0,IF(SUM($Q27:CR27)=$G27,0,IF($G27*$E27/12<($G27-SUM($Q27:CR27)),$G27*$E27/12,($G27-SUM($Q27:CR27))))) -> 0 | CT27: =IF($D27>=CT$3,0,IF(SUM($Q27:CS27)=$G27,0,IF($G27*$E27/12<($G27-SUM($Q27:CS27)),$G27*$E27/12,($G27-SUM($Q27:CS27))))) -> 0 | CU27: =IF($D27>=CU$3,0,IF(SUM($Q27:CT27)=$G27,0,IF($G27*$E27/12<($G27-SUM($Q27:CT27)),$G27*$E27/12,($G27-SUM($Q27:CT27))))) -> 0 | CV27: =IF($D27>=CV$3,0,IF(SUM($Q27:CU27)=$G27,0,IF($G27*$E27/12<($G27-SUM($Q27:CU27)),$G27*$E27/12,($G27-SUM($Q27:CU27))))) -> 0
B29: Gastos de Apertura | G29: =C29*RIESGO!C4 -> 0
H31: Amortización Inmovilizado Material | I31: =SUM(I6:I20) -> 0 | J31: =SUM(J6:J20) -> 0 | K31: 0 | L31: 0 | M31: 0 | N31: 0 | O31: 0 | Q31: =SUM(Q6:Q20) -> 0 | R31: =SUM(R6:R20) -> 0 | S31: 0 | T31: 0 | U31: 0 | V31: 0 | W31: 0 | X31: 0 | Y31: 0 | Z31: 0 | AA31: 0 | AB31: 0 | AC31: 0 | AD31: 0 | AE31: 0 | AF31: 0 | AG31: 0 | AH31: 0 | AI31: 0 | AJ31: 0 | AK31: 0 | AL31: 0 | AM31: 0 | AN31: 0 | AO31: 0 | AP31: 0 | AQ31: 0 | AR31: 0 | AS31: 0 | AT31: 0 | AU31: 0 | AV31: 0 | AW31: 0 | AX31: 0 | AY31: 0 | AZ31: 0 | BA31: 0 | BB31: 0 | BC31: 0 | BD31: 0 | BE31: 0 | BF31: 0 | BG31: 0 | BH31: 0 | BI31: 0 | BJ31: 0 | BK31: 0 | BL31: 0 | BM31: 0 | BN31: 0 | BO31: 0 | BP31: 0 | BQ31: 0 | BR31: 0 | BS31: 0 | BT31: 0 | BU31: 0 | BV31: 0 | BW31: 0 | BX31: 0 | BY31: 0 | BZ31: 0 | CA31: 0 | CB31: 0 | CC31: 0 | CD31: =SUM(CD6:CD20) -> 0 | CE31: 0 | CF31: 0 | CG31: 0 | CH31: 0 | CI31: 0 | CJ31: 0 | CK31: 0 | CL31: 0 | CM31: 0 | CN31: 0 | CO31: 0 | CP31: 0 | CQ31: 0 | CR31: 0 | CS31: 0 | CT31: 0 | CU31: 0 | CV31: 0
H32: Amortización Inmovilizado Intangible | I32: =SUM(I22:I27) -> 0 | J32: =SUM(J22:J27) -> 0 | K32: 0 | L32: 0 | M32: 0 | N32: 0 | O32: 0 | Q32: =SUM(Q22:Q27) -> 0 | R32: =SUM(R22:R27) -> 0 | S32: 0 | T32: 0 | U32: 0 | V32: 0 | W32: 0 | X32: 0 | Y32: 0 | Z32: 0 | AA32: 0 | AB32: 0 | AC32: 0 | AD32: 0 | AE32: 0 | AF32: 0 | AG32: 0 | AH32: 0 | AI32: 0 | AJ32: 0 | AK32: 0 | AL32: 0 | AM32: 0 | AN32: 0 | AO32: 0 | AP32: 0 | AQ32: 0 | AR32: 0 | AS32: 0 | AT32: 0 | AU32: 0 | AV32: 0 | AW32: 0 | AX32: 0 | AY32: 0 | AZ32: 0 | BA32: 0 | BB32: 0 | BC32: 0 | BD32: 0 | BE32: 0 | BF32: 0 | BG32: 0 | BH32: 0 | BI32: 0 | BJ32: 0 | BK32: 0 | BL32: 0 | BM32: 0 | BN32: 0 | BO32: 0 | BP32: 0 | BQ32: 0 | BR32: 0 | BS32: 0 | BT32: 0 | BU32: 0 | BV32: 0 | BW32: 0 | BX32: 0 | BY32: 0 | BZ32: 0 | CA32: 0 | CB32: 0 | CC32: 0 | CD32: =SUM(CD22:CD27) -> 0 | CE32: 0 | CF32: 0 | CG32: 0 | CH32: 0 | CI32: 0 | CJ32: 0 | CK32: 0 | CL32: 0 | CM32: 0 | CN32: 0 | CO32: 0 | CP32: 0 | CQ32: 0 | CR32: 0 | CS32: 0 | CT32: 0 | CU32: 0 | CV32: 0
H33: Amortización | I33: =SUM(I31:I32) -> 0 | J33: 0 | K33: 0 | L33: 0 | M33: 0 | N33: 0 | O33: 0 | Q33: =SUM(Q31:Q32) -> 0 | R33: 0 | S33: 0 | T33: 0 | U33: 0 | V33: 0 | W33: 0 | X33: 0 | Y33: 0 | Z33: 0 | AA33: 0 | AB33: 0 | AC33: 0 | AD33: 0 | AE33: 0 | AF33: 0 | AG33: 0 | AH33: 0 | AI33: 0 | AJ33: 0 | AK33: 0 | AL33: 0 | AM33: 0 | AN33: 0 | AO33: 0 | AP33: 0 | AQ33: 0 | AR33: 0 | AS33: 0 | AT33: 0 | AU33: 0 | AV33: 0 | AW33: =SUM(AW31:AW32) -> 0 | AX33: 0 | AY33: 0 | AZ33: 0 | BA33: 0 | BB33: 0 | BC33: 0 | BD33: 0 | BE33: 0 | BF33: 0 | BG33: 0 | BH33: 0 | BI33: 0 | BJ33: 0 | BK33: 0 | BL33: 0 | BM33: 0 | BN33: 0 | BO33: 0 | BP33: 0 | BQ33: 0 | BR33: 0 | BS33: 0 | BT33: 0 | BU33: 0 | BV33: 0 | BW33: 0 | BX33: 0 | BY33: 0 | BZ33: 0 | CA33: 0 | CB33: 0 | CC33: =SUM(CC31:CC32) -> 0 | CD33: 0 | CE33: 0 | CF33: 0 | CG33: 0 | CH33: 0 | CI33: 0 | CJ33: 0 | CK33: 0 | CL33: 0 | CM33: 0 | CN33: 0 | CO33: 0 | CP33: 0 | CQ33: 0 | CR33: 0 | CS33: 0 | CT33: 0 | CU33: 0 | CV33: 0
D35: RESUMEN ANUAL DE INVERSIONES | S35: RESUMEN MENSUAL DE INVERSIONES
Q36: =YEAR(Q37) -> 2013 | R36: 2013 | S36: 2013 | T36: 2013 | U36: 2013 | V36: 2013 | W36: 2013 | X36: 2013 | Y36: 2013 | Z36: 2013 | AA36: 2013 | AB36: 2013 | AC36: 2014 | AD36: 2014 | AE36: 2014 | AF36: 2014 | AG36: 2014 | AH36: 2014 | AI36: 2014 | AJ36: 2014 | AK36: 2014 | AL36: 2014 | AM36: 2014 | AN36: 2014 | AO36: 2015 | AP36: 2015 | AQ36: 2015 | AR36: 2015 | AS36: 2015 | AT36: 2015 | AU36: 2015 | AV36: 2015 | AW36: 2015 | AX36: 2015 | AY36: 2015 | AZ36: 2015 | BA36: 2016 | BB36: 2016 | BC36: 2016 | BD36: 2016 | BE36: 2016 | BF36: 2016 | BG36: 2016 | BH36: 2016 | BI36: 2016 | BJ36: 2016 | BK36: 2016 | BL36: 2016 | BM36: 2017 | BN36: 2017 | BO36: 2017 | BP36: 2017 | BQ36: 2017 | BR36: 2017 | BS36: 2017 | BT36: 2017 | BU36: 2017 | BV36: 2017 | BW36: 2017 | BX36: 2017 | BY36: 2018 | BZ36: 2018 | CA36: 2018 | CB36: 2018 | CC36: =YEAR(CC37) -> 2018 | CD36: 2018 | CE36: 2018 | CF36: 2018 | CG36: 2018 | CH36: 2018 | CI36: 2018 | CJ36: 2018 | CK36: 2019 | CL36: 2019 | CM36: 2019 | CN36: 2019 | CO36: 2019 | CP36: 2019 | CQ36: 2019 | CR36: 2019 | CS36: 2019 | CT36: 2019 | CU36: 2019 | CV36: 2019 | CW36: 2020 | CX36: 2020 | CY36: 2020 | CZ36: 2020 | DA36: 2020 | DB36: 2020 | DC36: 2020 | DD36: 2020 | DE36: 2020 | DF36: 2020 | DG36: 2020 | DH36: =YEAR(DH37) -> 2020
C37: =I3-1 -> 2013 | D37: =C37+1 -> 2014 | E37: 2015 | F37: 2016 | G37: 2017 | H37: 2018 | I37: 2019 | J37: 2020 | Q37: =EOMONTH(R37,-1) -> 2013-01-31 | R37: 2013-02-28 | S37: 2013-03-31 | T37: 2013-04-30 | U37: 2013-05-31 | V37: 2013-06-30 | W37: 2013-07-31 | X37: 2013-08-31 | Y37: 2013-09-30 | Z37: 2013-10-31 | AA37: 2013-11-30 | AB37: =EOMONTH(AC37,-1) -> 2013-12-31 | AC37: =D2 -> 2014-01-31 | AD37: =EOMONTH(AC37,1) -> 2014-02-28 | AE37: =EOMONTH(AD37,1) -> 2014-03-31 | AF37: 2014-04-30 | AG37: 2014-05-31 | AH37: 2014-06-30 | AI37: 2014-07-31 | AJ37: 2014-08-31 | AK37: 2014-09-30 | AL37: 2014-10-31 | AM37: 2014-11-30 | AN37: 2014-12-31 | AO37: 2015-01-31 | AP37: 2015-02-28 | AQ37: 2015-03-31 | AR37: 2015-04-30 | AS37: 2015-05-31 | AT37: 2015-06-30 | AU37: 2015-07-31 | AV37: 2015-08-31 | AW37: 2015-09-30 | AX37: 2015-10-31 | AY37: 2015-11-30 | AZ37: 2015-12-31 | BA37: 2016-01-31 | BB37: 2016-02-29 | BC37: 2016-03-31 | BD37: 2016-04-30 | BE37: 2016-05-31 | BF37: 2016-06-30 | BG37: 2016-07-31 | BH37: 2016-08-31 | BI37: 2016-09-30 | BJ37: 2016-10-31 | BK37: 2016-11-30 | BL37: 2016-12-31 | BM37: 2017-01-31 | BN37: 2017-02-28 | BO37: 2017-03-31 | BP37: 2017-04-30 | BQ37: 2017-05-31 | BR37: 2017-06-30 | BS37: 2017-07-31 | BT37: 2017-08-31 | BU37: 2017-09-30 | BV37: 2017-10-31 | BW37: 2017-11-30 | BX37: 2017-12-31 | BY37: 2018-01-31 | BZ37: 2018-02-28 | CA37: 2018-03-31 | CB37: 2018-04-30 | CC37: 2018-05-31 | CD37: 2018-06-30 | CE37: 2018-07-31 | CF37: 2018-08-31 | CG37: 2018-09-30 | CH37: 2018-10-31 | CI37: 2018-11-30 | CJ37: 2018-12-31 | CK37: 2019-01-31 | CL37: 2019-02-28 | CM37: 2019-03-31 | CN37: 2019-04-30 | CO37: 2019-05-31 | CP37: 2019-06-30 | CQ37: =EOMONTH(CP37,1) -> 2019-07-31 | CR37: 2019-08-31 | CS37: 2019-09-30 | CT37: 2019-10-31 | CU37: 2019-11-30 | CV37: 2019-12-31 | CW37: 2020-01-31 | CX37: 2020-02-29 | CY37: 2020-03-31 | CZ37: 2020-04-30 | DA37: 2020-05-31 | DB37: 2020-06-30 | DC37: 2020-07-31 | DD37: 2020-08-31 | DE37: 2020-09-30 | DF37: 2020-10-31 | DG37: 2020-11-30 | DH37: 2020-12-31
B38: Inmovilizado Material | C38: =SUMIF($Q$36:$DH$36,C$37,$Q38:$DH38) -> 1 | D38: =SUMIF($Q$36:$DH$36,D$37,$Q38:$DH38) -> 0 | E38: 0 | F38: 0 | G38: 0 | H38: 0 | I38: 0 | J38: 0 | P38: Inmovilizado Material | Q38: =SUMIF($D$5:$D$20,Q37,$G$5:$G$20) -> 0 | R38: 0 | S38: 0 | T38: 1 | U38: 0 | V38: 0 | W38: 0 | X38: 0 | Y38: 0 | Z38: 0 | AA38: 0 | AB38: 0 | AC38: =SUMIF($D$5:$D$20,AC37,$G$5:$G$20) -> 0 | AD38: 0 | AE38: 0 | AF38: 0 | AG38: 0 | AH38: 0 | AI38: 0 | AJ38: 0 | AK38: 0 | AL38: 0 | AM38: 0 | AN38: 0 | AO38: 0 | AP38: 0 | AQ38: 0 | AR38: 0 | AS38: 0 | AT38: 0 | AU38: 0 | AV38: 0 | AW38: =SUMIF($D$5:$D$20,AW37,$G$5:$G$20) -> 0 | AX38: 0 | AY38: 0 | AZ38: 0 | BA38: 0 | BB38: 0 | BC38: 0 | BD38: 0 | BE38: 0 | BF38: 0 | BG38: 0 | BH38: 0 | BI38: 0 | BJ38: 0 | BK38: 0 | BL38: 0 | BM38: 0 | BN38: 0 | BO38: 0 | BP38: 0 | BQ38: 0 | BR38: 0 | BS38: 0 | BT38: 0 | BU38: 0 | BV38: 0 | BW38: 0 | BX38: 0 | BY38: 0 | BZ38: 0 | CA38: 0 | CB38: 0 | CC38: =SUMIF($D$5:$D$20,CC37,$G$5:$G$20) -> 0 | CD38: 0 | CE38: 0 | CF38: 0 | CG38: 0 | CH38: 0 | CI38: 0 | CJ38: 0 | CK38: 0 | CL38: 0 | CM38: 0 | CN38: 0 | CO38: 0 | CP38: 0 | CQ38: 0 | CR38: 0 | CS38: 0 | CT38: 0 | CU38: 0 | CV38: 0 | CW38: 0 | CX38: 0 | CY38: 0 | CZ38: 0 | DA38: 0 | DB38: 0 | DC38: 0 | DD38: 0 | DE38: 0 | DF38: 0 | DG38: 0 | DH38: 0
B39: Inmovilizado Intangible | C39: 0 | D39: 0 | E39: 0 | F39: 0 | G39: 0 | H39: 0 | I39: 0 | J39: 0 | P39: Inmovilizado Intangible | Q39: =SUMIF($D$22:$D$27,Q37,$G$22:$G$27) -> 0 | R39: =SUMIF($D$22:$D$27,R37,$G$22:$G$27) -> 0 | S39: 0 | T39: 0 | U39: 0 | V39: 0 | W39: 0 | X39: 0 | Y39: 0 | Z39: 0 | AA39: 0 | AB39: 0 | AC39: 0 | AD39: 0 | AE39: 0 | AF39: 0 | AG39: 0 | AH39: 0 | AI39: 0 | AJ39: 0 | AK39: 0 | AL39: 0 | AM39: 0 | AN39: 0 | AO39: 0 | AP39: 0 | AQ39: 0 | AR39: 0 | AS39: 0 | AT39: 0 | AU39: 0 | AV39: 0 | AW39: =SUMIF($D$22:$D$27,AW37,$G$22:$G$27) -> 0 | AX39: 0 | AY39: 0 | AZ39: 0 | BA39: 0 | BB39: 0 | BC39: 0 | BD39: 0 | BE39: 0 | BF39: 0 | BG39: 0 | BH39: 0 | BI39: 0 | BJ39: 0 | BK39: 0 | BL39: 0 | BM39: 0 | BN39: 0 | BO39: 0 | BP39: 0 | BQ39: 0 | BR39: 0 | BS39: 0 | BT39: 0 | BU39: 0 | BV39: 0 | BW39: 0 | BX39: 0 | BY39: 0 | BZ39: 0 | CA39: 0 | CB39: 0 | CC39: =SUMIF($D$22:$D$27,CC37,$G$22:$G$27) -> 0 | CD39: 0 | CE39: 0 | CF39: 0 | CG39: 0 | CH39: 0 | CI39: 0 | CJ39: 0 | CK39: 0 | CL39: 0 | CM39: 0 | CN39: 0 | CO39: 0 | CP39: 0 | CQ39: 0 | CR39: 0 | CS39: 0 | CT39: 0 | CU39: 0 | CV39: 0 | CW39: 0 | CX39: 0 | CY39: 0 | CZ39: 0 | DA39: 0 | DB39: 0 | DC39: 0 | DD39: 0 | DE39: 0 | DF39: 0 | DG39: 0 | DH39: 0
B40: TOTAL | C40: =SUM(C38:C39) -> 1 | D40: 0 | E40: 0 | F40: 0 | G40: 0 | H40: 0 | I40: 0 | J40: 0 | P40: TOTAL | Q40: =SUM(Q38:Q39) -> 0 | R40: 0 | S40: 0 | T40: 1 | U40: 0 | V40: 0 | W40: 0 | X40: 0 | Y40: 0 | Z40: 0 | AA40: 0 | AB40: 0 | AC40: 0 | AD40: 0 | AE40: 0 | AF40: 0 | AG40: 0 | AH40: 0 | AI40: 0 | AJ40: 0 | AK40: 0 | AL40: 0 | AM40: 0 | AN40: 0 | AO40: 0 | AP40: 0 | AQ40: 0 | AR40: 0 | AS40: 0 | AT40: 0 | AU40: 0 | AV40: 0 | AW40: =SUM(AW38:AW39) -> 0 | AX40: 0 | AY40: 0 | AZ40: 0 | BA40: 0 | BB40: 0 | BC40: 0 | BD40: 0 | BE40: 0 | BF40: 0 | BG40: 0 | BH40: 0 | BI40: 0 | BJ40: 0 | BK40: 0 | BL40: 0 | BM40: 0 | BN40: 0 | BO40: 0 | BP40: 0 | BQ40: 0 | BR40: 0 | BS40: 0 | BT40: 0 | BU40: 0 | BV40: 0 | BW40: 0 | BX40: 0 | BY40: 0 | BZ40: 0 | CA40: 0 | CB40: 0 | CC40: =SUM(CC38:CC39) -> 0 | CD40: 0 | CE40: 0 | CF40: 0 | CG40: 0 | CH40: 0 | CI40: 0 | CJ40: 0 | CK40: 0 | CL40: 0 | CM40: 0 | CN40: 0 | CO40: 0 | CP40: 0 | CQ40: 0 | CR40: 0 | CS40: 0 | CT40: 0 | CU40: 0 | CV40: 0 | CW40: 0 | CX40: 0 | CY40: 0 | CZ40: 0 | DA40: 0 | DB40: 0 | DC40: 0 | DD40: 0 | DE40: 0 | DF40: 0 | DG40: 0 | DH40: 0
B42: IVA | C42: =SUMIF($Q$36:$DH$36,C$37,$Q42:$DH42) -> 0 | D42: 0 | E42: 0 | F42: 0 | G42: 0 | H42: 0 | I42: 0 | J42: 0 | P42: IVA | Q42: =SUMIF(INV!$D$5:$D$27,Q37,INV!$H$5:$H$27) -> 0 | R42: =SUMIF(INV!$D$5:$D$27,R37,INV!$H$5:$H$27) -> 0 | S42: =SUMIF(INV!$D$5:$D$27,S37,INV!$H$5:$H$27) -> 0 | T42: =SUMIF(INV!$D$5:$D$27,T37,INV!$H$5:$H$27) -> 0 | U42: =SUMIF(INV!$D$5:$D$27,U37,INV!$H$5:$H$27) -> 0 | V42: =SUMIF(INV!$D$5:$D$27,V37,INV!$H$5:$H$27) -> 0 | W42: =SUMIF(INV!$D$5:$D$27,W37,INV!$H$5:$H$27) -> 0 | X42: =SUMIF(INV!$D$5:$D$27,X37,INV!$H$5:$H$27) -> 0 | Y42: =SUMIF(INV!$D$5:$D$27,Y37,INV!$H$5:$H$27) -> 0 | Z42: =SUMIF(INV!$D$5:$D$27,Z37,INV!$H$5:$H$27) -> 0 | AA42: =SUMIF(INV!$D$5:$D$27,AA37,INV!$H$5:$H$27) -> 0 | AB42: =SUMIF(INV!$D$5:$D$27,AB37,INV!$H$5:$H$27) -> 0 | AC42: =SUMIF(INV!$D$5:$D$27,AC37,INV!$H$5:$H$27) -> 0 | AD42: =SUMIF(INV!$D$5:$D$27,AD37,INV!$H$5:$H$27) -> 0 | AE42: =SUMIF(INV!$D$5:$D$27,AE37,INV!$H$5:$H$27) -> 0 | AF42: =SUMIF(INV!$D$5:$D$27,AF37,INV!$H$5:$H$27) -> 0 | AG42: =SUMIF(INV!$D$5:$D$27,AG37,INV!$H$5:$H$27) -> 0 | AH42: =SUMIF(INV!$D$5:$D$27,AH37,INV!$H$5:$H$27) -> 0 | AI42: =SUMIF(INV!$D$5:$D$27,AI37,INV!$H$5:$H$27) -> 0 | AJ42: =SUMIF(INV!$D$5:$D$27,AJ37,INV!$H$5:$H$27) -> 0 | AK42: =SUMIF(INV!$D$5:$D$27,AK37,INV!$H$5:$H$27) -> 0 | AL42: =SUMIF(INV!$D$5:$D$27,AL37,INV!$H$5:$H$27) -> 0 | AM42: =SUMIF(INV!$D$5:$D$27,AM37,INV!$H$5:$H$27) -> 0 | AN42: =SUMIF(INV!$D$5:$D$27,AN37,INV!$H$5:$H$27) -> 0 | AO42: =SUMIF(INV!$D$5:$D$27,AO37,INV!$H$5:$H$27) -> 0 | AP42: =SUMIF(INV!$D$5:$D$27,AP37,INV!$H$5:$H$27) -> 0 | AQ42: =SUMIF(INV!$D$5:$D$27,AQ37,INV!$H$5:$H$27) -> 0 | AR42: =SUMIF(INV!$D$5:$D$27,AR37,INV!$H$5:$H$27) -> 0 | AS42: =SUMIF(INV!$D$5:$D$27,AS37,INV!$H$5:$H$27) -> 0 | AT42: =SUMIF(INV!$D$5:$D$27,AT37,INV!$H$5:$H$27) -> 0 | AU42: =SUMIF(INV!$D$5:$D$27,AU37,INV!$H$5:$H$27) -> 0 | AV42: =SUMIF(INV!$D$5:$D$27,AV37,INV!$H$5:$H$27) -> 0 | AW42: =SUMIF(INV!$D$5:$D$27,AW37,INV!$H$5:$H$27) -> 0 | AX42: =SUMIF(INV!$D$5:$D$27,AX37,INV!$H$5:$H$27) -> 0 | AY42: =SUMIF(INV!$D$5:$D$27,AY37,INV!$H$5:$H$27) -> 0 | AZ42: =SUMIF(INV!$D$5:$D$27,AZ37,INV!$H$5:$H$27) -> 0 | BA42: =SUMIF(INV!$D$5:$D$27,BA37,INV!$H$5:$H$27) -> 0 | BB42: =SUMIF(INV!$D$5:$D$27,BB37,INV!$H$5:$H$27) -> 0 | BC42: =SUMIF(INV!$D$5:$D$27,BC37,INV!$H$5:$H$27) -> 0 | BD42: =SUMIF(INV!$D$5:$D$27,BD37,INV!$H$5:$H$27) -> 0 | BE42: =SUMIF(INV!$D$5:$D$27,BE37,INV!$H$5:$H$27) -> 0 | BF42: =SUMIF(INV!$D$5:$D$27,BF37,INV!$H$5:$H$27) -> 0 | BG42: =SUMIF(INV!$D$5:$D$27,BG37,INV!$H$5:$H$27) -> 0 | BH42: =SUMIF(INV!$D$5:$D$27,BH37,INV!$H$5:$H$27) -> 0 | BI42: =SUMIF(INV!$D$5:$D$27,BI37,INV!$H$5:$H$27) -> 0 | BJ42: =SUMIF(INV!$D$5:$D$27,BJ37,INV!$H$5:$H$27) -> 0 | BK42: =SUMIF(INV!$D$5:$D$27,BK37,INV!$H$5:$H$27) -> 0 | BL42: =SUMIF(INV!$D$5:$D$27,BL37,INV!$H$5:$H$27) -> 0 | BM42: =SUMIF(INV!$D$5:$D$27,BM37,INV!$H$5:$H$27) -> 0 | BN42: =SUMIF(INV!$D$5:$D$27,BN37,INV!$H$5:$H$27) -> 0 | BO42: =SUMIF(INV!$D$5:$D$27,BO37,INV!$H$5:$H$27) -> 0 | BP42: =SUMIF(INV!$D$5:$D$27,BP37,INV!$H$5:$H$27) -> 0 | BQ42: =SUMIF(INV!$D$5:$D$27,BQ37,INV!$H$5:$H$27) -> 0 | BR42: =SUMIF(INV!$D$5:$D$27,BR37,INV!$H$5:$H$27) -> 0 | BS42: =SUMIF(INV!$D$5:$D$27,BS37,INV!$H$5:$H$27) -> 0 | BT42: =SUMIF(INV!$D$5:$D$27,BT37,INV!$H$5:$H$27) -> 0 | BU42: =SUMIF(INV!$D$5:$D$27,BU37,INV!$H$5:$H$27) -> 0 | BV42: =SUMIF(INV!$D$5:$D$27,BV37,INV!$H$5:$H$27) -> 0 | BW42: =SUMIF(INV!$D$5:$D$27,BW37,INV!$H$5:$H$27) -> 0 | BX42: =SUMIF(INV!$D$5:$D$27,BX37,INV!$H$5:$H$27) -> 0 | BY42: =SUMIF(INV!$D$5:$D$27,BY37,INV!$H$5:$H$27) -> 0 | BZ42: =SUMIF(INV!$D$5:$D$27,BZ37,INV!$H$5:$H$27) -> 0 | CA42: =SUMIF(INV!$D$5:$D$27,CA37,INV!$H$5:$H$27) -> 0 | CB42: =SUMIF(INV!$D$5:$D$27,CB37,INV!$H$5:$H$27) -> 0 | CC42: =SUMIF(INV!$D$5:$D$27,CC37,INV!$H$5:$H$27) -> 0 | CD42: =SUMIF(INV!$D$5:$D$27,CD37,INV!$H$5:$H$27) -> 0 | CE42: =SUMIF(INV!$D$5:$D$27,CE37,INV!$H$5:$H$27) -> 0 | CF42: =SUMIF(INV!$D$5:$D$27,CF37,INV!$H$5:$H$27) -> 0 | CG42: =SUMIF(INV!$D$5:$D$27,CG37,INV!$H$5:$H$27) -> 0 | CH42: =SUMIF(INV!$D$5:$D$27,CH37,INV!$H$5:$H$27) -> 0 | CI42: =SUMIF(INV!$D$5:$D$27,CI37,INV!$H$5:$H$27) -> 0 | CJ42: =SUMIF(INV!$D$5:$D$27,CJ37,INV!$H$5:$H$27) -> 0 | CK42: =SUMIF(INV!$D$5:$D$27,CK37,INV!$H$5:$H$27) -> 0 | CL42: =SUMIF(INV!$D$5:$D$27,CL37,INV!$H$5:$H$27) -> 0 | CM42: =SUMIF(INV!$D$5:$D$27,CM37,INV!$H$5:$H$27) -> 0 | CN42: =SUMIF(INV!$D$5:$D$27,CN37,INV!$H$5:$H$27) -> 0 | CO42: =SUMIF(INV!$D$5:$D$27,CO37,INV!$H$5:$H$27) -> 0 | CP42: =SUMIF(INV!$D$5:$D$27,CP37,INV!$H$5:$H$27) -> 0 | CQ42: =SUMIF(INV!$D$5:$D$27,CQ37,INV!$H$5:$H$27) -> 0 | CR42: =SUMIF(INV!$D$5:$D$27,CR37,INV!$H$5:$H$27) -> 0 | CS42: =SUMIF(INV!$D$5:$D$27,CS37,INV!$H$5:$H$27) -> 0 | CT42: =SUMIF(INV!$D$5:$D$27,CT37,INV!$H$5:$H$27) -> 0 | CU42: =SUMIF(INV!$D$5:$D$27,CU37,INV!$H$5:$H$27) -> 0 | CV42: =SUMIF(INV!$D$5:$D$27,CV37,INV!$H$5:$H$27) -> 0 | CW42: =SUMIF(INV!$D$5:$D$27,CW37,INV!$H$5:$H$27) -> 0 | CX42: =SUMIF(INV!$D$5:$D$27,CX37,INV!$H$5:$H$27) -> 0 | CY42: =SUMIF(INV!$D$5:$D$27,CY37,INV!$H$5:$H$27) -> 0 | CZ42: =SUMIF(INV!$D$5:$D$27,CZ37,INV!$H$5:$H$27) -> 0 | DA42: =SUMIF(INV!$D$5:$D$27,DA37,INV!$H$5:$H$27) -> 0 | DB42: =SUMIF(INV!$D$5:$D$27,DB37,INV!$H$5:$H$27) -> 0 | DC42: =SUMIF(INV!$D$5:$D$27,DC37,INV!$H$5:$H$27) -> 0 | DD42: =SUMIF(INV!$D$5:$D$27,DD37,INV!$H$5:$H$27) -> 0 | DE42: =SUMIF(INV!$D$5:$D$27,DE37,INV!$H$5:$H$27) -> 0 | DF42: =SUMIF(INV!$D$5:$D$27,DF37,INV!$H$5:$H$27) -> 0 | DG42: =SUMIF(INV!$D$5:$D$27,DG37,INV!$H$5:$H$27) -> 0 | DH42: =SUMIF(INV!$D$5:$D$27,DH37,INV!$H$5:$H$27) -> 0

Sheet FIN
B1: =CONTROL!C2 -> Proyecto
C3: DETERMINACIÓN DE NECESIDADES INICIALES Y FINANCIACIÓN
G4: % Inicial | H4: Cuantía
C5: Concepto | D5: Cuantía | F5: Recursos Propios | G5: =CONTROL!C5 -> 0 | H5: =$D$9*G5 -> 0
C6: Inmovilizado Inicial | D6: =BALANCE!C8 -> 1 | F6: Subvención | G6: =CONTROL!C6 -> 0 | H6: =$D$9*G6 -> 0
C7: Fondo Maniobra Inicial | D7: =BALANCE!C35+INV!G29 -> 0 | F7: Deuda 1 | G7: =CONTROL!C7 -> 0 | H7: =$D$9*G7 -> 0
C8: Financiación Extra | D8: =IF(CONTROL!C17="1 año",IF(CTA.RES!C10<0,-CTA.RES!C10,0),IF(CONTROL!C17="2 años",IF(CTA.RES!C10<0,-CTA.RES!C10,0)+IF(CTA.RES!D10<0,-CTA.RES!D10,0),0)) -> 0 | F8: Deuda 2 | G8: =CONTROL!C8 -> 1 | H8: =$D$9*G8 -> 1
C9: Necesidad Total Inicial | D9: =SUM(D6:D8) -> 1 | F9: Total | G9: =SUM(G5:G8) -> 1 | H9: =SUM(H5:H8) -> 1
C12: CÁLCULO DEL CCMP | D12: =CONTROL!E2 -> 2014 | E12: =D12+1 -> 2015 | F12: 2016 | G12: 2017 | H12: 2018 | I12: 2019 | J12: 2020
C13: Recursos Propios Medios | D13: =SUMIF(BALANCE!$X$2:$DC$2,FIN!D12,BALANCE!$X$20:$DC$20)/COUNTIF(BALANCE!$X$2:$DC$2,FIN!D12) -> 0.5416666667 | E13: =SUMIF(BALANCE!$X$2:$DC$2,FIN!E12,BALANCE!$X$20:$DC$20)/COUNTIF(BALANCE!$X$2:$DC$2,FIN!E12) -> 1.541666667 | F13: =SUMIF(BALANCE!$X$2:$DC$2,FIN!F12,BALANCE!$X$20:$DC$20)/COUNTIF(BALANCE!$X$2:$DC$2,FIN!F12) -> 2.541666667 | G13: =SUMIF(BALANCE!$X$2:$DC$2,FIN!G12,BALANCE!$X$20:$DC$20)/COUNTIF(BALANCE!$X$2:$DC$2,FIN!G12) -> 3.541666667 | H13: =SUMIF(BALANCE!$X$2:$DC$2,FIN!H12,BALANCE!$X$20:$DC$20)/COUNTIF(BALANCE!$X$2:$DC$2,FIN!H12) -> 4.541666667 | I13: =SUMIF(BALANCE!$X$2:$DC$2,FIN!I12,BALANCE!$X$20:$DC$20)/COUNTIF(BALANCE!$X$2:$DC$2,FIN!I12) -> 5.541666667 | J13: =SUMIF(BALANCE!$X$2:$DC$2,FIN!J12,BALANCE!$X$20:$DC$20)/COUNTIF(BALANCE!$X$2:$DC$2,FIN!J12) -> 6.541666667
C14: Deuda Media | D14: =SUMIF(BALANCE!$X$2:$DC$2,FIN!D12,BALANCE!$X$25:$DC$25)/COUNTIF(BALANCE!$X$2:$DC$2,FIN!D12) -> 1 | E14: =SUMIF(BALANCE!$X$2:$DC$2,FIN!E12,BALANCE!$X$25:$DC$25)/COUNTIF(BALANCE!$X$2:$DC$2,FIN!E12) -> 1 | F14: =SUMIF(BALANCE!$X$2:$DC$2,FIN!F12,BALANCE!$X$25:$DC$25)/COUNTIF(BALANCE!$X$2:$DC$2,FIN!F12) -> 1 | G14: =SUMIF(BALANCE!$X$2:$DC$2,FIN!G12,BALANCE!$X$25:$DC$25)/COUNTIF(BALANCE!$X$2:$DC$2,FIN!G12) -> 1 | H14: =SUMIF(BALANCE!$X$2:$DC$2,FIN!H12,BALANCE!$X$25:$DC$25)/COUNTIF(BALANCE!$X$2:$DC$2,FIN!H12) -> 1 | I14: =SUMIF(BALANCE!$X$2:$DC$2,FIN!I12,BALANCE!$X$25:$DC$25)/COUNTIF(BALANCE!$X$2:$DC$2,FIN!I12) -> 1 | J14: =SUMIF(BALANCE!$X$2:$DC$2,FIN!J12,BALANCE!$X$25:$DC$25)/COUNTIF(BALANCE!$X$2:$DC$2,FIN!J12) -> 1
C15: Subvención Media | D15: =SUMIF(BALANCE!$X$2:$DC$2,FIN!D12,BALANCE!$X$21:$DC$21)/COUNTIF(BALANCE!$X$2:$DC$2,FIN!D12) -> 0 | E15: =SUMIF(BALANCE!$X$2:$DC$2,FIN!E12,BALANCE!$X$21:$DC$21)/COUNTIF(BALANCE!$X$2:$DC$2,FIN!E12) -> 0 | F15: =SUMIF(BALANCE!$X$2:$DC$2,FIN!F12,BALANCE!$X$21:$DC$21)/COUNTIF(BALANCE!$X$2:$DC$2,FIN!F12) -> 0 | G15: =SUMIF(BALANCE!$X$2:$DC$2,FIN!G12,BALANCE!$X$21:$DC$21)/COUNTIF(BALANCE!$X$2:$DC$2,FIN!G12) -> 0 | H15: =SUMIF(BALANCE!$X$2:$DC$2,FIN!H12,BALANCE!$X$21:$DC$21)/COUNTIF(BALANCE!$X$2:$DC$2,FIN!H12) -> 0 | I15: =SUMIF(BALANCE!$X$2:$DC$2,FIN!I12,BALANCE!$X$21:$DC$21)/COUNTIF(BALANCE!$X$2:$DC$2,FIN!I12) -> 0 | J15: =SUMIF(BALANCE!$X$2:$DC$2,FIN!J12,BALANCE!$X$21:$DC$21)/COUNTIF(BALANCE!$X$2:$DC$2,FIN!J12) -> 0
C16: Coste Recursos Propios | D16: =E16*(13-Mes_Ini)/12 -> 0.12 | E16: =CONTROL!$C$4*RIESGO!$C$9 -> 0.12 | F16: =CONTROL!$C$4*RIESGO!$C$9 -> 0.12 | G16: =CONTROL!$C$4*RIESGO!$C$9 -> 0.12 | H16: =CONTROL!$C$4*RIESGO!$C$9 -> 0.12 | I16: =CONTROL!$C$4*RIESGO!$C$9 -> 0.12 | J16: =CONTROL!$C$4*RIESGO!$C$9 -> 0.12
C17: Coste Deuda | D17: =IFERROR(CTA.RES!C12*(1-CTA.RES!C20)/D14,0) -> 0 | E17: =IFERROR(CTA.RES!D12*(1-CTA.RES!D20)/E14,0) -> 0 | F17: =IFERROR(CTA.RES!E12*(1-CTA.RES!E20)/F14,0) -> 0 | G17: =IFERROR(CTA.RES!F12*(1-CTA.RES!F20)/G14,0) -> 0 | H17: =IFERROR(CTA.RES!G12*(1-CTA.RES!G20)/H14,0) -> 0 | I17: =IFERROR(CTA.RES!H12*(1-CTA.RES!H20)/I14,0) -> 0 | J17: =IFERROR(CTA.RES!I12*(1-CTA.RES!I20)/J14,0) -> 0
C18: CCMP | D18: =IFERROR(D16*D13/(D13+D14+D15)+D17*D14/(D13+D14+D15),D16) -> 0.04216216216 | E18: =IFERROR(E16*E13/(E13+E14+E15)+E17*E14/(E13+E14+E15),E16) -> 0.07278688525 | F18: 0.08611764706 | G18: 0.09357798165 | H18: 0.09834586466 | I18: 0.101656051 | J18: 0.1040883978
C19: CCMP Promedio | D19: =AVERAGE(D18:J18) -> 0.08553356993
C21: CUADROS AMORTIZACIÓN DEUDAS INICIALES
C23: DEUDA 1 | D23: =CONTROL!C10 -> 0
C24: Cuantía | D24: =H7 -> 0 | E24: Pagos anuales | F24: =CONTROL!C13 -> 0
C25: Años | D25: =CONTROL!C11 -> 0 | E25: Periodos Totales | F25: =F24*D25 -> 0
C26: Tipo de Interés | D26: =CONTROL!C12*RIESGO!C9 -> 0 | E26: Periodos Carencia | F26: =F24*CONTROL!C14 -> 0
C27: Tipo Interés Periódico | D27: =D26/F24 ->  | E27: Comisiones | F27: =CONTROL!C15*FIN!D24 -> 0
C29: =C52 -> 2013-12-31 | D29: =EOMONTH(C29,12/$F$24) ->  | AJ29: =EOMONTH(AI29,12/$F$24) ->  | BP29: =EOMONTH(BO29,12/$F$24) -> 
B30: Periodo | D30: 1 | E30: 2 | F30: 3 | G30: 4 | H30: 5 | I30: 6 | J30: 7 | K30: 8 | L30: 9 | M30: 10 | N30: 11 | O30: 12 | P30: 13 | Q30: 14 | R30: 15 | S30: 16 | T30: 17 | U30: 18 | V30: 19 | W30: 20 | X30: 21 | Y30: 22 | Z30: 23 | AA30: 24 | AB30: 25 | AC30: 26 | AD30: 27 | AE30: 28 | AF30: 29 | AG30: 30 | AH30: 31 | AI30: 32 | AJ30: 33 | AK30: 34 | AL30: 35 | AM30: 36 | AN30: 37 | AO30: 38 | AP30: 39 | AQ30: 40 | AR30: 41 | AS30: 42 | AT30: 43 | AU30: 44 | AV30: 45 | AW30: 46 | AX30: 47 | AY30: 48 | AZ30: 49 | BA30: 50 | BB30: 51 | BC30: 52 | BD30: 53 | BE30: 54 | BF30: 55 | BG30: 56 | BH30: 57 | BI30: 58 | BJ30: 59 | BK30: 60 | BL30: 61 | BM30: 62 | BN30: 63 | BO30: 64 | BP30: 65 | BQ30: 66 | BR30: 67 | BS30: 68 | BT30: 69 | BU30: 70 | BV30: 71 | BW30: 72 | BX30: 73 | BY30: 74 | BZ30: 75 | CA30: 76 | CB30: 77 | CC30: 78 | CD30: 79 | CE30: 80 | CF30: 81 | CG30: 82 | CH30: 83 | CI30: 84
B31: Capital Pendiente | C31: =H7 -> 0 | D31: =C31-D32 -> 0 | E31: 0 | F31: 0 | G31: 0 | H31: 0 | I31: 0 | J31: 0 | K31: 0 | L31: 0 | M31: 0 | N31: 0 | O31: 0 | P31: 0 | Q31: 0 | R31: 0 | S31: 0 | T31: 0 | U31: 0 | V31: 0 | W31: 0 | X31: 0 | Y31: 0 | Z31: 0 | AA31: 0 | AB31: 0 | AC31: 0 | AD31: 0 | AE31: 0 | AF31: 0 | AG31: 0 | AH31: 0 | AI31: 0 | AJ31: =AI31-AJ32 -> 0 | AK31: 0 | AL31: 0 | AM31: 0 | AN31: 0 | AO31: 0 | AP31: 0 | AQ31: =AP31-AQ32 -> 0 | AR31: 0 | AS31: 0 | AT31: 0 | AU31: 0 | AV31: 0 | AW31: 0 | AX31: 0 | AY31: 0 | AZ31: 0 | BA31: 0 | BB31: 0 | BC31: 0 | BD31: 0 | BE31: 0 | BF31: 0 | BG31: 0 | BH31: 0 | BI31: 0 | BJ31: 0 | BK31: 0 | BL31: 0 | BM31: 0 | BN31: 0 | BO31: 0 | BP31: =BO31-BP32 -> 0 | BQ31: 0 | BR31: 0 | BS31: 0 | BT31: 0 | BU31: 0 | BV31: 0 | BW31: 0 | BX31: 0 | BY31: 0 | BZ31: 0 | CA31: 0 | CB31: 0 | CC31: 0 | CD31: 0 | CE31: 0 | CF31: 0 | CG31: 0 | CH31: 0 | CI31: 0
B32: Amortización | D32: =IF(D30<=$F$26,0,IF(D30>$F$25,0,IF($D$23="Francés",-PPMT($D$27,D30-$F$26,$F$25-$F$26,$D$24),$D$24/($F$25-$F$26)))) -> 0 | E32: 0 | F32: 0 | G32: 0 | H32: 0 | I32: 0 | J32: 0 | K32: 0 | L32: 0 | M32: 0 | N32: 0 | O32: 0 | P32: 0 | Q32: 0 | R32: 0 | S32: 0 | T32: 0 | U32: 0 | V32: 0 | W32: 0 | X32: 0 | Y32: 0 | Z32: 0 | AA32: 0 | AB32: 0 | AC32: 0 | AD32: 0 | AE32: 0 | AF32: 0 | AG32: 0 | AH32: 0 | AI32: 0 | AJ32: =IF(AJ30<=$F$26,0,IF(AJ30>$F$25,0,IF($D$23="Francés",-PPMT($D$27,AJ30-$F$26,$F$25-$F$26,$D$24),$D$24/($F$25-$F$26)))) -> 0 | AK32: 0 | AL32: 0 | AM32: 0 | AN32: 0 | AO32: 0 | AP32: 0 | AQ32: 0 | AR32: 0 | AS32: 0 | AT32: 0 | AU32: 0 | AV32: 0 | AW32: 0 | AX32: 0 | AY32: 0 | AZ32: 0 | BA32: 0 | BB32: 0 | BC32: 0 | BD32: 0 | BE32: 0 | BF32: 0 | BG32: 0 | BH32: 0 | BI32: 0 | BJ32: 0 | BK32: 0 | BL32: 0 | BM32: 0 | BN32: 0 | BO32: 0 | BP32: =IF(BP30<=$F$26,0,IF(BP30>$F$25,0,IF($D$23="Francés",-PPMT($D$27,BP30-$F$26,$F$25-$F$26,$D$24),$D$24/($F$25-$F$26)))) -> 0 | BQ32: 0 | BR32: 0 | BS32: 0 | BT32: 0 | BU32: 0 | BV32: 0 | BW32: 0 | BX32: 0 | BY32: 0 | BZ32: 0 | CA32: 0 | CB32: 0 | CC32: 0 | CD32: 0 | CE32: 0 | CF32: 0 | CG32: 0 | CH32: 0 | CI32: 0
B33: Intereses | D33: =$D$27*C31 ->  | AJ33: =$D$27*AI31 ->  | BP33: =$D$27*BO31 -> 
B34: Cuota | D34: =D32+D33 ->  | E34: =E32+E33 ->  | BQ34: =BQ32+BQ33 -> 
C36: DEUDA 2 | D36: =CONTROL!D10 -> 0
C37: Cuantía | D37: =H8 -> 1 | E37: Pagos anuales | F37: =CONTROL!D13 -> 0
C38: Años | D38: =CONTROL!D11 -> 0 | E38: Periodos Totales | F38: =F37*D38 -> 0
C39: Tipo de Interés | D39: =CONTROL!D12*RIESGO!C9 -> 0 | E39: Periodos Carencia | F39: =F37*CONTROL!D14 -> 0
C40: Tipo Interés Periódico | D40: =D39/F37 ->  | E40: Comisiones | F40: =CONTROL!D15*FIN!D37 -> 0
C42: =C29 -> 2013-12-31 | D42: =EOMONTH(C42,12/$F$37) ->  | AJ42: =EOMONTH(AI42,12/$F$37) ->  | BP42: =EOMONTH(BO42,12/$F$37) -> 
B43: Periodo | D43: 1 | E43: 2 | F43: 3 | G43: 4 | H43: 5 | I43: 6 | J43: 7 | K43: 8 | L43: 9 | M43: 10 | N43: 11 | O43: 12 | P43: 13 | Q43: 14 | R43: 15 | S43: 16 | T43: 17 | U43: 18 | V43: 19 | W43: 20 | X43: 21 | Y43: 22 | Z43: 23 | AA43: 24 | AB43: 25 | AC43: 26 | AD43: 27 | AE43: 28 | AF43: 29 | AG43: 30 | AH43: 31 | AI43: 32 | AJ43: 33 | AK43: 34 | AL43: 35 | AM43: 36 | AN43: 37 | AO43: 38 | AP43: 39 | AQ43: 40 | AR43: 41 | AS43: 42 | AT43: 43 | AU43: 44 | AV43: 45 | AW43: 46 | AX43: 47 | AY43: 48 | AZ43: 49 | BA43: 50 | BB43: 51 | BC43: 52 | BD43: 53 | BE43: 54 | BF43: 55 | BG43: 56 | BH43: 57 | BI43: 58 | BJ43: 59 | BK43: 60 | BL43: 61 | BM43: 62 | BN43: 63 | BO43: 64 | BP43: 65 | BQ43: 66 | BR43: 67 | BS43: 68 | BT43: 69 | BU43: 70 | BV43: 71 | BW43: 72 | BX43: 73 | BY43: 74 | BZ43: 75 | CA43: 76 | CB43: 77 | CC43: 78 | CD43: 79 | CE43: 80 | CF43: 81 | CG43: 82 | CH43: 83 | CI43: 84
B44: Capital Pendiente | C44: =D37 -> 1 | D44: =C44-D45 -> 1 | E44: =D44-E45 -> 1 | F44: 1 | G44: 1 | H44: 1 | I44: 1 | J44: 1 | K44: 1 | L44: 1 | M44: 1 | N44: 1 | O44: 1 | P44: 1 | Q44: 1 | R44: 1 | S44: 1 | T44: 1 | U44: 1 | V44: 1 | W44: 1 | X44: 1 | Y44: 1 | Z44: 1 | AA44: 1 | AB44: 1 | AC44: 1 | AD44: 1 | AE44: 1 | AF44: 1 | AG44: 1 | AH44: 1 | AI44: 1 | AJ44: 1 | AK44: 1 | AL44: 1 | AM44: 1 | AN44: 1 | AO44: 1 | AP44: 1 | AQ44: 1 | AR44: 1 | AS44: 1 | AT44: 1 | AU44: 1 | AV44: 1 | AW44: 1 | AX44: 1 | AY44: 1 | AZ44: =AY44-AZ45 -> 1 | BA44: 1 | BB44: 1 | BC44: 1 | BD44: 1 | BE44: 1 | BF44: 1 | BG44: 1 | BH44: 1 | BI44: 1 | BJ44: 1 | BK44: 1 | BL44: 1 | BM44: 1 | BN44: 1 | BO44: 1 | BP44: 1 | BQ44: 1 | BR44: 1 | BS44: 1 | BT44: 1 | BU44: 1 | BV44: 1 | BW44: 1 | BX44: 1 | BY44: 1 | BZ44: 1 | CA44: 1 | CB44: 1 | CC44: 1 | CD44: 1 | CE44: 1 | CF44: 1 | CG44: 1 | CH44: 1 | CI44: 1
B45: Amortización | D45: =IF(D43<=$F$39,0,IF(D43>$F$38,0,IF($D$36="Francés",-PPMT($D$40,D43-$F$39,$F$38-$F$39,$D$37),$D$37/($F$38-$F$39)))) -> 0 | E45: 0 | F45: 0 | G45: 0 | H45: 0 | I45: 0 | J45: 0 | K45: 0 | L45: 0 | M45: 0 | N45: 0 | O45: 0 | P45: 0 | Q45: 0 | R45: 0 | S45: 0 | T45: 0 | U45: 0 | V45: 0 | W45: 0 | X45: 0 | Y45: 0 | Z45: 0 | AA45: 0 | AB45: 0 | AC45: 0 | AD45: 0 | AE45: 0 | AF45: 0 | AG45: 0 | AH45: 0 | AI45: 0 | AJ45: =IF(AJ43<=$F$39,0,IF(AJ43>$F$38,0,IF($D$36="Francés",-PPMT($D$40,AJ43-$F$39,$F$38-$F$39,$D$37),$D$37/($F$38-$F$39)))) -> 0 | AK45: 0 | AL45: 0 | AM45: 0 | AN45: 0 | AO45: 0 | AP45: 0 | AQ45: 0 | AR45: 0 | AS45: 0 | AT45: 0 | AU45: 0 | AV45: 0 | AW45: 0 | AX45: 0 | AY45: 0 | AZ45: 0 | BA45: 0 | BB45: 0 | BC45: 0 | BD45: 0 | BE45: 0 | BF45: 0 | BG45: 0 | BH45: 0 | BI45: 0 | BJ45: 0 | BK45: 0 | BL45: 0 | BM45: 0 | BN45: 0 | BO45: 0 | BP45: =IF(BP43<=$F$39,0,IF(BP43>$F$38,0,IF($D$36="Francés",-PPMT($D$40,BP43-$F$39,$F$38-$F$39,$D$37),$D$37/($F$38-$F$39)))) -> 0 | BQ45: 0 | BR45: 0 | BS45: 0 | BT45: 0 | BU45: 0 | BV45: 0 | BW45: 0 | BX45: 0 | BY45: 0 | BZ45: 0 | CA45: 0 | CB45: 0 | CC45: 0 | CD45: 0 | CE45: 0 | CF45: 0 | CG45: 0 | CH45: 0 | CI45: 0
B46: Intereses | D46: =$D$40*C44 ->  | AJ46: =$D$40*AI44 ->  | BP46: =$D$40*BO44 -> 
B47: Cuota | D47: =D45+D46 ->  | E47: =E45+E46 ->  | BQ47: =BQ45+BQ46 -> 
C50: CUADRO RESUMEN DEUDA INICIAL, MENSUAL
D51: =INCO!N1 -> 2014 | E51: =INCO!O1 -> 2014 | F51: =INCO!P1 -> 2014 | G51: =INCO!Q1 -> 2014 | H51: =INCO!R1 -> 2014 | I51: =INCO!S1 -> 2014 | J51: =INCO!T1 -> 2014 | K51: =INCO!U1 -> 2014 | L51: =INCO!V1 -> 2014 | M51: =INCO!W1 -> 2014 | N51: =INCO!X1 -> 2014 | O51: =INCO!Y1 -> 2014 | P51: =INCO!Z1 -> 2015 | Q51: =INCO!AA1 -> 2015 | R51: =INCO!AB1 -> 2015 | S51: =INCO!AC1 -> 2015 | T51: =INCO!AD1 -> 2015 | U51: =INCO!AE1 -> 2015 | V51: =INCO!AF1 -> 2015 | W51: =INCO!AG1 -> 2015 | X51: =INCO!AH1 -> 2015 | Y51: =INCO!AI1 -> 2015 | Z51: =INCO!AJ1 -> 2015 | AA51: =INCO!AK1 -> 2015 | AB51: =INCO!AL1 -> 2016 | AC51: =INCO!AM1 -> 2016 | AD51: =INCO!AN1 -> 2016 | AE51: =INCO!AO1 -> 2016 | AF51: =INCO!AP1 -> 2016 | AG51: =INCO!AQ1 -> 2016 | AH51: =INCO!AR1 -> 2016 | AI51: =INCO!AS1 -> 2016 | AJ51: =INCO!AT1 -> 2016 | AK51: =INCO!AU1 -> 2016 | AL51: =INCO!AV1 -> 2016 | AM51: =INCO!AW1 -> 2016 | AN51: =INCO!AX1 -> 2017 | AO51: =INCO!AY1 -> 2017 | AP51: =INCO!AZ1 -> 2017 | AQ51: =INCO!BA1 -> 2017 | AR51: =INCO!BB1 -> 2017 | AS51: =INCO!BC1 -> 2017 | AT51: =INCO!BD1 -> 2017 | AU51: =INCO!BE1 -> 2017 | AV51: =INCO!BF1 -> 2017 | AW51: =INCO!BG1 -> 2017 | AX51: =INCO!BH1 -> 2017 | AY51: =INCO!BI1 -> 2017 | AZ51: =INCO!BJ1 -> 2018 | BA51: =INCO!BK1 -> 2018 | BB51: =INCO!BL1 -> 2018 | BC51: =INCO!BM1 -> 2018 | BD51: =INCO!BN1 -> 2018 | BE51: =INCO!BO1 -> 2018 | BF51: =INCO!BP1 -> 2018 | BG51: =INCO!BQ1 -> 2018 | BH51: =INCO!BR1 -> 2018 | BI51: =INCO!BS1 -> 2018 | BJ51: =INCO!BT1 -> 2018 | BK51: =INCO!BU1 -> 2018 | BL51: =INCO!BV1 -> 2019 | BM51: =INCO!BW1 -> 2019 | BN51: =INCO!BX1 -> 2019 | BO51: =INCO!BY1 -> 2019 | BP51: =INCO!BZ1 -> 2019 | BQ51: =INCO!CA1 -> 2019 | BR51: =INCO!CB1 -> 2019 | BS51: =INCO!CC1 -> 2019 | BT51: =INCO!CD1 -> 2019 | BU51: =INCO!CE1 -> 2019 | BV51: =INCO!CF1 -> 2019 | BW51: =INCO!CG1 -> 2019 | BX51: =INCO!CH1 -> 2020 | BY51: =INCO!CI1 -> 2020 | BZ51: =INCO!CJ1 -> 2020 | CA51: =INCO!CK1 -> 2020 | CB51: =INCO!CL1 -> 2020 | CC51: =INCO!CM1 -> 2020 | CD51: =INCO!CN1 -> 2020 | CE51: =INCO!CO1 -> 2020 | CF51: =INCO!CP1 -> 2020 | CG51: =INCO!CQ1 -> 2020 | CH51: =INCO!CR1 -> 2020 | CI51: =INCO!CS1 -> 2020
C52: =EOMONTH(D52,-1) -> 2013-12-31 | D52: =CONTROL!H2 -> 2014-01-31 | E52: =EOMONTH(D52,1) -> 2014-02-28 | F52: =EOMONTH(E52,1) -> 2014-03-31 | G52: 2014-04-30 | H52: 2014-05-31 | I52: 2014-06-30 | J52: 2014-07-31 | K52: 2014-08-31 | L52: 2014-09-30 | M52: 2014-10-31 | N52: 2014-11-30 | O52: 2014-12-31 | P52: 2015-01-31 | Q52: 2015-02-28 | R52: 2015-03-31 | S52: 2015-04-30 | T52: 2015-05-31 | U52: 2015-06-30 | V52: 2015-07-31 | W52: 2015-08-31 | X52: 2015-09-30 | Y52: 2015-10-31 | Z52: 2015-11-30 | AA52: 2015-12-31 | AB52: 2016-01-31 | AC52: 2016-02-29 | AD52: 2016-03-31 | AE52: 2016-04-30 | AF52: 2016-05-31 | AG52: 2016-06-30 | AH52: 2016-07-31 | AI52: 2016-08-31 | AJ52: 2016-09-30 | AK52: 2016-10-31 | AL52: 2016-11-30 | AM52: 2016-12-31 | AN52: 2017-01-31 | AO52: 2017-02-28 | AP52: 2017-03-31 | AQ52: 2017-04-30 | AR52: 2017-05-31 | AS52: 2017-06-30 | AT52: 2017-07-31 | AU52: 2017-08-31 | AV52: 2017-09-30 | AW52: 2017-10-31 | AX52: 2017-11-30 | AY52: 2017-12-31 | AZ52: 2018-01-31 | BA52: 2018-02-28 | BB52: 2018-03-31 | BC52: 2018-04-30 | BD52: 2018-05-31 | BE52: 2018-06-30 | BF52: 2018-07-31 | BG52: 2018-08-31 | BH52: 2018-09-30 | BI52: 2018-10-31 | BJ52: 2018-11-30 | BK52: 2018-12-31 | BL52: 2019-01-31 | BM52: 2019-02-28 | BN52: 2019-03-31 | BO52: 2019-04-30 | BP52: 2019-05-31 | BQ52: 2019-06-30 | BR52: =EOMONTH(BQ52,1) -> 2019-07-31 | BS52: 2019-08-31 | BT52: 2019-09-30 | BU52: 2019-10-31 | BV52: 2019-11-30 | BW52: 2019-12-31 | BX52: 2020-01-31 | BY52: 2020-02-29 | BZ52: 2020-03-31 | CA52: 2020-04-30 | CB52: 2020-05-31 | CC52: 2020-06-30 | CD52: 2020-07-31 | CE52: 2020-08-31 | CF52: 2020-09-30 | CG52: 2020-10-31 | CH52: 2020-11-30 | CI52: 2020-12-31
B53: Capital Pendiente | C53: =LOOKUP(C52,$C$29:$CI$29,$C$31:$CI$31)+LOOKUP(C52,$C$42:$CI$42,$C$44:$CI$44) -> 1 | D53: 1 | E53: 1 | F53: 1 | G53: 1 | H53: 1 | I53: 1 | J53: 1 | K53: 1 | L53: 1 | M53: 1 | N53: 1 | O53: 1 | P53: 1 | Q53: 1 | R53: 1 | S53: 1 | T53: 1 | U53: 1 | V53: 1 | W53: 1 | X53: 1 | Y53: 1 | Z53: 1 | AA53: 1 | AB53: 1 | AC53: 1 | AD53: 1 | AE53: 1 | AF53: 1 | AG53: 1 | AH53: 1 | AI53: =LOOKUP(AI52,$C$29:$CI$29,$C$31:$CI$31)+LOOKUP(AI52,$C$42:$CI$42,$C$44:$CI$44) -> 1 | AJ53: 1 | AK53: 1 | AL53: 1 | AM53: 1 | AN53: 1 | AO53: 1 | AP53: 1 | AQ53: 1 | AR53: 1 | AS53: 1 | AT53: 1 | AU53: 1 | AV53: 1 | AW53: 1 | AX53: 1 | AY53: 1 | AZ53: 1 | BA53: 1 | BB53: 1 | BC53: 1 | BD53: 1 | BE53: 1 | BF53: 1 | BG53: 1 | BH53: 1 | BI53: 1 | BJ53: 1 | BK53: 1 | BL53: 1 | BM53: 1 | BN53: 1 | BO53: =LOOKUP(BO52,$C$29:$CI$29,$C$31:$CI$31)+LOOKUP(BO52,$C$42:$CI$42,$C$44:$CI$44) -> 1 | BP53: 1 | BQ53: 1 | BR53: 1 | BS53: 1 | BT53: 1 | BU53: 1 | BV53: 1 | BW53: 1 | BX53: 1 | BY53: 1 | BZ53: 1 | CA53: 1 | CB53: 1 | CC53: 1 | CD53: 1 | CE53: 1 | CF53: 1 | CG53: 1 | CH53: 1 | CI53: 1
B54: Amortización | D54: =SUMIF($D$29:$CI$29,D$52,$D32:$CI32)+SUMIF($D$42:$CI$42,D$52,$D45:$CI45) -> 0 | E54: 0 | F54: 0 | G54: 0 | H54: 0 | I54: 0 | J54: 0 | K54: 0 | L54: 0 | M54: 0 | N54: 0 | O54: 0 | P54: 0 | Q54: 0 | R54: 0 | S54: 0 | T54: 0 | U54: 0 | V54: 0 | W54: 0 | X54: 0 | Y54: 0 | Z54: 0 | AA54: 0 | AB54: 0 | AC54: 0 | AD54: 0 | AE54: 0 | AF54: 0 | AG54: 0 | AH54: 0 | AI54: 0 | AJ54: =SUMIF($D$29:$CI$29,AJ$52,$D32:$CI32)+SUMIF($D$42:$CI$42,AJ$52,$D45:$CI45) -> 0 | AK54: 0 | AL54: 0 | AM54: 0 | AN54: 0 | AO54: 0 | AP54: 0 | AQ54: 0 | AR54: 0 | AS54: 0 | AT54: 0 | AU54: 0 | AV54: 0 | AW54: 0 | AX54: 0 | AY54: 0 | AZ54: 0 | BA54: 0 | BB54: 0 | BC54: 0 | BD54: 0 | BE54: 0 | BF54: 0 | BG54: 0 | BH54: 0 | BI54: 0 | BJ54: 0 | BK54: 0 | BL54: 0 | BM54: 0 | BN54: 0 | BO54: 0 | BP54: =SUMIF($D$29:$CI$29,BP$52,$D32:$CI32)+SUMIF($D$42:$CI$42,BP$52,$D45:$CI45) -> 0 | BQ54: 0 | BR54: 0 | BS54: 0 | BT54: 0 | BU54: 0 | BV54: 0 | BW54: 0 | BX54: 0 | BY54: 0 | BZ54: 0 | CA54: 0 | CB54: 0 | CC54: 0 | CD54: 0 | CE54: 0 | CF54: 0 | CG54: 0 | CH54: 0 | CI54: 0
B55: Intereses | D55: =SUMIF($D$29:$CI$29,D$52,$D33:$CI33)+SUMIF($D$42:$CI$42,D$52,$D46:$CI46) -> 0 | E55: 0 | F55: 0 | G55: 0 | H55: 0 | I55: 0 | J55: 0 | K55: 0 | L55: 0 | M55: 0 | N55: 0 | O55: 0 | P55: 0 | Q55: 0 | R55: 0 | S55: 0 | T55: 0 | U55: 0 | V55: 0 | W55: 0 | X55: 0 | Y55: 0 | Z55: 0 | AA55: 0 | AB55: 0 | AC55: 0 | AD55: 0 | AE55: 0 | AF55: 0 | AG55: 0 | AH55: 0 | AI55: 0 | AJ55: =SUMIF($D$29:$CI$29,AJ$52,$D33:$CI33)+SUMIF($D$42:$CI$42,AJ$52,$D46:$CI46) -> 0 | AK55: 0 | AL55: 0 | AM55: 0 | AN55: 0 | AO55: 0 | AP55: 0 | AQ55: 0 | AR55: 0 | AS55: 0 | AT55: 0 | AU55: 0 | AV55: 0 | AW55: 0 | AX55: 0 | AY55: 0 | AZ55: 0 | BA55: 0 | BB55: 0 | BC55: 0 | BD55: 0 | BE55: 0 | BF55: 0 | BG55: 0 | BH55: 0 | BI55: 0 | BJ55: 0 | BK55: 0 | BL55: 0 | BM55: 0 | BN55: 0 | BO55: 0 | BP55: =SUMIF($D$29:$CI$29,BP$52,$D33:$CI33)+SUMIF($D$42:$CI$42,BP$52,$D46:$CI46) -> 0 | BQ55: 0 | BR55: 0 | BS55: 0 | BT55: 0 | BU55: 0 | BV55: 0 | BW55: 0 | BX55: 0 | BY55: 0 | BZ55: 0 | CA55: 0 | CB55: 0 | CC55: 0 | CD55: 0 | CE55: 0 | CF55: 0 | CG55: 0 | CH55: 0 | CI55: 0
B56: Cuota | D56: =D54+D55 -> 0 | E56: =E54+E55 -> 0 | F56: 0 | G56: 0 | H56: 0 | I56: 0 | J56: 0 | K56: 0 | L56: 0 | M56: 0 | N56: 0 | O56: 0 | P56: 0 | Q56: 0 | R56: 0 | S56: 0 | T56: 0 | U56: 0 | V56: 0 | W56: 0 | X56: 0 | Y56: 0 | Z56: 0 | AA56: 0 | AB56: 0 | AC56: 0 | AD56: 0 | AE56: 0 | AF56: 0 | AG56: 0 | AH56: 0 | AI56: 0 | AJ56: 0 | AK56: 0 | AL56: 0 | AM56: 0 | AN56: 0 | AO56: 0 | AP56: 0 | AQ56: 0 | AR56: 0 | AS56: 0 | AT56: 0 | AU56: 0 | AV56: 0 | AW56: 0 | AX56: 0 | AY56: 0 | AZ56: 0 | BA56: 0 | BB56: 0 | BC56: 0 | BD56: 0 | BE56: 0 | BF56: 0 | BG56: 0 | BH56: 0 | BI56: 0 | BJ56: 0 | BK56: 0 | BL56: 0 | BM56: 0 | BN56: 0 | BO56: 0 | BP56: 0 | BQ56: =BQ54+BQ55 -> 0 | BR56: 0 | BS56: 0 | BT56: 0 | BU56: 0 | BV56: 0 | BW56: 0 | BX56: 0 | BY56: 0 | BZ56: 0 | CA56: 0 | CB56: 0 | CC56: 0 | CD56: 0 | CE56: 0 | CF56: 0 | CG56: 0 | CH56: 0 | CI56: 0
B57: Comisiones | C57: =F27+F40 -> 0
C59: CUADRO RESUMEN DEUDA INICIAL, ANUAL
C60: =C52 -> 2013-12-31 | D60: =D12 -> 2014 | E60: 2015 | F60: 2016 | G60: 2017 | H60: 2018 | I60: 2019 | J60: 2020
B61: Capital Pendiente | C61: =C53 -> 1 | D61: =C61-D62 -> 1 | E61: =D61-E62 -> 1 | F61: 1 | G61: 1 | H61: 1 | I61: 1 | J61: 1
B62: Amortización | D62: =SUMIF($D$51:$CI$51,D$60,$D54:$CI54) -> 0 | E62: 0 | F62: 0 | G62: 0 | H62: 0 | I62: 0 | J62: 0
B63: Intereses | D63: 0 | E63: 0 | F63: 0 | G63: 0 | H63: 0 | I63: 0 | J63: 0
B64: Cuota | D64: =D63+D62 -> 0 | E64: =E63+E62 -> 0 | F64: 0 | G64: 0 | H64: 0 | I64: 0 | J64: 0

Sheet INCO
C1: =CONTROL!C2 -> Proyecto | N1: =YEAR(N2) -> 2014 | O1: 2014 | P1: 2014 | Q1: 2014 | R1: 2014 | S1: 2014 | T1: 2014 | U1: 2014 | V1: 2014 | W1: 2014 | X1: 2014 | Y1: 2014 | Z1: 2015 | AA1: 2015 | AB1: 2015 | AC1: 2015 | AD1: 2015 | AE1: 2015 | AF1: 2015 | AG1: 2015 | AH1: 2015 | AI1: 2015 | AJ1: 2015 | AK1: 2015 | AL1: 2016 | AM1: 2016 | AN1: 2016 | AO1: 2016 | AP1: 2016 | AQ1: 2016 | AR1: 2016 | AS1: 2016 | AT1: =YEAR(AT2) -> 2016 | AU1: 2016 | AV1: 2016 | AW1: 2016 | AX1: 2017 | AY1: 2017 | AZ1: 2017 | BA1: 2017 | BB1: 2017 | BC1: 2017 | BD1: 2017 | BE1: 2017 | BF1: 2017 | BG1: 2017 | BH1: 2017 | BI1: 2017 | BJ1: 2018 | BK1: 2018 | BL1: 2018 | BM1: 2018 | BN1: 2018 | BO1: 2018 | BP1: 2018 | BQ1: 2018 | BR1: 2018 | BS1: 2018 | BT1: 2018 | BU1: 2018 | BV1: 2019 | BW1: 2019 | BX1: 2019 | BY1: 2019 | BZ1: =YEAR(BZ2) -> 2019 | CA1: 2019 | CB1: 2019 | CC1: 2019 | CD1: 2019 | CE1: 2019 | CF1: 2019 | CG1: 2019 | CH1: 2020 | CI1: 2020 | CJ1: 2020 | CK1: 2020 | CL1: 2020 | CM1: 2020 | CN1: 2020 | CO1: 2020 | CP1: 2020 | CQ1: 2020 | CR1: 2020 | CS1: 2020
N2: =CONTROL!H2 -> 2014-01-31 | O2: =EOMONTH(N2,1) -> 2014-02-28 | P2: =EOMONTH(O2,1) -> 2014-03-31 | Q2: 2014-04-30 | R2: 2014-05-31 | S2: 2014-06-30 | T2: 2014-07-31 | U2: 2014-08-31 | V2: 2014-09-30 | W2: 2014-10-31 | X2: 2014-11-30 | Y2: 2014-12-31 | Z2: 2015-01-31 | AA2: 2015-02-28 | AB2: 2015-03-31 | AC2: 2015-04-30 | AD2: 2015-05-31 | AE2: 2015-06-30 | AF2: 2015-07-31 | AG2: 2015-08-31 | AH2: 2015-09-30 | AI2: 2015-10-31 | AJ2: 2015-11-30 | AK2: 2015-12-31 | AL2: 2016-01-31 | AM2: 2016-02-29 | AN2: 2016-03-31 | AO2: 2016-04-30 | AP2: 2016-05-31 | AQ2: 2016-06-30 | AR2: 2016-07-31 | AS2: 2016-08-31 | AT2: 2016-09-30 | AU2: 2016-10-31 | AV2: 2016-11-30 | AW2: 2016-12-31 | AX2: 2017-01-31 | AY2: 2017-02-28 | AZ2: 2017-03-31 | BA2: 2017-04-30 | BB2: 2017-05-31 | BC2: 2017-06-30 | BD2: 2017-07-31 | BE2: 2017-08-31 | BF2: 2017-09-30 | BG2: 2017-10-31 | BH2: 2017-11-30 | BI2: 2017-12-31 | BJ2: 2018-01-31 | BK2: 2018-02-28 | BL2: 2018-03-31 | BM2: 2018-04-30 | BN2: 2018-05-31 | BO2: 2018-06-30 | BP2: 2018-07-31 | BQ2: 2018-08-31 | BR2: 2018-09-30 | BS2: 2018-10-31 | BT2: 2018-11-30 | BU2: 2018-12-31 | BV2: 2019-01-31 | BW2: 2019-02-28 | BX2: 2019-03-31 | BY2: 2019-04-30 | BZ2: 2019-05-31 | CA2: 2019-06-30 | CB2: =EOMONTH(CA2,1) -> 2019-07-31 | CC2: 2019-08-31 | CD2: 2019-09-30 | CE2: 2019-10-31 | CF2: 2019-11-30 | CG2: 2019-12-31 | CH2: 2020-01-31 | CI2: 2020-02-29 | CJ2: 2020-03-31 | CK2: 2020-04-30 | CL2: 2020-05-31 | CM2: 2020-06-30 | CN2: 2020-07-31 | CO2: 2020-08-31 | CP2: 2020-09-30 | CQ2: 2020-10-31 | CR2: 2020-11-30 | CS2: 2020-12-31
M3: Mensualización Libre Ventas | AL3: =Z3 -> 0 | AM3: =AA3 -> 0 | AN3: 0 | AO3: 0 | AP3: 0 | AQ3: 0 | AR3: 0 | AS3: 0 | AT3: 0 | AU3: 0 | AV3: 0 | AW3: 0 | AX3: 0 | AY3: 0 | AZ3: 0 | BA3: 0 | BB3: 0 | BC3: 0 | BD3: 0 | BE3: 0 | BF3: 0 | BG3: 0 | BH3: 0 | BI3: 0 | BJ3: 0 | BK3: 0 | BL3: 0 | BM3: 0 | BN3: 0 | BO3: 0 | BP3: 0 | BQ3: 0 | BR3: 0 | BS3: 0 | BT3: 0 | BU3: 0 | BV3: 0 | BW3: 0 | BX3: 0 | BY3: 0 | BZ3: 0 | CA3: 0 | CB3: 0 | CC3: 0 | CD3: 0 | CE3: 0 | CF3: 0 | CG3: 0 | CH3: 0 | CI3: 0 | CJ3: 0 | CK3: 0 | CL3: 0 | CM3: 0 | CN3: 0 | CO3: 0 | CP3: =CD3 -> 0 | CQ3: 0 | CR3: 0 | CS3: 0
B4: Mensualización | C4: Automática | D4: =CONTROL!E2 -> 2014 | E4: =D4+1 -> 2015 | F4: 2016 | G4: 2017 | H4: 2018 | I4: 2019 | J4: =I4+1 -> 2020 | K4: =J4+1 -> 2021 | M4: Mensualización Libre Costes Fijos | AL4: =Z4 -> 0 | AM4: 0 | AN4: 0 | AO4: 0 | AP4: 0 | AQ4: 0 | AR4: 0 | AS4: 0 | AT4: 0 | AU4: 0 | AV4: 0 | AW4: 0 | AX4: 0 | AY4: 0 | AZ4: 0 | BA4: 0 | BB4: 0 | BC4: 0 | BD4: 0 | BE4: 0 | BF4: 0 | BG4: 0 | BH4: 0 | BI4: 0 | BJ4: 0 | BK4: 0 | BL4: 0 | BM4: 0 | BN4: 0 | BO4: 0 | BP4: 0 | BQ4: 0 | BR4: 0 | BS4: 0 | BT4: 0 | BU4: 0 | BV4: 0 | BW4: 0 | BX4: 0 | BY4: 0 | BZ4: 0 | CA4: 0 | CB4: 0 | CC4: 0 | CD4: 0 | CE4: 0 | CF4: 0 | CG4: 0 | CH4: 0 | CI4: 0 | CJ4: 0 | CK4: 0 | CL4: 0 | CM4: 0 | CN4: 0 | CO4: 0 | CP4: 0 | CQ4: 0 | CR4: 0 | CS4: 0
M5: Mensualización Ventas | N5: =IF($C$4="Automática",IF(YEAR(N2)=$D$11,1/(13-Mes_Ini),1/12),N3) -> 0.08333333333 | O5: 0.08333333333 | P5: 0.08333333333 | Q5: 0.08333333333 | R5: 0.08333333333 | S5: 0.08333333333 | T5: 0.08333333333 | U5: 0.08333333333 | V5: 0.08333333333 | W5: 0.08333333333 | X5: 0.08333333333 | Y5: 0.08333333333 | Z5: 0.08333333333 | AA5: 0.08333333333 | AB5: 0.08333333333 | AC5: 0.08333333333 | AD5: 0.08333333333 | AE5: 0.08333333333 | AF5: 0.08333333333 | AG5: 0.08333333333 | AH5: 0.08333333333 | AI5: 0.08333333333 | AJ5: 0.08333333333 | AK5: 0.08333333333 | AL5: 0.08333333333 | AM5: 0.08333333333 | AN5: 0.08333333333 | AO5: 0.08333333333 | AP5: 0.08333333333 | AQ5: 0.08333333333 | AR5: 0.08333333333 | AS5: 0.08333333333 | AT5: =IF($C$4="Automática",IF(YEAR(AT2)=$D$11,1/(13-Mes_Ini),1/12),AT3) -> 0.08333333333 | AU5: 0.08333333333 | AV5: 0.08333333333 | AW5: 0.08333333333 | AX5: 0.08333333333 | AY5: 0.08333333333 | AZ5: 0.08333333333 | BA5: 0.08333333333 | BB5: 0.08333333333 | BC5: 0.08333333333 | BD5: 0.08333333333 | BE5: 0.08333333333 | BF5: 0.08333333333 | BG5: 0.08333333333 | BH5: 0.08333333333 | BI5: 0.08333333333 | BJ5: 0.08333333333 | BK5: 0.08333333333 | BL5: 0.08333333333 | BM5: 0.08333333333 | BN5: 0.08333333333 | BO5: 0.08333333333 | BP5: 0.08333333333 | BQ5: 0.08333333333 | BR5: 0.08333333333 | BS5: 0.08333333333 | BT5: 0.08333333333 | BU5: 0.08333333333 | BV5: 0.08333333333 | BW5: 0.08333333333 | BX5: 0.08333333333 | BY5: 0.08333333333 | BZ5: =IF($C$4="Automática",IF(YEAR(BZ2)=$D$11,1/(13-Mes_Ini),1/12),BZ3) -> 0.08333333333 | CA5: 0.08333333333 | CB5: 0.08333333333 | CC5: 0.08333333333 | CD5: 0.08333333333 | CE5: 0.08333333333 | CF5: 0.08333333333 | CG5: 0.08333333333 | CH5: 0.08333333333 | CI5: 0.08333333333 | CJ5: 0.08333333333 | CK5: 0.08333333333 | CL5: 0.08333333333 | CM5: 0.08333333333 | CN5: 0.08333333333 | CO5: 0.08333333333 | CP5: 0.08333333333 | CQ5: 0.08333333333 | CR5: 0.08333333333 | CS5: 0.08333333333
C6: Dato base | M6: Mensualización Costes Fijos | N6: =IF($C$4="Automática",IF(YEAR(N2)=$D$11,1/(13-Mes_Ini),1/12),N4) -> 0.08333333333 | O6: 0.08333333333 | P6: 0.08333333333 | Q6: 0.08333333333 | R6: 0.08333333333 | S6: 0.08333333333 | T6: 0.08333333333 | U6: 0.08333333333 | V6: 0.08333333333 | W6: 0.08333333333 | X6: 0.08333333333 | Y6: 0.08333333333 | Z6: 0.08333333333 | AA6: 0.08333333333 | AB6: 0.08333333333 | AC6: 0.08333333333 | AD6: 0.08333333333 | AE6: 0.08333333333 | AF6: 0.08333333333 | AG6: 0.08333333333 | AH6: 0.08333333333 | AI6: 0.08333333333 | AJ6: 0.08333333333 | AK6: 0.08333333333 | AL6: 0.08333333333 | AM6: 0.08333333333 | AN6: 0.08333333333 | AO6: 0.08333333333 | AP6: 0.08333333333 | AQ6: 0.08333333333 | AR6: 0.08333333333 | AS6: 0.08333333333 | AT6: =IF($C$4="Automática",IF(YEAR(AT2)=$D$11,1/(13-Mes_Ini),1/12),AT4) -> 0.08333333333 | AU6: 0.08333333333 | AV6: 0.08333333333 | AW6: 0.08333333333 | AX6: 0.08333333333 | AY6: 0.08333333333 | AZ6: 0.08333333333 | BA6: 0.08333333333 | BB6: 0.08333333333 | BC6: 0.08333333333 | BD6: 0.08333333333 | BE6: 0.08333333333 | BF6: 0.08333333333 | BG6: 0.08333333333 | BH6: 0.08333333333 | BI6: 0.08333333333 | BJ6: 0.08333333333 | BK6: 0.08333333333 | BL6: 0.08333333333 | BM6: 0.08333333333 | BN6: 0.08333333333 | BO6: 0.08333333333 | BP6: 0.08333333333 | BQ6: 0.08333333333 | BR6: 0.08333333333 | BS6: 0.08333333333 | BT6: 0.08333333333 | BU6: 0.08333333333 | BV6: 0.08333333333 | BW6: 0.08333333333 | BX6: 0.08333333333 | BY6: 0.08333333333 | BZ6: =IF($C$4="Automática",IF(YEAR(BZ2)=$D$11,1/(13-Mes_Ini),1/12),BZ4) -> 0.08333333333 | CA6: 0.08333333333 | CB6: 0.08333333333 | CC6: 0.08333333333 | CD6: 0.08333333333 | CE6: 0.08333333333 | CF6: 0.08333333333 | CG6: 0.08333333333 | CH6: 0.08333333333 | CI6: 0.08333333333 | CJ6: 0.08333333333 | CK6: 0.08333333333 | CL6: 0.08333333333 | CM6: 0.08333333333 | CN6: 0.08333333333 | CO6: 0.08333333333 | CP6: 0.08333333333 | CQ6: 0.08333333333 | CR6: 0.08333333333 | CS6: 0.08333333333
B7: IPC | C7: =CONTROL!H4 -> 0 | E7: =$C$7 -> 0 | F7: =$C$7 -> 0 | G7: 0 | H7: 0 | I7: 0 | J7: 0 | K7: 0 | N7: =D4 -> 2014 | O7: =N7+1 -> 2015 | P7: 2016 | Q7: 2017 | R7: 2018 | S7: 2019 | T7: 2020
B8: IPC Ingresos | C8: =CONTROL!H5 -> 0 | D8: 1 | E8: =D8*(1+E7*$C$8) -> 1 | F8: 1 | G8: 1 | H8: 1 | I8: 1 | J8: 1 | K8: 1 | N8: =SUMIF($N$1:$CS$1,N$7,$N5:$CS5) -> 1 | O8: 1 | P8: 1 | Q8: 1 | R8: 1 | S8: 1 | T8: 1
B9: IPC Costes | C9: =CONTROL!H6 -> 0 | D9: 1 | E9: =D9*(1+E7*$C$9) -> 1 | F9: 1 | G9: 1 | H9: 1 | I9: 1 | J9: 1 | K9: 1 | N9: 1 | O9: 1 | P9: 1 | Q9: 1 | R9: 1 | S9: 1 | T9: 1
N10: =IF(OR(N8<>1,O8<>1,P8<>1,Q8<>1,R8<>1,S8<>1,T8<>1),"Estacionalidad de ventas incorrecta","") ->  | O10: =IF(OR(N9<>1,O9<>1,P9<>1,Q9<>1,R9<>1,S9<>1,T9<>1),"Estacionalidad de costes fijos incorrecta","") -> 
B11: AÑO | C11: Dato base | D11: =D4 -> 2014 | E11: 2015 | F11: 2016 | G11: 2017 | H11: 2018 | I11: 2019 | J11: 2020 | K11: 2021 | N11: =N2 -> 2014-01-31 | O11: 2014-02-28 | P11: 2014-03-31 | Q11: 2014-04-30 | R11: 2014-05-31 | S11: 2014-06-30 | T11: 2014-07-31 | U11: 2014-08-31 | V11: 2014-09-30 | W11: 2014-10-31 | X11: 2014-11-30 | Y11: 2014-12-31 | Z11: 2015-01-31 | AA11: 2015-02-28 | AB11: 2015-03-31 | AC11: 2015-04-30 | AD11: 2015-05-31 | AE11: 2015-06-30 | AF11: 2015-07-31 | AG11: 2015-08-31 | AH11: 2015-09-30 | AI11: 2015-10-31 | AJ11: 2015-11-30 | AK11: 2015-12-31 | AL11: 2016-01-31 | AM11: 2016-02-29 | AN11: 2016-03-31 | AO11: 2016-04-30 | AP11: 2016-05-31 | AQ11: 2016-06-30 | AR11: 2016-07-31 | AS11: 2016-08-31 | AT11: =AT2 -> 2016-09-30 | AU11: 2016-10-31 | AV11: 2016-11-30 | AW11: 2016-12-31 | AX11: 2017-01-31 | AY11: 2017-02-28 | AZ11: 2017-03-31 | BA11: 2017-04-30 | BB11: 2017-05-31 | BC11: 2017-06-30 | BD11: 2017-07-31 | BE11: 2017-08-31 | BF11: 2017-09-30 | BG11: 2017-10-31 | BH11: 2017-11-30 | BI11: 2017-12-31 | BJ11: 2018-01-31 | BK11: 2018-02-28 | BL11: 2018-03-31 | BM11: 2018-04-30 | BN11: 2018-05-31 | BO11: 2018-06-30 | BP11: 2018-07-31 | BQ11: 2018-08-31 | BR11: 2018-09-30 | BS11: 2018-10-31 | BT11: 2018-11-30 | BU11: 2018-12-31 | BV11: 2019-01-31 | BW11: 2019-02-28 | BX11: 2019-03-31 | BY11: 2019-04-30 | BZ11: =BZ2 -> 2019-05-31 | CA11: 2019-06-30 | CB11: 2019-07-31 | CC11: 2019-08-31 | CD11: 2019-09-30 | CE11: 2019-10-31 | CF11: 2019-11-30 | CG11: 2019-12-31 | CH11: 2020-01-31 | CI11: 2020-02-29 | CJ11: 2020-03-31 | CK11: 2020-04-30 | CL11: 2020-05-31 | CM11: 2020-06-30 | CN11: 2020-07-31 | CO11: 2020-08-31 | CP11: 2020-09-30 | CQ11: 2020-10-31 | CR11: 2020-11-30 | CS11: 2020-12-31
B12: =CONTROL!C22 -> Línea A
B13: Ingresos | C13: =CONTROL!C23 -> 2014 | D13: =D15*D14 -> 1 | E13: 1 | F13: 1 | G13: 1 | H13: 1 | I13: 1 | J13: 1 | K13: =K15*K14 -> 1 | N13: =N$5*OFFSET($D13,0,N$1-$D$11) -> 0.08333333333 | O13: 0.08333333333 | P13: 0.08333333333 | Q13: 0.08333333333 | R13: 0.08333333333 | S13: 0.08333333333 | T13: 0.08333333333 | U13: 0.08333333333 | V13: 0.08333333333 | W13: 0.08333333333 | X13: 0.08333333333 | Y13: 0.08333333333 | Z13: 0.08333333333 | AA13: 0.08333333333 | AB13: 0.08333333333 | AC13: 0.08333333333 | AD13: 0.08333333333 | AE13: 0.08333333333 | AF13: 0.08333333333 | AG13: 0.08333333333 | AH13: 0.08333333333 | AI13: 0.08333333333 | AJ13: 0.08333333333 | AK13: 0.08333333333 | AL13: 0.08333333333 | AM13: 0.08333333333 | AN13: 0.08333333333 | AO13: 0.08333333333 | AP13: 0.08333333333 | AQ13: 0.08333333333 | AR13: 0.08333333333 | AS13: 0.08333333333 | AT13: =AT$5*OFFSET($D13,0,AT$1-$D$11) -> 0.08333333333 | AU13: 0.08333333333 | AV13: 0.08333333333 | AW13: 0.08333333333 | AX13: 0.08333333333 | AY13: 0.08333333333 | AZ13: 0.08333333333 | BA13: 0.08333333333 | BB13: 0.08333333333 | BC13: 0.08333333333 | BD13: 0.08333333333 | BE13: 0.08333333333 | BF13: 0.08333333333 | BG13: 0.08333333333 | BH13: 0.08333333333 | BI13: 0.08333333333 | BJ13: 0.08333333333 | BK13: 0.08333333333 | BL13: 0.08333333333 | BM13: 0.08333333333 | BN13: 0.08333333333 | BO13: 0.08333333333 | BP13: 0.08333333333 | BQ13: 0.08333333333 | BR13: 0.08333333333 | BS13: 0.08333333333 | BT13: 0.08333333333 | BU13: 0.08333333333 | BV13: 0.08333333333 | BW13: 0.08333333333 | BX13: 0.08333333333 | BY13: 0.08333333333 | BZ13: =BZ$5*OFFSET($D13,0,BZ$1-$D$11) -> 0.08333333333 | CA13: 0.08333333333 | CB13: 0.08333333333 | CC13: 0.08333333333 | CD13: 0.08333333333 | CE13: 0.08333333333 | CF13: 0.08333333333 | CG13: 0.08333333333 | CH13: 0.08333333333 | CI13: 0.08333333333 | CJ13: 0.08333333333 | CK13: 0.08333333333 | CL13: 0.08333333333 | CM13: 0.08333333333 | CN13: 0.08333333333 | CO13: 0.08333333333 | CP13: 0.08333333333 | CQ13: 0.08333333333 | CR13: 0.08333333333 | CS13: 0.08333333333
B14: Precio | C14: =CONTROL!C24*RIESGO!C6 -> 1 | D14: =$C14*D$8 -> 1 | E14: 1 | F14: 1 | G14: 1 | H14: 1 | I14: 1 | J14: 1 | K14: 1
B15: Unidades | C15: =CONTROL!C25*RIESGO!C5 -> 1 | D15: =IF(D$11<$C13,0,IF(D$11=$C13,$C15,C15*(1+D17))) -> 1 | E15: 1 | F15: =IF(F$11<$C13,0,IF(F$11=$C13,$C15,E15*(1+F17))) -> 1 | G15: =IF(G$11<$C13,0,IF(G$11=$C13,$C15,F15*(1+G17))) -> 1 | H15: =IF(H$11<$C13,0,IF(H$11=$C13,$C15,G15*(1+H17))) -> 1 | I15: =IF(I$11<$C13,0,IF(I$11=$C13,$C15,H15*(1+I17))) -> 1 | J15: =IF(J$11<$C13,0,IF(J$11=$C13,$C15,I15*(1+J17))) -> 1 | K15: =IF(K$11<$C13,0,IF(K$11=$C13,$C15,J15*(1+K17))) -> 1
B16: Crecimiento | E16: =TRANSPOSE(CONTROL!C27:C32)*RIESGO!$C$10 -> 0 | F16: 0 | G16: 0 | H16: 0 | I16: 0 | J16: 0 | K16: =CONTROL!$C$21*RIESGO!$C$10 -> 0
E17: =IF(D15=0,0,E16) -> 0 | F17: =IF(E15=0,0,F16) -> 0 | G17: 0 | H17: 0 | I17: 0 | J17: 0 | K17: =K16 -> 0
B18: =CONTROL!D22 -> Línea B
B19: Ingresos | C19: =CONTROL!D23 -> 0 | D19: =D21*D20 -> 0 | E19: 0 | F19: 0 | G19: 0 | H19: 0 | I19: 0 | J19: 0 | K19: =K21*K20 -> 0 | N19: =N$5*OFFSET($D19,0,N$1-$D$11) -> 0 | O19: 0 | P19: 0 | Q19: 0 | R19: 0 | S19: 0 | T19: 0 | U19: 0 | V19: 0 | W19: 0 | X19: 0 | Y19: 0 | Z19: 0 | AA19: 0 | AB19: 0 | AC19: 0 | AD19: 0 | AE19: 0 | AF19: 0 | AG19: 0 | AH19: 0 | AI19: 0 | AJ19: 0 | AK19: 0 | AL19: 0 | AM19: 0 | AN19: 0 | AO19: 0 | AP19: 0 | AQ19: 0 | AR19: 0 | AS19: 0 | AT19: =AT$5*OFFSET($D19,0,AT$1-$D$11) -> 0 | AU19: 0 | AV19: 0 | AW19: 0 | AX19: 0 | AY19: 0 | AZ19: 0 | BA19: 0 | BB19: 0 | BC19: 0 | BD19: 0 | BE19: 0 | BF19: 0 | BG19: 0 | BH19: 0 | BI19: 0 | BJ19: 0 | BK19: 0 | BL19: 0 | BM19: 0 | BN19: 0 | BO19: 0 | BP19: 0 | BQ19: 0 | BR19: 0 | BS19: 0 | BT19: 0 | BU19: 0 | BV19: 0 | BW19: 0 | BX19: 0 | BY19: 0 | BZ19: =BZ$5*OFFSET($D19,0,BZ$1-$D$11) -> 0 | CA19: 0 | CB19: 0 | CC19: 0 | CD19: 0 | CE19: 0 | CF19: 0 | CG19: 0 | CH19: 0 | CI19: 0 | CJ19: 0 | CK19: 0 | CL19: 0 | CM19: 0 | CN19: 0 | CO19: 0 | CP19: 0 | CQ19: 0 | CR19: 0 | CS19: 0
B20: Precio | C20: =CONTROL!D24*RIESGO!C6 -> 0 | D20: =$C20*D$8 -> 0 | E20: 0 | F20: 0 | G20: 0 | H20: 0 | I20: 0 | J20: 0 | K20: 0
B21: Unidades | C21: =CONTROL!D25*RIESGO!C5 -> 0 | D21: =IF(D$11<$C19,0,IF(D$11=$C19,$C21,C21*(1+D23))) -> 0 | E21: 0 | F21: 0 | G21: 0 | H21: 0 | I21: 0 | J21: 0 | K21: 0
B22: Crecimiento | E22: =TRANSPOSE(CONTROL!D27:D32)*RIESGO!$C$10 -> 0 | F22: 0 | G22: 0 | H22: 0 | I22: 0 | J22: 0 | K22: =CONTROL!$C$21*RIESGO!$C$10 -> 0
E23: =IF(D21=0,0,E22) -> 0 | F23: =IF(E21=0,0,F22) -> 0 | G23: 0 | H23: 0 | I23: 0 | J23: 0 | K23: =K22 -> 0
B24: =CONTROL!E22 -> Línea C
B25: Ingresos | C25: =CONTROL!E23 -> 0 | D25: =D26*D27 -> 0 | E25: 0 | F25: 0 | G25: 0 | H25: 0 | I25: 0 | J25: 0 | K25: =K26*K27 -> 0 | N25: =N$5*OFFSET($D25,0,N$1-$D$11) -> 0 | O25: 0 | P25: 0 | Q25: 0 | R25: 0 | S25: 0 | T25: 0 | U25: 0 | V25: 0 | W25: 0 | X25: 0 | Y25: 0 | Z25: 0 | AA25: 0 | AB25: 0 | AC25: 0 | AD25: 0 | AE25: 0 | AF25: 0 | AG25: 0 | AH25: 0 | AI25: 0 | AJ25: 0 | AK25: 0 | AL25: 0 | AM25: 0 | AN25: 0 | AO25: 0 | AP25: 0 | AQ25: 0 | AR25: 0 | AS25: 0 | AT25: =AT$5*OFFSET($D25,0,AT$1-$D$11) -> 0 | AU25: 0 | AV25: 0 | AW25: 0 | AX25: 0 | AY25: 0 | AZ25: 0 | BA25: 0 | BB25: 0 | BC25: 0 | BD25: 0 | BE25: 0 | BF25: 0 | BG25: 0 | BH25: 0 | BI25: 0 | BJ25: 0 | BK25: 0 | BL25: 0 | BM25: 0 | BN25: 0 | BO25: 0 | BP25: 0 | BQ25: 0 | BR25: 0 | BS25: 0 | BT25: 0 | BU25: 0 | BV25: 0 | BW25: 0 | BX25: 0 | BY25: 0 | BZ25: =BZ$5*OFFSET($D25,0,BZ$1-$D$11) -> 0 | CA25: 0 | CB25: 0 | CC25: 0 | CD25: 0 | CE25: 0 | CF25: 0 | CG25: 0 | CH25: 0 | CI25: 0 | CJ25: 0 | CK25: 0 | CL25: 0 | CM25: 0 | CN25: 0 | CO25: 0 | CP25: 0 | CQ25: 0 | CR25: 0 | CS25: 0
B26: Precio | C26: =CONTROL!E24*RIESGO!C6 -> 0 | D26: =$C26*D$8 -> 0 | E26: 0 | F26: 0 | G26: 0 | H26: 0 | I26: 0 | J26: 0 | K26: 0
B27: Unidades | C27: =CONTROL!E25*RIESGO!C5 -> 0 | D27: =IF(D$11<$C25,0,IF(D$11=$C25,$C27,C27*(1+D29))) -> 0 | E27: 0 | F27: 0 | G27: 0 | H27: 0 | I27: 0 | J27: 0 | K27: 0
B28: Crecimiento | E28: =TRANSPOSE(CONTROL!E27:E32)*RIESGO!$C$10 -> 0 | F28: 0 | G28: 0 | H28: 0 | I28: 0 | J28: 0 | K28: =CONTROL!$C$21*RIESGO!$C$10 -> 0
E29: =IF(D27=0,0,E28) -> 0 | F29: =IF(E27=0,0,F28) -> 0 | G29: =IF(F27=0,0,G28) -> 0 | H29: =IF(G27=0,0,H28) -> 0 | I29: =IF(H27=0,0,I28) -> 0 | J29: =IF(I27=0,0,J28) -> 0 | K29: =K28 -> 0
B30: =CONTROL!F22 -> Línea D
B31: Ingresos | C31: =CONTROL!F23 -> 0 | D31: =D32*D33 -> 0 | E31: 0 | F31: 0 | G31: 0 | H31: 0 | I31: 0 | J31: 0 | K31: =K32*K33 -> 0 | N31: =N$5*OFFSET($D31,0,N$1-$D$11) -> 0 | O31: 0 | P31: 0 | Q31: 0 | R31: 0 | S31: 0 | T31: 0 | U31: 0 | V31: 0 | W31: 0 | X31: 0 | Y31: 0 | Z31: 0 | AA31: 0 | AB31: 0 | AC31: 0 | AD31: 0 | AE31: 0 | AF31: 0 | AG31: 0 | AH31: 0 | AI31: 0 | AJ31: 0 | AK31: 0 | AL31: 0 | AM31: 0 | AN31: 0 | AO31: 0 | AP31: 0 | AQ31: 0 | AR31: 0 | AS31: 0 | AT31: =AT$5*OFFSET($D31,0,AT$1-$D$11) -> 0 | AU31: 0 | AV31: 0 | AW31: 0 | AX31: 0 | AY31: 0 | AZ31: 0 | BA31: 0 | BB31: 0 | BC31: 0 | BD31: 0 | BE31: 0 | BF31: 0 | BG31: 0 | BH31: 0 | BI31: 0 | BJ31: 0 | BK31: 0 | BL31: 0 | BM31: 0 | BN31: 0 | BO31: 0 | BP31: 0 | BQ31: 0 | BR31: 0 | BS31: 0 | BT31: 0 | BU31: 0 | BV31: 0 | BW31: 0 | BX31: 0 | BY31: 0 | BZ31: =BZ$5*OFFSET($D31,0,BZ$1-$D$11) -> 0 | CA31: 0 | CB31: 0 | CC31: 0 | CD31: 0 | CE31: 0 | CF31: 0 | CG31: 0 | CH31: 0 | CI31: 0 | CJ31: 0 | CK31: 0 | CL31: 0 | CM31: 0 | CN31: 0 | CO31: 0 | CP31: 0 | CQ31: 0 | CR31: 0 | CS31: 0
B32: Precio | C32: =CONTROL!F24*RIESGO!C6 -> 0 | D32: =$C32*D$8 -> 0 | E32: 0 | F32: 0 | G32: 0 | H32: 0 | I32: 0 | J32: 0 | K32: 0
B33: Unidades | C33: =CONTROL!F25*RIESGO!C5 -> 0 | D33: =IF(D$11<$C31,0,IF(D$11=$C31,$C33,C33*(1+D35))) -> 0 | E33: 0 | F33: 0 | G33: 0 | H33: 0 | I33: 0 | J33: 0 | K33: 0
B34: Crecimiento | E34: =TRANSPOSE(CONTROL!F27:F32)*RIESGO!$C$10 -> 0 | F34: 0 | G34: 0 | H34: 0 | I34: 0 | J34: 0 | K34: =CONTROL!$C$21*RIESGO!$C$10 -> 0
E35: =IF(D33=0,0,E34) -> 0 | F35: =IF(E33=0,0,F34) -> 0 | G35: =IF(F33=0,0,G34) -> 0 | H35: =IF(G33=0,0,H34) -> 0 | I35: =IF(H33=0,0,I34) -> 0 | J35: =IF(I33=0,0,J34) -> 0 | K35: =K34 -> 0
B36: =CONTROL!G22 -> Línea E | C36: =CONTROL!G23 -> 0
B37: Ingresos | C37: =CONTROL!G24*RIESGO!C6*RIESGO!C5 -> 0 | D37: =IF(D4<C36,0,C37) -> 0 | E37: =IF(E4<$C$36,0,IF(E4=$C$36,$C$37*E8,D37*(1+E39)*E8/D8)) -> 0 | F37: 0 | G37: 0 | H37: 0 | I37: 0 | J37: 0 | K37: 0 | N37: =N$5*OFFSET($D37,0,N$1-$D$11) -> 0 | O37: 0 | P37: 0 | Q37: 0 | R37: 0 | S37: 0 | T37: 0 | U37: 0 | V37: 0 | W37: 0 | X37: 0 | Y37: 0 | Z37: 0 | AA37: 0 | AB37: 0 | AC37: 0 | AD37: 0 | AE37: 0 | AF37: 0 | AG37: 0 | AH37: 0 | AI37: 0 | AJ37: 0 | AK37: 0 | AL37: 0 | AM37: 0 | AN37: 0 | AO37: 0 | AP37: 0 | AQ37: 0 | AR37: 0 | AS37: 0 | AT37: =AT$5*OFFSET($D37,0,AT$1-$D$11) -> 0 | AU37: 0 | AV37: 0 | AW37: 0 | AX37: 0 | AY37: 0 | AZ37: 0 | BA37: 0 | BB37: 0 | BC37: 0 | BD37: 0 | BE37: 0 | BF37: 0 | BG37: 0 | BH37: 0 | BI37: 0 | BJ37: 0 | BK37: 0 | BL37: 0 | BM37: 0 | BN37: 0 | BO37: 0 | BP37: 0 | BQ37: 0 | BR37: 0 | BS37: 0 | BT37: 0 | BU37: 0 | BV37: 0 | BW37: 0 | BX37: 0 | BY37: 0 | BZ37: =BZ$5*OFFSET($D37,0,BZ$1-$D$11) -> 0 | CA37: 0 | CB37: 0 | CC37: 0 | CD37: 0 | CE37: 0 | CF37: 0 | CG37: 0 | CH37: 0 | CI37: 0 | CJ37: 0 | CK37: 0 | CL37: 0 | CM37: 0 | CN37: 0 | CO37: 0 | CP37: 0 | CQ37: 0 | CR37: 0 | CS37: 0
B38: Crecimiento | E38: =TRANSPOSE(CONTROL!G27:G32)*RIESGO!$C$10 -> 0 | F38: 0 | G38: 0 | H38: 0 | I38: 0 | J38: 0 | K38: =CONTROL!$C$21*RIESGO!$C$10 -> 0
E39: =IF(D37=0,0,E38) -> 0 | F39: =IF(E37=0,0,F38) -> 0 | G39: =IF(F37=0,0,G38) -> 0 | H39: 0 | I39: 0 | J39: 0 | K39: =K38 -> 0
B40: =CONTROL!H22 -> Línea F | C40: =CONTROL!H23 -> 0
B41: Ingresos | C41: =CONTROL!H24*RIESGO!C6*RIESGO!C5 -> 0 | D41: =D43*(D13+D19+D25+D31+D37) -> 0 | E41: 0 | F41: 0 | G41: 0 | H41: 0 | I41: 0 | J41: 0 | K41: 0 | N41: =N$5*OFFSET($D41,0,N$1-$D$11) -> 0 | O41: 0 | P41: 0 | Q41: 0 | R41: 0 | S41: 0 | T41: 0 | U41: 0 | V41: 0 | W41: 0 | X41: 0 | Y41: 0 | Z41: 0 | AA41: 0 | AB41: 0 | AC41: 0 | AD41: 0 | AE41: 0 | AF41: 0 | AG41: 0 | AH41: 0 | AI41: 0 | AJ41: 0 | AK41: 0 | AL41: 0 | AM41: 0 | AN41: 0 | AO41: 0 | AP41: 0 | AQ41: 0 | AR41: 0 | AS41: 0 | AT41: =AT$5*OFFSET($D41,0,AT$1-$D$11) -> 0 | AU41: 0 | AV41: 0 | AW41: 0 | AX41: 0 | AY41: 0 | AZ41: 0 | BA41: 0 | BB41: 0 | BC41: 0 | BD41: 0 | BE41: 0 | BF41: 0 | BG41: 0 | BH41: 0 | BI41: 0 | BJ41: 0 | BK41: 0 | BL41: 0 | BM41: 0 | BN41: 0 | BO41: 0 | BP41: 0 | BQ41: 0 | BR41: 0 | BS41: 0 | BT41: 0 | BU41: 0 | BV41: 0 | BW41: 0 | BX41: 0 | BY41: 0 | BZ41: =BZ$5*OFFSET($D41,0,BZ$1-$D$11) -> 0 | CA41: 0 | CB41: 0 | CC41: 0 | CD41: 0 | CE41: 0 | CF41: 0 | CG41: 0 | CH41: 0 | CI41: 0 | CJ41: 0 | CK41: 0 | CL41: 0 | CM41: 0 | CN41: 0 | CO41: 0 | CP41: 0 | CQ41: 0 | CR41: 0 | CS41: 0
B42: Crecimiento | E42: =TRANSPOSE(CONTROL!H27:H32)*RIESGO!$C$10 -> 0 | F42: 0 | G42: 0 | H42: 0 | I42: 0 | J42: 0 | K42: =CONTROL!$C$21*RIESGO!$C$10 -> 0
D43: =IF(D4<C40,0,C41) -> 0 | E43: =IF(E4<$C$40,0,IF(E4=$C$40,$C$41,D43*(1+E42))) -> 0 | F43: =IF(F4<$C$40,0,IF(F4=$C$40,$C$41,E43*(1+F42))) -> 0 | G43: 0 | H43: 0 | I43: 0 | J43: 0 | K43: 0
C45: Ingresos Totales | D45: =D13+D19+D25+D31+D37+D41 -> 1 | E45: 1 | F45: 1 | G45: 1 | H45: 1 | I45: 1 | J45: 1 | K45: 1 | N45: =N13+N19+N25+N31+N37+N41 -> 0.08333333333 | O45: 0.08333333333 | P45: 0.08333333333 | Q45: 0.08333333333 | R45: 0.08333333333 | S45: 0.08333333333 | T45: 0.08333333333 | U45: 0.08333333333 | V45: 0.08333333333 | W45: 0.08333333333 | X45: 0.08333333333 | Y45: 0.08333333333 | Z45: 0.08333333333 | AA45: 0.08333333333 | AB45: 0.08333333333 | AC45: 0.08333333333 | AD45: 0.08333333333 | AE45: 0.08333333333 | AF45: 0.08333333333 | AG45: 0.08333333333 | AH45: 0.08333333333 | AI45: 0.08333333333 | AJ45: 0.08333333333 | AK45: 0.08333333333 | AL45: 0.08333333333 | AM45: 0.08333333333 | AN45: 0.08333333333 | AO45: 0.08333333333 | AP45: 0.08333333333 | AQ45: 0.08333333333 | AR45: 0.08333333333 | AS45: 0.08333333333 | AT45: =AT13+AT19+AT25+AT31+AT37+AT41 -> 0.08333333333 | AU45: 0.08333333333 | AV45: 0.08333333333 | AW45: 0.08333333333 | AX45: 0.08333333333 | AY45: 0.08333333333 | AZ45: 0.08333333333 | BA45: 0.08333333333 | BB45: 0.08333333333 | BC45: 0.08333333333 | BD45: 0.08333333333 | BE45: 0.08333333333 | BF45: 0.08333333333 | BG45: 0.08333333333 | BH45: 0.08333333333 | BI45: 0.08333333333 | BJ45: 0.08333333333 | BK45: 0.08333333333 | BL45: 0.08333333333 | BM45: 0.08333333333 | BN45: 0.08333333333 | BO45: 0.08333333333 | BP45: 0.08333333333 | BQ45: 0.08333333333 | BR45: 0.08333333333 | BS45: 0.08333333333 | BT45: 0.08333333333 | BU45: 0.08333333333 | BV45: 0.08333333333 | BW45: 0.08333333333 | BX45: 0.08333333333 | BY45: 0.08333333333 | BZ45: =BZ13+BZ19+BZ25+BZ31+BZ37+BZ41 -> 0.08333333333 | CA45: 0.08333333333 | CB45: 0.08333333333 | CC45: 0.08333333333 | CD45: 0.08333333333 | CE45: 0.08333333333 | CF45: 0.08333333333 | CG45: 0.08333333333 | CH45: 0.08333333333 | CI45: 0.08333333333 | CJ45: 0.08333333333 | CK45: 0.08333333333 | CL45: 0.08333333333 | CM45: 0.08333333333 | CN45: 0.08333333333 | CO45: 0.08333333333 | CP45: 0.08333333333 | CQ45: 0.08333333333 | CR45: 0.08333333333 | CS45: 0.08333333333
C46: Crecimiento | E46: =E45/D45-1 -> 0 | F46: 0 | G46: 0 | H46: 0 | I46: 0 | J46: 0 | K46: 0
B48: Nivel primer año | C48: =1-(Mes_Ini-1)/12 -> 1
B49: Costes Fijos | C49: Datos Base | D49: =D11 -> 2014 | E49: 2015 | F49: 2016 | G49: 2017 | H49: 2018 | I49: 2019 | J49: =J11 -> 2020 | K49: 2021 | N49: =N2 -> 2014-01-31 | O49: 2014-02-28 | P49: 2014-03-31 | Q49: 2014-04-30 | R49: 2014-05-31 | S49: 2014-06-30 | T49: 2014-07-31 | U49: 2014-08-31 | V49: 2014-09-30 | W49: 2014-10-31 | X49: 2014-11-30 | Y49: 2014-12-31 | Z49: 2015-01-31 | AA49: 2015-02-28 | AB49: 2015-03-31 | AC49: 2015-04-30 | AD49: 2015-05-31 | AE49: 2015-06-30 | AF49: 2015-07-31 | AG49: 2015-08-31 | AH49: 2015-09-30 | AI49: 2015-10-31 | AJ49: 2015-11-30 | AK49: 2015-12-31 | AL49: 2016-01-31 | AM49: 2016-02-29 | AN49: 2016-03-31 | AO49: 2016-04-30 | AP49: 2016-05-31 | AQ49: 2016-06-30 | AR49: 2016-07-31 | AS49: 2016-08-31 | AT49: =AT2 -> 2016-09-30 | AU49: 2016-10-31 | AV49: 2016-11-30 | AW49: 2016-12-31 | AX49: 2017-01-31 | AY49: 2017-02-28 | AZ49: 2017-03-31 | BA49: 2017-04-30 | BB49: 2017-05-31 | BC49: 2017-06-30 | BD49: 2017-07-31 | BE49: 2017-08-31 | BF49: 2017-09-30 | BG49: 2017-10-31 | BH49: 2017-11-30 | BI49: 2017-12-31 | BJ49: 2018-01-31 | BK49: 2018-02-28 | BL49: 2018-03-31 | BM49: 2018-04-30 | BN49: 2018-05-31 | BO49: 2018-06-30 | BP49: 2018-07-31 | BQ49: 2018-08-31 | BR49: 2018-09-30 | BS49: 2018-10-31 | BT49: 2018-11-30 | BU49: 2018-12-31 | BV49: 2019-01-31 | BW49: 2019-02-28 | BX49: 2019-03-31 | BY49: 2019-04-30 | BZ49: =BZ2 -> 2019-05-31 | CA49: 2019-06-30 | CB49: 2019-07-31 | CC49: 2019-08-31 | CD49: 2019-09-30 | CE49: 2019-10-31 | CF49: 2019-11-30 | CG49: 2019-12-31 | CH49: 2020-01-31 | CI49: 2020-02-29 | CJ49: 2020-03-31 | CK49: 2020-04-30 | CL49: 2020-05-31 | CM49: 2020-06-30 | CN49: 2020-07-31 | CO49: 2020-08-31 | CP49: 2020-09-30 | CQ49: 2020-10-31 | CR49: 2020-11-30 | CS49: 2020-12-31
B50: Personal | D50: =C50*RIESGO!$C$8*$C$48 -> 0 | E50: =$C50*RIESGO!$C$8*E$9 -> 0 | F50: =$C50*RIESGO!$C$8*F$9 -> 0 | G50: =$C50*RIESGO!$C$8*G$9 -> 0 | H50: =$C50*RIESGO!$C$8*H$9 -> 0 | I50: =$C50*RIESGO!$C$8*I$9 -> 0 | J50: =$C50*RIESGO!$C$8*J$9 -> 0 | K50: =$C50*RIESGO!$C$8*K$9 -> 0 | N50: =N$6*OFFSET($D50,0,N$1-$D$49) -> 0 | O50: 0 | P50: 0 | Q50: 0 | R50: 0 | S50: 0 | T50: 0 | U50: 0 | V50: 0 | W50: 0 | X50: =X$6*OFFSET($D50,0,X$1-$D$49) -> 0 | Y50: 0 | Z50: 0 | AA50: 0 | AB50: 0 | AC50: 0 | AD50: 0 | AE50: 0 | AF50: 0 | AG50: 0 | AH50: =AH$6*OFFSET($D50,0,AH$1-$D$49) -> 0 | AI50: 0 | AJ50: 0 | AK50: 0 | AL50: 0 | AM50: 0 | AN50: 0 | AO50: 0 | AP50: 0 | AQ50: 0 | AR50: =AR$6*OFFSET($D50,0,AR$1-$D$49) -> 0 | AS50: 0 | AT50: 0 | AU50: 0 | AV50: 0 | AW50: 0 | AX50: 0 | AY50: 0 | AZ50: 0 | BA50: 0 | BB50: =BB$6*OFFSET($D50,0,BB$1-$D$49) -> 0 | BC50: 0 | BD50: 0 | BE50: 0 | BF50: 0 | BG50: 0 | BH50: 0 | BI50: 0 | BJ50: 0 | BK50: 0 | BL50: =BL$6*OFFSET($D50,0,BL$1-$D$49) -> 0 | BM50: 0 | BN50: 0 | BO50: 0 | BP50: 0 | BQ50: 0 | BR50: 0 | BS50: 0 | BT50: 0 | BU50: 0 | BV50: =BV$6*OFFSET($D50,0,BV$1-$D$49) -> 0 | BW50: 0 | BX50: 0 | BY50: 0 | BZ50: 0 | CA50: 0 | CB50: 0 | CC50: 0 | CD50: 0 | CE50: 0 | CF50: =CF$6*OFFSET($D50,0,CF$1-$D$49) -> 0 | CG50: 0 | CH50: 0 | CI50: 0 | CJ50: 0 | CK50: 0 | CL50: 0 | CM50: 0 | CN50: 0 | CO50: 0 | CP50: 0 | CQ50: 0 | CR50: 0 | CS50: 0
